Workbook

Sheet HOME
B13: DFE Number
B15: NOTES: | D15: Home Page | G15: Select your DFE number using the drop down menu provided (it may be prefixed with a letter) in order for the other pages to recognise your academy
D17: Early Years | G17: If your academy has an early years provision (not a private voluntary or independent provison that is a tennant on your site) then you will be able to see your hourly rate on this page. If you fill in the table shaded pink with your projected pupil numbers then the page will calculate your projected funding. You can correct this with actual data as the year passes.
D19: Place Place Mainstream | G19: On this page you can identify your high needs pupils within your academy and find out how much funding these pupils will attract. It is important to only include pupils who have had high needs funding agreed by Kent County Council and to make sure you use the correct dates and need types as funding will only be provided as agreed in advance by the authority.
D21: Place Plus Resourced Provision | G21: On this page you can identify your special resourced provision pupils within your academy and find out how much funding these pupils will attract. It is important to only include pupils who have had high needs funding agreed by Kent County Council and to make sure you use the correct dates as funding will only be provided as agreed in advance by the authority. It is also important to be clear about which high needs pupils attend your special resourced provision and which attend your school but not the special resourced provision.
D23: Growth Funding | G23: On this page you can enter your projected pupil number for October 2014 (and correct it when the time comes) to see if you will be eligible for any rising roll funding. If you are also in receipt of reorganisation funding then it is important to enter this as well as you will only receive the greater of the two. Non recoupment academies, Free schools and any academy funded based on estimated pupil numbers will not be eligible for rising roll funding.

Sheet Early Years
K2: =dfenum -> 0
C5: =VLOOKUP(dfenum,academies,2,0) -> 
A7: 2014/15 Early Years Budget Estimation
B9: Hourly Rate | G9: Hourly rate
B10: Base rate | G10: =VLOOKUP(dfenum,DATA!$B$3:$G$145,4,0) -> 
B11: Qualified Teacher Supplement | G11: =VLOOKUP(dfenum,DATA!$B$3:$G$145,5,0) -> 
B12: Disadvantage supplement | G12: =VLOOKUP(dfenum,DATA!$B$3:$G$145,6,0) -> 
G13: =SUM(G10:G12) -> 
B15: Please Enter your Pupil Numbers
B17: Please only enter qualifying pupils (follow link for guidance)
C18: 2014/15
B19: Pupils Early Years Hours | C19: Summer | D19: Autumn | E19: Spring
B20: 1
B21: 2
B22: 3
B23: 4
B24: 5
B25: 6
B26: 7
B27: 8
B28: 9
B29: 10
B30: 11
B31: 12
B32: 13
B33: 14
B34: 15
B35: Total pupils: | C35: =SUM(C20:C34) -> 0 | D35: =SUM(D20:D34) -> 0 | E35: =SUM(E20:E34) -> 0
B36: Total Weekly Hours: | C36: =(1*C20)+(2*C21)+(3*C22)+(4*C23)+(5*C24)+(6*C25)+(7*C26)+(8*C27)+(9*C28)+(10*C29)+(11*C30)+(12*C31)+(13*C32)+(14*C33)+(15*C34) -> 0 | D36: =(1*D20)+(2*D21)+(3*D22)+(4*D23)+(5*D24)+(6*D25)+(7*D26)+(8*D27)+(9*D28)+(10*D29)+(11*D30)+(12*D31)+(13*D32)+(14*D33)+(15*D34) -> 0 | E36: =(1*E20)+(2*E21)+(3*E22)+(4*E23)+(5*E24)+(6*E25)+(7*E26)+(8*E27)+(9*E28)+(10*E29)+(11*E30)+(12*E31)+(13*E32)+(14*E33)+(15*E34) -> 0
B37: Total Hours for Term: | C37: =C36*H40 -> 0 | D37: =D36*H41 -> 0 | E37: =E36*H42 -> 0
F39: Weekly Hours | H39: Weeks
B40: Summer term 2014 | F40: =C36 -> 0 | H40: 12 | J40: =F40*H40 -> 0
B41: Autumn term 2014 | F41: =D36 -> 0 | H41: 14 | J41: =F41*H41 -> 0
B42: Spring term 2015 | F42: =E36 -> 0 | H42: 11 | J42: =F42*H42 -> 0
B43: Total hours for 2014/15: | J43: =SUM(J40:J42) -> 0
B44: Hourly rate: | J44: =G13 -> 
B46: Total 2014/15 Estimated Budget: | J46: =J43*J44 -> 

Sheet Place Plus
G2: =dfenum -> 0
B7: =VLOOKUP(dfenum,academies,2,0) -> 
B9: Place Plus Funding for High Needs Pupils in Mainstream Provision Not a Resourced Provision
B10: Pupil Numbers | K10: Only Pupils who have had high needs funding agreed by Kent County Council should be entered here
C12: SLCN & SPLD | D12: SLD | E12: ASD | F12: PD HI & VI | G12: Of which Post-16 Pupils | AR12: 2015-16 Need types | BD12: 2016-17 Need types | BP12: 2015-16 Pre/Post-16 | CB12: 2016-17 Pre/Post-16 | CP12: 2015-16 | CR12: 2016-17
K13: Pupil Surname | L13: Pupil Forename | M13: D.O.B | N13: Pre/Post 16 Summer | O13: Pre/Post Autumn | P13: Need Type | Q13: Placement Start Date | R13: Placement End Date | S13: End date | T13: April Return | U13: September return | V13: January Return | W13: April Post-16 | X13: May Post-16 | Y13: June Post-16 | Z13: July Post-16 | AA13: August Post-16 | AB13: September Post-16 | AC13: October Post-16 | AD13: November Post-16 | AE13: December Post-16 | AF13: January Post-16 | AG13: February Post-16 | AH13: March Post-16 | AI13: May Starters | AJ13: June Starters | AK13: July Starters | AL13: August Starters | AM13: October Starters | AN13: Novermber Starters | AO13: December Starters | AP13: February Starters | AQ13: March Starters | AR13: April | AS13: May | AT13: June | AU13: July | AV13: August | AW13: September | AX13: October | AY13: November | AZ13: December | BA13: January | BB13: February | BC13: March | BD13: April | BE13: May | BF13: June | BG13: July | BH13: August | BI13: September | BJ13: October | BK13: November | BL13: December | BM13: January | BN13: February | BO13: March | BP13: April | BQ13: May | BR13: June | BS13: July | BT13: August | BU13: September | BV13: October | BW13: November | BX13: December | BY13: January | BZ13: February | CA13: March | CB13: April | CC13: May | CD13: June | CE13: July | CF13: August | CG13: September | CH13: October | CI13: November | CJ13: December | CK13: January | CL13: February | CM13: March | CN13: 2015-16 FTE | CO13: 2016-17 FTE | CP13: Pre-16 | CQ13: Post-16 | CR13: Pre-16 | CS13: Post-16
B14: This table shows all of the Pupils in School during these months | N14: =IF(ISERROR(M14*1),"Enter valid D.O.B",IF(M14<34372,"Enter valid D.O.B",IF(M14<35674,"Post-16","Pre-16"))) -> Enter valid D.O.B | O14: =IF(ISERROR(M14*1),"Enter valid D.O.B",IF(M14<34372,"Enter valid D.O.B",IF(M14<36039,"Post-16","Pre-16"))) -> Enter valid D.O.B | S14: =IF(Q14=0,0,IF(R14=0,42826,R14)) -> 0 | T14: =IF(AND(Q14<41760,S14>41729),P14,0) -> 0 | U14: =IF(AND(Q14<41913,S14>41882),P14,0) -> 0 | V14: =IF(AND(Q14<42036,S14>42004),P14,0) -> 0 | W14: =IF(AND(Q14<41760,S14>41729),N14,0) -> 0 | X14: =IF(AND(Q14>41759,Q14<41791),N14,0) -> 0 | Y14: =IF(AND(Q14>41790,Q14<41821),N14,0) -> 0 | Z14: =IF(AND(Q14>41820,Q14<41851),N14,0) -> 0 | AA14: =IF(AND(Q14>41851,Q14<41883),N14,0) -> 0 | AB14: =IF(AND(S14>41882,Q14<41913),O14,0) -> 0 | AC14: =IF(AND(Q14>41912,Q14<41944),O14,0) -> 0 | AD14: =IF(AND(Q14>41943,Q14<41974),O14,0) -> 0 | AE14: =IF(AND(Q14>41973,Q14<42005),O14,0) -> 0 | AF14: =IF(AND(Q14<42036,S14>42004),O14,0) -> 0 | AG14: =IF(AND(Q14>42035,Q14<42064),O14,0) -> 0 | AH14: =IF(AND(Q14>42063,Q14<42095),O14,0) -> 0 | AI14: =IF(AND(Q14>41759,Q14<41791),P14,0) -> 0 | AJ14: =IF(AND(Q14>41790,Q14<41821),P14,0) -> 0 | AK14: =IF(AND(Q14>41820,Q14<41852),P14,0) -> 0 | AL14: =IF(AND(Q14>41851,Q14<41883),P14,0) -> 0 | AM14: =IF(AND(Q14>41912,Q14<41944),P14,0) -> 0 | AN14: =IF(AND(Q14>41943,Q14<41974),P14,0) -> 0 | AO14: =IF(AND(Q14>41973,Q14<42005),P14,0) -> 0 | AP14: =IF(AND(Q14>42035,Q14<42064),P14,0) -> 0 | AQ14: =IF(AND(Q14>42063,Q14<42095),P14,0) -> 0 | AR14: =IF(AND(Q14<42125,S14>42094),P14,0) -> 0 | AS14: =IF(AND(Q14<42156,Q14>42124),P14,0) -> 0 | AT14: =IF(AND(Q14<42186,Q14>42155),P14,0) -> 0 | AU14: =IF(AND(Q14<42217,Q14>42185),P14,0) -> 0 | AV14: =IF(AND(Q14<42248,Q14>42216),P14,0) -> 0 | AW14: =IF(AND(Q14<42278,S14>42247),P14,0) -> 0 | AX14: =IF(AND(Q14<42309,Q14>42277),P14,0) -> 0 | AY14: =IF(AND(Q14<42339,Q14>42308),P14,0) -> 0 | AZ14: =IF(AND(Q14<42370,Q14>42339),P14,0) -> 0 | BA14: =IF(AND(Q14<42401,S14>42369),P14,0) -> 0 | BB14: =IF(AND(Q14<42430,Q14>42400),P14,0) -> 0 | BC14: =IF(AND(Q14<42461,Q14>42429),P14,0) -> 0 | BD14: =IF(AND(Q14<42491,S14>42460),P14,0) -> 0 | BE14: =IF(AND(Q14<42522,Q14>42490),P14,0) -> 0 | BF14: =IF(AND(Q14<42552,Q14>42521),P14,0) -> 0 | BG14: =IF(AND(Q14<42583,Q14>42551),P14,0) -> 0 | BH14: =IF(AND(Q14<42614,Q14>42582),P14,0) -> 0 | BI14: =IF(AND(Q14<42644,S14>42613),P14,0) -> 0 | BJ14: =IF(AND(Q14<42675,Q14>42643),P14,0) -> 0 | BK14: =IF(AND(Q14<42705,Q14>42674),P14,0) -> 0 | BL14: =IF(AND(Q14<42736,Q14>42704),P14,0) -> 0 | BM14: =IF(AND(Q14<42767,S14>42735),P14,0) -> 0 | BN14: =IF(AND(Q14<42795,Q14>42766),P14,0) -> 0 | BO14: =IF(AND(Q14<42826,Q14>42794),P14,0) -> 0 | BP14: =IF(AND(Q14<42125,S14>42094),IF(M14<36039,"Post-16","Pre-16"),0) -> 0 | BQ14: =IF(AND(Q14<42156,Q14>42124),IF(M14<36039,"Post-16","Pre-16"),0) -> 0 | BR14: =IF(AND(Q14<42186,Q14>42155),IF(M14<36039,"Post-16","Pre-16"),0) -> 0 | BS14: =IF(AND(Q14<42217,Q14>42185),IF(M14<36039,"Post-16","Pre-16"),0) -> 0 | BT14: =IF(AND(Q14<42248,Q14>42216),IF(M14<36039,"Post-16","Pre-16"),0) -> 0 | BU14: =IF(AND(Q14<42278,S14>42247),IF(M14<36404,"Post-16","Pre-16"),0) -> 0 | BV14: =IF(AND(Q14<42309,Q14>42277),IF(M14<36404,"Post-16","Pre-16"),0) -> 0 | BW14: =IF(AND(Q14<42339,Q14>42308),IF(M14<36404,"Post-16","Pre-16"),0) -> 0 | BX14: =IF(AND(Q14<42370,Q14>42339),IF(M14<36404,"Post-16","Pre-16"),0) -> 0 | BY14: =IF(AND(Q14<42401,S14>42369),IF(M14<36404,"Post-16","Pre-16"),0) -> 0 | BZ14: =IF(AND(Q14<42430,Q14>42400),IF(M14<36404,"Post-16","Pre-16"),0) -> 0 | CA14: =IF(AND(Q14<42461,Q14>42429),IF(M14<36404,"Post-16","Pre-16"),0) -> 0 | CB14: =IF(AND(Q14<42491,S14>42460),IF(M14<36404,"Post-16","Pre-16"),0) -> 0 | CC14: =IF(AND(Q14<42522,Q14>42490),IF(M14<36404,"Post-16","Pre-16"),0) -> 0 | CD14: =IF(AND(Q14<42552,Q14>42521),IF(M14<36404,"Post-16","Pre-16"),0) -> 0 | CE14: =IF(AND(Q14<42583,Q14>42551),IF(M14<36404,"Post-16","Pre-16"),0) -> 0 | CF14: =IF(AND(Q14<42614,Q14>42582),IF(M14<36404,"Post-16","Pre-16"),0) -> 0 | CG14: =IF(AND(Q14<42644,S14>42613),IF(M14<36770,"Post-16","Pre-16"),0) -> 0 | CH14: =IF(AND(Q14<42675,Q14>42643),IF(M14<36770,"Post-16","Pre-16"),0) -> 0 | CI14: =IF(AND(Q14<42705,Q14>42674),IF(M14<36770,"Post-16","Pre-16"),0) -> 0 | CJ14: =IF(AND(Q14<42736,Q14>42704),IF(M14<36770,"Post-16","Pre-16"),0) -> 0 | CK14: =IF(AND(Q14<42767,S14>42735),IF(M14<36770,"Post-16","Pre-16"),0) -> 0 | CL14: =IF(AND(Q14<42795,Q14>42766),IF(M14<36770,"Post-16","Pre-16"),0) -> 0 | CM14: =IF(AND(Q14<42826,Q14>42794),IF(M14<36770,"Post-16","Pre-16"),0) -> 0 | CN14: =IF(AR14=0,0,5/12) +IF(AS14=0,0,4/12) +IF(AT14=0,0,3/12) +IF(AU14=0,0,2/12) +IF(AV14=0,0,1/12) +IF(AW14=0,0,4/12) +IF(AX14=0,0,3/13) +IF(AY14=0,0,2/12) +IF(AZ14=0,0,1/12) +IF(BA14=0,0,3/12) +IF(BB14=0,0,2/12) +IF(BC14=0,0,1/12) -> 0 | CO14: =IF(BD14=0,0,5/12) +IF(BE14=0,0,4/12) +IF(BF14=0,0,3/12) +IF(BG14=0,0,2/12) +IF(BH14=0,0,1/12) +IF(BI14=0,0,4/12) +IF(BJ14=0,0,3/13) +IF(BK14=0,0,2/12) +IF(BL14=0,0,1/12) +IF(BM14=0,0,3/12) +IF(BN14=0,0,2/12) +IF(BO14=0,0,1/12) -> 0 | CP14: =IF(BP14="Pre-16",5/12,0)+IF(BQ14="Pre-16",4/12,0)+IF(BR14="Pre-16",3/12,0)+IF(BS14="Pre-16",2/12,0)+IF(BT14="Pre-16",1/12,0)+IF(BU14="Pre-16",4/12,0)+IF(BV14="Pre-16",3/12,0)+IF(BW14="Pre-16",2/12,0)+IF(BX14="Pre-16",1/12,0)+IF(BY14="Pre-16",3/12,0)+IF(BZ14="Pre-16",2/12,0)+IF(CA14="Pre-16",1/12,0) -> 0 | CQ14: =IF(BP14="Post-16",5/12,0)+IF(BQ14="Post-16",4/12,0)+IF(BR14="Post-16",3/12,0)+IF(BS14="Post-16",2/12,0)+IF(BT14="Post-16",1/12,0)+IF(BU14="Post-16",4/12,0)+IF(BV14="Post-16",3/12,0)+IF(BW14="Post-16",2/12,0)+IF(BX14="Post-16",1/12,0)+IF(BY14="Post-16",3/12,0)+IF(BZ14="Post-16",2/12,0)+IF(CA14="Post-16",1/12,0) -> 0 | CR14: =IF(CB14="Pre-16",5/12,0)+IF(CC14="Pre-16",4/12,0)+IF(CD14="Pre-16",3/12,0)+IF(CE14="Pre-16",2/12,0)+IF(CF14="Pre-16",1/12,0)+IF(CG14="Pre-16",4/12,0)+IF(CH14="Pre-16",3/12,0)+IF(CI14="Pre-16",2/12,0)+IF(CJ14="Pre-16",1/12,0)+IF(CK14="Pre-16",3/12,0)+IF(CL14="Pre-16",2/12,0)+IF(CM14="Pre-16",1/12,0) -> 0 | CS14: =IF(CB14="Post-16",5/12,0)+IF(CC14="Post-16",4/12,0)+IF(CD14="Post-16",3/12,0)+IF(CE14="Post-16",2/12,0)+IF(CF14="Post-16",1/12,0)+IF(CG14="Post-16",4/12,0)+IF(CH14="Post-16",3/12,0)+IF(CI14="Post-16",2/12,0)+IF(CJ14="Post-16",1/12,0)+IF(CK14="Post-16",3/12,0)+IF(CL14="Post-16",2/12,0)+IF(CM14="Post-16",1/12,0) -> 0
B15: April | C15: =COUNTIF($T$14:$T$33,"SLCN & SPLD") -> 0 | D15: =COUNTIF($T$14:$T$33,"SLD") -> 0 | E15: =COUNTIF($T$14:$T$33,"ASD") -> 0 | F15: =COUNTIF($T$14:$T$33,"PD HI & VI") -> 0 | G15: =COUNTIF(W14:W33,"Post-16") -> 0 | N15: =IF(ISERROR(M15*1),"Enter valid D.O.B",IF(M15<34372,"Enter valid D.O.B",IF(M15<35674,"Post-16","Pre-16"))) -> Enter valid D.O.B | O15: =IF(ISERROR(M15*1),"Enter valid D.O.B",IF(M15<34372,"Enter valid D.O.B",IF(M15<36039,"Post-16","Pre-16"))) -> Enter valid D.O.B | S15: =IF(Q15=0,0,IF(R15=0,42826,R15)) -> 0 | T15: =IF(AND(Q15<41760,S15>41729),P15,0) -> 0 | U15: =IF(AND(Q15<41913,S15>41882),P15,0) -> 0 | V15: =IF(AND(Q15<42036,S15>42004),P15,0) -> 0 | W15: =IF(AND(Q15<41760,S15>41729),N15,0) -> 0 | X15: =IF(AND(Q15>41759,Q15<41791),N15,0) -> 0 | Y15: =IF(AND(Q15>41790,Q15<41821),N15,0) -> 0 | Z15: =IF(AND(Q15>41820,Q15<41851),N15,0) -> 0 | AA15: =IF(AND(Q15>41851,Q15<41883),N15,0) -> 0 | AB15: =IF(AND(S15>41882,Q15<41913),O15,0) -> 0 | AC15: =IF(AND(Q15>41912,Q15<41944),O15,0) -> 0 | AD15: =IF(AND(Q15>41943,Q15<41974),O15,0) -> 0 | AE15: =IF(AND(Q15>41973,Q15<42005),O15,0) -> 0 | AF15: =IF(AND(Q15<42036,S15>42004),O15,0) -> 0 | AG15: =IF(AND(Q15>42035,Q15<42064),O15,0) -> 0 | AH15: =IF(AND(Q15>42063,Q15<42095),O15,0) -> 0 | AI15: =IF(AND(Q15>41759,Q15<41791),P15,0) -> 0 | AJ15: =IF(AND(Q15>41790,Q15<41821),P15,0) -> 0 | AK15: =IF(AND(Q15>41820,Q15<41852),P15,0) -> 0 | AL15: =IF(AND(Q15>41851,Q15<41883),P15,0) -> 0 | AM15: =IF(AND(Q15>41912,Q15<41944),P15,0) -> 0 | AN15: =IF(AND(Q15>41943,Q15<41974),P15,0) -> 0 | AO15: =IF(AND(Q15>41973,Q15<42005),P15,0) -> 0 | AP15: =IF(AND(Q15>42035,Q15<42064),P15,0) -> 0 | AQ15: =IF(AND(Q15>42063,Q15<42095),P15,0) -> 0 | AR15: =IF(AND(Q15<42125,S15>42094),P15,0) -> 0 | AS15: =IF(AND(Q15<42156,Q15>42124),P15,0) -> 0 | AT15: =IF(AND(Q15<42186,Q15>42155),P15,0) -> 0 | AU15: =IF(AND(Q15<42217,Q15>42185),P15,0) -> 0 | AV15: =IF(AND(Q15<42248,Q15>42216),P15,0) -> 0 | AW15: =IF(AND(Q15<42278,S15>42247),P15,0) -> 0 | AX15: =IF(AND(Q15<42309,Q15>42277),P15,0) -> 0 | AY15: =IF(AND(Q15<42339,Q15>42308),P15,0) -> 0 | AZ15: =IF(AND(Q15<42370,Q15>42339),P15,0) -> 0 | BA15: =IF(AND(Q15<42401,S15>42369),P15,0) -> 0 | BB15: =IF(AND(Q15<42430,Q15>42400),P15,0) -> 0 | BC15: =IF(AND(Q15<42461,Q15>42429),P15,0) -> 0 | BD15: =IF(AND(Q15<42491,S15>42460),P15,0) -> 0 | BE15: =IF(AND(Q15<42522,Q15>42490),P15,0) -> 0 | BF15: =IF(AND(Q15<42552,Q15>42521),P15,0) -> 0 | BG15: =IF(AND(Q15<42583,Q15>42551),P15,0) -> 0 | BH15: =IF(AND(Q15<42614,Q15>42582),P15,0) -> 0 | BI15: =IF(AND(Q15<42644,S15>42613),P15,0) -> 0 | BJ15: =IF(AND(Q15<42675,Q15>42643),P15,0) -> 0 | BK15: =IF(AND(Q15<42705,Q15>42674),P15,0) -> 0 | BL15: =IF(AND(Q15<42736,Q15>42704),P15,0) -> 0 | BM15: =IF(AND(Q15<42767,S15>42735),P15,0) -> 0 | BN15: =IF(AND(Q15<42795,Q15>42766),P15,0) -> 0 | BO15: =IF(AND(Q15<42826,Q15>42794),P15,0) -> 0 | BP15: =IF(AND(Q15<42125,S15>42094),IF(M15<36039,"Post-16","Pre-16"),0) -> 0 | BQ15: =IF(AND(Q15<42156,Q15>42124),IF(M15<36039,"Post-16","Pre-16"),0) -> 0 | BR15: =IF(AND(Q15<42186,Q15>42155),IF(M15<36039,"Post-16","Pre-16"),0) -> 0 | BS15: =IF(AND(Q15<42217,Q15>42185),IF(M15<36039,"Post-16","Pre-16"),0) -> 0 | BT15: =IF(AND(Q15<42248,Q15>42216),IF(M15<36039,"Post-16","Pre-16"),0) -> 0 | BU15: =IF(AND(Q15<42278,S15>42247),IF(M15<36404,"Post-16","Pre-16"),0) -> 0 | BV15: =IF(AND(Q15<42309,Q15>42277),IF(M15<36404,"Post-16","Pre-16"),0) -> 0 | BW15: =IF(AND(Q15<42339,Q15>42308),IF(M15<36404,"Post-16","Pre-16"),0) -> 0 | BX15: =IF(AND(Q15<42370,Q15>42339),IF(M15<36404,"Post-16","Pre-16"),0) -> 0 | BY15: =IF(AND(Q15<42401,S15>42369),IF(M15<36404,"Post-16","Pre-16"),0) -> 0 | BZ15: =IF(AND(Q15<42430,Q15>42400),IF(M15<36404,"Post-16","Pre-16"),0) -> 0 | CA15: =IF(AND(Q15<42461,Q15>42429),IF(M15<36404,"Post-16","Pre-16"),0) -> 0 | CB15: =IF(AND(Q15<42491,S15>42460),IF(M15<36404,"Post-16","Pre-16"),0) -> 0 | CC15: =IF(AND(Q15<42522,Q15>42490),IF(M15<36404,"Post-16","Pre-16"),0) -> 0 | CD15: =IF(AND(Q15<42552,Q15>42521),IF(M15<36404,"Post-16","Pre-16"),0) -> 0 | CE15: =IF(AND(Q15<42583,Q15>42551),IF(M15<36404,"Post-16","Pre-16"),0) -> 0 | CF15: =IF(AND(Q15<42614,Q15>42582),IF(M15<36404,"Post-16","Pre-16"),0) -> 0 | CG15: =IF(AND(Q15<42644,S15>42613),IF(M15<36770,"Post-16","Pre-16"),0) -> 0 | CH15: =IF(AND(Q15<42675,Q15>42643),IF(M15<36770,"Post-16","Pre-16"),0) -> 0 | CI15: =IF(AND(Q15<42705,Q15>42674),IF(M15<36770,"Post-16","Pre-16"),0) -> 0 | CJ15: =IF(AND(Q15<42736,Q15>42704),IF(M15<36770,"Post-16","Pre-16"),0) -> 0 | CK15: =IF(AND(Q15<42767,S15>42735),IF(M15<36770,"Post-16","Pre-16"),0) -> 0 | CL15: =IF(AND(Q15<42795,Q15>42766),IF(M15<36770,"Post-16","Pre-16"),0) -> 0 | CM15: =IF(AND(Q15<42826,Q15>42794),IF(M15<36770,"Post-16","Pre-16"),0) -> 0 | CN15: =IF(AR15=0,0,5/12) +IF(AS15=0,0,4/12) +IF(AT15=0,0,3/12) +IF(AU15=0,0,2/12) +IF(AV15=0,0,1/12) +IF(AW15=0,0,4/12) +IF(AX15=0,0,3/13) +IF(AY15=0,0,2/12) +IF(AZ15=0,0,1/12) +IF(BA15=0,0,3/12) +IF(BB15=0,0,2/12) +IF(BC15=0,0,1/12) -> 0 | CO15: =IF(BD15=0,0,5/12) +IF(BE15=0,0,4/12) +IF(BF15=0,0,3/12) +IF(BG15=0,0,2/12) +IF(BH15=0,0,1/12) +IF(BI15=0,0,4/12) +IF(BJ15=0,0,3/13) +IF(BK15=0,0,2/12) +IF(BL15=0,0,1/12) +IF(BM15=0,0,3/12) +IF(BN15=0,0,2/12) +IF(BO15=0,0,1/12) -> 0 | CP15: =IF(BP15="Pre-16",5/12,0)+IF(BQ15="Pre-16",4/12,0)+IF(BR15="Pre-16",3/12,0)+IF(BS15="Pre-16",2/12,0)+IF(BT15="Pre-16",1/12,0)+IF(BU15="Pre-16",4/12,0)+IF(BV15="Pre-16",3/12,0)+IF(BW15="Pre-16",2/12,0)+IF(BX15="Pre-16",1/12,0)+IF(BY15="Pre-16",3/12,0)+IF(BZ15="Pre-16",2/12,0)+IF(CA15="Pre-16",1/12,0) -> 0 | CQ15: 0 | CR15: =IF(CB15="Pre-16",5/12,0)+IF(CC15="Pre-16",4/12,0)+IF(CD15="Pre-16",3/12,0)+IF(CE15="Pre-16",2/12,0)+IF(CF15="Pre-16",1/12,0)+IF(CG15="Pre-16",4/12,0)+IF(CH15="Pre-16",3/12,0)+IF(CI15="Pre-16",2/12,0)+IF(CJ15="Pre-16",1/12,0)+IF(CK15="Pre-16",3/12,0)+IF(CL15="Pre-16",2/12,0)+IF(CM15="Pre-16",1/12,0) -> 0 | CS15: 0
B16: September | C16: =COUNTIF($U$14:$U$33,"SLCN & SPLD") -> 0 | D16: =COUNTIF($U$14:$U$33,"SLD") -> 0 | E16: =COUNTIF($U$14:$U$33,"ASD") -> 0 | F16: =COUNTIF($U$14:$U$33,"PD HI & VI") -> 0 | G16: =COUNTIF(AB14:AB33,"Post-16") -> 0 | N16: Enter valid D.O.B | O16: Enter valid D.O.B | S16: 0 | T16: 0 | U16: 0 | V16: 0 | W16: 0 | X16: 0 | Y16: 0 | Z16: 0 | AA16: 0 | AB16: 0 | AC16: 0 | AD16: 0 | AE16: 0 | AF16: 0 | AG16: 0 | AH16: 0 | AI16: 0 | AJ16: 0 | AK16: 0 | AL16: 0 | AM16: 0 | AN16: 0 | AO16: 0 | AP16: 0 | AQ16: 0 | AR16: 0 | AS16: 0 | AT16: 0 | AU16: 0 | AV16: 0 | AW16: 0 | AX16: 0 | AY16: 0 | AZ16: 0 | BA16: 0 | BB16: 0 | BC16: 0 | BD16: 0 | BE16: 0 | BF16: 0 | BG16: 0 | BH16: 0 | BI16: 0 | BJ16: 0 | BK16: 0 | BL16: 0 | BM16: 0 | BN16: 0 | BO16: 0 | BP16: 0 | BQ16: 0 | BR16: 0 | BS16: 0 | BT16: 0 | BU16: 0 | BV16: 0 | BW16: 0 | BX16: 0 | BY16: 0 | BZ16: 0 | CA16: 0 | CB16: 0 | CC16: 0 | CD16: 0 | CE16: 0 | CF16: 0 | CG16: 0 | CH16: 0 | CI16: 0 | CJ16: 0 | CK16: 0 | CL16: 0 | CM16: 0 | CN16: 0 | CO16: 0 | CP16: 0 | CQ16: 0 | CR16: 0 | CS16: 0
B17: January | C17: =COUNTIF($V$14:$V$33,"SLCN & SPLD") -> 0 | D17: =COUNTIF($V$14:$V$33,"SLD") -> 0 | E17: =COUNTIF($V$14:$V$33,"ASD") -> 0 | F17: =COUNTIF($V$14:$V$33,"PD HI & VI") -> 0 | G17: =COUNTIF(AF14:AF33,"Post-16") -> 0 | N17: Enter valid D.O.B | O17: Enter valid D.O.B | S17: 0 | T17: 0 | U17: 0 | V17: 0 | W17: 0 | X17: 0 | Y17: 0 | Z17: 0 | AA17: 0 | AB17: 0 | AC17: 0 | AD17: 0 | AE17: 0 | AF17: 0 | AG17: 0 | AH17: 0 | AI17: 0 | AJ17: 0 | AK17: 0 | AL17: 0 | AM17: 0 | AN17: 0 | AO17: 0 | AP17: 0 | AQ17: 0 | AR17: 0 | AS17: 0 | AT17: 0 | AU17: 0 | AV17: 0 | AW17: 0 | AX17: 0 | AY17: 0 | AZ17: 0 | BA17: 0 | BB17: 0 | BC17: 0 | BD17: 0 | BE17: 0 | BF17: 0 | BG17: 0 | BH17: 0 | BI17: 0 | BJ17: 0 | BK17: 0 | BL17: 0 | BM17: 0 | BN17: 0 | BO17: 0 | BP17: 0 | BQ17: 0 | BR17: 0 | BS17: 0 | BT17: 0 | BU17: 0 | BV17: 0 | BW17: 0 | BX17: 0 | BY17: 0 | BZ17: 0 | CA17: 0 | CB17: 0 | CC17: 0 | CD17: 0 | CE17: 0 | CF17: 0 | CG17: 0 | CH17: 0 | CI17: 0 | CJ17: 0 | CK17: 0 | CL17: 0 | CM17: 0 | CN17: 0 | CO17: 0 | CP17: 0 | CQ17: 0 | CR17: 0 | CS17: 0
N18: Enter valid D.O.B | O18: Enter valid D.O.B | S18: 0 | T18: 0 | U18: 0 | V18: 0 | W18: 0 | X18: 0 | Y18: 0 | Z18: 0 | AA18: 0 | AB18: 0 | AC18: 0 | AD18: 0 | AE18: 0 | AF18: 0 | AG18: 0 | AH18: 0 | AI18: 0 | AJ18: 0 | AK18: 0 | AL18: 0 | AM18: 0 | AN18: 0 | AO18: 0 | AP18: 0 | AQ18: 0 | AR18: 0 | AS18: 0 | AT18: 0 | AU18: 0 | AV18: 0 | AW18: 0 | AX18: 0 | AY18: 0 | AZ18: 0 | BA18: 0 | BB18: 0 | BC18: 0 | BD18: 0 | BE18: 0 | BF18: 0 | BG18: 0 | BH18: 0 | BI18: 0 | BJ18: 0 | BK18: 0 | BL18: 0 | BM18: 0 | BN18: 0 | BO18: 0 | BP18: 0 | BQ18: 0 | BR18: 0 | BS18: 0 | BT18: 0 | BU18: 0 | BV18: 0 | BW18: 0 | BX18: 0 | BY18: 0 | BZ18: 0 | CA18: 0 | CB18: 0 | CC18: 0 | CD18: 0 | CE18: 0 | CF18: 0 | CG18: 0 | CH18: 0 | CI18: 0 | CJ18: 0 | CK18: 0 | CL18: 0 | CM18: 0 | CN18: 0 | CO18: 0 | CP18: 0 | CQ18: 0 | CR18: 0 | CS18: 0
B19: This table shows only those Pupils joining during these months | N19: Enter valid D.O.B | O19: Enter valid D.O.B | S19: 0 | T19: 0 | U19: 0 | V19: 0 | W19: 0 | X19: 0 | Y19: 0 | Z19: 0 | AA19: 0 | AB19: 0 | AC19: 0 | AD19: 0 | AE19: 0 | AF19: 0 | AG19: 0 | AH19: 0 | AI19: 0 | AJ19: 0 | AK19: 0 | AL19: 0 | AM19: 0 | AN19: 0 | AO19: 0 | AP19: 0 | AQ19: 0 | AR19: 0 | AS19: 0 | AT19: 0 | AU19: 0 | AV19: 0 | AW19: 0 | AX19: 0 | AY19: 0 | AZ19: 0 | BA19: 0 | BB19: 0 | BC19: 0 | BD19: 0 | BE19: 0 | BF19: 0 | BG19: 0 | BH19: 0 | BI19: 0 | BJ19: 0 | BK19: 0 | BL19: 0 | BM19: 0 | BN19: 0 | BO19: 0 | BP19: 0 | BQ19: 0 | BR19: 0 | BS19: 0 | BT19: 0 | BU19: 0 | BV19: 0 | BW19: 0 | BX19: 0 | BY19: 0 | BZ19: 0 | CA19: 0 | CB19: 0 | CC19: 0 | CD19: 0 | CE19: 0 | CF19: 0 | CG19: 0 | CH19: 0 | CI19: 0 | CJ19: 0 | CK19: 0 | CL19: 0 | CM19: 0 | CN19: 0 | CO19: 0 | CP19: 0 | CQ19: 0 | CR19: 0 | CS19: 0
B20: May | C20: =COUNTIF($AI$14:$AI$33,"SLCN & SPLD") -> 0 | D20: =COUNTIF($AI$14:$AI$33,"SLD") -> 0 | E20: =COUNTIF($AI$14:$AI$33,"ASD") -> 0 | F20: =COUNTIF($AI$14:$AI$33,"PD HI & VI") -> 0 | G20: =COUNTIF($X$14:$X$33,"Post-16") -> 0 | N20: Enter valid D.O.B | O20: Enter valid D.O.B | S20: 0 | T20: 0 | U20: 0 | V20: 0 | W20: 0 | X20: 0 | Y20: 0 | Z20: 0 | AA20: 0 | AB20: 0 | AC20: 0 | AD20: 0 | AE20: 0 | AF20: 0 | AG20: 0 | AH20: 0 | AI20: 0 | AJ20: 0 | AK20: 0 | AL20: 0 | AM20: 0 | AN20: 0 | AO20: 0 | AP20: 0 | AQ20: 0 | AR20: 0 | AS20: 0 | AT20: 0 | AU20: 0 | AV20: 0 | AW20: 0 | AX20: 0 | AY20: 0 | AZ20: 0 | BA20: 0 | BB20: 0 | BC20: 0 | BD20: 0 | BE20: 0 | BF20: 0 | BG20: 0 | BH20: 0 | BI20: 0 | BJ20: 0 | BK20: 0 | BL20: 0 | BM20: 0 | BN20: 0 | BO20: 0 | BP20: 0 | BQ20: 0 | BR20: 0 | BS20: 0 | BT20: 0 | BU20: 0 | BV20: 0 | BW20: 0 | BX20: 0 | BY20: 0 | BZ20: 0 | CA20: 0 | CB20: 0 | CC20: 0 | CD20: 0 | CE20: 0 | CF20: 0 | CG20: 0 | CH20: 0 | CI20: 0 | CJ20: 0 | CK20: 0 | CL20: 0 | CM20: 0 | CN20: 0 | CO20: 0 | CP20: 0 | CQ20: 0 | CR20: 0 | CS20: 0
B21: June | C21: =COUNTIF($AJ$14:$AJ$33,"SLCN & SPLD") -> 0 | D21: =COUNTIF($AJ$14:$AJ$33,"SLD") -> 0 | E21: =COUNTIF($AJ$14:$AJ$33,"ASD") -> 0 | F21: =COUNTIF($AJ$14:$AJ$33,"PD HI & VI") -> 0 | G21: =COUNTIF($Y$14:$Y$33,"Post-16") -> 0 | N21: Enter valid D.O.B | O21: Enter valid D.O.B | S21: 0 | T21: 0 | U21: 0 | V21: 0 | W21: 0 | X21: 0 | Y21: 0 | Z21: 0 | AA21: 0 | AB21: 0 | AC21: 0 | AD21: 0 | AE21: 0 | AF21: 0 | AG21: 0 | AH21: 0 | AI21: 0 | AJ21: 0 | AK21: 0 | AL21: 0 | AM21: 0 | AN21: 0 | AO21: 0 | AP21: 0 | AQ21: 0 | AR21: 0 | AS21: 0 | AT21: 0 | AU21: 0 | AV21: 0 | AW21: 0 | AX21: 0 | AY21: 0 | AZ21: 0 | BA21: 0 | BB21: 0 | BC21: 0 | BD21: 0 | BE21: 0 | BF21: 0 | BG21: 0 | BH21: 0 | BI21: 0 | BJ21: 0 | BK21: 0 | BL21: 0 | BM21: 0 | BN21: 0 | BO21: 0 | BP21: 0 | BQ21: 0 | BR21: 0 | BS21: 0 | BT21: 0 | BU21: 0 | BV21: 0 | BW21: 0 | BX21: 0 | BY21: 0 | BZ21: 0 | CA21: 0 | CB21: 0 | CC21: 0 | CD21: 0 | CE21: 0 | CF21: 0 | CG21: 0 | CH21: 0 | CI21: 0 | CJ21: 0 | CK21: 0 | CL21: 0 | CM21: 0 | CN21: 0 | CO21: 0 | CP21: 0 | CQ21: 0 | CR21: 0 | CS21: 0
B22: July | C22: =COUNTIF($AK$14:$AK$33,"SLCN & SPLD") -> 0 | D22: =COUNTIF($AK$14:$AK$33,"SLD") -> 0 | E22: =COUNTIF($AK$14:$AK$33,"ASD") -> 0 | F22: =COUNTIF($AK$14:$AK$33,"PD HI & VI") -> 0 | G22: =COUNTIF($Z$14:$Z$33,"Post-16") -> 0 | N22: Enter valid D.O.B | O22: Enter valid D.O.B | S22: 0 | T22: 0 | U22: 0 | V22: 0 | W22: 0 | X22: 0 | Y22: 0 | Z22: 0 | AA22: 0 | AB22: 0 | AC22: 0 | AD22: 0 | AE22: 0 | AF22: 0 | AG22: 0 | AH22: 0 | AI22: 0 | AJ22: 0 | AK22: 0 | AL22: 0 | AM22: 0 | AN22: 0 | AO22: 0 | AP22: 0 | AQ22: 0 | AR22: 0 | AS22: 0 | AT22: 0 | AU22: 0 | AV22: 0 | AW22: 0 | AX22: 0 | AY22: 0 | AZ22: 0 | BA22: 0 | BB22: 0 | BC22: 0 | BD22: 0 | BE22: 0 | BF22: 0 | BG22: 0 | BH22: 0 | BI22: 0 | BJ22: 0 | BK22: 0 | BL22: 0 | BM22: 0 | BN22: 0 | BO22: 0 | BP22: 0 | BQ22: 0 | BR22: 0 | BS22: 0 | BT22: 0 | BU22: 0 | BV22: 0 | BW22: 0 | BX22: 0 | BY22: 0 | BZ22: 0 | CA22: 0 | CB22: 0 | CC22: 0 | CD22: 0 | CE22: 0 | CF22: 0 | CG22: 0 | CH22: 0 | CI22: 0 | CJ22: 0 | CK22: 0 | CL22: 0 | CM22: 0 | CN22: 0 | CO22: 0 | CP22: 0 | CQ22: 0 | CR22: 0 | CS22: 0
B23: August | C23: =COUNTIF($AL$14:$AL$33,"SLCN & SPLD") -> 0 | D23: =COUNTIF($AL$14:$AL$33,"SLD") -> 0 | E23: =COUNTIF($AL$14:$AL$33,"ASD") -> 0 | F23: =COUNTIF($AL$14:$AL$33,"PD HI & VI") -> 0 | G23: =COUNTIF($AA$14:$AA$33,"Post-16") -> 0 | N23: Enter valid D.O.B | O23: Enter valid D.O.B | S23: 0 | T23: 0 | U23: 0 | V23: 0 | W23: 0 | X23: 0 | Y23: 0 | Z23: 0 | AA23: 0 | AB23: 0 | AC23: 0 | AD23: 0 | AE23: 0 | AF23: 0 | AG23: 0 | AH23: 0 | AI23: 0 | AJ23: 0 | AK23: 0 | AL23: 0 | AM23: 0 | AN23: 0 | AO23: 0 | AP23: 0 | AQ23: 0 | AR23: 0 | AS23: 0 | AT23: 0 | AU23: 0 | AV23: 0 | AW23: 0 | AX23: 0 | AY23: 0 | AZ23: 0 | BA23: 0 | BB23: 0 | BC23: 0 | BD23: 0 | BE23: 0 | BF23: 0 | BG23: 0 | BH23: 0 | BI23: 0 | BJ23: 0 | BK23: 0 | BL23: 0 | BM23: 0 | BN23: 0 | BO23: 0 | BP23: 0 | BQ23: 0 | BR23: 0 | BS23: 0 | BT23: 0 | BU23: 0 | BV23: 0 | BW23: 0 | BX23: 0 | BY23: 0 | BZ23: 0 | CA23: 0 | CB23: 0 | CC23: 0 | CD23: 0 | CE23: 0 | CF23: 0 | CG23: 0 | CH23: 0 | CI23: 0 | CJ23: 0 | CK23: 0 | CL23: 0 | CM23: 0 | CN23: 0 | CO23: 0 | CP23: 0 | CQ23: 0 | CR23: 0 | CS23: 0
B24: October | C24: =COUNTIF($AM$14:$AM$33,"SLCN & SPLD") -> 0 | D24: =COUNTIF($AM$14:$AM$33,"SLD") -> 0 | E24: =COUNTIF($AM$14:$AM$33,"ASD") -> 0 | F24: =COUNTIF($AM$14:$AM$33,"PD HI & VI") -> 0 | G24: =COUNTIF($AC$14:$AC$33,"Post-16") -> 0 | N24: Enter valid D.O.B | O24: Enter valid D.O.B | S24: 0 | T24: 0 | U24: 0 | V24: 0 | W24: 0 | X24: 0 | Y24: 0 | Z24: 0 | AA24: 0 | AB24: 0 | AC24: 0 | AD24: 0 | AE24: 0 | AF24: 0 | AG24: 0 | AH24: 0 | AI24: 0 | AJ24: 0 | AK24: 0 | AL24: 0 | AM24: 0 | AN24: 0 | AO24: 0 | AP24: 0 | AQ24: 0 | AR24: 0 | AS24: 0 | AT24: 0 | AU24: 0 | AV24: 0 | AW24: 0 | AX24: 0 | AY24: 0 | AZ24: 0 | BA24: 0 | BB24: 0 | BC24: 0 | BD24: 0 | BE24: 0 | BF24: 0 | BG24: 0 | BH24: 0 | BI24: 0 | BJ24: 0 | BK24: 0 | BL24: 0 | BM24: 0 | BN24: 0 | BO24: 0 | BP24: 0 | BQ24: 0 | BR24: 0 | BS24: 0 | BT24: 0 | BU24: 0 | BV24: 0 | BW24: 0 | BX24: 0 | BY24: 0 | BZ24: 0 | CA24: 0 | CB24: 0 | CC24: 0 | CD24: 0 | CE24: 0 | CF24: 0 | CG24: 0 | CH24: 0 | CI24: 0 | CJ24: 0 | CK24: 0 | CL24: 0 | CM24: 0 | CN24: 0 | CO24: 0 | CP24: 0 | CQ24: 0 | CR24: 0 | CS24: 0
B25: November | C25: =COUNTIF($AN$14:$AN$33,"SLCN & SPLD") -> 0 | D25: =COUNTIF($AN$14:$AN$33,"SLD") -> 0 | E25: =COUNTIF($AN$14:$AN$33,"ASD") -> 0 | F25: =COUNTIF($AN$14:$AN$33,"PD HI & VI") -> 0 | G25: =COUNTIF($AD$14:$AD$33,"Post-16") -> 0 | N25: Enter valid D.O.B | O25: Enter valid D.O.B | S25: 0 | T25: 0 | U25: 0 | V25: 0 | W25: 0 | X25: 0 | Y25: 0 | Z25: 0 | AA25: 0 | AB25: 0 | AC25: 0 | AD25: 0 | AE25: 0 | AF25: 0 | AG25: 0 | AH25: 0 | AI25: 0 | AJ25: 0 | AK25: 0 | AL25: 0 | AM25: 0 | AN25: 0 | AO25: 0 | AP25: 0 | AQ25: 0 | AR25: 0 | AS25: 0 | AT25: 0 | AU25: 0 | AV25: 0 | AW25: 0 | AX25: 0 | AY25: 0 | AZ25: 0 | BA25: 0 | BB25: 0 | BC25: 0 | BD25: 0 | BE25: 0 | BF25: 0 | BG25: 0 | BH25: 0 | BI25: 0 | BJ25: 0 | BK25: 0 | BL25: 0 | BM25: 0 | BN25: 0 | BO25: 0 | BP25: 0 | BQ25: 0 | BR25: 0 | BS25: 0 | BT25: 0 | BU25: 0 | BV25: 0 | BW25: 0 | BX25: 0 | BY25: 0 | BZ25: 0 | CA25: 0 | CB25: 0 | CC25: 0 | CD25: 0 | CE25: 0 | CF25: 0 | CG25: 0 | CH25: 0 | CI25: 0 | CJ25: 0 | CK25: 0 | CL25: 0 | CM25: 0 | CN25: 0 | CO25: 0 | CP25: 0 | CQ25: 0 | CR25: 0 | CS25: 0
B26: December | C26: =COUNTIF($AO$14:$AO$33,"SLCN & SPLD") -> 0 | D26: =COUNTIF($AO$14:$AO$33,"SLD") -> 0 | E26: =COUNTIF($AO$14:$AO$33,"ASD") -> 0 | F26: =COUNTIF($AO$14:$AO$33,"PD HI & VI") -> 0 | G26: =COUNTIF($AE$14:$AE$33,"Post-16") -> 0 | N26: Enter valid D.O.B | O26: Enter valid D.O.B | S26: 0 | T26: 0 | U26: 0 | V26: 0 | W26: 0 | X26: 0 | Y26: 0 | Z26: 0 | AA26: 0 | AB26: 0 | AC26: 0 | AD26: 0 | AE26: 0 | AF26: 0 | AG26: 0 | AH26: 0 | AI26: 0 | AJ26: 0 | AK26: 0 | AL26: 0 | AM26: 0 | AN26: 0 | AO26: 0 | AP26: 0 | AQ26: 0 | AR26: 0 | AS26: 0 | AT26: 0 | AU26: 0 | AV26: 0 | AW26: 0 | AX26: 0 | AY26: 0 | AZ26: 0 | BA26: 0 | BB26: 0 | BC26: 0 | BD26: 0 | BE26: 0 | BF26: 0 | BG26: 0 | BH26: 0 | BI26: 0 | BJ26: 0 | BK26: 0 | BL26: 0 | BM26: 0 | BN26: 0 | BO26: 0 | BP26: 0 | BQ26: 0 | BR26: 0 | BS26: 0 | BT26: 0 | BU26: 0 | BV26: 0 | BW26: 0 | BX26: 0 | BY26: 0 | BZ26: 0 | CA26: 0 | CB26: 0 | CC26: 0 | CD26: 0 | CE26: 0 | CF26: 0 | CG26: 0 | CH26: 0 | CI26: 0 | CJ26: 0 | CK26: 0 | CL26: 0 | CM26: 0 | CN26: 0 | CO26: 0 | CP26: 0 | CQ26: 0 | CR26: 0 | CS26: 0
B27: February | C27: =COUNTIF($AP$14:$AP$33,"SLCN & SPLD") -> 0 | D27: =COUNTIF($AP$14:$AP$33,"SLD") -> 0 | E27: =COUNTIF($AP$14:$AP$33,"ASD") -> 0 | F27: =COUNTIF($AP$14:$AP$33,"PD HI & VI") -> 0 | G27: =COUNTIF($AG$14:$AG$33,"Post-16") -> 0 | N27: Enter valid D.O.B | O27: Enter valid D.O.B | S27: 0 | T27: 0 | U27: 0 | V27: 0 | W27: 0 | X27: 0 | Y27: 0 | Z27: 0 | AA27: 0 | AB27: 0 | AC27: 0 | AD27: 0 | AE27: 0 | AF27: 0 | AG27: 0 | AH27: 0 | AI27: 0 | AJ27: 0 | AK27: 0 | AL27: 0 | AM27: 0 | AN27: 0 | AO27: 0 | AP27: 0 | AQ27: 0 | AR27: 0 | AS27: 0 | AT27: 0 | AU27: 0 | AV27: 0 | AW27: 0 | AX27: 0 | AY27: 0 | AZ27: 0 | BA27: 0 | BB27: 0 | BC27: 0 | BD27: 0 | BE27: 0 | BF27: 0 | BG27: 0 | BH27: 0 | BI27: 0 | BJ27: 0 | BK27: 0 | BL27: 0 | BM27: 0 | BN27: 0 | BO27: 0 | BP27: 0 | BQ27: 0 | BR27: 0 | BS27: 0 | BT27: 0 | BU27: 0 | BV27: 0 | BW27: 0 | BX27: 0 | BY27: 0 | BZ27: 0 | CA27: 0 | CB27: 0 | CC27: 0 | CD27: 0 | CE27: 0 | CF27: 0 | CG27: 0 | CH27: 0 | CI27: 0 | CJ27: 0 | CK27: 0 | CL27: 0 | CM27: 0 | CN27: 0 | CO27: 0 | CP27: 0 | CQ27: 0 | CR27: 0 | CS27: 0
B28: March | C28: =COUNTIF($AQ$14:$AQ$33,"SLCN & SPLD") -> 0 | D28: =COUNTIF($AQ$14:$AQ$33,"SLD") -> 0 | E28: =COUNTIF($AQ$14:$AQ$33,"ASD") -> 0 | F28: =COUNTIF($AQ$14:$AQ$33,"PD HI & VI") -> 0 | G28: =COUNTIF($AH$14:$AH$33,"Post-16") -> 0 | N28: Enter valid D.O.B | O28: Enter valid D.O.B | S28: 0 | T28: 0 | U28: 0 | V28: 0 | W28: 0 | X28: 0 | Y28: 0 | Z28: 0 | AA28: 0 | AB28: 0 | AC28: 0 | AD28: 0 | AE28: 0 | AF28: 0 | AG28: 0 | AH28: 0 | AI28: 0 | AJ28: 0 | AK28: 0 | AL28: 0 | AM28: 0 | AN28: 0 | AO28: 0 | AP28: 0 | AQ28: 0 | AR28: 0 | AS28: 0 | AT28: 0 | AU28: 0 | AV28: 0 | AW28: 0 | AX28: 0 | AY28: 0 | AZ28: 0 | BA28: 0 | BB28: 0 | BC28: 0 | BD28: 0 | BE28: 0 | BF28: 0 | BG28: 0 | BH28: 0 | BI28: 0 | BJ28: 0 | BK28: 0 | BL28: 0 | BM28: 0 | BN28: 0 | BO28: 0 | BP28: 0 | BQ28: 0 | BR28: 0 | BS28: 0 | BT28: 0 | BU28: 0 | BV28: 0 | BW28: 0 | BX28: 0 | BY28: 0 | BZ28: 0 | CA28: 0 | CB28: 0 | CC28: 0 | CD28: 0 | CE28: 0 | CF28: 0 | CG28: 0 | CH28: 0 | CI28: 0 | CJ28: 0 | CK28: 0 | CL28: 0 | CM28: 0 | CN28: 0 | CO28: 0 | CP28: 0 | CQ28: 0 | CR28: 0 | CS28: 0
N29: Enter valid D.O.B | O29: Enter valid D.O.B | S29: 0 | T29: 0 | U29: 0 | V29: 0 | W29: 0 | X29: 0 | Y29: 0 | Z29: 0 | AA29: 0 | AB29: 0 | AC29: 0 | AD29: 0 | AE29: 0 | AF29: 0 | AG29: 0 | AH29: 0 | AI29: 0 | AJ29: 0 | AK29: 0 | AL29: 0 | AM29: 0 | AN29: 0 | AO29: 0 | AP29: 0 | AQ29: 0 | AR29: 0 | AS29: 0 | AT29: 0 | AU29: 0 | AV29: 0 | AW29: 0 | AX29: 0 | AY29: 0 | AZ29: 0 | BA29: 0 | BB29: 0 | BC29: 0 | BD29: 0 | BE29: 0 | BF29: 0 | BG29: 0 | BH29: 0 | BI29: 0 | BJ29: 0 | BK29: 0 | BL29: 0 | BM29: 0 | BN29: 0 | BO29: 0 | BP29: 0 | BQ29: 0 | BR29: 0 | BS29: 0 | BT29: 0 | BU29: 0 | BV29: 0 | BW29: 0 | BX29: 0 | BY29: 0 | BZ29: 0 | CA29: 0 | CB29: 0 | CC29: 0 | CD29: 0 | CE29: 0 | CF29: 0 | CG29: 0 | CH29: 0 | CI29: 0 | CJ29: 0 | CK29: 0 | CL29: 0 | CM29: 0 | CN29: 0 | CO29: 0 | CP29: 0 | CQ29: 0 | CR29: 0 | CS29: 0
N30: Enter valid D.O.B | O30: Enter valid D.O.B | S30: 0 | T30: 0 | U30: 0 | V30: 0 | W30: 0 | X30: 0 | Y30: 0 | Z30: 0 | AA30: 0 | AB30: 0 | AC30: 0 | AD30: 0 | AE30: 0 | AF30: 0 | AG30: 0 | AH30: 0 | AI30: 0 | AJ30: 0 | AK30: 0 | AL30: 0 | AM30: 0 | AN30: 0 | AO30: 0 | AP30: 0 | AQ30: 0 | AR30: 0 | AS30: 0 | AT30: 0 | AU30: 0 | AV30: 0 | AW30: 0 | AX30: 0 | AY30: 0 | AZ30: 0 | BA30: 0 | BB30: 0 | BC30: 0 | BD30: 0 | BE30: 0 | BF30: 0 | BG30: 0 | BH30: 0 | BI30: 0 | BJ30: 0 | BK30: 0 | BL30: 0 | BM30: 0 | BN30: 0 | BO30: 0 | BP30: 0 | BQ30: 0 | BR30: 0 | BS30: 0 | BT30: 0 | BU30: 0 | BV30: 0 | BW30: 0 | BX30: 0 | BY30: 0 | BZ30: 0 | CA30: 0 | CB30: 0 | CC30: 0 | CD30: 0 | CE30: 0 | CF30: 0 | CG30: 0 | CH30: 0 | CI30: 0 | CJ30: 0 | CK30: 0 | CL30: 0 | CM30: 0 | CN30: 0 | CO30: 0 | CP30: 0 | CQ30: 0 | CR30: 0 | CS30: 0
N31: Enter valid D.O.B | O31: Enter valid D.O.B | S31: 0 | T31: 0 | U31: 0 | V31: 0 | W31: 0 | X31: 0 | Y31: 0 | Z31: 0 | AA31: 0 | AB31: 0 | AC31: 0 | AD31: 0 | AE31: 0 | AF31: 0 | AG31: 0 | AH31: 0 | AI31: 0 | AJ31: 0 | AK31: 0 | AL31: 0 | AM31: 0 | AN31: 0 | AO31: 0 | AP31: 0 | AQ31: 0 | AR31: 0 | AS31: 0 | AT31: 0 | AU31: 0 | AV31: 0 | AW31: 0 | AX31: 0 | AY31: 0 | AZ31: 0 | BA31: 0 | BB31: 0 | BC31: 0 | BD31: 0 | BE31: 0 | BF31: 0 | BG31: 0 | BH31: 0 | BI31: 0 | BJ31: 0 | BK31: 0 | BL31: 0 | BM31: 0 | BN31: 0 | BO31: 0 | BP31: 0 | BQ31: 0 | BR31: 0 | BS31: 0 | BT31: 0 | BU31: 0 | BV31: 0 | BW31: 0 | BX31: 0 | BY31: 0 | BZ31: 0 | CA31: 0 | CB31: 0 | CC31: 0 | CD31: 0 | CE31: 0 | CF31: 0 | CG31: 0 | CH31: 0 | CI31: 0 | CJ31: 0 | CK31: 0 | CL31: 0 | CM31: 0 | CN31: 0 | CO31: 0 | CP31: 0 | CQ31: 0 | CR31: 0 | CS31: 0
N32: Enter valid D.O.B | O32: Enter valid D.O.B | S32: 0 | T32: 0 | U32: 0 | V32: 0 | W32: 0 | X32: 0 | Y32: 0 | Z32: 0 | AA32: 0 | AB32: 0 | AC32: 0 | AD32: 0 | AE32: 0 | AF32: 0 | AG32: 0 | AH32: 0 | AI32: 0 | AJ32: 0 | AK32: 0 | AL32: 0 | AM32: 0 | AN32: 0 | AO32: 0 | AP32: 0 | AQ32: 0 | AR32: 0 | AS32: 0 | AT32: 0 | AU32: 0 | AV32: 0 | AW32: 0 | AX32: 0 | AY32: 0 | AZ32: 0 | BA32: 0 | BB32: 0 | BC32: 0 | BD32: 0 | BE32: 0 | BF32: 0 | BG32: 0 | BH32: 0 | BI32: 0 | BJ32: 0 | BK32: 0 | BL32: 0 | BM32: 0 | BN32: 0 | BO32: 0 | BP32: 0 | BQ32: 0 | BR32: 0 | BS32: 0 | BT32: 0 | BU32: 0 | BV32: 0 | BW32: 0 | BX32: 0 | BY32: 0 | BZ32: 0 | CA32: 0 | CB32: 0 | CC32: 0 | CD32: 0 | CE32: 0 | CF32: 0 | CG32: 0 | CH32: 0 | CI32: 0 | CJ32: 0 | CK32: 0 | CL32: 0 | CM32: 0 | CN32: 0 | CO32: 0 | CP32: 0 | CQ32: 0 | CR32: 0 | CS32: 0
N33: Enter valid D.O.B | O33: Enter valid D.O.B | S33: 0 | T33: 0 | U33: 0 | V33: 0 | W33: 0 | X33: 0 | Y33: 0 | Z33: 0 | AA33: 0 | AB33: 0 | AC33: 0 | AD33: 0 | AE33: 0 | AF33: 0 | AG33: 0 | AH33: 0 | AI33: 0 | AJ33: 0 | AK33: 0 | AL33: 0 | AM33: 0 | AN33: 0 | AO33: 0 | AP33: 0 | AQ33: 0 | AR33: 0 | AS33: 0 | AT33: 0 | AU33: 0 | AV33: 0 | AW33: 0 | AX33: 0 | AY33: 0 | AZ33: 0 | BA33: 0 | BB33: 0 | BC33: 0 | BD33: 0 | BE33: 0 | BF33: 0 | BG33: 0 | BH33: 0 | BI33: 0 | BJ33: 0 | BK33: 0 | BL33: 0 | BM33: 0 | BN33: 0 | BO33: 0 | BP33: 0 | BQ33: 0 | BR33: 0 | BS33: 0 | BT33: 0 | BU33: 0 | BV33: 0 | BW33: 0 | BX33: 0 | BY33: 0 | BZ33: 0 | CA33: 0 | CB33: 0 | CC33: 0 | CD33: 0 | CE33: 0 | CF33: 0 | CG33: 0 | CH33: 0 | CI33: 0 | CJ33: 0 | CK33: 0 | CL33: 0 | CM33: 0 | CN33: 0 | CO33: 0 | CP33: 0 | CQ33: 0 | CR33: 0 | CS33: 0
B34: Element 2 Pre-16 Pupils
B36: Notional AEN/SEN Budget
C37: IDACI | F37: =VLOOKUP(dfenum,DATA!B3:AH145,33,0) -> 
C38: Looked After Children | F38: =VLOOKUP(dfenum,DATA!B3:AJ145,35,0) -> 
C39: Low Cost, high Incidence SEN | F39: =VLOOKUP(dfenum,DATA!B3:AX145,49,0) -> 
C40: English as an additional language | F40: =VLOOKUP(dfenum,DATA!B3:AT145,44,0) -> 
C41: Element of Lump Sum | F41: =VLOOKUP(dfenum,DATA!B3:AT145,45,0) -> 
C42: Total (with London Fringe if applicable) | G42: =VLOOKUP(dfenum,DATA!B3:AU145,46,0)*SUM(F37:F41) -> 
B43: School Contribution per Pre-16 Pupil | G43: 6000
B44: AEN/SEN Top Up per Pre-16 Pupil | G44: =IF(totnotbud>200000,0,6000-(totnotbud*0.03)) -> 
B45: Maximum Contribution for all Pre-16 Pupils | G45: =totnotbud/5 -> 
C47: School Contribution | D47: AEN/SEN Top Up
B48: April | C48: =(SUM(C15:F15)-G15)*500 -> 0 | D48: =(C48/500)*($G$44/12) ->  | F48: =(C48/500)*(($G$43-$G$44)/12) -> 
B49: May | C49: =((SUM(C20:F20)-G20)+(SUM(C15:F15)-G15))*500 -> 0 | D49: =(C49/500)*($G$44/12) ->  | F49: =(C49/500)*(($G$43-$G$44)/12) ->  | G49: =F49+F48 -> 
B50: June | C50: =((SUM(C20:F20)-G20)+(SUM(C15:F15)-G15)+(SUM(C21:F21)-G21))*500 -> 0 | D50: =IF(G50<$G$45,(C50/500)*($G$44/12), IF(AND(G50>$G$45,G49<$G$45),(C50/500)*($G$44/12)+G50-$G$45,C50)) ->  | G50: =G49+F50 -> 
B51: July | C51: =((SUM(C20:F20)-G20)+(SUM(C15:F15)-G15)+(SUM(C21:F21)-G21)+(SUM(C22:F22)-G22))*500 -> 0 | G51: =G50+F51 -> 
B52: August | C52: =((SUM(C20:F20)-G20)+(SUM(C15:F15)-G15)+(SUM(C21:F21)-G21)+(SUM(C22:F22)-G22)+(SUM(C23:F23)-G23))*500 -> 0 | D52: =IF(G52<$G$45,(C52/500)*($G$44/12), IF(AND(G52>$G$45,G51<$G$45),(C52/500)*($G$44/12)+G52-$G$45,C52)) -> 
B53: September | C53: =(SUM(C16:F16)-G16)*500 -> 0 | D53: =IF(G53<$G$45,(C53/500)*($G$44/12), IF(AND(G53>$G$45,G52<$G$45),(C53/500)*($G$44/12)+G53-$G$45,C53)) -> 
B54: October | C54: =((SUM(C24:F24)-G24)+(SUM(C16:F16)-G16))*500 -> 0
B55: November | C55: =((SUM(C25:F25)-G25)+(SUM(C16:F16)-G16)+(SUM(C24:F24)-G24))*500 -> 0
B56: December | C56: =((SUM(C26:F26)-G26)+(SUM(C16:F16)-G16)+(SUM(C25:F25)-G25)+(SUM(C24:F24)-G24))*500 -> 0
B57: January | C57: =(SUM(C17:F17)-G17)*500 -> 0
B58: February | C58: =(((SUM(C27:F27)-G27)+(SUM(C17:F17)-G17))*500) -> 0
B59: March | C59: =((SUM(C27:F27)-G27)+(SUM(C17:F17)-G17)+(SUM(C28:F28)-G28))*500 -> 0
B64: Element 2 Post-16 Pupils
C66: Total
B67: April | C67: =G15*500 -> 0
B68: May | C68: =SUM(G15,G20)*500 -> 0
B69: June | C69: =SUM(G15,G20,G21)*500 -> 0
B70: July | C70: =SUM(G15,G20,G21,G22)*500 -> 0
B71: August | C71: =SUM(G15,G20,G21,G22,G23)*500 -> 0
B72: September | C72: =G16*500 -> 0
B73: October | C73: =SUM(G16,G24)*500 -> 0
B74: November | C74: =SUM(G16,G24,G25)*500 -> 0
B75: December | C75: =SUM(G16,G24,G25,G26)*500 -> 0
B76: January | C76: =G17*500 -> 0
B77: February | C77: =SUM(G17,G27)*500 -> 0
B78: March | C78: =SUM(G17,G27,G28)*500 -> 0
B83: Element 3 Funding
B85: Rates
B87: SLCN & SPLD | F87: 4653.095777
B88: SLD | F88: 6602.662033
B89: ASD | F89: 8551.228288
B90: PD, HI & VI | F90: 13028.88105
C92: SLCN & SPLD | D92: SLD | E92: ASD | F92: PD, HI & VI
B93: April | C93: =(C15*$F$87)/12 -> 0 | D93: =(D15*$F$88)/12 -> 0 | E93: =(E15*$F$89)/12 -> 0 | F93: =(F15*$F$90)/12 -> 0
B94: May | C94: =((C20+C15)*$F$87)/12 -> 0 | D94: =((D20+D$15)*$F$88)/12 -> 0 | E94: =((E20+E$15)*$F$89)/12 -> 0 | F94: =((F20+F$15)*$F$90)/12 -> 0
B95: June | C95: =((C21+C$15+C20)*$F$87)/12 -> 0 | D95: =((D21+D$15+D20)*$F$88)/12 -> 0 | E95: =((E21+E$15+E20)*$F$89)/12 -> 0 | F95: =((F21+F$15+F20)*$F$90)/12 -> 0
B96: July | C96: =((C22+C$15+C21+C20)*$F$87)/12 -> 0 | D96: =((D22+D$15+D21+D20)*$F$88)/12 -> 0 | E96: =((E22+E$15+E21+E20)*$F$89)/12 -> 0 | F96: =((F22+F$15+F21+F20)*$F$90)/12 -> 0
B97: August | C97: =((C22+C$15+C21+C20+C23)*$F$87)/12 -> 0 | D97: =((D22+D$15+D21+D20+D23)*$F$88)/12 -> 0 | E97: =((E22+E$15+E21+E20+E23)*$F$89)/12 -> 0 | F97: =((F22+F$15+F21+F20+F23)*$F$90)/12 -> 0
B98: September | C98: =(C$16*$F$87)/12 -> 0 | D98: =(D$16*$F$88)/12 -> 0 | E98: =(E$16*$F$89)/12 -> 0 | F98: =(F$16*$F$90)/12 -> 0
B99: October | C99: =((C24+C16)*$F$87)/12 -> 0 | D99: =((D24+D16)*$F$88)/12 -> 0 | E99: =((E24+E16)*$F$89)/12 -> 0 | F99: =((F24+F16)*$F$90)/12 -> 0
B100: November | C100: =((C$16+C25+C24)*$F$87)/12 -> 0 | D100: =((D$16+D25+D24)*$F$88)/12 -> 0 | E100: =((E$16+E25+E24)*$F$89)/12 -> 0 | F100: =((F$16+F25+F24)*$F$90)/12 -> 0
B101: December | C101: =((C$16+C26+C25+C24)*$F$87)/12 -> 0 | D101: =((D$16+D26+D25+D24)*$F$88)/12 -> 0 | E101: =((E$16+E26+E25+E24)*$F$89)/12 -> 0 | F101: =((F$16+F26+F25+F24)*$F$90)/12 -> 0
B102: January | C102: =(C17*$F$87)/12 -> 0 | D102: =(D17*$F$88)/12 -> 0 | E102: =(E17*$F$89)/12 -> 0 | F102: =(F17*$F$90)/12 -> 0
B103: February | C103: =(((C27+C$17)*$F$87)/12) -> 0 | D103: =(((D27+D$17)*$F$88)/12) -> 0 | E103: =(((E27+E$17)*$F$89)/12) -> 0 | F103: =(((F27+F$17)*$F$90)/12) -> 0
B104: March | C104: =((C28+C$17+C27)*$F$87)/12 -> 0 | D104: =((D28+D$17+D27)*$F$88)/12 -> 0 | E104: =((E28+E$17+E27)*$F$89)/12 -> 0 | F104: =((F28+F$17+F27)*$F$90)/12 -> 0
B108: Total AEN/SEN Top Up Funding | F108: =SUM(D48:D59) -> 
B109: Total Post-16 Element 2 | F109: =SUM(C67:C78) -> 0
B110: Total Element 3 Funding | F110: =IF(ISERROR(SUM(C93:F104)),0,SUM(C93:F104)) -> 0

Sheet Place Plus Resourced Provision
E2: =RIGHT(dfenum,4)*1 -> 
B6: =VLOOKUP(dfenum,academies,2,0) -> 
B8: Place Plus Funding for High Needs Pupils in Resourced Provision
I10: Only Pupils who have had high needs funding agreed by Kent County Council should be entered here
I11: Only high needs Pupils specifically placed in the specially resourced provision should be entered here
B12: Pupil Numbers | I12: A designation must always be selected. Apart from the three schools with two SRPs the designation will always be 1. | T12: April | U12: May | V12: June | W12: July | X12: August | Y12: September | Z12: October | AA12: November | AB12: December | AC12: January | AD12: February | AE12: March
I13: Designation | J13: Pupil Surname | K13: Pupil Forename | L13: Pre/Post 16 Summer | M13: Pre/Post 16 Winter | N13: Start month | O13: End month | P13: Start month | Q13: End month | R13: Pre/Post 16 Summer | S13: Pre/Post 16 Winter | T13: 1 | U13: 2 | V13: 3 | W13: 4 | X13: 5 | Y13: 6 | Z13: 7 | AA13: 8 | AB13: 9 | AC13: 10 | AD13: 11 | AE13: 12
C14: Pre-16 pupils Designation 1 | D14: Post-16 pupils Designation 1 | E14: Pre-16 pupils Designation 2 | F14: Post-16 pupils Designation 2 | I14: Designation 1 | J14: hfdg | K14: hgdsh | L14: Pre-16 | M14: Pre-16 | N14: APRIL | O14: MARCH | P14: =IF(N14="APRIL",1, IF(N14="MAY",2, IF(N14="JUNE",3, IF(N14="JULY",4, IF(N14="AUGUST",5, IF(N14="SEPTEMBER",6, IF(N14="OCTOBER",7, IF(N14="NOVEMBER",8, IF(N14="DECEMBER",9, IF(N14="JANUARY",10, IF(N14="FEBRUARY",11, IF(N14="MARCH",12,"ERROR")))))))))))) -> 1 | Q14: =IF(O14="APRIL",1, IF(O14="MAY",2, IF(O14="JUNE",3, IF(O14="JULY",4, IF(O14="AUGUST",5, IF(O14="SEPTEMBER",6, IF(O14="OCTOBER",7, IF(O14="NOVEMBER",8, IF(O14="DECEMBER",9, IF(O14="JANUARY",10, IF(O14="FEBRUARY",11, IF(O14="MARCH",12,"ERROR")))))))))))) -> 12 | R14: =IF(L14="PRE-16","PRE-16",IF(L14="POST-16","POST-16","ERROR")) -> PRE-16 | S14: =IF(M14="PRE-16","PRE-16",IF(M14="POST-16","POST-16","ERROR")) -> PRE-16 | T14: =IF(AND($P14<=T$13,$Q14>=T$13),1,0) -> 1 | U14: =IF(AND($P14<=U$13,$Q14>=U$13),1,0) -> 1 | V14: 1 | W14: 1 | X14: =IF(AND($P14<=W$13,$Q14>=W$13),1,0) -> 1 | Y14: 1 | Z14: 1 | AA14: 1 | AB14: 1 | AC14: 1 | AD14: 1 | AE14: 1 | AF14: =$I14&R14 -> Designation 1PRE-16 | AG14: =$I14&S14 -> Designation 1PRE-16
B15: April | C15: =SUMIF($AF$14:$AF$163,"Designation 1Pre-16",$T$14:$T$163) -> 1 | D15: =SUMIF($AF$14:$AF$163,"Designation 1Post-16",$T$14:$T$163) -> 0 | E15: =SUMIF($AF$14:$AF$163,"Designation 2Pre-16",$T$14:$T$163) -> 0 | F15: =SUMIF($AF$14:$AF$163,"Designation 2Post-16",$T$14:$T$163) -> 0 | N15: APRIL | O15: MARCH | P15: =IF(N15="APRIL",1, IF(N15="MAY",2, IF(N15="JUNE",3, IF(N15="JULY",4, IF(N15="AUGUST",5, IF(N15="SEPTEMBER",6, IF(N15="OCTOBER",7, IF(N15="NOVEMBER",8, IF(N15="DECEMBER",9, IF(N15="JANUARY",10, IF(N15="FEBRUARY",11, IF(N15="MARCH",12,"ERROR")))))))))))) -> 1 | Q15: =IF(O15="APRIL",1, IF(O15="MAY",2, IF(O15="JUNE",3, IF(O15="JULY",4, IF(O15="AUGUST",5, IF(O15="SEPTEMBER",6, IF(O15="OCTOBER",7, IF(O15="NOVEMBER",8, IF(O15="DECEMBER",9, IF(O15="JANUARY",10, IF(O15="FEBRUARY",11, IF(O15="MARCH",12,"ERROR")))))))))))) -> 12 | R15: =IF(L15="PRE-16","PRE-16",IF(L15="POST-16","POST-16","ERROR")) -> ERROR | S15: =IF(M15="PRE-16","PRE-16",IF(M15="POST-16","POST-16","ERROR")) -> ERROR | T15: =IF(AND($P15<=T$13,$Q15>=T$13),1,0) -> 1 | U15: 1 | V15: 1 | W15: 1 | X15: =IF(AND($P15<=W$13,$Q15>=W$13),1,0) -> 1 | Y15: 1 | Z15: 1 | AA15: 1 | AB15: 1 | AC15: 1 | AD15: 1 | AE15: 1 | AF15: =$I15&R15 -> ERROR | AG15: =$I15&S15 -> ERROR
B16: May | C16: =SUMIF($AF$14:$AF$163,"Designation 1Pre-16",$U$14:$U$163) -> 1 | D16: =SUMIF($AF$14:$AF$163,"Designation 1Post-16",$U$14:$U$163) -> 0 | E16: =SUMIF($AF$14:$AF$163,"Designation 2Pre-16",$U$14:$U$163) -> 0 | F16: =SUMIF($AF$14:$AF$163,"Designation 2Post-16",$U$14:$U$163) -> 0 | N16: APRIL | O16: MARCH | P16: 1 | Q16: 12 | R16: ERROR | S16: ERROR | T16: 1 | U16: 1 | V16: 1 | W16: 1 | X16: 1 | Y16: 1 | Z16: 1 | AA16: 1 | AB16: 1 | AC16: 1 | AD16: 1 | AE16: 1 | AF16: ERROR | AG16: ERROR
B17: June | C17: =SUMIF($AF$14:$AF$163,"Designation 1Pre-16",$V$14:$V$163) -> 1 | D17: =SUMIF($AF$14:$AF$163,"Designation 1Post-16",$V$14:$V$163) -> 0 | E17: =SUMIF($AF$14:$AF$163,"Designation 2Pre-16",$V$14:$V$163) -> 0 | F17: =SUMIF($AF$14:$AF$163,"Designation 2Post-16",$V$14:$V$163) -> 0 | N17: APRIL | O17: MARCH | P17: 1 | Q17: 12 | R17: ERROR | S17: ERROR | T17: 1 | U17: 1 | V17: 1 | W17: 1 | X17: 1 | Y17: 1 | Z17: 1 | AA17: 1 | AB17: 1 | AC17: 1 | AD17: 1 | AE17: 1 | AF17: ERROR | AG17: ERROR
B18: July | C18: =SUMIF($AF$14:$AF$163,"Designation 1Pre-16",$W$14:$W$163) -> 1 | D18: =SUMIF($AF$14:$AF$163,"Designation 1Post-16",$W$14:$W$163) -> 0 | E18: =SUMIF($AF$14:$AF$163,"Designation 2Pre-16",$W$14:$W$163) -> 0 | F18: =SUMIF($AF$14:$AF$163,"Designation 2Post-16",$W$14:$W$163) -> 0 | N18: APRIL | O18: MARCH | P18: 1 | Q18: 12 | R18: ERROR | S18: ERROR | T18: 1 | U18: 1 | V18: 1 | W18: 1 | X18: 1 | Y18: 1 | Z18: 1 | AA18: 1 | AB18: 1 | AC18: 1 | AD18: 1 | AE18: 1 | AF18: ERROR | AG18: ERROR
B19: August | C19: =SUMIF($AG$14:$AG$163,"Designation 1Pre-16",$X$14:$X$163) -> 1 | D19: =SUMIF($AG$14:$AG$163,"Designation 1Post-16",$X$14:$X$163) -> 0 | E19: =SUMIF($AG$14:$AG$163,"Designation 2Pre-16",$X$14:$X$163) -> 0 | F19: =SUMIF($AG$14:$AG$163,"Designation 2Post-16",$X$14:$X$163) -> 0 | N19: APRIL | O19: MARCH | P19: 1 | Q19: 12 | R19: ERROR | S19: ERROR | T19: 1 | U19: 1 | V19: 1 | W19: 1 | X19: 1 | Y19: 1 | Z19: 1 | AA19: 1 | AB19: 1 | AC19: 1 | AD19: 1 | AE19: 1 | AF19: ERROR | AG19: ERROR
B20: September | C20: =SUMIF($AG$14:$AG$163,"Designation 1Pre-16",$Y$14:$Y$163) -> 1 | D20: =SUMIF($AG$14:$AG$163,"Designation 1Post-16",$Y$14:$Y$163) -> 0 | E20: =SUMIF($AG$14:$AG$163,"Designation 2Pre-16",$Y$14:$Y$163) -> 0 | F20: =SUMIF($AG$14:$AG$163,"Designation 2Post-16",$Y$14:$Y$163) -> 0 | N20: APRIL | O20: MARCH | P20: 1 | Q20: 12 | R20: ERROR | S20: ERROR | T20: 1 | U20: 1 | V20: 1 | W20: 1 | X20: 1 | Y20: 1 | Z20: 1 | AA20: 1 | AB20: 1 | AC20: 1 | AD20: 1 | AE20: 1 | AF20: ERROR | AG20: ERROR
B21: October | C21: =SUMIF($AG$14:$AG$163,"Designation 1Pre-16",$Z$14:$Z$163) -> 1 | D21: =SUMIF($AG$14:$AG$163,"Designation 1Post-16",$Z$14:$Z$163) -> 0 | E21: =SUMIF($AG$14:$AG$163,"Designation 2Pre-16",$Z$14:$Z$163) -> 0 | F21: =SUMIF($AG$14:$AG$163,"Designation 2Post-16",$Z$14:$Z$163) -> 0 | N21: APRIL | O21: MARCH | P21: 1 | Q21: 12 | R21: ERROR | S21: ERROR | T21: 1 | U21: 1 | V21: 1 | W21: 1 | X21: 1 | Y21: 1 | Z21: 1 | AA21: 1 | AB21: 1 | AC21: 1 | AD21: 1 | AE21: 1 | AF21: ERROR | AG21: ERROR
B22: November | C22: =SUMIF($AG$14:$AG$163,"Designation 1Pre-16",$AA$14:$AA$163) -> 1 | D22: =SUMIF($AG$14:$AG$163,"Designation 1Post-16",$AA$14:$AA$163) -> 0 | E22: =SUMIF($AG$14:$AG$163,"Designation 2Pre-16",$AA$14:$AA$163) -> 0 | F22: =SUMIF($AG$14:$AG$163,"Designation 2Post-16",$AA$14:$AA$163) -> 0 | N22: APRIL | O22: MARCH | P22: 1 | Q22: 12 | R22: ERROR | S22: ERROR | T22: 1 | U22: 1 | V22: 1 | W22: 1 | X22: 1 | Y22: 1 | Z22: 1 | AA22: 1 | AB22: 1 | AC22: 1 | AD22: 1 | AE22: 1 | AF22: ERROR | AG22: ERROR
B23: December | C23: =SUMIF($AG$14:$AG$163,"Designation 1Pre-16",$AB$14:$AB$163) -> 1 | D23: =SUMIF($AG$14:$AG$163,"Designation 1Post-16",$AB$14:$AB$163) -> 0 | E23: =SUMIF($AG$14:$AG$163,"Designation 2Pre-16",$AB$14:$AB$163) -> 0 | F23: =SUMIF($AG$14:$AG$163,"Designation 2Post-16",$AB$14:$AB$163) -> 0 | N23: APRIL | O23: MARCH | P23: 1 | Q23: 12 | R23: ERROR | S23: ERROR | T23: 1 | U23: 1 | V23: 1 | W23: 1 | X23: 1 | Y23: 1 | Z23: 1 | AA23: 1 | AB23: 1 | AC23: 1 | AD23: 1 | AE23: 1 | AF23: ERROR | AG23: ERROR
B24: January | C24: =SUMIF($AG$14:$AG$163,"Designation 1Pre-16",$AC$14:$AC$163) -> 1 | D24: =SUMIF($AG$14:$AG$163,"Designation 1Post-16",$AC$14:$AC$163) -> 0 | E24: =SUMIF($AG$14:$AG$163,"Designation 2Pre-16",$AC$14:$AC$163) -> 0 | F24: =SUMIF($AG$14:$AG$163,"Designation 2Post-16",$AC$14:$AC$163) -> 0 | N24: APRIL | O24: MARCH | P24: 1 | Q24: 12 | R24: ERROR | S24: ERROR | T24: 1 | U24: 1 | V24: 1 | W24: 1 | X24: 1 | Y24: 1 | Z24: 1 | AA24: 1 | AB24: 1 | AC24: 1 | AD24: 1 | AE24: 1 | AF24: ERROR | AG24: ERROR
B25: February | C25: =SUMIF($AG$14:$AG$163,"Designation 1Pre-16",$AD$14:$AD$163) -> 1 | D25: =SUMIF($AG$14:$AG$163,"Designation 1Post-16",$AD$14:$AD$163) -> 0 | E25: =SUMIF($AG$14:$AG$163,"Designation 2Pre-16",$AD$14:$AD$163) -> 0 | F25: =SUMIF($AG$14:$AG$163,"Designation 2Post-16",$AD$14:$AD$163) -> 0 | N25: APRIL | O25: MARCH | P25: 1 | Q25: 12 | R25: ERROR | S25: ERROR | T25: 1 | U25: 1 | V25: 1 | W25: 1 | X25: 1 | Y25: 1 | Z25: 1 | AA25: 1 | AB25: 1 | AC25: 1 | AD25: 1 | AE25: 1 | AF25: ERROR | AG25: ERROR
B26: March | C26: =SUMIF($AG$14:$AG$163,"Designation 1Pre-16",$AE$14:$AE$163) -> 1 | D26: =SUMIF($AG$14:$AG$163,"Designation 1Post-16",$AE$14:$AE$163) -> 0 | E26: =SUMIF($AG$14:$AG$163,"Designation 2Pre-16",$AE$14:$AE$163) -> 0 | F26: =SUMIF($AG$14:$AG$163,"Designation 2Post-16",$AE$14:$AE$163) -> 0 | N26: APRIL | O26: MARCH | P26: 1 | Q26: 12 | R26: ERROR | S26: ERROR | T26: 1 | U26: 1 | V26: 1 | W26: 1 | X26: 1 | Y26: 1 | Z26: 1 | AA26: 1 | AB26: 1 | AC26: 1 | AD26: 1 | AE26: 1 | AF26: ERROR | AG26: ERROR
N27: APRIL | O27: MARCH | P27: 1 | Q27: 12 | R27: ERROR | S27: ERROR | T27: 1 | U27: 1 | V27: 1 | W27: 1 | X27: 1 | Y27: 1 | Z27: 1 | AA27: 1 | AB27: 1 | AC27: 1 | AD27: 1 | AE27: 1 | AF27: ERROR | AG27: ERROR
N28: APRIL | O28: MARCH | P28: 1 | Q28: 12 | R28: ERROR | S28: ERROR | T28: 1 | U28: 1 | V28: 1 | W28: 1 | X28: 1 | Y28: 1 | Z28: 1 | AA28: 1 | AB28: 1 | AC28: 1 | AD28: 1 | AE28: 1 | AF28: ERROR | AG28: ERROR
N29: APRIL | O29: MARCH | P29: 1 | Q29: 12 | R29: ERROR | S29: ERROR | T29: 1 | U29: 1 | V29: 1 | W29: 1 | X29: 1 | Y29: 1 | Z29: 1 | AA29: 1 | AB29: 1 | AC29: 1 | AD29: 1 | AE29: 1 | AF29: ERROR | AG29: ERROR
N30: APRIL | O30: MARCH | P30: 1 | Q30: 12 | R30: ERROR | S30: ERROR | T30: 1 | U30: 1 | V30: 1 | W30: 1 | X30: 1 | Y30: 1 | Z30: 1 | AA30: 1 | AB30: 1 | AC30: 1 | AD30: 1 | AE30: 1 | AF30: ERROR | AG30: ERROR
B31: Element 1 Funding | N31: APRIL | O31: MARCH | P31: 1 | Q31: 12 | R31: ERROR | S31: ERROR | T31: 1 | U31: 1 | V31: 1 | W31: 1 | X31: 1 | Y31: 1 | Z31: 1 | AA31: 1 | AB31: 1 | AC31: 1 | AD31: 1 | AE31: 1 | AF31: ERROR | AG31: ERROR
N32: APRIL | O32: MARCH | P32: 1 | Q32: 12 | R32: ERROR | S32: ERROR | T32: 1 | U32: 1 | V32: 1 | W32: 1 | X32: 1 | Y32: 1 | Z32: 1 | AA32: 1 | AB32: 1 | AC32: 1 | AD32: 1 | AE32: 1 | AF32: ERROR | AG32: ERROR
D33: Pupils | E33: Rate | F33: Total | N33: APRIL | O33: MARCH | P33: 1 | Q33: 12 | R33: ERROR | S33: ERROR | T33: 1 | U33: 1 | V33: 1 | W33: 1 | X33: 1 | Y33: 1 | Z33: 1 | AA33: 1 | AB33: 1 | AC33: 1 | AD33: 1 | AE33: 1 | AF33: ERROR | AG33: ERROR
B34: Pre-16 Places Summer | D34: =IF(ISERROR(E79+F79),E79,E79+F79) ->  | E34: =4000*(5/12) -> 1666.666667 | F34: =IF(ISERROR(D34*E34),0,D34*E34) -> 0 | N34: APRIL | O34: MARCH | P34: 1 | Q34: 12 | R34: ERROR | S34: ERROR | T34: 1 | U34: 1 | V34: 1 | W34: 1 | X34: 1 | Y34: 1 | Z34: 1 | AA34: 1 | AB34: 1 | AC34: 1 | AD34: 1 | AE34: 1 | AF34: ERROR | AG34: ERROR
B35: Pre-16 Places Autumn & Spring Terms | D35: =IF(ISERROR(E81+F81),E81,E81+F81) ->  | E35: =4000*(7/12) -> 2333.333333 | F35: =IF(ISERROR(D35*E35),0,D35*E35) -> 0 | N35: APRIL | O35: MARCH | P35: 1 | Q35: 12 | R35: ERROR | S35: ERROR | T35: 1 | U35: 1 | V35: 1 | W35: 1 | X35: 1 | Y35: 1 | Z35: 1 | AA35: 1 | AB35: 1 | AC35: 1 | AD35: 1 | AE35: 1 | AF35: ERROR | AG35: ERROR
B36: Post-16 Places whole year | F36: Included within your 16-19 formula allocation | N36: APRIL | O36: MARCH | P36: 1 | Q36: 12 | R36: ERROR | S36: ERROR | T36: 1 | U36: 1 | V36: 1 | W36: 1 | X36: 1 | Y36: 1 | Z36: 1 | AA36: 1 | AB36: 1 | AC36: 1 | AD36: 1 | AE36: 1 | AF36: ERROR | AG36: ERROR
F37: =IF(ISERROR(F34+F35),0,F34+F35) -> 0 | N37: APRIL | O37: MARCH | P37: 1 | Q37: 12 | R37: ERROR | S37: ERROR | T37: 1 | U37: 1 | V37: 1 | W37: 1 | X37: 1 | Y37: 1 | Z37: 1 | AA37: 1 | AB37: 1 | AC37: 1 | AD37: 1 | AE37: 1 | AF37: ERROR | AG37: ERROR
B38: Element 2 Funding | N38: APRIL | O38: MARCH | P38: 1 | Q38: 12 | R38: ERROR | S38: ERROR | T38: 1 | U38: 1 | V38: 1 | W38: 1 | X38: 1 | Y38: 1 | Z38: 1 | AA38: 1 | AB38: 1 | AC38: 1 | AD38: 1 | AE38: 1 | AF38: ERROR | AG38: ERROR
D39: Pupils | E39: Rate | F39: Total | N39: APRIL | O39: MARCH | P39: 1 | Q39: 12 | R39: ERROR | S39: ERROR | T39: 1 | U39: 1 | V39: 1 | W39: 1 | X39: 1 | Y39: 1 | Z39: 1 | AA39: 1 | AB39: 1 | AC39: 1 | AD39: 1 | AE39: 1 | AF39: ERROR | AG39: ERROR
B40: Pre-16 Places Summer | D40: =D34 ->  | E40: =6000*(5/12) -> 2500 | F40: =IF(ISERROR(D40*E40),0,D40*E40) -> 0 | N40: APRIL | O40: MARCH | P40: 1 | Q40: 12 | R40: ERROR | S40: ERROR | T40: 1 | U40: 1 | V40: 1 | W40: 1 | X40: 1 | Y40: 1 | Z40: 1 | AA40: 1 | AB40: 1 | AC40: 1 | AD40: 1 | AE40: 1 | AF40: ERROR | AG40: ERROR
B41: Pre-16 Places Autumn & Spring Terms | D41: =D35 ->  | E41: =6000*(7/12) -> 3500 | F41: =IF(ISERROR(D41*E41),0,D41*E41) -> 0 | N41: APRIL | O41: MARCH | P41: 1 | Q41: 12 | R41: ERROR | S41: ERROR | T41: 1 | U41: 1 | V41: 1 | W41: 1 | X41: 1 | Y41: 1 | Z41: 1 | AA41: 1 | AB41: 1 | AC41: 1 | AD41: 1 | AE41: 1 | AF41: ERROR | AG41: ERROR
B42: Post-16 Places Summer | D42: =IF(ISERROR(E80+F80),E80,E80+F80) ->  | E42: =6000*(4/12) -> 2000 | F42: 0 | N42: APRIL | O42: MARCH | P42: 1 | Q42: 12 | R42: ERROR | S42: ERROR | T42: 1 | U42: 1 | V42: 1 | W42: 1 | X42: 1 | Y42: 1 | Z42: 1 | AA42: 1 | AB42: 1 | AC42: 1 | AD42: 1 | AE42: 1 | AF42: ERROR | AG42: ERROR
B43: Post-16 Places Autumn & Spring Terms | D43: =IF(ISERROR(E82+F82),E82,E82+F82) ->  | E43: =6000*(8/12) -> 4000 | F43: 0 | N43: APRIL | O43: MARCH | P43: 1 | Q43: 12 | R43: ERROR | S43: ERROR | T43: 1 | U43: 1 | V43: 1 | W43: 1 | X43: 1 | Y43: 1 | Z43: 1 | AA43: 1 | AB43: 1 | AC43: 1 | AD43: 1 | AE43: 1 | AF43: ERROR | AG43: ERROR
F44: =IF(ISERROR(SUM(F40:F43)),0,SUM(F40:F43)) -> 0 | N44: APRIL | O44: MARCH | P44: 1 | Q44: 12 | R44: ERROR | S44: ERROR | T44: 1 | U44: 1 | V44: 1 | W44: 1 | X44: 1 | Y44: 1 | Z44: 1 | AA44: 1 | AB44: 1 | AC44: 1 | AD44: 1 | AE44: 1 | AF44: ERROR | AG44: ERROR
N45: APRIL | O45: MARCH | P45: 1 | Q45: 12 | R45: ERROR | S45: ERROR | T45: 1 | U45: 1 | V45: 1 | W45: 1 | X45: 1 | Y45: 1 | Z45: 1 | AA45: 1 | AB45: 1 | AC45: 1 | AD45: 1 | AE45: 1 | AF45: ERROR | AG45: ERROR
B46: Element 3 Funding | N46: APRIL | O46: MARCH | P46: 1 | Q46: 12 | R46: ERROR | S46: ERROR | T46: 1 | U46: 1 | V46: 1 | W46: 1 | X46: 1 | Y46: 1 | Z46: 1 | AA46: 1 | AB46: 1 | AC46: 1 | AD46: 1 | AE46: 1 | AF46: ERROR | AG46: ERROR
N47: APRIL | O47: MARCH | P47: 1 | Q47: 12 | R47: ERROR | S47: ERROR | T47: =IF(AND($P47<=T$13,$Q47>=T$13),1,0) -> 1 | U47: 1 | V47: 1 | W47: 1 | X47: 1 | Y47: 1 | Z47: 1 | AA47: 1 | AB47: 1 | AC47: 1 | AD47: 1 | AE47: 1 | AF47: ERROR | AG47: ERROR
B48: Top Up Rates for this Unit (see calculation below): | N48: APRIL | O48: MARCH | P48: 1 | Q48: 12 | R48: ERROR | S48: ERROR | T48: 1 | U48: 1 | V48: 1 | W48: 1 | X48: 1 | Y48: 1 | Z48: 1 | AA48: 1 | AB48: 1 | AC48: 1 | AD48: 1 | AE48: 1 | AF48: ERROR | AG48: ERROR
D49: Designation 1 | E49: Designation 2 | N49: APRIL | O49: MARCH | P49: 1 | Q49: 12 | R49: ERROR | S49: ERROR | T49: 1 | U49: 1 | V49: 1 | W49: 1 | X49: 1 | Y49: 1 | Z49: 1 | AA49: 1 | AB49: 1 | AC49: 1 | AD49: 1 | AE49: 1 | AF49: ERROR | AG49: ERROR
C50: Pre-16 | D50: =IF(ISERROR(E148),0,E148) -> 0 | E50: =IF(F148="",0,F148) -> 0 | N50: APRIL | O50: MARCH | P50: 1 | Q50: 12 | R50: ERROR | S50: ERROR | T50: 1 | U50: 1 | V50: 1 | W50: 1 | X50: 1 | Y50: 1 | Z50: 1 | AA50: 1 | AB50: 1 | AC50: 1 | AD50: 1 | AE50: 1 | AF50: ERROR | AG50: ERROR
C51: Post-16 | D51: =IF(E152="",0,E152) -> 0 | E51: =IF(F152="",0,F152) -> 0 | N51: APRIL | O51: MARCH | P51: 1 | Q51: 12 | R51: ERROR | S51: ERROR | T51: 1 | U51: 1 | V51: 1 | W51: 1 | X51: 1 | Y51: 1 | Z51: 1 | AA51: 1 | AB51: 1 | AC51: 1 | AD51: 1 | AE51: 1 | AF51: ERROR | AG51: ERROR
N52: APRIL | O52: MARCH | P52: 1 | Q52: 12 | R52: ERROR | S52: ERROR | T52: 1 | U52: 1 | V52: 1 | W52: 1 | X52: 1 | Y52: 1 | Z52: 1 | AA52: 1 | AB52: 1 | AC52: 1 | AD52: 1 | AE52: 1 | AF52: ERROR | AG52: ERROR
N53: APRIL | O53: MARCH | P53: 1 | Q53: 12 | R53: ERROR | S53: ERROR | T53: 1 | U53: 1 | V53: 1 | W53: 1 | X53: 1 | Y53: 1 | Z53: 1 | AA53: 1 | AB53: 1 | AC53: 1 | AD53: 1 | AE53: 1 | AF53: ERROR | AG53: ERROR
N54: APRIL | O54: MARCH | P54: 1 | Q54: 12 | R54: ERROR | S54: ERROR | T54: 1 | U54: 1 | V54: 1 | W54: 1 | X54: 1 | Y54: 1 | Z54: 1 | AA54: 1 | AB54: 1 | AC54: 1 | AD54: 1 | AE54: 1 | AF54: ERROR | AG54: ERROR
C55: Pre-16 pupils Designation 1 | D55: Post-16 pupils Designation 1 | E55: Pre-16 pupils Designation 2 | F55: Post-16 pupils Designation 2 | N55: APRIL | O55: MARCH | P55: 1 | Q55: 12 | R55: ERROR | S55: ERROR | T55: 1 | U55: 1 | V55: 1 | W55: 1 | X55: 1 | Y55: 1 | Z55: 1 | AA55: 1 | AB55: 1 | AC55: 1 | AD55: 1 | AE55: 1 | AF55: ERROR | AG55: ERROR
B56: April | C56: =C15*($D$50/12) -> 0 | D56: =D15*($D$51/12) -> 0 | E56: =E15*($E$50/12) -> 0 | F56: =F15*($E$51/12) -> 0 | N56: APRIL | O56: MARCH | P56: 1 | Q56: 12 | R56: ERROR | S56: ERROR | T56: 1 | U56: 1 | V56: 1 | W56: 1 | X56: 1 | Y56: 1 | Z56: 1 | AA56: 1 | AB56: 1 | AC56: 1 | AD56: 1 | AE56: 1 | AF56: ERROR | AG56: ERROR
B57: May | C57: =C16*($D$50/12) -> 0 | D57: =D16*($D$51/12) -> 0 | E57: =E16*($E$50/12) -> 0 | F57: =F16*($E$51/12) -> 0 | N57: APRIL | O57: MARCH | P57: 1 | Q57: 12 | R57: ERROR | S57: ERROR | T57: 1 | U57: 1 | V57: 1 | W57: 1 | X57: 1 | Y57: 1 | Z57: 1 | AA57: 1 | AB57: 1 | AC57: 1 | AD57: 1 | AE57: 1 | AF57: ERROR | AG57: ERROR
B58: June | C58: 0 | D58: 0 | E58: 0 | F58: 0 | N58: APRIL | O58: MARCH | P58: 1 | Q58: 12 | R58: ERROR | S58: ERROR | T58: 1 | U58: 1 | V58: 1 | W58: 1 | X58: 1 | Y58: 1 | Z58: 1 | AA58: 1 | AB58: 1 | AC58: 1 | AD58: 1 | AE58: 1 | AF58: ERROR | AG58: ERROR
B59: July | C59: 0 | D59: 0 | E59: 0 | F59: 0 | N59: APRIL | O59: MARCH | P59: 1 | Q59: 12 | R59: ERROR | S59: ERROR | T59: 1 | U59: 1 | V59: 1 | W59: 1 | X59: 1 | Y59: 1 | Z59: 1 | AA59: 1 | AB59: 1 | AC59: 1 | AD59: 1 | AE59: 1 | AF59: ERROR | AG59: ERROR
B60: August | C60: 0 | D60: 0 | E60: 0 | F60: 0 | N60: APRIL | O60: MARCH | P60: 1 | Q60: 12 | R60: ERROR | S60: ERROR | T60: 1 | U60: 1 | V60: 1 | W60: 1 | X60: 1 | Y60: 1 | Z60: 1 | AA60: 1 | AB60: 1 | AC60: 1 | AD60: 1 | AE60: 1 | AF60: ERROR | AG60: ERROR
B61: September | C61: 0 | D61: 0 | E61: 0 | F61: 0 | N61: APRIL | O61: MARCH | P61: 1 | Q61: 12 | R61: ERROR | S61: ERROR | T61: 1 | U61: 1 | V61: 1 | W61: 1 | X61: 1 | Y61: 1 | Z61: 1 | AA61: 1 | AB61: 1 | AC61: 1 | AD61: 1 | AE61: 1 | AF61: ERROR | AG61: ERROR
B62: October | C62: 0 | D62: 0 | E62: 0 | F62: 0 | N62: APRIL | O62: MARCH | P62: 1 | Q62: 12 | R62: ERROR | S62: ERROR | T62: 1 | U62: 1 | V62: 1 | W62: 1 | X62: 1 | Y62: 1 | Z62: 1 | AA62: 1 | AB62: 1 | AC62: 1 | AD62: 1 | AE62: 1 | AF62: ERROR | AG62: ERROR
B63: November | C63: 0 | D63: 0 | E63: 0 | F63: 0 | N63: APRIL | O63: MARCH | P63: 1 | Q63: 12 | R63: ERROR | S63: ERROR | T63: 1 | U63: 1 | V63: 1 | W63: 1 | X63: 1 | Y63: 1 | Z63: 1 | AA63: 1 | AB63: 1 | AC63: 1 | AD63: 1 | AE63: 1 | AF63: ERROR | AG63: ERROR
B64: December | C64: 0 | D64: 0 | E64: 0 | F64: 0 | N64: APRIL | O64: MARCH | P64: 1 | Q64: 12 | R64: ERROR | S64: ERROR | T64: 1 | U64: 1 | V64: 1 | W64: 1 | X64: 1 | Y64: 1 | Z64: 1 | AA64: 1 | AB64: 1 | AC64: 1 | AD64: 1 | AE64: 1 | AF64: ERROR | AG64: ERROR
B65: January | C65: 0 | D65: 0 | E65: 0 | F65: 0 | N65: APRIL | O65: MARCH | P65: 1 | Q65: 12 | R65: ERROR | S65: ERROR | T65: 1 | U65: 1 | V65: 1 | W65: 1 | X65: 1 | Y65: 1 | Z65: 1 | AA65: 1 | AB65: 1 | AC65: 1 | AD65: 1 | AE65: 1 | AF65: ERROR | AG65: ERROR
B66: February | C66: 0 | D66: 0 | E66: 0 | F66: 0 | N66: APRIL | O66: MARCH | P66: 1 | Q66: 12 | R66: ERROR | S66: ERROR | T66: 1 | U66: 1 | V66: 1 | W66: 1 | X66: 1 | Y66: 1 | Z66: 1 | AA66: 1 | AB66: 1 | AC66: 1 | AD66: 1 | AE66: 1 | AF66: ERROR | AG66: ERROR
B67: March | C67: 0 | D67: 0 | E67: 0 | F67: 0 | N67: APRIL | O67: MARCH | P67: 1 | Q67: 12 | R67: ERROR | S67: ERROR | T67: 1 | U67: 1 | V67: 1 | W67: 1 | X67: 1 | Y67: 1 | Z67: 1 | AA67: 1 | AB67: 1 | AC67: 1 | AD67: 1 | AE67: 1 | AF67: ERROR | AG67: ERROR
N68: APRIL | O68: MARCH | P68: 1 | Q68: 12 | R68: ERROR | S68: ERROR | T68: 1 | U68: 1 | V68: 1 | W68: =IF(AND($P68<=W$13,$Q68>=W$13),1,0) -> 1 | X68: 1 | Y68: 1 | Z68: 1 | AA68: 1 | AB68: 1 | AC68: 1 | AD68: 1 | AE68: 1 | AF68: ERROR | AG68: ERROR
N69: APRIL | O69: MARCH | P69: 1 | Q69: 12 | R69: ERROR | S69: ERROR | T69: =IF(AND($P69<=T$13,$Q69>=T$13),1,0) -> 1 | U69: 1 | V69: 1 | W69: 1 | X69: 1 | Y69: 1 | Z69: 1 | AA69: 1 | AB69: 1 | AC69: 1 | AD69: 1 | AE69: 1 | AF69: ERROR | AG69: ERROR
N70: APRIL | O70: MARCH | P70: 1 | Q70: 12 | R70: ERROR | S70: ERROR | T70: 1 | U70: 1 | V70: 1 | W70: 1 | X70: 1 | Y70: 1 | Z70: 1 | AA70: 1 | AB70: 1 | AC70: 1 | AD70: 1 | AE70: 1 | AF70: ERROR | AG70: ERROR
B71: Total Place Funding | E71: =F37+F44 -> 0 | F71: PAID VIA EFA | N71: APRIL | O71: MARCH | P71: 1 | Q71: 12 | R71: ERROR | S71: ERROR | T71: 1 | U71: 1 | V71: 1 | W71: 1 | X71: 1 | Y71: 1 | Z71: 1 | AA71: 1 | AB71: 1 | AC71: 1 | AD71: 1 | AE71: 1 | AF71: ERROR | AG71: ERROR
B72: Total Element 3 Funding | E72: =IF(ISERROR(SUM(C56:F67)),0,SUM(C56:F67)) -> 0 | N72: APRIL | O72: MARCH | P72: 1 | Q72: 12 | R72: ERROR | S72: ERROR | T72: 1 | U72: 1 | V72: 1 | W72: 1 | X72: 1 | Y72: 1 | Z72: 1 | AA72: 1 | AB72: 1 | AC72: 1 | AD72: 1 | AE72: 1 | AF72: ERROR | AG72: ERROR
B73: Total Resourced Provision Funding (excluding 16-19 formula allocation) | E73: =E71+E72 -> 0 | N73: APRIL | O73: MARCH | P73: 1 | Q73: 12 | R73: ERROR | S73: ERROR | T73: 1 | U73: 1 | V73: 1 | W73: 1 | X73: 1 | Y73: 1 | Z73: 1 | AA73: 1 | AB73: 1 | AC73: 1 | AD73: 1 | AE73: 1 | AF73: ERROR | AG73: ERROR
N74: APRIL | O74: MARCH | P74: 1 | Q74: 12 | R74: ERROR | S74: ERROR | T74: 1 | U74: 1 | V74: 1 | W74: 1 | X74: 1 | Y74: 1 | Z74: 1 | AA74: 1 | AB74: 1 | AC74: 1 | AD74: 1 | AE74: 1 | AF74: ERROR | AG74: ERROR
N75: APRIL | O75: MARCH | P75: 1 | Q75: 12 | R75: ERROR | S75: ERROR | T75: 1 | U75: 1 | V75: 1 | W75: 1 | X75: 1 | Y75: 1 | Z75: 1 | AA75: 1 | AB75: 1 | AC75: 1 | AD75: 1 | AE75: 1 | AF75: ERROR | AG75: ERROR
N76: APRIL | O76: MARCH | P76: 1 | Q76: 12 | R76: ERROR | S76: ERROR | T76: 1 | U76: 1 | V76: 1 | W76: 1 | X76: 1 | Y76: 1 | Z76: 1 | AA76: 1 | AB76: 1 | AC76: 1 | AD76: 1 | AE76: 1 | AF76: ERROR | AG76: ERROR
A77: How your funding rate has been calculated… | N77: APRIL | O77: MARCH | P77: 1 | Q77: 12 | R77: ERROR | S77: ERROR | T77: 1 | U77: 1 | V77: 1 | W77: 1 | X77: 1 | Y77: 1 | Z77: 1 | AA77: 1 | AB77: 1 | AC77: 1 | AD77: 1 | AE77: 1 | AF77: ERROR | AG77: ERROR
E78: Designation 1 | F78: Designation 2 | G78: Explanation | N78: APRIL | O78: MARCH | P78: 1 | Q78: 12 | R78: ERROR | S78: ERROR | T78: 1 | U78: 1 | V78: 1 | W78: 1 | X78: 1 | Y78: 1 | Z78: 1 | AA78: 1 | AB78: 1 | AC78: 1 | AD78: 1 | AE78: 1 | AF78: ERROR | AG78: ERROR
A79: PUPILS AND PLACES | B79: Place numbers 2013/14 | D79: Pre 16 | E79: =IF(ISERROR(VLOOKUP($E$2&"A",'SRP data'!$A$2:$AF$55,4,0)),"",VLOOKUP($E$2&"A",'SRP data'!$A$2:$AF$55,4,0)) ->  | F79: =IF(ISERROR(VLOOKUP($E$2&"B",'SRP data'!$A$2:$AF$55,4,0)),"",VLOOKUP($E$2&"B",'SRP data'!$A$2:$AF$55,4,0)) ->  | G79: These are your place numbers for the Academic year 2013/14. | N79: APRIL | O79: MARCH | P79: =IF(N79="APRIL",1, IF(N79="MAY",2, IF(N79="JUNE",3, IF(N79="JULY",4, IF(N79="AUGUST",5, IF(N79="SEPTEMBER",6, IF(N79="OCTOBER",7, IF(N79="NOVEMBER",8, IF(N79="DECEMBER",9, IF(N79="JANUARY",10, IF(N79="FEBRUARY",11, IF(N79="MARCH",12,"ERROR")))))))))))) -> 1 | Q79: =IF(O79="APRIL",1, IF(O79="MAY",2, IF(O79="JUNE",3, IF(O79="JULY",4, IF(O79="AUGUST",5, IF(O79="SEPTEMBER",6, IF(O79="OCTOBER",7, IF(O79="NOVEMBER",8, IF(O79="DECEMBER",9, IF(O79="JANUARY",10, IF(O79="FEBRUARY",11, IF(O79="MARCH",12,"ERROR")))))))))))) -> 12 | R79: =IF(L79="PRE-16","PRE-16",IF(L79="POST-16","POST-16","ERROR")) -> ERROR | S79: =IF(M79="PRE-16","PRE-16",IF(M79="POST-16","POST-16","ERROR")) -> ERROR | T79: 1 | U79: 1 | V79: 1 | W79: 1 | X79: =IF(AND($P79<=W$13,$Q79>=W$13),1,0) -> 1 | Y79: 1 | Z79: 1 | AA79: 1 | AB79: 1 | AC79: 1 | AD79: 1 | AE79: 1 | AF79: =$I79&R79 -> ERROR | AG79: =$I79&S79 -> ERROR
D80: Post 16 | E80: =IF(ISERROR(VLOOKUP($E$2&"A",'SRP data'!$A$2:$AF$55,5,0)),"",VLOOKUP($E$2&"A",'SRP data'!$A$2:$AF$55,5,0)) ->  | F80: =IF(ISERROR(VLOOKUP($E$2&"B",'SRP data'!$A$2:$AF$55,5,0)),"",VLOOKUP($E$2&"B",'SRP data'!$A$2:$AF$55,5,0)) ->  | N80: APRIL | O80: MARCH | P80: 1 | Q80: 12 | R80: ERROR | S80: ERROR | T80: 1 | U80: 1 | V80: 1 | W80: 1 | X80: 1 | Y80: 1 | Z80: 1 | AA80: 1 | AB80: 1 | AC80: 1 | AD80: 1 | AE80: 1 | AF80: ERROR | AG80: ERROR
B81: Place numbers 2014/15 | D81: Pre 16 | E81: =IF(ISERROR(VLOOKUP($E$2&"A",'SRP data'!$A$2:$AF$55,6,0)),"",VLOOKUP($E$2&"A",'SRP data'!$A$2:$AF$55,6,0)) ->  | F81: =IF(ISERROR(VLOOKUP($E$2&"B",'SRP data'!$A$2:$AF$55,6,0)),"",VLOOKUP($E$2&"B",'SRP data'!$A$2:$AF$55,6,0)) ->  | G81: These are your place numbers for the Academic year 2014/15. | N81: APRIL | O81: MARCH | P81: 1 | Q81: 12 | R81: ERROR | S81: ERROR | T81: 1 | U81: 1 | V81: 1 | W81: 1 | X81: 1 | Y81: 1 | Z81: 1 | AA81: 1 | AB81: 1 | AC81: 1 | AD81: 1 | AE81: 1 | AF81: ERROR | AG81: ERROR
D82: Post 16 | E82: =IF(ISERROR(VLOOKUP($E$2&"A",'SRP data'!$A$2:$AF$55,7,0)),"",VLOOKUP($E$2&"A",'SRP data'!$A$2:$AF$55,7,0)) ->  | F82: =IF(ISERROR(VLOOKUP($E$2&"B",'SRP data'!$A$2:$AF$55,7,0)),"",VLOOKUP($E$2&"B",'SRP data'!$A$2:$AF$55,7,0)) ->  | N82: APRIL | O82: MARCH | P82: 1 | Q82: 12 | R82: ERROR | S82: ERROR | T82: 1 | U82: 1 | V82: 1 | W82: 1 | X82: 1 | Y82: 1 | Z82: 1 | AA82: 1 | AB82: 1 | AC82: 1 | AD82: 1 | AE82: 1 | AF82: ERROR | AG82: ERROR
B83: Weighted average places in 2014/15 | D83: Pre 16 | E83: =IF(ISERROR(VLOOKUP($E$2&"A",'SRP data'!$A$2:$AF$55,8,0)),"",VLOOKUP($E$2&"A",'SRP data'!$A$2:$AF$55,8,0)) ->  | F83: =IF(ISERROR(VLOOKUP($E$2&"B",'SRP data'!$A$2:$AF$55,8,0)),"",VLOOKUP($E$2&"B",'SRP data'!$A$2:$AF$55,8,0)) ->  | G83: This is your average number of places for the 2014/15 financial year. | N83: APRIL | O83: MARCH | P83: 1 | Q83: 12 | R83: ERROR | S83: ERROR | T83: 1 | U83: 1 | V83: 1 | W83: 1 | X83: 1 | Y83: 1 | Z83: 1 | AA83: 1 | AB83: 1 | AC83: 1 | AD83: 1 | AE83: 1 | AF83: ERROR | AG83: ERROR
D84: Post 16 | E84: =IF(ISERROR(VLOOKUP($E$2&"A",'SRP data'!$A$2:$AF$55,9,0)),"",VLOOKUP($E$2&"A",'SRP data'!$A$2:$AF$55,9,0)) ->  | F84: =IF(ISERROR(VLOOKUP($E$2&"B",'SRP data'!$A$2:$AF$55,9,0)),"",VLOOKUP($E$2&"B",'SRP data'!$A$2:$AF$55,9,0)) ->  | N84: APRIL | O84: MARCH | P84: 1 | Q84: 12 | R84: ERROR | S84: ERROR | T84: 1 | U84: 1 | V84: 1 | W84: 1 | X84: 1 | Y84: 1 | Z84: 1 | AA84: 1 | AB84: 1 | AC84: 1 | AD84: 1 | AE84: 1 | AF84: ERROR | AG84: ERROR
B85: Places as at October 13 census | D85: Primary | E85: =IF(ISERROR(VLOOKUP($E$2&"A",'SRP data'!$A$2:$AF$55,10,0)),"",VLOOKUP($E$2&"A",'SRP data'!$A$2:$AF$55,10,0)) ->  | F85: =IF(ISERROR(VLOOKUP($E$2&"B",'SRP data'!$A$2:$AF$55,10,0)),"",VLOOKUP($E$2&"B",'SRP data'!$A$2:$AF$55,10,0)) ->  | G85: This is the number the EFA deducts from your pupil count in the Revenue formula. | N85: APRIL | O85: MARCH | P85: 1 | Q85: 12 | R85: ERROR | S85: ERROR | T85: 1 | U85: 1 | V85: 1 | W85: 1 | X85: 1 | Y85: 1 | Z85: 1 | AA85: 1 | AB85: 1 | AC85: 1 | AD85: 1 | AE85: 1 | AF85: ERROR | AG85: ERROR
D86: KS3 | E86: =IF(ISERROR(VLOOKUP($E$2&"A",'SRP data'!$A$2:$AF$55,11,0)),"",VLOOKUP($E$2&"A",'SRP data'!$A$2:$AF$55,11,0)) ->  | F86: =IF(ISERROR(VLOOKUP($E$2&"B",'SRP data'!$A$2:$AF$55,11,0)),"",VLOOKUP($E$2&"B",'SRP data'!$A$2:$AF$55,11,0)) ->  | N86: APRIL | O86: MARCH | P86: 1 | Q86: 12 | R86: ERROR | S86: ERROR | T86: 1 | U86: 1 | V86: 1 | W86: 1 | X86: 1 | Y86: 1 | Z86: 1 | AA86: 1 | AB86: 1 | AC86: 1 | AD86: 1 | AE86: 1 | AF86: ERROR | AG86: ERROR
D87: KS4 | E87: =IF(ISERROR(VLOOKUP($E$2&"A",'SRP data'!$A$2:$AF$55,12,0)),"",VLOOKUP($E$2&"A",'SRP data'!$A$2:$AF$55,12,0)) ->  | F87: =IF(ISERROR(VLOOKUP($E$2&"B",'SRP data'!$A$2:$AF$55,12,0)),"",VLOOKUP($E$2&"B",'SRP data'!$A$2:$AF$55,12,0)) ->  | N87: APRIL | O87: MARCH | P87: 1 | Q87: 12 | R87: ERROR | S87: ERROR | T87: 1 | U87: 1 | V87: 1 | W87: 1 | X87: 1 | Y87: 1 | Z87: 1 | AA87: 1 | AB87: 1 | AC87: 1 | AD87: 1 | AE87: 1 | AF87: ERROR | AG87: ERROR
B88: Pupils as at October 13 census | D88: Primary | E88: =IF(ISERROR(VLOOKUP($E$2&"A",'SRP data'!$A$2:$AF$55,13,0)),"",VLOOKUP($E$2&"A",'SRP data'!$A$2:$AF$55,13,0)) ->  | F88: =IF(ISERROR(VLOOKUP($E$2&"B",'SRP data'!$A$2:$AF$55,13,0)),"",VLOOKUP($E$2&"B",'SRP data'!$A$2:$AF$55,13,0)) ->  | G88: This is the actual number of pupils in the SRP on the census date. | N88: APRIL | O88: MARCH | P88: 1 | Q88: 12 | R88: ERROR | S88: ERROR | T88: 1 | U88: 1 | V88: 1 | W88: 1 | X88: 1 | Y88: 1 | Z88: 1 | AA88: 1 | AB88: 1 | AC88: 1 | AD88: 1 | AE88: 1 | AF88: ERROR | AG88: ERROR
D89: KS3 | E89: =IF(ISERROR(VLOOKUP($E$2&"A",'SRP data'!$A$2:$AF$55,14,0)),"",VLOOKUP($E$2&"A",'SRP data'!$A$2:$AF$55,14,0)) ->  | F89: =IF(ISERROR(VLOOKUP($E$2&"B",'SRP data'!$A$2:$AF$55,14,0)),"",VLOOKUP($E$2&"B",'SRP data'!$A$2:$AF$55,14,0)) ->  | N89: APRIL | O89: MARCH | P89: 1 | Q89: 12 | R89: ERROR | S89: ERROR | T89: 1 | U89: 1 | V89: 1 | W89: 1 | X89: 1 | Y89: 1 | Z89: 1 | AA89: 1 | AB89: 1 | AC89: 1 | AD89: 1 | AE89: 1 | AF89: ERROR | AG89: ERROR
D90: KS4 | E90: =IF(ISERROR(VLOOKUP($E$2&"A",'SRP data'!$A$2:$AF$55,15,0)),"",VLOOKUP($E$2&"A",'SRP data'!$A$2:$AF$55,15,0)) ->  | F90: =IF(ISERROR(VLOOKUP($E$2&"B",'SRP data'!$A$2:$AF$55,15,0)),"",VLOOKUP($E$2&"B",'SRP data'!$A$2:$AF$55,15,0)) ->  | N90: APRIL | O90: MARCH | P90: 1 | Q90: 12 | R90: ERROR | S90: ERROR | T90: 1 | U90: 1 | V90: 1 | W90: 1 | X90: 1 | Y90: 1 | Z90: 1 | AA90: 1 | AB90: 1 | AC90: 1 | AD90: 1 | AE90: 1 | AF90: ERROR | AG90: ERROR
B91: Excess pupil deductions as at October 13 census | D91: Pre 16 | E91: =IF(ISERROR(VLOOKUP($E$2&"A",'SRP data'!$A$2:$AF$55,16,0)),"",VLOOKUP($E$2&"A",'SRP data'!$A$2:$AF$55,16,0)) ->  | F91: =IF(ISERROR(VLOOKUP($E$2&"B",'SRP data'!$A$2:$AF$55,16,0)),"",VLOOKUP($E$2&"B",'SRP data'!$A$2:$AF$55,16,0)) ->  | G91: This is the difference between the number of pupils now included in the Revenue formula and the number of pupils in the school but not the SRP on census day. | N91: APRIL | O91: MARCH | P91: 1 | Q91: 12 | R91: ERROR | S91: ERROR | T91: 1 | U91: 1 | V91: 1 | W91: 1 | X91: 1 | Y91: =IF(AND($P91<=Y$13,$Q91>=Y$13),1,0) -> 1 | Z91: 1 | AA91: 1 | AB91: 1 | AC91: 1 | AD91: 1 | AE91: 1 | AF91: ERROR | AG91: ERROR
D92: KS3 | E92: =IF(ISERROR(VLOOKUP($E$2&"A",'SRP data'!$A$2:$AF$55,17,0)),"",VLOOKUP($E$2&"A",'SRP data'!$A$2:$AF$55,17,0)) ->  | F92: =IF(ISERROR(VLOOKUP($E$2&"B",'SRP data'!$A$2:$AF$55,17,0)),"",VLOOKUP($E$2&"B",'SRP data'!$A$2:$AF$55,17,0)) ->  | N92: APRIL | O92: MARCH | P92: 1 | Q92: 12 | R92: ERROR | S92: ERROR | T92: 1 | U92: 1 | V92: 1 | W92: 1 | X92: 1 | Y92: 1 | Z92: 1 | AA92: 1 | AB92: 1 | AC92: 1 | AD92: 1 | AE92: 1 | AF92: ERROR | AG92: ERROR
D93: KS4 | E93: =IF(ISERROR(VLOOKUP($E$2&"A",'SRP data'!$A$2:$AF$55,18,0)),"",VLOOKUP($E$2&"A",'SRP data'!$A$2:$AF$55,18,0)) ->  | F93: =IF(ISERROR(VLOOKUP($E$2&"B",'SRP data'!$A$2:$AF$55,18,0)),"",VLOOKUP($E$2&"B",'SRP data'!$A$2:$AF$55,18,0)) ->  | N93: APRIL | O93: MARCH | P93: 1 | Q93: 12 | R93: ERROR | S93: ERROR | T93: 1 | U93: 1 | V93: 1 | W93: 1 | X93: 1 | Y93: 1 | Z93: 1 | AA93: 1 | AB93: 1 | AC93: 1 | AD93: 1 | AE93: 1 | AF93: ERROR | AG93: ERROR
B94: 2014/15 Notional Formula Budget Numbers | D94: Primary | E94: =IF(ISERROR(VLOOKUP($E$2&"A",'SRP data'!$A$2:$AF$55,19,0)),"",VLOOKUP($E$2&"A",'SRP data'!$A$2:$AF$55,19,0)) ->  | F94: =IF(ISERROR(VLOOKUP($E$2&"B",'SRP data'!$A$2:$AF$55,19,0)),"",VLOOKUP($E$2&"B",'SRP data'!$A$2:$AF$55,19,0)) ->  | G94: The SRP Budget will include the formula funding for this number of pupils. It is the average number of places for the financial year plus the excess pupil deductions. | N94: APRIL | O94: MARCH | P94: 1 | Q94: 12 | R94: ERROR | S94: ERROR | T94: 1 | U94: 1 | V94: 1 | W94: 1 | X94: 1 | Y94: 1 | Z94: 1 | AA94: 1 | AB94: 1 | AC94: 1 | AD94: 1 | AE94: 1 | AF94: ERROR | AG94: ERROR
D95: KS3 | E95: =IF(ISERROR(VLOOKUP($E$2&"A",'SRP data'!$A$2:$AF$55,20,0)),"",VLOOKUP($E$2&"A",'SRP data'!$A$2:$AF$55,20,0)) ->  | F95: =IF(ISERROR(VLOOKUP($E$2&"B",'SRP data'!$A$2:$AF$55,20,0)),"",VLOOKUP($E$2&"B",'SRP data'!$A$2:$AF$55,20,0)) ->  | N95: APRIL | O95: MARCH | P95: 1 | Q95: 12 | R95: ERROR | S95: ERROR | T95: 1 | U95: 1 | V95: 1 | W95: 1 | X95: 1 | Y95: 1 | Z95: 1 | AA95: 1 | AB95: 1 | AC95: 1 | AD95: 1 | AE95: 1 | AF95: ERROR | AG95: ERROR
D96: KS4 | E96: =IF(ISERROR(VLOOKUP($E$2&"A",'SRP data'!$A$2:$AF$55,21,0)),"",VLOOKUP($E$2&"A",'SRP data'!$A$2:$AF$55,21,0)) ->  | F96: =IF(ISERROR(VLOOKUP($E$2&"B",'SRP data'!$A$2:$AF$55,21,0)),"",VLOOKUP($E$2&"B",'SRP data'!$A$2:$AF$55,21,0)) ->  | N96: APRIL | O96: MARCH | P96: 1 | Q96: 12 | R96: ERROR | S96: ERROR | T96: 1 | U96: 1 | V96: 1 | W96: 1 | X96: 1 | Y96: 1 | Z96: 1 | AA96: 1 | AB96: 1 | AC96: 1 | AD96: 1 | AE96: 1 | AF96: ERROR | AG96: ERROR
D97: Post 16 | E97: =IF(ISERROR(VLOOKUP($E$2&"A",'SRP data'!$A$2:$AF$55,22,0)),"",VLOOKUP($E$2&"A",'SRP data'!$A$2:$AF$55,22,0)) ->  | F97: =IF(ISERROR(VLOOKUP($E$2&"B",'SRP data'!$A$2:$AF$55,22,0)),"",VLOOKUP($E$2&"B",'SRP data'!$A$2:$AF$55,22,0)) ->  | N97: APRIL | O97: MARCH | P97: 1 | Q97: 12 | R97: ERROR | S97: ERROR | T97: 1 | U97: 1 | V97: 1 | W97: 1 | X97: 1 | Y97: 1 | Z97: 1 | AA97: 1 | AB97: 1 | AC97: 1 | AD97: 1 | AE97: 1 | AF97: ERROR | AG97: ERROR
B98: Actual October 13 Pupils | D98: ASD | E98: =IF(ISERROR(VLOOKUP($E$2&"A",'SRP data'!$A$2:$AF$55,23,0)),"",VLOOKUP($E$2&"A",'SRP data'!$A$2:$AF$55,23,0)) ->  | F98: =IF(ISERROR(VLOOKUP($E$2&"B",'SRP data'!$A$2:$AF$55,23,0)),"",VLOOKUP($E$2&"B",'SRP data'!$A$2:$AF$55,23,0)) ->  | G98: These are your actual pupils in October and this need type mix will form the basis of your rate. | N98: APRIL | O98: MARCH | P98: 1 | Q98: 12 | R98: ERROR | S98: ERROR | T98: 1 | U98: 1 | V98: 1 | W98: 1 | X98: 1 | Y98: 1 | Z98: 1 | AA98: 1 | AB98: 1 | AC98: 1 | AD98: 1 | AE98: 1 | AF98: ERROR | AG98: ERROR
D99: PD, HI & VI | E99: =IF(ISERROR(VLOOKUP($E$2&"A",'SRP data'!$A$2:$AF$55,24,0)),"",VLOOKUP($E$2&"A",'SRP data'!$A$2:$AF$55,24,0)) ->  | F99: =IF(ISERROR(VLOOKUP($E$2&"B",'SRP data'!$A$2:$AF$55,24,0)),"",VLOOKUP($E$2&"B",'SRP data'!$A$2:$AF$55,24,0)) ->  | N99: APRIL | O99: MARCH | P99: 1 | Q99: 12 | R99: ERROR | S99: ERROR | T99: 1 | U99: 1 | V99: 1 | W99: 1 | X99: 1 | Y99: 1 | Z99: 1 | AA99: 1 | AB99: 1 | AC99: 1 | AD99: 1 | AE99: 1 | AF99: ERROR | AG99: ERROR
D100: SLCN & SPLD | E100: =IF(ISERROR(VLOOKUP($E$2&"A",'SRP data'!$A$2:$AF$55,25,0)),"",VLOOKUP($E$2&"A",'SRP data'!$A$2:$AF$55,25,0)) ->  | F100: =IF(ISERROR(VLOOKUP($E$2&"B",'SRP data'!$A$2:$AF$55,25,0)),"",VLOOKUP($E$2&"B",'SRP data'!$A$2:$AF$55,25,0)) ->  | N100: APRIL | O100: MARCH | P100: 1 | Q100: 12 | R100: ERROR | S100: ERROR | T100: 1 | U100: 1 | V100: 1 | W100: 1 | X100: 1 | Y100: 1 | Z100: 1 | AA100: 1 | AB100: 1 | AC100: 1 | AD100: 1 | AE100: 1 | AF100: ERROR | AG100: ERROR
D101: SLD | E101: =IF(ISERROR(VLOOKUP($E$2&"A",'SRP data'!$A$2:$AF$55,26,0)),"",VLOOKUP($E$2&"A",'SRP data'!$A$2:$AF$55,26,0)) ->  | F101: =IF(ISERROR(VLOOKUP($E$2&"B",'SRP data'!$A$2:$AF$55,26,0)),"",VLOOKUP($E$2&"B",'SRP data'!$A$2:$AF$55,26,0)) ->  | N101: APRIL | O101: MARCH | P101: 1 | Q101: 12 | R101: ERROR | S101: ERROR | T101: 1 | U101: 1 | V101: 1 | W101: 1 | X101: 1 | Y101: 1 | Z101: 1 | AA101: 1 | AB101: 1 | AC101: 1 | AD101: 1 | AE101: 1 | AF101: ERROR | AG101: ERROR
A102: IAR COMPONENT | B102: IAR Cash for October 13 Pupils | D102: ASD | E102: =IF(ISERROR(VLOOKUP($E$2&"A",'SRP data'!$A$2:$AF$55,28,0)),"",VLOOKUP($E$2&"A",'SRP data'!$A$2:$AF$55,28,0)) ->  | F102: =IF(ISERROR(VLOOKUP($E$2&"B",'SRP data'!$A$2:$AF$55,28,0)),"",VLOOKUP($E$2&"B",'SRP data'!$A$2:$AF$55,28,0)) ->  | G102: This is the cash value of the need types above based on the old IAR rates. | N102: APRIL | O102: MARCH | P102: 1 | Q102: 12 | R102: ERROR | S102: ERROR | T102: 1 | U102: 1 | V102: 1 | W102: 1 | X102: 1 | Y102: 1 | Z102: 1 | AA102: 1 | AB102: 1 | AC102: 1 | AD102: 1 | AE102: 1 | AF102: ERROR | AG102: ERROR
D103: PD, HI & VI | E103: =IF(ISERROR(VLOOKUP($E$2&"A",'SRP data'!$A$2:$AF$55,29,0)),"",VLOOKUP($E$2&"A",'SRP data'!$A$2:$AF$55,29,0)) ->  | F103: =IF(ISERROR(VLOOKUP($E$2&"B",'SRP data'!$A$2:$AF$55,29,0)),"",VLOOKUP($E$2&"B",'SRP data'!$A$2:$AF$55,29,0)) ->  | N103: APRIL | O103: MARCH | P103: 1 | Q103: 12 | R103: ERROR | S103: ERROR | T103: 1 | U103: 1 | V103: 1 | W103: 1 | X103: 1 | Y103: 1 | Z103: 1 | AA103: 1 | AB103: 1 | AC103: 1 | AD103: 1 | AE103: 1 | AF103: ERROR | AG103: ERROR
D104: SLCN & SPLD | E104: =IF(ISERROR(VLOOKUP($E$2&"A",'SRP data'!$A$2:$AF$55,30,0)),"",VLOOKUP($E$2&"A",'SRP data'!$A$2:$AF$55,30,0)) ->  | F104: =IF(ISERROR(VLOOKUP($E$2&"B",'SRP data'!$A$2:$AF$55,30,0)),"",VLOOKUP($E$2&"B",'SRP data'!$A$2:$AF$55,30,0)) ->  | N104: APRIL | O104: MARCH | P104: 1 | Q104: 12 | R104: ERROR | S104: ERROR | T104: 1 | U104: 1 | V104: 1 | W104: 1 | X104: 1 | Y104: 1 | Z104: 1 | AA104: 1 | AB104: 1 | AC104: 1 | AD104: 1 | AE104: 1 | AF104: ERROR | AG104: ERROR
D105: SLD | E105: =IF(ISERROR(VLOOKUP($E$2&"A",'SRP data'!$A$2:$AF$55,31,0)),"",VLOOKUP($E$2&"A",'SRP data'!$A$2:$AF$55,31,0)) ->  | F105: =IF(ISERROR(VLOOKUP($E$2&"B",'SRP data'!$A$2:$AF$55,31,0)),"",VLOOKUP($E$2&"B",'SRP data'!$A$2:$AF$55,31,0)) ->  | N105: APRIL | O105: MARCH | P105: 1 | Q105: 12 | R105: ERROR | S105: ERROR | T105: 1 | U105: 1 | V105: 1 | W105: 1 | X105: 1 | Y105: 1 | Z105: 1 | AA105: 1 | AB105: 1 | AC105: 1 | AD105: 1 | AE105: 1 | AF105: ERROR | AG105: ERROR
B106: Weighted average IAR per pupil | E106: =IF(ISERROR(SUM(E102:E105)/SUM(E98:E101)),0,SUM(E102:E105)/SUM(E98:E101)) -> 0 | F106: =IF(ISERROR(SUM(F102:F105)/SUM(F98:F101)),"",SUM(F102:F105)/SUM(F98:F101)) ->  | G106: This is the average IAR cash per pupil and is the first part of your rate. | N106: APRIL | O106: MARCH | P106: 1 | Q106: 12 | R106: ERROR | S106: ERROR | T106: 1 | U106: 1 | V106: 1 | W106: 1 | X106: 1 | Y106: 1 | Z106: 1 | AA106: 1 | AB106: 1 | AC106: 1 | AD106: 1 | AE106: 1 | AF106: ERROR | AG106: ERROR
A107: NOTIONAL FORMULA BUDGET CALCULATION | D107: Primary AWPU | E107: =IF(ISERROR(VLOOKUP($E$2&"A",'SRP data'!$A$2:$BP$55,34,0)),"",VLOOKUP($E$2&"A",'SRP data'!$A$2:$BP$55,34,0)) ->  | F107: =IF(ISERROR(VLOOKUP($E$2&"B",'SRP data'!$A$2:$BP$55,34,0)),"",VLOOKUP($E$2&"B",'SRP data'!$A$2:$BP$55,34,0)) ->  | G107: This section calculates how much funding would have been included in your revenue funding formula if it had included a number of pupils equal to the number of places in the SRP and the excess deductions. This figure is then divided by the average number of places in the SRP during the financial year to reach the second part of your rate. | N107: APRIL | O107: MARCH | P107: 1 | Q107: 12 | R107: ERROR | S107: ERROR | T107: 1 | U107: 1 | V107: 1 | W107: 1 | X107: 1 | Y107: 1 | Z107: 1 | AA107: 1 | AB107: 1 | AC107: 1 | AD107: 1 | AE107: 1 | AF107: ERROR | AG107: ERROR
D108: KS3 AWPU | E108: =IF(ISERROR(VLOOKUP($E$2&"A",'SRP data'!$A$2:$BP$55,35,0)),"",VLOOKUP($E$2&"A",'SRP data'!$A$2:$BP$55,35,0)) ->  | F108: =IF(ISERROR(VLOOKUP($E$2&"B",'SRP data'!$A$2:$BP$55,35,0)),"",VLOOKUP($E$2&"B",'SRP data'!$A$2:$BP$55,35,0)) ->  | N108: APRIL | O108: MARCH | P108: 1 | Q108: 12 | R108: ERROR | S108: ERROR | T108: 1 | U108: 1 | V108: 1 | W108: 1 | X108: 1 | Y108: 1 | Z108: 1 | AA108: 1 | AB108: 1 | AC108: 1 | AD108: 1 | AE108: 1 | AF108: ERROR | AG108: ERROR
D109: KS4 AWPU | E109: =IF(ISERROR(VLOOKUP($E$2&"A",'SRP data'!$A$2:$BP$55,36,0)),"",VLOOKUP($E$2&"A",'SRP data'!$A$2:$BP$55,36,0)) ->  | F109: =IF(ISERROR(VLOOKUP($E$2&"B",'SRP data'!$A$2:$BP$55,36,0)),"",VLOOKUP($E$2&"B",'SRP data'!$A$2:$BP$55,36,0)) ->  | N109: APRIL | O109: MARCH | P109: 1 | Q109: 12 | R109: ERROR | S109: ERROR | T109: 1 | U109: 1 | V109: 1 | W109: 1 | X109: 1 | Y109: 1 | Z109: 1 | AA109: 1 | AB109: 1 | AC109: 1 | AD109: 1 | AE109: 1 | AF109: ERROR | AG109: ERROR
D110: FSM% | E110: =IF(ISERROR(VLOOKUP($E$2&"A",'SRP data'!$A$2:$BP$55,37,0)),"",VLOOKUP($E$2&"A",'SRP data'!$A$2:$BP$55,37,0)) ->  | F110: =IF(ISERROR(VLOOKUP($E$2&"B",'SRP data'!$A$2:$BP$55,37,0)),"",VLOOKUP($E$2&"B",'SRP data'!$A$2:$BP$55,37,0)) ->  | N110: APRIL | O110: MARCH | P110: 1 | Q110: 12 | R110: ERROR | S110: ERROR | T110: 1 | U110: 1 | V110: 1 | W110: 1 | X110: 1 | Y110: 1 | Z110: 1 | AA110: 1 | AB110: 1 | AC110: 1 | AD110: 1 | AE110: 1 | AF110: ERROR | AG110: ERROR
D111: FSM PUPILS | E111: =IF(ISERROR(VLOOKUP($E$2&"A",'SRP data'!$A$2:$BP$55,38,0)),"",VLOOKUP($E$2&"A",'SRP data'!$A$2:$BP$55,38,0)) ->  | F111: =IF(ISERROR(VLOOKUP($E$2&"B",'SRP data'!$A$2:$BP$55,38,0)),"",VLOOKUP($E$2&"B",'SRP data'!$A$2:$BP$55,38,0)) ->  | N111: APRIL | O111: MARCH | P111: 1 | Q111: 12 | R111: ERROR | S111: ERROR | T111: 1 | U111: 1 | V111: 1 | W111: 1 | X111: 1 | Y111: 1 | Z111: 1 | AA111: 1 | AB111: 1 | AC111: 1 | AD111: 1 | AE111: 1 | AF111: ERROR | AG111: ERROR
D112: FSM CASH | E112: =IF(ISERROR(VLOOKUP($E$2&"A",'SRP data'!$A$2:$BP$55,39,0)),"",VLOOKUP($E$2&"A",'SRP data'!$A$2:$BP$55,39,0)) ->  | F112: =IF(ISERROR(VLOOKUP($E$2&"B",'SRP data'!$A$2:$BP$55,39,0)),"",VLOOKUP($E$2&"B",'SRP data'!$A$2:$BP$55,39,0)) ->  | N112: APRIL | O112: MARCH | P112: 1 | Q112: 12 | R112: ERROR | S112: ERROR | T112: 1 | U112: 1 | V112: 1 | W112: 1 | X112: 1 | Y112: 1 | Z112: 1 | AA112: 1 | AB112: 1 | AC112: 1 | AD112: 1 | AE112: 1 | AF112: ERROR | AG112: ERROR
D113: IDACI % 1 | E113: =IF(ISERROR(VLOOKUP($E$2&"A",'SRP data'!$A$2:$BP$55,40,0)),"",VLOOKUP($E$2&"A",'SRP data'!$A$2:$BP$55,40,0)) ->  | F113: =IF(ISERROR(VLOOKUP($E$2&"B",'SRP data'!$A$2:$BP$55,40,0)),"",VLOOKUP($E$2&"B",'SRP data'!$A$2:$BP$55,40,0)) ->  | N113: APRIL | O113: MARCH | P113: 1 | Q113: 12 | R113: ERROR | S113: ERROR | T113: 1 | U113: 1 | V113: 1 | W113: 1 | X113: 1 | Y113: 1 | Z113: 1 | AA113: 1 | AB113: 1 | AC113: 1 | AD113: 1 | AE113: 1 | AF113: ERROR | AG113: ERROR
D114: IDACI Pupils 1 | E114: =IF(ISERROR(VLOOKUP($E$2&"A",'SRP data'!$A$2:$BP$55,41,0)),"",VLOOKUP($E$2&"A",'SRP data'!$A$2:$BP$55,41,0)) ->  | F114: =IF(ISERROR(VLOOKUP($E$2&"B",'SRP data'!$A$2:$BP$55,41,0)),"",VLOOKUP($E$2&"B",'SRP data'!$A$2:$BP$55,41,0)) ->  | N114: APRIL | O114: MARCH | P114: 1 | Q114: 12 | R114: ERROR | S114: ERROR | T114: 1 | U114: 1 | V114: 1 | W114: 1 | X114: 1 | Y114: 1 | Z114: 1 | AA114: =IF(AND($P114<=AA$13,$Q114>=AA$13),1,0) -> 1 | AB114: 1 | AC114: 1 | AD114: 1 | AE114: 1 | AF114: ERROR | AG114: ERROR
D115: IDACI Cash 1 | E115: =IF(ISERROR(VLOOKUP($E$2&"A",'SRP data'!$A$2:$BP$55,42,0)),"",VLOOKUP($E$2&"A",'SRP data'!$A$2:$BP$55,42,0)) ->  | F115: =IF(ISERROR(VLOOKUP($E$2&"B",'SRP data'!$A$2:$BP$55,42,0)),"",VLOOKUP($E$2&"B",'SRP data'!$A$2:$BP$55,42,0)) ->  | N115: APRIL | O115: MARCH | P115: 1 | Q115: 12 | R115: ERROR | S115: ERROR | T115: 1 | U115: 1 | V115: 1 | W115: 1 | X115: 1 | Y115: 1 | Z115: 1 | AA115: 1 | AB115: 1 | AC115: 1 | AD115: 1 | AE115: 1 | AF115: ERROR | AG115: ERROR
D116: IDACI % 2 | E116: =IF(ISERROR(VLOOKUP($E$2&"A",'SRP data'!$A$2:$BP$55,43,0)),"",VLOOKUP($E$2&"A",'SRP data'!$A$2:$BP$55,43,0)) ->  | F116: =IF(ISERROR(VLOOKUP($E$2&"B",'SRP data'!$A$2:$BP$55,43,0)),"",VLOOKUP($E$2&"B",'SRP data'!$A$2:$BP$55,43,0)) ->  | N116: APRIL | O116: MARCH | P116: 1 | Q116: 12 | R116: ERROR | S116: ERROR | T116: 1 | U116: 1 | V116: 1 | W116: 1 | X116: 1 | Y116: 1 | Z116: 1 | AA116: 1 | AB116: 1 | AC116: 1 | AD116: 1 | AE116: 1 | AF116: ERROR | AG116: ERROR
D117: IDACI Pupils 2 | E117: =IF(ISERROR(VLOOKUP($E$2&"A",'SRP data'!$A$2:$BP$55,44,0)),"",VLOOKUP($E$2&"A",'SRP data'!$A$2:$BP$55,44,0)) ->  | F117: =IF(ISERROR(VLOOKUP($E$2&"B",'SRP data'!$A$2:$BP$55,44,0)),"",VLOOKUP($E$2&"B",'SRP data'!$A$2:$BP$55,44,0)) ->  | N117: APRIL | O117: MARCH | P117: 1 | Q117: 12 | R117: ERROR | S117: ERROR | T117: 1 | U117: 1 | V117: 1 | W117: 1 | X117: 1 | Y117: 1 | Z117: 1 | AA117: 1 | AB117: 1 | AC117: 1 | AD117: 1 | AE117: 1 | AF117: ERROR | AG117: ERROR
D118: IDACI Cash 2 | E118: =IF(ISERROR(VLOOKUP($E$2&"A",'SRP data'!$A$2:$BP$55,45,0)),"",VLOOKUP($E$2&"A",'SRP data'!$A$2:$BP$55,45,0)) ->  | F118: =IF(ISERROR(VLOOKUP($E$2&"B",'SRP data'!$A$2:$BP$55,45,0)),"",VLOOKUP($E$2&"B",'SRP data'!$A$2:$BP$55,45,0)) ->  | N118: APRIL | O118: MARCH | P118: 1 | Q118: 12 | R118: ERROR | S118: ERROR | T118: 1 | U118: 1 | V118: 1 | W118: 1 | X118: 1 | Y118: 1 | Z118: 1 | AA118: 1 | AB118: 1 | AC118: 1 | AD118: 1 | AE118: 1 | AF118: ERROR | AG118: ERROR
D119: IDACI % 3 | E119: =IF(ISERROR(VLOOKUP($E$2&"A",'SRP data'!$A$2:$BP$55,46,0)),"",VLOOKUP($E$2&"A",'SRP data'!$A$2:$BP$55,46,0)) ->  | F119: =IF(ISERROR(VLOOKUP($E$2&"B",'SRP data'!$A$2:$BP$55,46,0)),"",VLOOKUP($E$2&"B",'SRP data'!$A$2:$BP$55,46,0)) ->  | N119: APRIL | O119: MARCH | P119: 1 | Q119: 12 | R119: ERROR | S119: ERROR | T119: 1 | U119: 1 | V119: 1 | W119: 1 | X119: 1 | Y119: 1 | Z119: 1 | AA119: 1 | AB119: 1 | AC119: 1 | AD119: 1 | AE119: 1 | AF119: ERROR | AG119: ERROR
D120: IDACI Pupils 3 | E120: =IF(ISERROR(VLOOKUP($E$2&"A",'SRP data'!$A$2:$BP$55,47,0)),"",VLOOKUP($E$2&"A",'SRP data'!$A$2:$BP$55,47,0)) ->  | F120: =IF(ISERROR(VLOOKUP($E$2&"B",'SRP data'!$A$2:$BP$55,47,0)),"",VLOOKUP($E$2&"B",'SRP data'!$A$2:$BP$55,47,0)) ->  | N120: APRIL | O120: MARCH | P120: 1 | Q120: 12 | R120: ERROR | S120: ERROR | T120: 1 | U120: 1 | V120: 1 | W120: 1 | X120: 1 | Y120: 1 | Z120: 1 | AA120: 1 | AB120: 1 | AC120: 1 | AD120: 1 | AE120: 1 | AF120: ERROR | AG120: ERROR
D121: IDACI Cash 3 | E121: =IF(ISERROR(VLOOKUP($E$2&"A",'SRP data'!$A$2:$BP$55,48,0)),"",VLOOKUP($E$2&"A",'SRP data'!$A$2:$BP$55,48,0)) ->  | F121: =IF(ISERROR(VLOOKUP($E$2&"B",'SRP data'!$A$2:$BP$55,48,0)),"",VLOOKUP($E$2&"B",'SRP data'!$A$2:$BP$55,48,0)) ->  | N121: APRIL | O121: MARCH | P121: 1 | Q121: 12 | R121: ERROR | S121: ERROR | T121: 1 | U121: 1 | V121: 1 | W121: 1 | X121: 1 | Y121: 1 | Z121: 1 | AA121: 1 | AB121: 1 | AC121: 1 | AD121: 1 | AE121: 1 | AF121: ERROR | AG121: ERROR
D122: IDACI % 4 | E122: =IF(ISERROR(VLOOKUP($E$2&"A",'SRP data'!$A$2:$BP$55,49,0)),"",VLOOKUP($E$2&"A",'SRP data'!$A$2:$BP$55,49,0)) ->  | F122: =IF(ISERROR(VLOOKUP($E$2&"B",'SRP data'!$A$2:$BP$55,49,0)),"",VLOOKUP($E$2&"B",'SRP data'!$A$2:$BP$55,49,0)) ->  | N122: APRIL | O122: MARCH | P122: 1 | Q122: 12 | R122: ERROR | S122: ERROR | T122: 1 | U122: 1 | V122: 1 | W122: 1 | X122: 1 | Y122: 1 | Z122: 1 | AA122: 1 | AB122: 1 | AC122: 1 | AD122: 1 | AE122: 1 | AF122: ERROR | AG122: ERROR
D123: IDACI Pupils 4 | E123: =IF(ISERROR(VLOOKUP($E$2&"A",'SRP data'!$A$2:$BP$55,50,0)),"",VLOOKUP($E$2&"A",'SRP data'!$A$2:$BP$55,50,0)) ->  | F123: =IF(ISERROR(VLOOKUP($E$2&"B",'SRP data'!$A$2:$BP$55,50,0)),"",VLOOKUP($E$2&"B",'SRP data'!$A$2:$BP$55,50,0)) ->  | N123: APRIL | O123: MARCH | P123: 1 | Q123: 12 | R123: ERROR | S123: ERROR | T123: 1 | U123: 1 | V123: 1 | W123: 1 | X123: 1 | Y123: 1 | Z123: 1 | AA123: 1 | AB123: 1 | AC123: 1 | AD123: 1 | AE123: 1 | AF123: ERROR | AG123: ERROR
D124: IDACI Cash 4 | E124: =IF(ISERROR(VLOOKUP($E$2&"A",'SRP data'!$A$2:$BP$55,51,0)),"",VLOOKUP($E$2&"A",'SRP data'!$A$2:$BP$55,51,0)) ->  | F124: =IF(ISERROR(VLOOKUP($E$2&"B",'SRP data'!$A$2:$BP$55,51,0)),"",VLOOKUP($E$2&"B",'SRP data'!$A$2:$BP$55,51,0)) ->  | N124: APRIL | O124: MARCH | P124: 1 | Q124: 12 | R124: ERROR | S124: ERROR | T124: 1 | U124: 1 | V124: 1 | W124: 1 | X124: 1 | Y124: 1 | Z124: 1 | AA124: 1 | AB124: 1 | AC124: 1 | AD124: 1 | AE124: 1 | AF124: ERROR | AG124: ERROR
D125: IDACI % 5 | E125: =IF(ISERROR(VLOOKUP($E$2&"A",'SRP data'!$A$2:$BP$55,52,0)),"",VLOOKUP($E$2&"A",'SRP data'!$A$2:$BP$55,52,0)) ->  | F125: =IF(ISERROR(VLOOKUP($E$2&"B",'SRP data'!$A$2:$BP$55,52,0)),"",VLOOKUP($E$2&"B",'SRP data'!$A$2:$BP$55,52,0)) ->  | N125: APRIL | O125: MARCH | P125: 1 | Q125: 12 | R125: ERROR | S125: ERROR | T125: 1 | U125: 1 | V125: 1 | W125: 1 | X125: 1 | Y125: 1 | Z125: 1 | AA125: 1 | AB125: 1 | AC125: 1 | AD125: 1 | AE125: 1 | AF125: ERROR | AG125: ERROR
D126: IDACI Pupils 5 | E126: =IF(ISERROR(VLOOKUP($E$2&"A",'SRP data'!$A$2:$BP$55,53,0)),"",VLOOKUP($E$2&"A",'SRP data'!$A$2:$BP$55,53,0)) ->  | F126: =IF(ISERROR(VLOOKUP($E$2&"B",'SRP data'!$A$2:$BP$55,53,0)),"",VLOOKUP($E$2&"B",'SRP data'!$A$2:$BP$55,53,0)) ->  | N126: APRIL | O126: MARCH | P126: 1 | Q126: 12 | R126: ERROR | S126: ERROR | T126: 1 | U126: 1 | V126: 1 | W126: 1 | X126: 1 | Y126: 1 | Z126: 1 | AA126: 1 | AB126: 1 | AC126: 1 | AD126: 1 | AE126: 1 | AF126: ERROR | AG126: ERROR
D127: IDACI Cash 5 | E127: =IF(ISERROR(VLOOKUP($E$2&"A",'SRP data'!$A$2:$BP$55,54,0)),"",VLOOKUP($E$2&"A",'SRP data'!$A$2:$BP$55,54,0)) ->  | F127: =IF(ISERROR(VLOOKUP($E$2&"B",'SRP data'!$A$2:$BP$55,54,0)),"",VLOOKUP($E$2&"B",'SRP data'!$A$2:$BP$55,54,0)) ->  | N127: APRIL | O127: MARCH | P127: 1 | Q127: 12 | R127: ERROR | S127: ERROR | T127: 1 | U127: 1 | V127: 1 | W127: 1 | X127: 1 | Y127: 1 | Z127: 1 | AA127: 1 | AB127: 1 | AC127: 1 | AD127: 1 | AE127: 1 | AF127: ERROR | AG127: ERROR
D128: IDACI % 6 | E128: =IF(ISERROR(VLOOKUP($E$2&"A",'SRP data'!$A$2:$BP$55,55,0)),"",VLOOKUP($E$2&"A",'SRP data'!$A$2:$BP$55,55,0)) ->  | F128: =IF(ISERROR(VLOOKUP($E$2&"B",'SRP data'!$A$2:$BP$55,55,0)),"",VLOOKUP($E$2&"B",'SRP data'!$A$2:$BP$55,55,0)) ->  | N128: APRIL | O128: MARCH | P128: 1 | Q128: 12 | R128: ERROR | S128: ERROR | T128: 1 | U128: 1 | V128: 1 | W128: 1 | X128: 1 | Y128: 1 | Z128: 1 | AA128: 1 | AB128: 1 | AC128: 1 | AD128: 1 | AE128: 1 | AF128: ERROR | AG128: ERROR
D129: IDACI Pupils 6 | E129: =IF(ISERROR(VLOOKUP($E$2&"A",'SRP data'!$A$2:$BP$55,56,0)),"",VLOOKUP($E$2&"A",'SRP data'!$A$2:$BP$55,56,0)) ->  | F129: =IF(ISERROR(VLOOKUP($E$2&"B",'SRP data'!$A$2:$BP$55,56,0)),"",VLOOKUP($E$2&"B",'SRP data'!$A$2:$BP$55,56,0)) ->  | N129: APRIL | O129: MARCH | P129: 1 | Q129: 12 | R129: ERROR | S129: ERROR | T129: 1 | U129: 1 | V129: 1 | W129: 1 | X129: 1 | Y129: 1 | Z129: 1 | AA129: 1 | AB129: 1 | AC129: 1 | AD129: 1 | AE129: 1 | AF129: ERROR | AG129: ERROR
D130: IDACI Cash 6 | E130: =IF(ISERROR(VLOOKUP($E$2&"A",'SRP data'!$A$2:$BP$55,57,0)),"",VLOOKUP($E$2&"A",'SRP data'!$A$2:$BP$55,57,0)) ->  | F130: =IF(ISERROR(VLOOKUP($E$2&"B",'SRP data'!$A$2:$BP$55,57,0)),"",VLOOKUP($E$2&"B",'SRP data'!$A$2:$BP$55,57,0)) ->  | N130: APRIL | O130: MARCH | P130: 1 | Q130: 12 | R130: ERROR | S130: ERROR | T130: 1 | U130: 1 | V130: 1 | W130: 1 | X130: 1 | Y130: 1 | Z130: 1 | AA130: 1 | AB130: 1 | AC130: 1 | AD130: 1 | AE130: 1 | AF130: ERROR | AG130: ERROR
D131: LAC% | E131: =IF(ISERROR(VLOOKUP($E$2&"A",'SRP data'!$A$2:$BP$55,58,0)),"",VLOOKUP($E$2&"A",'SRP data'!$A$2:$BP$55,58,0)) ->  | F131: =IF(ISERROR(VLOOKUP($E$2&"B",'SRP data'!$A$2:$BP$55,58,0)),"",VLOOKUP($E$2&"B",'SRP data'!$A$2:$BP$55,58,0)) ->  | N131: APRIL | O131: MARCH | P131: 1 | Q131: 12 | R131: ERROR | S131: ERROR | T131: 1 | U131: 1 | V131: 1 | W131: 1 | X131: 1 | Y131: 1 | Z131: 1 | AA131: 1 | AB131: 1 | AC131: 1 | AD131: 1 | AE131: 1 | AF131: ERROR | AG131: ERROR
D132: LAC Pupils | E132: =IF(ISERROR(VLOOKUP($E$2&"A",'SRP data'!$A$2:$BP$55,59,0)),"",VLOOKUP($E$2&"A",'SRP data'!$A$2:$BP$55,59,0)) ->  | F132: =IF(ISERROR(VLOOKUP($E$2&"B",'SRP data'!$A$2:$BP$55,59,0)),"",VLOOKUP($E$2&"B",'SRP data'!$A$2:$BP$55,59,0)) ->  | N132: APRIL | O132: MARCH | P132: 1 | Q132: 12 | R132: ERROR | S132: ERROR | T132: 1 | U132: 1 | V132: 1 | W132: 1 | X132: 1 | Y132: 1 | Z132: 1 | AA132: 1 | AB132: 1 | AC132: 1 | AD132: 1 | AE132: 1 | AF132: ERROR | AG132: ERROR
D133: LAC CASH | E133: =IF(ISERROR(VLOOKUP($E$2&"A",'SRP data'!$A$2:$BP$55,60,0)),"",VLOOKUP($E$2&"A",'SRP data'!$A$2:$BP$55,60,0)) ->  | F133: =IF(ISERROR(VLOOKUP($E$2&"B",'SRP data'!$A$2:$BP$55,60,0)),"",VLOOKUP($E$2&"B",'SRP data'!$A$2:$BP$55,60,0)) ->  | N133: APRIL | O133: MARCH | P133: 1 | Q133: 12 | R133: ERROR | S133: ERROR | T133: =IF(AND($P133<=T$13,$Q133>=T$13),1,0) -> 1 | U133: 1 | V133: 1 | W133: 1 | X133: 1 | Y133: 1 | Z133: 1 | AA133: 1 | AB133: 1 | AC133: 1 | AD133: 1 | AE133: 1 | AF133: ERROR | AG133: ERROR
D134: EAL% | E134: =IF(ISERROR(VLOOKUP($E$2&"A",'SRP data'!$A$2:$BP$55,61,0)),"",VLOOKUP($E$2&"A",'SRP data'!$A$2:$BP$55,61,0)) ->  | F134: =IF(ISERROR(VLOOKUP($E$2&"B",'SRP data'!$A$2:$BP$55,61,0)),"",VLOOKUP($E$2&"B",'SRP data'!$A$2:$BP$55,61,0)) ->  | N134: APRIL | O134: MARCH | P134: 1 | Q134: 12 | R134: ERROR | S134: ERROR | T134: 1 | U134: 1 | V134: 1 | W134: 1 | X134: 1 | Y134: 1 | Z134: 1 | AA134: 1 | AB134: 1 | AC134: 1 | AD134: 1 | AE134: 1 | AF134: ERROR | AG134: ERROR
D135: EAL Pupils | E135: =IF(ISERROR(VLOOKUP($E$2&"A",'SRP data'!$A$2:$BP$55,62,0)),"",VLOOKUP($E$2&"A",'SRP data'!$A$2:$BP$55,62,0)) ->  | F135: =IF(ISERROR(VLOOKUP($E$2&"B",'SRP data'!$A$2:$BP$55,62,0)),"",VLOOKUP($E$2&"B",'SRP data'!$A$2:$BP$55,62,0)) ->  | N135: APRIL | O135: MARCH | P135: 1 | Q135: 12 | R135: ERROR | S135: ERROR | T135: 1 | U135: 1 | V135: 1 | W135: 1 | X135: 1 | Y135: 1 | Z135: 1 | AA135: 1 | AB135: 1 | AC135: 1 | AD135: 1 | AE135: 1 | AF135: ERROR | AG135: ERROR
D136: EAL Cash | E136: =IF(ISERROR(VLOOKUP($E$2&"A",'SRP data'!$A$2:$BP$55,63,0)),"",VLOOKUP($E$2&"A",'SRP data'!$A$2:$BP$55,63,0)) ->  | F136: =IF(ISERROR(VLOOKUP($E$2&"B",'SRP data'!$A$2:$BP$55,63,0)),"",VLOOKUP($E$2&"B",'SRP data'!$A$2:$BP$55,63,0)) ->  | N136: APRIL | O136: MARCH | P136: 1 | Q136: 12 | R136: ERROR | S136: ERROR | T136: 1 | U136: 1 | V136: 1 | W136: 1 | X136: 1 | Y136: 1 | Z136: 1 | AA136: 1 | AB136: 1 | AC136: 1 | AD136: 1 | AE136: 1 | AF136: ERROR | AG136: ERROR
D137: PA Funding | E137: =IF(ISERROR(VLOOKUP($E$2&"A",'SRP data'!$A$2:$BP$55,64,0)),"",VLOOKUP($E$2&"A",'SRP data'!$A$2:$BP$55,64,0)) ->  | F137: =IF(ISERROR(VLOOKUP($E$2&"B",'SRP data'!$A$2:$BP$55,64,0)),"",VLOOKUP($E$2&"B",'SRP data'!$A$2:$BP$55,64,0)) ->  | N137: APRIL | O137: MARCH | P137: 1 | Q137: 12 | R137: ERROR | S137: ERROR | T137: 1 | U137: 1 | V137: 1 | W137: 1 | X137: 1 | Y137: 1 | Z137: 1 | AA137: 1 | AB137: 1 | AC137: =IF(AND($P137<=AC$13,$Q137>=AC$13),1,0) -> 1 | AD137: 1 | AE137: 1 | AF137: ERROR | AG137: ERROR
D138: Pupils in APT | E138: =IF(ISERROR(VLOOKUP($E$2&"A",'SRP data'!$A$2:$BP$55,65,0)),"",VLOOKUP($E$2&"A",'SRP data'!$A$2:$BP$55,65,0)) ->  | F138: =IF(ISERROR(VLOOKUP($E$2&"B",'SRP data'!$A$2:$BP$55,65,0)),"",VLOOKUP($E$2&"B",'SRP data'!$A$2:$BP$55,65,0)) ->  | N138: APRIL | O138: MARCH | P138: 1 | Q138: 12 | R138: ERROR | S138: ERROR | T138: 1 | U138: 1 | V138: 1 | W138: 1 | X138: 1 | Y138: 1 | Z138: 1 | AA138: 1 | AB138: 1 | AC138: 1 | AD138: 1 | AE138: 1 | AF138: ERROR | AG138: ERROR
D139: PA CASH | E139: =IF(ISERROR(VLOOKUP($E$2&"A",'SRP data'!$A$2:$BP$55,66,0)),"",VLOOKUP($E$2&"A",'SRP data'!$A$2:$BP$55,66,0)) ->  | F139: =IF(ISERROR(VLOOKUP($E$2&"B",'SRP data'!$A$2:$BP$55,66,0)),"",VLOOKUP($E$2&"B",'SRP data'!$A$2:$BP$55,66,0)) ->  | N139: APRIL | O139: MARCH | P139: 1 | Q139: 12 | R139: ERROR | S139: ERROR | T139: 1 | U139: 1 | V139: 1 | W139: 1 | X139: 1 | Y139: 1 | Z139: 1 | AA139: 1 | AB139: 1 | AC139: 1 | AD139: 1 | AE139: 1 | AF139: ERROR | AG139: ERROR
D140: London Fringe % | E140: =IF(ISERROR(VLOOKUP($E$2&"A",'SRP data'!$A$2:$BP$55,67,0)),"",VLOOKUP($E$2&"A",'SRP data'!$A$2:$BP$55,67,0)) ->  | F140: =IF(ISERROR(VLOOKUP($E$2&"B",'SRP data'!$A$2:$BP$55,67,0)),"",VLOOKUP($E$2&"B",'SRP data'!$A$2:$BP$55,67,0)) ->  | N140: APRIL | O140: MARCH | P140: 1 | Q140: 12 | R140: ERROR | S140: ERROR | T140: 1 | U140: 1 | V140: 1 | W140: 1 | X140: 1 | Y140: 1 | Z140: 1 | AA140: 1 | AB140: 1 | AC140: 1 | AD140: 1 | AE140: 1 | AF140: ERROR | AG140: ERROR
D141: London Fringe | E141: =IF(ISERROR(VLOOKUP($E$2&"A",'SRP data'!$A$2:$BP$55,68,0)),"",VLOOKUP($E$2&"A",'SRP data'!$A$2:$BP$55,68,0)) ->  | F141: =IF(ISERROR(VLOOKUP($E$2&"B",'SRP data'!$A$2:$BP$55,68,0)),"",VLOOKUP($E$2&"B",'SRP data'!$A$2:$BP$55,68,0)) ->  | N141: APRIL | O141: MARCH | P141: 1 | Q141: 12 | R141: ERROR | S141: ERROR | T141: 1 | U141: 1 | V141: 1 | W141: 1 | X141: 1 | Y141: 1 | Z141: 1 | AA141: 1 | AB141: 1 | AC141: 1 | AD141: 1 | AE141: 1 | AF141: ERROR | AG141: ERROR
D142: Total Notional Formula Budget | E142: =(IF(ISERROR(E107+E108+E109+E112+E115+E118+E121+E124+E127+E130+E133+E136+E139+E141),"",E107+E108+E109+E112+E115+E118+E121+E124+E127+E130+E133+E136+E139+E141))*IF(dfenum=6906,(7/12),IF(dfenum="A4000",(7/12),1)) ->  | F142: =IF(ISERROR(F107+F108+F109+F112+F115+F118+F121+F124+F127+F130+F133+F136+F139+F141),"",F107+F108+F109+F112+F115+F118+F121+F124+F127+F130+F133+F136+F139+F141) ->  | N142: APRIL | O142: MARCH | P142: 1 | Q142: 12 | R142: ERROR | S142: ERROR | T142: 1 | U142: 1 | V142: 1 | W142: 1 | X142: 1 | Y142: 1 | Z142: 1 | AA142: 1 | AB142: 1 | AC142: 1 | AD142: 1 | AE142: 1 | AF142: ERROR | AG142: ERROR
D143: Average notional formula per place | E143: =IF(ISERROR(E142/E83),"",E142/E83) ->  | F143: =IF(ISERROR(F142/F83),"",F142/F83) ->  | N143: APRIL | O143: MARCH | P143: =IF(N143="APRIL",1, IF(N143="MAY",2, IF(N143="JUNE",3, IF(N143="JULY",4, IF(N143="AUGUST",5, IF(N143="SEPTEMBER",6, IF(N143="OCTOBER",7, IF(N143="NOVEMBER",8, IF(N143="DECEMBER",9, IF(N143="JANUARY",10, IF(N143="FEBRUARY",11, IF(N143="MARCH",12,"ERROR")))))))))))) -> 1 | Q143: =IF(O143="APRIL",1, IF(O143="MAY",2, IF(O143="JUNE",3, IF(O143="JULY",4, IF(O143="AUGUST",5, IF(O143="SEPTEMBER",6, IF(O143="OCTOBER",7, IF(O143="NOVEMBER",8, IF(O143="DECEMBER",9, IF(O143="JANUARY",10, IF(O143="FEBRUARY",11, IF(O143="MARCH",12,"ERROR")))))))))))) -> 12 | R143: =IF(L143="PRE-16","PRE-16",IF(L143="POST-16","POST-16","ERROR")) -> ERROR | S143: =IF(M143="PRE-16","PRE-16",IF(M143="POST-16","POST-16","ERROR")) -> ERROR | T143: 1 | U143: 1 | V143: 1 | W143: 1 | X143: =IF(AND($P143<=W$13,$Q143>=W$13),1,0) -> 1 | Y143: 1 | Z143: 1 | AA143: 1 | AB143: 1 | AC143: 1 | AD143: 1 | AE143: 1 | AF143: =$I143&R143 -> ERROR | AG143: =$I143&S143 -> ERROR
N144: APRIL | O144: MARCH | P144: 1 | Q144: 12 | R144: ERROR | S144: ERROR | T144: 1 | U144: 1 | V144: 1 | W144: 1 | X144: 1 | Y144: 1 | Z144: 1 | AA144: 1 | AB144: 1 | AC144: 1 | AD144: 1 | AE144: 1 | AF144: ERROR | AG144: ERROR
A145: FINAL RATES | B145: Pre-16 Funding Rates and Totals | D145: Total Rate | E145: =IF(ISERROR(E143+E106),0,E143+E106) -> 0 | F145: =IF(ISERROR(F143+F106),"",F143+F106) ->  | G145: Here the total rate is calculated by adding the IAR component and the notional formula component together. This total is then divided across the three elements. | N145: APRIL | O145: MARCH | P145: 1 | Q145: 12 | R145: ERROR | S145: ERROR | T145: 1 | U145: 1 | V145: 1 | W145: 1 | X145: 1 | Y145: 1 | Z145: 1 | AA145: 1 | AB145: 1 | AC145: 1 | AD145: 1 | AE145: 1 | AF145: ERROR | AG145: ERROR
D146: E1 Rate | E146: =IF(tpf>0,4000,0) -> 0 | F146: =IF(F145="","",4000) ->  | N146: APRIL | O146: MARCH | P146: 1 | Q146: 12 | R146: ERROR | S146: ERROR | T146: 1 | U146: 1 | V146: 1 | W146: 1 | X146: 1 | Y146: 1 | Z146: 1 | AA146: 1 | AB146: 1 | AC146: 1 | AD146: 1 | AE146: 1 | AF146: ERROR | AG146: ERROR
D147: E2 Rate | E147: =IF(tpf>0,6000,0) -> 0 | F147: =IF(F145="","",6000) ->  | N147: APRIL | O147: MARCH | P147: 1 | Q147: 12 | R147: ERROR | S147: ERROR | T147: 1 | U147: 1 | V147: 1 | W147: 1 | X147: 1 | Y147: 1 | Z147: 1 | AA147: 1 | AB147: 1 | AC147: 1 | AD147: 1 | AE147: 1 | AF147: ERROR | AG147: ERROR
D148: E3 Rate | E148: =E145-E146-E147 -> 0 | F148: =IF(ISERROR(F145-F146-F147),"",F145-F146-F147) ->  | N148: APRIL | O148: MARCH | P148: 1 | Q148: 12 | R148: ERROR | S148: ERROR | T148: 1 | U148: 1 | V148: 1 | W148: 1 | X148: 1 | Y148: 1 | Z148: 1 | AA148: 1 | AB148: 1 | AC148: 1 | AD148: 1 | AE148: 1 | AF148: ERROR | AG148: ERROR
B149: Post-16 Funding Rates and Totals | D149: Total Rate | E149: =IF(E84>0,E106,"") -> 0 | F149: =IF(F106="","",IF(F84=0,"",F106)) ->  | G149: Here the total rate is calculated by taking the IAR component and dividing it across elements 2 and 3. In addition to this funding you will also receive funding for your Post-16 pupils in your SRP through your 16-19 formula allocation. This allocation makes no distinction between mainstream and SRP pupils. | N149: APRIL | O149: MARCH | P149: 1 | Q149: 12 | R149: ERROR | S149: ERROR | T149: 1 | U149: 1 | V149: 1 | W149: 1 | X149: 1 | Y149: 1 | Z149: 1 | AA149: 1 | AB149: 1 | AC149: 1 | AD149: 1 | AE149: 1 | AF149: ERROR | AG149: ERROR
D150: E1 Rate | N150: APRIL | O150: MARCH | P150: 1 | Q150: 12 | R150: ERROR | S150: ERROR | T150: 1 | U150: 1 | V150: 1 | W150: 1 | X150: 1 | Y150: 1 | Z150: 1 | AA150: 1 | AB150: 1 | AC150: 1 | AD150: 1 | AE150: 1 | AF150: ERROR | AG150: ERROR
D151: E2 Rate | E151: =IF(OR(E149="",E149=0),"",6000) ->  | F151: =IF(F149="","",6000) ->  | N151: APRIL | O151: MARCH | P151: 1 | Q151: 12 | R151: ERROR | S151: ERROR | T151: 1 | U151: 1 | V151: 1 | W151: 1 | X151: 1 | Y151: 1 | Z151: 1 | AA151: 1 | AB151: 1 | AC151: 1 | AD151: 1 | AE151: 1 | AF151: ERROR | AG151: ERROR
D152: E3 Rate | E152: =IF(ISERROR(E149-E151),"",E149-E151) ->  | F152: =IF(ISERROR(F149-F151),"",F149-F151) ->  | N152: APRIL | O152: MARCH | P152: 1 | Q152: 12 | R152: ERROR | S152: ERROR | T152: 1 | U152: 1 | V152: 1 | W152: 1 | X152: 1 | Y152: 1 | Z152: 1 | AA152: 1 | AB152: 1 | AC152: 1 | AD152: 1 | AE152: 1 | AF152: ERROR | AG152: ERROR
N153: APRIL | O153: MARCH | P153: 1 | Q153: 12 | R153: ERROR | S153: ERROR | T153: 1 | U153: 1 | V153: 1 | W153: 1 | X153: 1 | Y153: 1 | Z153: 1 | AA153: 1 | AB153: 1 | AC153: 1 | AD153: 1 | AE153: 1 | AF153: ERROR | AG153: ERROR
N154: APRIL | O154: MARCH | P154: 1 | Q154: 12 | R154: ERROR | S154: ERROR | T154: 1 | U154: 1 | V154: 1 | W154: 1 | X154: 1 | Y154: 1 | Z154: 1 | AA154: 1 | AB154: 1 | AC154: 1 | AD154: 1 | AE154: 1 | AF154: ERROR | AG154: ERROR
N155: APRIL | O155: MARCH | P155: 1 | Q155: 12 | R155: ERROR | S155: ERROR | T155: 1 | U155: 1 | V155: 1 | W155: 1 | X155: 1 | Y155: 1 | Z155: 1 | AA155: 1 | AB155: 1 | AC155: 1 | AD155: 1 | AE155: 1 | AF155: ERROR | AG155: ERROR
N156: APRIL | O156: MARCH | P156: 1 | Q156: 12 | R156: ERROR | S156: ERROR | T156: 1 | U156: 1 | V156: 1 | W156: 1 | X156: 1 | Y156: 1 | Z156: 1 | AA156: 1 | AB156: 1 | AC156: 1 | AD156: 1 | AE156: 1 | AF156: ERROR | AG156: ERROR
N157: APRIL | O157: MARCH | P157: 1 | Q157: 12 | R157: ERROR | S157: ERROR | T157: 1 | U157: 1 | V157: 1 | W157: 1 | X157: 1 | Y157: 1 | Z157: 1 | AA157: 1 | AB157: 1 | AC157: 1 | AD157: 1 | AE157: 1 | AF157: ERROR | AG157: ERROR
N158: APRIL | O158: MARCH | P158: 1 | Q158: 12 | R158: ERROR | S158: ERROR | T158: 1 | U158: 1 | V158: 1 | W158: 1 | X158: 1 | Y158: 1 | Z158: 1 | AA158: 1 | AB158: 1 | AC158: 1 | AD158: 1 | AE158: 1 | AF158: ERROR | AG158: ERROR
N159: APRIL | O159: MARCH | P159: 1 | Q159: 12 | R159: ERROR | S159: ERROR | T159: 1 | U159: 1 | V159: 1 | W159: 1 | X159: 1 | Y159: 1 | Z159: 1 | AA159: 1 | AB159: 1 | AC159: 1 | AD159: 1 | AE159: 1 | AF159: ERROR | AG159: ERROR
N160: APRIL | O160: MARCH | P160: 1 | Q160: 12 | R160: ERROR | S160: ERROR | T160: 1 | U160: 1 | V160: 1 | W160: 1 | X160: 1 | Y160: 1 | Z160: 1 | AA160: 1 | AB160: 1 | AC160: 1 | AD160: 1 | AE160: =IF(AND($P160<=AE$13,$Q160>=AE$13),1,0) -> 1 | AF160: ERROR | AG160: ERROR
N161: APRIL | O161: MARCH | P161: 1 | Q161: 12 | R161: ERROR | S161: ERROR | T161: 1 | U161: 1 | V161: 1 | W161: 1 | X161: 1 | Y161: 1 | Z161: 1 | AA161: 1 | AB161: 1 | AC161: 1 | AD161: 1 | AE161: 1 | AF161: ERROR | AG161: ERROR
N162: APRIL | O162: MARCH | P162: 1 | Q162: 12 | R162: ERROR | S162: ERROR | T162: 1 | U162: 1 | V162: 1 | W162: 1 | X162: 1 | Y162: 1 | Z162: 1 | AA162: 1 | AB162: 1 | AC162: 1 | AD162: 1 | AE162: 1 | AF162: ERROR | AG162: ERROR
N163: APRIL | O163: MARCH | P163: 1 | Q163: 12 | R163: ERROR | S163: ERROR | T163: 1 | U163: 1 | V163: 1 | W163: 1 | X163: 1 | Y163: 1 | Z163: 1 | AA163: 1 | AB163: 1 | AC163: 1 | AD163: 1 | AE163: 1 | AF163: ERROR | AG163: ERROR

Sheet Growth Funding
H2: =dfenum -> 0
B7: =VLOOKUP(dfenum,academies,2,0) -> 
B9: Growth Funding Estimator
B10: =IF(VLOOKUP(dfenum,DATA!B3:BG145,58,0)=1,"Your academy does not qualify for Growth Funding","") -> 
B11: October 2013 Pupils Plus Yr R Uplift | H11: =VLOOKUP(dfenum,DATA!B3:BF145,54,0) -> 
B12: October 2014 Pupils Plus Yr R Uplift
B13: Difference | H13: =IF(VLOOKUP(dfenum,DATA!B3:BG145,58,0)=1,0,H12-H11) -> 
B14: Movement %: | H14: =IF(ISERROR(H13/H11),0,H13/H11) -> 0
B16: Criteria 1: | C16: Movement must be greater than 2% and 5 pupils | H16: =IF(AND(H13>5,H14>0.02),"MET","NOT MET") -> 
C18: Additional pupils not funded | H18: =IF(H13-H19<0,0,H13-H19) -> 
C19: Additional pupils funded | H19: =ROUND(IF(AND(H11>249,H14>0.02),H13-(H11*0.02),IF(AND(H11<250,H13>5),H13-5,0)),0) -> 
C21: Basic Entitlement (weighted for secondary) | H21: =VLOOKUP(dfenum,DATA!B3:BF145,55,0) -> 
C22: Provisional additional funding | H22: =H21*H19 -> 
C23: Less MFG | H23: =VLOOKUP(dfenum,DATA!B3:BF145,56,0) -> 
C24: Provisional funding adjusted for MFG | H24: =ROUND(H22-H23,0) -> 
B26: Criteria 2: | C26: Contingency funding amount exceeds | F26: =IF(OR(dfenum=6908,dfenum=6919),10000,IF(VLOOKUP(dfenum,DATA!B3:H145,7,0)>0,2000,10000)) ->  | H26: =IF(H24>F26,"MET","NOT MET") -> 
C28: Initial formula budget | H28: =VLOOKUP(dfenum,DATA!B3:BF145,57,0) -> 
C29: 0.5% threshold | H29: =H28*0.005 -> 
B31: Criteria 3: | C31: Contingency funding exceeds: | F31: =H29 ->  | H31: =IF(H24>F31,"MET","NOT MET") -> 
B33: Estimated Rising Roll Contingency funding (september 14 to march 15) | H33: =IF(AND(H16="MET",H26="MET",H31="MET"),H24,0) -> 
B35: Enter any agreed reorganisation funding here for the period september 14 to march 15 | H35: 0
B38: Rising Roll Contingency funding (april 14 to august 14 - see last years template) | H38: =VLOOKUP(dfenum,DATA!B3:BH145,59,0) -> 
B40: Enter any agreed reorganisation funding here for the period april 14 to august 14 | H40: 0
B42: Estimated Growth Funding equals the greater of Rising Roll contingency and Reorganisation Funding from each period
H43: =MAX(H33,H35)+MAX(H38,H40) -> 
B45: Note: Failure to enter agreed reorganisation funding in the pink boxes is an incorrect usage of this template and may result in this template displaying rising roll funding which is not due and will not be paid.

Sheet DATA (hidden)
B2: DFE | C2: School | D2: Status | E2: Base rate | F2: Qualified Teacher Supplement | G2: Disadvantage supplement | H2: Primary Pupils in budget | I2: IDACI % 1 | J2: IDACI % 2 | K2: IDACI % 3 | L2: IDACI % 4 | M2: IDACI % 5 | N2: IDACI % 6 | O2: IDACI £ 1 | P2: IDACI £ 2 | Q2: IDACI £ 3 | R2: IDACI £ 4 | S2: IDACI £ 5 | T2: IDACI £ 6 | U2: Secondary Pupils in budget | V2: IDACI % 1 | W2: IDACI % 2 | X2: IDACI % 3 | Y2: IDACI % 4 | Z2: IDACI % 5 | AA2: IDACI % 6 | AB2: IDACI £ 1 | AC2: IDACI £ 2 | AD2: IDACI £ 3 | AE2: IDACI £ 4 | AF2: IDACI £ 5 | AG2: IDACI £ 6 | AH2: IDACI | AI2: Looked After Children % | AJ2: Looked After Children £ | AK2: Year 1 SEN | AL2: Year 2-5 SEN | AM2: Secondary SEN | AN2: Year 1 Pupils | AO2: EAL Primary | AP2: EAL Secondary | AQ2: EAL Primary | AR2: EAL Secondary | AS2: English as an additional language | AT2: Element of Lump Sum | AU2: London Fringe | AV2: Primary SEN | AW2: Secondary SEN | AX2: SEN | AY2: AEN/SEN Budget | AZ2: Data Calc SEN | BA2: Data Calc Topup | BB2: Check | BC2: Oct 13 Pupils inc Uplift | BD2: Basic Entitlement | BE2: MFG | BF2: Initial formula budget | BG2: Estimated Nums | BH2: Rising Roll Carried Forward
A3: 8862001 | B3: A2001 | C3: Horizon Primary Academy | D3: Recoupment Academy | E3: 0 | F3: 0 | G3: 0 | H3: 162 | I3: 0.225 | J3: 0 | K3: 0.275 | L3: 0.34375 | M3: 0 | N3: 0 | O3: 15116.9084 | P3: 0 | Q3: 20855.19136 | R3: 28675.72105 | S3: 0 | T3: 0 | U3: 0 | V3: 0 | W3: 0 | X3: 0 | Y3: 0 | Z3: 0 | AA3: 0 | AB3: 0 | AC3: 0 | AD3: 0 | AE3: 0 | AF3: 0 | AG3: 0 | AH3: 64647.8208 | AI3: 0.006944444444 | AJ3: =((H3+U3)*AI3)*525.417015561615 -> 591.0941425 | AK3: 0.4583333333 | AL3: 0.2957746479 | AM3: 0 | AN3: 27 | AO3: 0.07692307692 | AP3: 0 | AQ3: =(H3*AO3)*884.9368830738 -> 11027.675 | AR3: =(U3*AP3)*3343.9902149541 -> 0 | AS3: =AQ3+AR3 -> 11027.675 | AT3: =IF(H3>0,6235,5580) -> 6235 | AU3: 1.016316166 | AV3: 57359.7101 | AW3: =(U3*AM3)*1105.54126971233 -> 0 | AX3: =AW3+AV3 -> 57359.7101 | AY3: =(AH3+AJ3+AS3+AT3+AX3)*AU3 -> 142143.3002 | AZ3: 142143.3002 | BA3: 1735.700993 | BB3: =AY3-AZ3 -> 0 | BC3: 162 | BD3: 1590.812001 | BE3: 52728.84765 | BF3: 791759.9648 | BG3: 0 | BH3: 2052.454805
A4: 8862003 | B4: A2003 | C4: Oaks Academy | D4: Recoupment Academy | E4: 3.9 | F4: 0.9 | G4: 0.13 | H4: 125 | I4: 0.132231405 | J4: 0.07438016529 | K4: 0.1239669421 | L4: 0.4876033058 | M4: 0.01652892562 | N4: 0.05785123967 | O4: 6855.041275 | P4: 4048.791294 | Q4: 7254.080528 | R4: 31385.80557 | S4: 1170.33057 | T4: 5120.196246 | U4: 0 | V4: 0 | W4: 0 | X4: 0 | Y4: 0 | Z4: 0 | AA4: 0 | AB4: 0 | AC4: 0 | AD4: 0 | AE4: 0 | AF4: 0 | AG4: 0 | AH4: 55834.24548 | AI4: 0 | AJ4: =((H4+U4)*AI4)*525.417015561615 -> 0 | AK4: 0.6842105263 | AL4: 0.5 | AM4: 0 | AN4: 19 | AO4: 0.08653846154 | AP4: 0 | AQ4: =(H4*AO4)*884.9368830738 -> 9572.634552 | AR4: =(U4*AP4)*3343.9902149541 -> 0 | AS4: =AQ4+AR4 -> 9572.634552 | AT4: =IF(H4>0,6235,5580) -> 6235 | AU4: 1 | AV4: 70840.58858 | AW4: =(U4*AM4)*1105.54126971233 -> 0 | AX4: =AW4+AV4 -> 70840.58858 | AY4: =(AH4+AJ4+AS4+AT4+AX4)*AU4 -> 142482.4686 | AZ4: 142482.4686 | BA4: 1725.525941 | BB4: =AY4-AZ4 -> 0 | BC4: =H4 -> 125 | BD4: 1590.812001 | BE4: 30905.47 | BF4: 650382.02 | BG4: 0 | BH4: 0
A5: 8862004 | B5: A2004 | C5: Tree Tops Academy | D5: Recoupment Academy | E5: 3.9 | F5: 0.9 | G5: 0.77 | H5: 214 | I5: 0.1028037383 | J5: 0.01401869159 | K5: 0.1028037383 | L5: 0.2056074766 | M5: 0.004672897196 | N5: 0.4485981308 | O5: 9124.059937 | P5: 1306.409991 | Q5: 10298.85993 | R5: 22657.35984 | S5: 566.4399961 | T5: 67972.79953 | U5: 0 | V5: 0 | W5: 0 | X5: 0 | Y5: 0 | Z5: 0 | AA5: 0 | AB5: 0 | AC5: 0 | AD5: 0 | AE5: 0 | AF5: 0 | AG5: 0 | AH5: 111925.9292 | AI5: 0.02325581395 | AJ5: 2614.866077 | AK5: 0.4411764706 | AL5: 0.3162393162 | AM5: 0 | AN5: 36 | AO5: 0.08333333333 | AP5: 0 | AQ5: 15781.37441 | AR5: 0 | AS5: 15781.37441 | AT5: 6235 | AU5: 1 | AV5: 77805.56358 | AW5: 0 | AX5: 77805.56358 | AY5: 214362.7333 | AZ5: 214362.7333 | BA5: 0 | BB5: 0 | BC5: =H5 -> 214 | BD5: 1590.812001 | BE5: 98023.46 | BF5: 1050119.18 | BG5: 0 | BH5: 0
A6: 8862005 | B6: A2005 | C6: York Road Junior Academy and Language Unit | D6: Recoupment Academy | E6: 0 | F6: 0 | G6: 0 | H6: 301 | I6: 0.03647416413 | J6: 0.1550151976 | K6: 0.01215805471 | L6: 0.04863221884 | M6: 0 | N6: 0 | O6: 4553.205926 | P6: 20318.84475 | Q6: 1713.156584 | R6: 7537.845054 | S6: 0 | T6: 0 | U6: 0 | V6: 0 | W6: 0 | X6: 0 | Y6: 0 | Z6: 0 | AA6: 0 | AB6: 0 | AC6: 0 | AD6: 0 | AE6: 0 | AF6: 0 | AG6: 0 | AH6: 34123.05232 | AI6: 0 | AJ6: 0 | AK6: 0 | AL6: 0.3231441048 | AM6: 0 | AN6: 0 | AO6: 0.08841463415 | AP6: 0 | AQ6: 23550.6526 | AR6: 0 | AS6: 23550.6526 | AT6: 6235 | AU6: 1.016316166 | AV6: 102371.7655 | AW6: 0 | AX6: 102371.7655 | AY6: 168993.5302 | AZ6: 168993.5302 | BA6: 930.1940949 | BB6: 0 | BC6: 301 | BD6: 1590.812001 | BE6: 17795.33471 | BF6: 1155541.803 | BG6: 0 | BH6: 0
A7: 8862006 | B7: A2006 | C7: St James the Great Academy | D7: Recoupment Academy | E7: 3.9 | F7: 0.9 | G7: 0.25 | H7: 161 | I7: 0.3105590062 | J7: 0 | K7: 0.01242236025 | L7: 0.5031055901 | M7: 0 | N7: 0 | O7: 20736.49986 | P7: 0 | Q7: 936.2599935 | R7: 41710.13971 | S7: 0 | T7: 0 | U7: 0 | V7: 0 | W7: 0 | X7: 0 | Y7: 0 | Z7: 0 | AA7: 0 | AB7: 0 | AC7: 0 | AD7: 0 | AE7: 0 | AF7: 0 | AG7: 0 | AH7: 63382.89956 | AI7: 0.006097560976 | AJ7: 515.8057287 | AK7: 0.3448275862 | AL7: 0.2222222222 | AM7: 0 | AN7: 30 | AO7: 0.02877697842 | AP7: 0 | AQ7: 4099.995343 | AR7: 0 | AS7: 4099.995343 | AT7: 6235 | AU7: 1 | AV7: 42602.2711 | AW7: 0 | AX7: 42602.2711 | AY7: 116835.9717 | AZ7: 116835.9717 | BA7: 2494.920848 | BB7: 0 | BC7: =H7 -> 161 | BD7: 1590.812001 | BE7: 63192.9 | BF7: 767356.82 | BG7: 0 | BH7: 0
A8: 8862007 | B8: A2007 | C8: MOLEHILL COPSE PRIMARY ACADEMY | D8: Recoupment Academy | E8: 0 | F8: 0 | G8: 0 | H8: 278 | I8: 0.150877193 | J8: 0.09473684211 | K8: 0.2807017544 | L8: 0.1403508772 | M8: 0.04210526316 | N8: 0.1543859649 | O8: 17395.37679 | P8: 11468.90455 | Q8: 36530.56536 | R8: 20091.6939 | S8: 6630.329217 | T8: 30389.00891 | U8: 0 | V8: 0 | W8: 0 | X8: 0 | Y8: 0 | Z8: 0 | AA8: 0 | AB8: 0 | AC8: 0 | AD8: 0 | AE8: 0 | AF8: 0 | AG8: 0 | AH8: 122505.8787 | AI8: 0.007092198582 | AJ8: 1035.928584 | AK8: 0.5 | AL8: 0.3648648649 | AM8: 0 | AN8: 45 | AO8: 0.03703703704 | AP8: 0 | AQ8: 9111.572352 | AR8: 0 | AS8: 9111.572352 | AT8: 6235 | AU8: 1 | AV8: 115742.7303 | AW8: 0 | AX8: 115742.7303 | AY8: 254631.11 | AZ8: 254631.11 | BA8: 0 | BB8: 0 | BC8: =H8 -> 278 | BD8: 1590.812001 | BE8: 0 | BF8: 1169997.52 | BG8: 0 | BH8: 0
A9: 8862009 | B9: A2009 | C9: Northdown Primary School | D9: Recoupment Academy | E9: 3.9 | F9: 0.9 | G9: 0.65 | H9: 313 | I9: 0.003194888179 | J9: 0.01916932907 | K9: 0.08626198083 | L9: 0.3610223642 | M9: 0.3450479233 | N9: 0.1277955272 | O9: 414.7299971 | P9: 2612.819982 | Q9: 12639.50991 | R9: 58188.2196 | S9: 61175.51958 | T9: 28321.9998 | U9: 0 | V9: 0 | W9: 0 | X9: 0 | Y9: 0 | Z9: 0 | AA9: 0 | AB9: 0 | AC9: 0 | AD9: 0 | AE9: 0 | AF9: 0 | AG9: 0 | AH9: 163352.7989 | AI9: 0.01661129568 | AJ9: 2731.819367 | AK9: 0.7619047619 | AL9: 0.2094594595 | AM9: 0 | AN9: 46 | AO9: 0.1946564885 | AP9: 0 | AQ9: 53916.97506 | AR9: 0 | AS9: 53916.97506 | AT9: 6235 | AU9: 1 | AV9: 107054.7817 | AW9: 0 | AX9: 107054.7817 | AY9: 333291.375 | AZ9: 333291.375 | BA9: 0 | BB9: 0 | BC9: 313 | BD9: 1590.812001 | BE9: 115755.8934 | BF9: 1479831.616 | BG9: 0 | BH9: 0
A10: 8862010 | B10: A2010 | C10: Newlands Primary School | D10: Recoupment Academy | E10: 0 | F10: 0 | G10: 0 | H10: 384 | I10: 0.05789473684 | J10: 0.09473684211 | K10: 0.2447368421 | L10: 0.2842105263 | M10: 0.1157894737 | N10: 0 | O10: 9220.102673 | P10: 15841.9401 | Q10: 43994.36433 | R10: 56198.92509 | S10: 25185.71098 | T10: 0 | U10: 0 | V10: 0 | W10: 0 | X10: 0 | Y10: 0 | Z10: 0 | AA10: 0 | AB10: 0 | AC10: 0 | AD10: 0 | AE10: 0 | AF10: 0 | AG10: 0 | AH10: 150441.0432 | AI10: 0.007407407407 | AJ10: 1494.519511 | AK10: 0.512195122 | AL10: 0.3516483516 | AM10: 0 | AN10: 84 | AO10: 0.09375 | AP10: 0 | AQ10: 31857.72779 | AR10: 0 | AS10: 31857.72779 | AT10: 6235 | AU10: 1 | AV10: 161244.9399 | AW10: 0 | AX10: 161244.9399 | AY10: 351273.2304 | AZ10: 351273.2304 | BA10: 0 | BB10: 0 | BC10: 384 | BD10: 1590.812001 | BE10: 87123.33539 | BF10: 1676854.069 | BG10: 0 | BH10: 0
A11: 8862011 | B11: A2011 | C11: Salmestone Primary School | D11: Recoupment Academy | E11: 3.9 | F11: 0.9 | G11: 0.27 | H11: 413 | I11: 0.2305825243 | J11: 0.1116504854 | K11: 0.1213592233 | L11: 0.2281553398 | M11: 0.1116504854 | N11: 0.09951456311 | O11: 39494.97922 | P11: 20080.2403 | Q11: 23463.31173 | R11: 48521.84598 | S11: 26119.48312 | T11: 29100.51109 | U11: 0 | V11: 0 | W11: 0 | X11: 0 | Y11: 0 | Z11: 0 | AA11: 0 | AB11: 0 | AC11: 0 | AD11: 0 | AE11: 0 | AF11: 0 | AG11: 0 | AH11: 186780.3714 | AI11: 0.01477832512 | AJ11: 3206.855578 | AK11: 0.6551724138 | AL11: 0.3165137615 | AM11: 0 | AN11: 59 | AO11: 0.07365439093 | AP11: 0 | AQ11: 26919.12819 | AR11: 0 | AS11: 26919.12819 | AT11: 6235 | AU11: 1 | AV11: 167123.146 | AW11: 0 | AX11: 167123.146 | AY11: 390264.5012 | AZ11: 390264.5012 | BA11: 0 | BB11: 0 | BC11: 413 | BD11: 1590.812001 | BE11: 0 | BF11: 1685277.322 | BG11: 0 | BH11: 0
A12: 8862013 | B12: A2013 | C12: Hersden Village Primary School | D12: Recoupment Academy | E12: 0 | F12: 0 | G12: 0 | H12: 85 | I12: 0.01176470588 | J12: 0 | K12: 0.01176470588 | L12: 0 | M12: 0 | N12: 0 | O12: 414.7299971 | P12: 0 | Q12: 468.1299968 | R12: 0 | S12: 0 | T12: 0 | U12: 0 | V12: 0 | W12: 0 | X12: 0 | Y12: 0 | Z12: 0 | AA12: 0 | AB12: 0 | AC12: 0 | AD12: 0 | AE12: 0 | AF12: 0 | AG12: 0 | AH12: 882.8599939 | AI12: 0 | AJ12: 0 | AK12: 0.3636363636 | AL12: 0.2222222222 | AM12: 0 | AN12: 11 | AO12: 0.07894736842 | AP12: 0 | AQ12: 5938.392242 | AR12: 0 | AS12: 5938.392242 | AT12: 6235 | AU12: 1 | AV12: 21957.39371 | AW12: 0 | AX12: 21957.39371 | AY12: 35013.64595 | AZ12: 35013.64595 | BA12: 4949.590622 | BB12: 0 | BC12: 85 | BD12: 1590.812001 | BE12: 22598.92053 | BF12: 414754.2124 | BG12: 0 | BH12: 0
A13: 8862014 | B13: A2014 | C13: St Laurence in Thanet C of E Junior Academy | D13: Recoupment Academy | E13: 0 | F13: 0 | G13: 0 | H13: 239 | I13: 0.2175732218 | J13: 0.1380753138 | K13: 0.2092050209 | L13: 0.1171548117 | M13: 0.07112970711 | N13: 0 | O13: 21565.95985 | P13: 14370.5099 | Q13: 23406.49984 | R13: 14418.3199 | S13: 9629.479933 | T13: 0 | U13: 0 | V13: 0 | W13: 0 | X13: 0 | Y13: 0 | Z13: 0 | AA13: 0 | AB13: 0 | AC13: 0 | AD13: 0 | AE13: 0 | AF13: 0 | AG13: 0 | AH13: 83390.76942 | AI13: 0.004310344828 | AJ13: 541.2701152 | AK13: 0 | AL13: 0.2527472527 | AM13: 0 | AN13: 0 | AO13: 0.01255230126 | AP13: 0 | AQ13: 2654.810649 | AR13: 0 | AS13: 2654.810649 | AT13: 6235 | AU13: 1 | AV13: 63577.25966 | AW13: 0 | AX13: 63577.25966 | AY13: 156399.1099 | AZ13: 156399.1099 | BA13: 1308.026704 | BB13: 0 | BC13: 239 | BD13: 1590.812001 | BE13: 0 | BF13: 948412.8426 | BG13: 0 | BH13: 0
A14: 8862015 | B14: A2015 | C14: Dame Janet Primary Academy | D14: Recoupment Academy | E14: 3.9 | F14: 0.9 | G14: 0.54 | H14: 540 | I14: 0.07076350093 | J14: 0.06890130354 | K14: 0.3445065177 | L14: 0.1713221601 | M14: 0.1284916201 | N14: 0.01303538175 | O14: 15847.78313 | P14: 16202.40324 | Q14: 87087.87091 | R14: 47639.14157 | S14: 39302.70811 | T14: 4984.039072 | U14: 0 | V14: 0 | W14: 0 | X14: 0 | Y14: 0 | Z14: 0 | AA14: 0 | AB14: 0 | AC14: 0 | AD14: 0 | AE14: 0 | AF14: 0 | AG14: 0 | AH14: 211063.946 | AI14: 0.03180212014 | AJ14: 9023.062529 | AK14: 0.7386363636 | AL14: 0.2536231884 | AM14: 0 | AN14: 89 | AO14: 0.06277056277 | AP14: 0 | AQ14: 29995.91253 | AR14: 0 | AS14: 29995.91253 | AT14: 6235 | AU14: 1 | AV14: 206729.9727 | AW14: 0 | AX14: 206729.9727 | AY14: 463047.8938 | AZ14: 463047.8938 | BA14: 0 | BB14: 0 | BC14: =H14 -> 540 | BD14: 1590.812001 | BE14: 95860.91 | BF14: 2228260.12 | BG14: 0 | BH14: 0
A15: 8862017 | B15: A2017 | C15: Drapers Mills Primary Academy | D15: Recoupment Academy | E15: 3.9 | F15: 0.9 | G15: 0.51 | H15: 523 | I15: 0.03288201161 | J15: 0.04448742747 | K15: 0.1818181818 | L15: 0.1450676983 | M15: 0.3887814313 | N15: 0.1470019342 | O15: 7132.232891 | P15: 10132.04757 | Q15: 44514.90697 | R15: 39068.70669 | S15: 115175.7673 | T15: 54436.30794 | U15: 0 | V15: 0 | W15: 0 | X15: 0 | Y15: 0 | Z15: 0 | AA15: 0 | AB15: 0 | AC15: 0 | AD15: 0 | AE15: 0 | AF15: 0 | AG15: 0 | AH15: 270459.9694 | AI15: 0.004255319149 | AJ15: 1169.332337 | AK15: 0.6363636364 | AL15: 0.4055299539 | AM15: 0 | AN15: 85 | AO15: 0.3226544622 | AP15: 0 | AQ15: 149331.5802 | AR15: 0 | AS15: 149331.5802 | AT15: 6235 | AU15: 1 | AV15: 251796.9341 | AW15: 0 | AX15: 251796.9341 | AY15: 678992.8161 | AZ15: 678992.8161 | BA15: 0 | BB15: 0 | BC15: 523 | BD15: 1590.812001 | BE15: 66750.23109 | BF15: 2380369.885 | BG15: 0 | BH15: 23069.37
A16: 8862018 | B16: A2018 | C16: Temple Grove Academy | D16: Recoupment Academy | E16: 3.9 | F16: 0.9 | G16: 0.17 | H16: 269 | I16: 0.0223880597 | J16: 0.1865671642 | K16: 0.223880597 | L16: 0.3731343284 | M16: 0 | N16: 0 | O16: 2497.664983 | P16: 21854.74425 | Q16: 28192.60503 | R16: 51686.14143 | S16: 0 | T16: 0 | U16: 0 | V16: 0 | W16: 0 | X16: 0 | Y16: 0 | Z16: 0 | AA16: 0 | AB16: 0 | AC16: 0 | AD16: 0 | AE16: 0 | AF16: 0 | AG16: 0 | AH16: 104231.1557 | AI16: 0 | AJ16: 0 | AK16: 0.6216216216 | AL16: 0.299270073 | AM16: 0 | AN16: 38 | AO16: 0.08 | AP16: 0 | AQ16: 19043.84172 | AR16: 0 | AS16: 19043.84172 | AT16: 6235 | AU16: 1 | AV16: 103374.5186 | AW16: 0 | AX16: 103374.5186 | AY16: 232884.516 | AZ16: 232884.516 | BA16: 0 | BB16: 0 | BC16: 269 | BD16: 1590.812001 | BE16: 0 | BF16: 1140507.635 | BG16: 0 | BH16: 0
A17: 8862019 | B17: A2019 | C17: Chantry Community Academy | D17: Recoupment Academy | E17: 3.9 | F17: 0.9 | G17: 0.34 | H17: 231 | I17: 0.008771929825 | J17: 0.6929824561 | K17: 0.1184210526 | L17: 0.05701754386 | M17: 0.004385964912 | N17: 0 | O17: 840.3739416 | P17: 69709.57873 | Q17: 12805.81925 | R17: 6782.301795 | S17: 573.8931539 | T17: 0 | U17: 0 | V17: 0 | W17: 0 | X17: 0 | Y17: 0 | Z17: 0 | AA17: 0 | AB17: 0 | AC17: 0 | AD17: 0 | AE17: 0 | AF17: 0 | AG17: 0 | AH17: 90711.96687 | AI17: 0.005076142132 | AJ17: 616.0981248 | AK17: 0.75 | AL17: 0.5764705882 | AM17: 0 | AN17: 29 | AO17: 0.4375 | AP17: 0 | AQ17: 89433.93375 | AR17: 0 | AS17: 89433.93375 | AT17: 6235 | AU17: 1 | AV17: 148365.6985 | AW17: 0 | AX17: 148365.6985 | AY17: 335362.6972 | AZ17: 335362.6972 | BA17: 0 | BB17: 0 | BC17: 231 | BD17: 0 | BE17: 68362.94561 | BF17: 1168823.27 | BG17: 1 | BH17: 0
A18: 8862020 | B18: A2020 | C18: Christ Church CEJ School, Ramsgate | D18: Recoupment Academy | E18: 0 | F18: 0 | G18: 0 | H18: 246 | I18: 0.4367346939 | J18: 0.05714285714 | K18: 0.1714285714 | L18: 0.0693877551 | M18: 0.03673469388 | N18: 0 | O18: 44557.23667 | P18: 6121.463958 | Q18: 19741.71072 | R18: 8789.71047 | S18: 5118.767965 | T18: 0 | U18: 0 | V18: 0 | W18: 0 | X18: 0 | Y18: 0 | Z18: 0 | AA18: 0 | AB18: 0 | AC18: 0 | AD18: 0 | AE18: 0 | AF18: 0 | AG18: 0 | AH18: 84328.88978 | AI18: 0 | AJ18: 0 | AK18: 0 | AL18: 0.1923076923 | AM18: 0 | AN18: 0 | AO18: 0.0162601626 | AP18: 0 | AQ18: 3539.747532 | AR18: 0 | AS18: 3539.747532 | AT18: 6235 | AU18: 1 | AV18: 49790.81369 | AW18: 0 | AX18: 49790.81369 | AY18: 143894.451 | AZ18: 143894.451 | BA18: 1683.16647 | BB18: 0 | BC18: 246 | BD18: 1590.812001 | BE18: 0 | BF18: 943686.8158 | BG18: 0 | BH18: 7954.060004
A19: 8862021 | B19: A2021 | C19: Kemsley Primary Academy | D19: Recoupment Academy | E19: 3.9 | F19: 0.9 | G19: 0.1 | H19: 203 | I19: 0.009852216749 | J19: 0 | K19: 0.6551724138 | L19: 0.02463054187 | M19: 0 | N19: 0 | O19: 829.4599943 | P19: 0 | Q19: 62261.28957 | R19: 2574.699982 | S19: 0 | T19: 0 | U19: 0 | V19: 0 | W19: 0 | X19: 0 | Y19: 0 | Z19: 0 | AA19: 0 | AB19: 0 | AC19: 0 | AD19: 0 | AE19: 0 | AF19: 0 | AG19: 0 | AH19: 65665.44955 | AI19: 0.0303030303 | AJ19: 3232.110732 | AK19: 0.4666666667 | AL19: 0.201754386 | AM19: 0 | AN19: 30 | AO19: 0.02840909091 | AP19: 0 | AQ19: 5103.471229 | AR19: 0 | AS19: 5103.471229 | AT19: 6235 | AU19: 1 | AV19: 54816.19888 | AW19: 0 | AX19: 54816.19888 | AY19: 135052.2304 | AZ19: 135052.2304 | BA19: 1948.433088 | BB19: 0 | BC19: 203 | BD19: 1590.812001 | BE19: 0 | BF19: 825296.6296 | BG19: 0 | BH19: 0
A20: 8862022 | B20: A2022 | C20: Milton Court Primary Academy | D20: Recoupment Academy | E20: 3.9 | F20: 0.9 | G20: 0.36 | H20: 203 | I20: 0.06896551724 | J20: 0.01477832512 | K20: 0.2906403941 | L20: 0.2857142857 | M20: 0.0197044335 | N20: 0 | O20: 5806.21996 | P20: 1306.409991 | Q20: 27619.66981 | R20: 29866.51979 | S20: 2265.759984 | T20: 0 | U20: 0 | V20: 0 | W20: 0 | X20: 0 | Y20: 0 | Z20: 0 | AA20: 0 | AB20: 0 | AC20: 0 | AD20: 0 | AE20: 0 | AF20: 0 | AG20: 0 | AH20: 66864.57954 | AI20: 0.005208333333 | AJ20: 555.5190321 | AK20: 0.4827586207 | AL20: 0.3269230769 | AM20: 0 | AN20: 30 | AO20: 0.1040462428 | AP20: 0 | AQ20: 18691.09463 | AR20: 0 | AS20: 18691.09463 | AT20: 6235 | AU20: 1 | AV20: 76833.80146 | AW20: 0 | AX20: 76833.80146 | AY20: 169179.9947 | AZ20: 169179.9947 | BA20: 924.6001604 | BB20: 0 | BC20: 203 | BD20: 1590.812001 | BE20: 75.44885782 | BF20: 866023.8523 | BG20: 0 | BH20: 12499.23715
A21: 8863177 | B21: A2023 | C21: Temple Ewell C.E.P. School | D21: Recoupment Academy | E21: 0 | F21: 0 | G21: 0 | H21: 129 | I21: 0.01550387597 | J21: 0.1627906977 | K21: 0.08527131783 | L21: 0.1240310078 | M21: 0.04651162791 | N21: 0 | O21: 829.4599943 | P21: 9144.869937 | Q21: 5149.429964 | R21: 8239.039943 | S21: 3398.639977 | T21: 0 | U21: 0 | V21: 0 | W21: 0 | X21: 0 | Y21: 0 | Z21: 0 | AA21: 0 | AB21: 0 | AC21: 0 | AD21: 0 | AE21: 0 | AF21: 0 | AG21: 0 | AH21: 26761.43982 | AI21: 0.01709401709 | AJ21: 1158.61188 | AK21: 0.1666666667 | AL21: 0.08333333333 | AM21: 0 | AN21: 18 | AO21: 0.01834862385 | AP21: 0 | AQ21: 2094.621246 | AR21: 0 | AS21: 2094.621246 | AT21: 6235 | AU21: 1 | AV21: 13480.81328 | AW21: 0 | AX21: 13480.81328 | AY21: 49730.48622 | AZ21: 49730.48622 | BA21: 4508.085413 | BB21: 0 | BC21: 129 | BD21: 1590.812001 | BE21: 0 | BF21: 523269.202 | BG21: 0 | BH21: 0
A22: 8862024 | B22: A2024 | C22: Dover Road Community Primary School | D22: Recoupment Academy | E22: 3.9 | F22: 0.9 | G22: 0.04 | H22: 447 | I22: 0.2805429864 | J22: 0.05429864253 | K22: 0.1380090498 | L22: 0.03846153846 | M22: 0.006787330317 | N22: 0 | O22: 52008.2676 | P22: 10569.50708 | Q22: 28878.96068 | R22: 8853.006862 | S22: 1718.543065 | T22: 0 | U22: 0 | V22: 0 | W22: 0 | X22: 0 | Y22: 0 | Z22: 0 | AA22: 0 | AB22: 0 | AC22: 0 | AD22: 0 | AE22: 0 | AF22: 0 | AG22: 0 | AH22: 102028.2853 | AI22: 0.006622516556 | AJ22: 1555.373549 | AK22: 0.3815789474 | AL22: 0.2052401747 | AM22: 0 | AN22: 80 | AO22: 0.2596401028 | AP22: 0 | AQ22: 102705.0012 | AR22: 0 | AS22: 102705.0012 | AT22: 6235 | AU22: 1 | AV22: 116369.3275 | AW22: 0 | AX22: 116369.3275 | AY22: 328892.9875 | AZ22: 328892.9875 | BA22: 0 | BB22: 0 | BC22: 447 | BD22: 1590.812001 | BE22: 10238.80999 | BF22: 1712221.343 | BG22: 0 | BH22: 0
A23: 8862026 | B23: A2026 | C23: Petham Primary School | D23: Recoupment Academy | E23: 0 | F23: 0 | G23: 0 | H23: 99 | I23: 0.2121212121 | J23: 0 | K23: 0 | L23: 0.0303030303 | M23: 0 | N23: 0 | O23: 8709.32994 | P23: 0 | Q23: 0 | R23: 1544.819989 | S23: 0 | T23: 0 | U23: 0 | V23: 0 | W23: 0 | X23: 0 | Y23: 0 | Z23: 0 | AA23: 0 | AB23: 0 | AC23: 0 | AD23: 0 | AE23: 0 | AF23: 0 | AG23: 0 | AH23: 10254.14993 | AI23: 0.009090909091 | AJ23: 472.875314 | AK23: 0.2666666667 | AL23: 0.05454545455 | AM23: 0 | AN23: 15 | AO23: 0.02222222222 | AP23: 0 | AQ23: 1946.861143 | AR23: 0 | AS23: 1946.861143 | AT23: 6235 | AU23: 1 | AV23: 10163.6278 | AW23: 0 | AX23: 10163.6278 | AY23: 29072.51418 | AZ23: 29072.51418 | BA23: 5127.824575 | BB23: 0 | BC23: 99 | BD23: 1590.812001 | BE23: 0 | BF23: 418278.8404 | BG23: 0 | BH23: 0
A24: 8862028 | B24: A2028 | C24: Cliftonville Primary School | D24: Recoupment Academy | E24: 3.9 | F24: 0.9 | G24: 0.37 | H24: 627 | I24: 0.0128 | J24: 0.0816 | K24: 0.0928 | L24: 0.2256 | M24: 0.2528 | N24: 0.1136 | O24: 3328.457065 | P24: 22280.03855 | Q24: 27238.42474 | R24: 72838.88042 | S24: 89783.91144 | T24: 50432.41861 | U24: 0 | V24: 0 | W24: 0 | X24: 0 | Y24: 0 | Z24: 0 | AA24: 0 | AB24: 0 | AC24: 0 | AD24: 0 | AE24: 0 | AF24: 0 | AG24: 0 | AH24: 265902.1308 | AI24: 0.01435406699 | AJ24: 4728.75314 | AK24: 0.3522727273 | AL24: 0.2134146341 | AM24: 0 | AN24: 90 | AO24: 0.1194029851 | AP24: 0 | AQ24: 66251.39411 | AR24: 0 | AS24: 66251.39411 | AT24: 6235 | AU24: 1 | AV24: 159284.3254 | AW24: 0 | AX24: 159284.3254 | AY24: 502401.6035 | AZ24: 502401.6035 | BA24: 0 | BB24: 0 | BC24: 627 | BD24: 0 | BE24: 58896.94716 | BF24: 2451644.467 | BG24: 1 | BH24: 0
A25: 8863903 | B25: A2029 | C25: Tymberwood Academy | D25: Recoupment Academy | E25: 3.9 | F25: 0.9 | G25: 0.11 | H25: 341 | I25: 0.112716763 | J25: 0.3034682081 | K25: 0.2947976879 | L25: 0.09826589595 | M25: 0.04624277457 | N25: 0 | O25: 15940.73477 | P25: 45063.59319 | Q25: 47059.24147 | R25: 17254.95468 | S25: 8932.071152 | T25: 0 | U25: 0 | V25: 0 | W25: 0 | X25: 0 | Y25: 0 | Z25: 0 | AA25: 0 | AB25: 0 | AC25: 0 | AD25: 0 | AE25: 0 | AF25: 0 | AG25: 0 | AH25: 134250.5953 | AI25: 0.02153846154 | AJ25: 3858.985896 | AK25: 0.3214285714 | AL25: 0.4093264249 | AM25: 0 | AN25: 58 | AO25: 0.08223684211 | AP25: 0 | AQ25: 24816.07542 | AR25: 0 | AS25: 24816.07542 | AT25: 6235 | AU25: 1 | AV25: 139896.3902 | AW25: 0 | AX25: 139896.3902 | AY25: 309057.0468 | AZ25: 309057.0468 | BA25: 0 | BB25: 0 | BC25: 341 | BD25: 0 | BE25: 89219.18017 | BF25: 1501603.255 | BG25: 1 | BH25: 0
A26: 8862030 | B26: A2030 | C26: Aylesford Primary School | D26: Recoupment Academy | E26: 0 | F26: 0 | G26: 0 | H26: 217 | I26: 0.01843317972 | J26: 0.2350230415 | K26: 0.004608294931 | L26: 0.03686635945 | M26: 0 | N26: 0 | O26: 1658.919989 | P26: 22208.96985 | Q26: 468.1299968 | R26: 4119.519972 | S26: 0 | T26: 0 | U26: 0 | V26: 0 | W26: 0 | X26: 0 | Y26: 0 | Z26: 0 | AA26: 0 | AB26: 0 | AC26: 0 | AD26: 0 | AE26: 0 | AF26: 0 | AG26: 0 | AH26: 28455.5398 | AI26: 0.01632653061 | AJ26: 1861.477427 | AK26: 0.3414634146 | AL26: 0.04385964912 | AM26: 0 | AN26: 41 | AO26: 0.04232804233 | AP26: 0 | AQ26: 8128.309148 | AR26: 0 | AS26: 8128.309148 | AT26: 6235 | AU26: 1 | AV26: 27880.95001 | AW26: 0 | AX26: 27880.95001 | AY26: 72561.27639 | AZ26: 72561.27639 | BA26: 3823.161708 | BB26: 0 | BC26: 217 | BD26: 1590.812001 | BE26: 0 | BF26: 793137.8584 | BG26: 0 | BH26: 0
A27: 8862033 | B27: A2033 | C27: Pilgrims' Way Primary School | D27: Recoupment Academy | E27: 3.9 | F27: 0.9 | G27: 0.17 | H27: 238 | I27: 0.3966244726 | J27: 0.004219409283 | K27: 0.04641350211 | L27: 0.3459915612 | M27: 0 | N27: 0 | O27: 39149.1118 | P27: 437.3074231 | Q27: 5171.157517 | R27: 42403.2446 | S27: 0 | T27: 0 | U27: 0 | V27: 0 | W27: 0 | X27: 0 | Y27: 0 | Z27: 0 | AA27: 0 | AB27: 0 | AC27: 0 | AD27: 0 | AE27: 0 | AF27: 0 | AG27: 0 | AH27: 87160.82134 | AI27: 0.009478672986 | AJ27: 1185.300945 | AK27: 0.25 | AL27: 0.3854166667 | AM27: 0 | AN27: 30 | AO27: 0.3076923077 | AP27: 0 | AQ27: 64804.60867 | AR27: 0 | AS27: 64804.60867 | AT27: 6235 | AU27: 1 | AV27: 90262.27933 | AW27: 0 | AX27: 90262.27933 | AY27: 249648.0103 | AZ27: 249648.0103 | BA27: 0 | BB27: 0 | BC27: 238 | BD27: 1590.812001 | BE27: 0 | BF27: 1039968.204 | BG27: 0 | BH27: 39770.30002
A28: 8862035 | B28: A2035 | C28: South Avenue Junior School | D28: Recoupment Academy | E28: 0 | F28: 0 | G28: 0 | H28: 221 | I28: 0.09502262443 | J28: 0.1719457014 | K28: 0.1538461538 | L28: 0.004524886878 | M28: 0.0814479638 | N28: 0 | O28: 8709.32994 | P28: 16547.85989 | Q28: 15916.41989 | R28: 514.9399964 | S28: 10195.91993 | T28: 0 | U28: 0 | V28: 0 | W28: 0 | X28: 0 | Y28: 0 | Z28: 0 | AA28: 0 | AB28: 0 | AC28: 0 | AD28: 0 | AE28: 0 | AF28: 0 | AG28: 0 | AH28: 51884.46964 | AI28: 0 | AJ28: 0 | AK28: 0 | AL28: 0.1835443038 | AM28: 0 | AN28: 0 | AO28: 0.06787330317 | AP28: 0 | AQ28: 13274.05325 | AR28: 0 | AS28: 13274.05325 | AT28: 6235 | AU28: 1 | AV28: 42692.40737 | AW28: 0 | AX28: 42692.40737 | AY28: 114085.9303 | AZ28: 114085.9303 | BA28: 2577.422092 | BB28: 0 | BC28: 221 | BD28: 1590.812001 | BE28: 0 | BF28: 847208.5393 | BG28: 0 | BH28: 0
A29: 8862141 | B29: A2141 | C29: Amherst School | D29: Recoupment Academy | E29: 0 | F29: 0 | G29: 0 | H29: 383 | I29: 0 | J29: 0 | K29: 0 | L29: 0 | M29: 0 | N29: 0 | O29: 0 | P29: 0 | Q29: 0 | R29: 0 | S29: 0 | T29: 0 | U29: 0 | V29: 0 | W29: 0 | X29: 0 | Y29: 0 | Z29: 0 | AA29: 0 | AB29: 0 | AC29: 0 | AD29: 0 | AE29: 0 | AF29: 0 | AG29: 0 | AH29: 0 | AI29: 0.002597402597 | AJ29: 522.6875765 | AK29: 0 | AL29: 0.02909090909 | AM29: 0 | AN29: 0 | AO29: 0.0182767624 | AP29: 0 | AQ29: 6194.558182 | AR29: 0 | AS29: 6194.558182 | AT29: 6235 | AU29: 1.016316166 | AV29: 11726.63823 | AW29: 0 | AX29: 11726.63823 | AY29: 25081.54876 | AZ29: 25081.54876 | BA29: 5247.553537 | BB29: 0 | BC29: 383 | BD29: 1590.812001 | BE29: 0 | BF29: 1207806.8 | BG29: 0 | BH29: 0
A30: 8862229 | B30: A2229 | C30: Graveney Primary School | D30: Recoupment Academy | E30: 0 | F30: 0 | G30: 0 | H30: 99 | I30: 0.4591836735 | J30: 0 | K30: 0.0306122449 | L30: 0.07142857143 | M30: 0 | N30: 0 | O30: 18853.28711 | P30: 0 | Q30: 1418.7205 | R30: 3641.361403 | S30: 0 | T30: 0 | U30: 0 | V30: 0 | W30: 0 | X30: 0 | Y30: 0 | Z30: 0 | AA30: 0 | AB30: 0 | AC30: 0 | AD30: 0 | AE30: 0 | AF30: 0 | AG30: 0 | AH30: 23913.36902 | AI30: 0 | AJ30: 0 | AK30: 0.1333333333 | AL30: 0.1403508772 | AM30: 0 | AN30: 15 | AO30: 0 | AP30: 0 | AQ30: 0 | AR30: 0 | AS30: 0 | AT30: 6235 | AU30: 1 | AV30: 14471.72024 | AW30: 0 | AX30: 14471.72024 | AY30: 44620.08926 | AZ30: 44620.08926 | BA30: 4661.397322 | BB30: 0 | BC30: 99 | BD30: 1590.812001 | BE30: 0 | BF30: 431186.4003 | BG30: 0 | BH30: 0
A31: 8862232 | B31: A2232 | C31: Luddenham School | D31: Recoupment Academy | E31: 0 | F31: 0 | G31: 0 | H31: 214 | I31: 0.1822429907 | J31: 0 | K31: 0.05607476636 | L31: 0.2009345794 | M31: 0 | N31: 0 | O31: 16174.46989 | P31: 0 | Q31: 5617.559961 | R31: 22142.41985 | S31: 0 | T31: 0 | U31: 0 | V31: 0 | W31: 0 | X31: 0 | Y31: 0 | Z31: 0 | AA31: 0 | AB31: 0 | AC31: 0 | AD31: 0 | AE31: 0 | AF31: 0 | AG31: 0 | AH31: 43934.4497 | AI31: 0 | AJ31: 0 | AK31: 0.2666666667 | AL31: 0.09677419355 | AM31: 0 | AN31: 30 | AO31: 0.03243243243 | AP31: 0 | AQ31: 6141.940313 | AR31: 0 | AS31: 6141.940313 | AT31: 6235 | AU31: 1 | AV31: 29250.98589 | AW31: 0 | AX31: 29250.98589 | AY31: 85562.3759 | AZ31: 85562.3759 | BA31: 3433.128723 | BB31: 0 | BC31: 214 | BD31: 1590.812001 | BE31: 0 | BF31: 792208.6299 | BG31: 0 | BH31: 0
A32: 8862233 | B32: A2233 | C32: Lynsted and Norton School | D32: Recoupment Academy | E32: 0 | F32: 0 | G32: 0 | H32: 130 | I32: 0.8076923077 | J32: 0 | K32: 0.007692307692 | L32: 0.01538461538 | M32: 0.02307692308 | N32: 0 | O32: 43546.6497 | P32: 0 | Q32: 468.1299968 | R32: 1029.879993 | S32: 1699.319988 | T32: 0 | U32: 0 | V32: 0 | W32: 0 | X32: 0 | Y32: 0 | Z32: 0 | AA32: 0 | AB32: 0 | AC32: 0 | AD32: 0 | AE32: 0 | AF32: 0 | AG32: 0 | AH32: 46743.97968 | AI32: 0 | AJ32: 0 | AK32: 0.3636363636 | AL32: 0.1285714286 | AM32: 0 | AN32: 22 | AO32: 0.08181818182 | AP32: 0 | AQ32: 9412.510484 | AR32: 0 | AS32: 9412.510484 | AT32: 6235 | AU32: 1 | AV32: 24962.15121 | AW32: 0 | AX32: 24962.15121 | AY32: 87353.64137 | AZ32: 87353.64137 | BA32: 3379.390759 | BB32: 0 | BC32: 130 | BD32: 1590.812001 | BE32: 0 | BF32: 564397.2687 | BG32: 0 | BH32: 0
A33: 8862246 | B33: A2246 | C33: Sheldwich Primary School | D33: Recoupment Academy | E33: 0 | F33: 0 | G33: 0 | H33: 216 | I33: 0.1157407407 | J33: 0 | K33: 0.03703703704 | L33: 0 | M33: 0 | N33: 0 | O33: 10368.24993 | P33: 0 | Q33: 3745.039974 | R33: 0 | S33: 0 | T33: 0 | U33: 0 | V33: 0 | W33: 0 | X33: 0 | Y33: 0 | Z33: 0 | AA33: 0 | AB33: 0 | AC33: 0 | AD33: 0 | AE33: 0 | AF33: 0 | AG33: 0 | AH33: 14113.2899 | AI33: 0 | AJ33: 0 | AK33: 0.1612903226 | AL33: 0.08403361345 | AM33: 0 | AN33: 31 | AO33: 0.02173913043 | AP33: 0 | AQ33: 4155.355799 | AR33: 0 | AS33: 4155.355799 | AT33: 6235 | AU33: 1 | AV33: 22662.58513 | AW33: 0 | AX33: 22662.58513 | AY33: 47166.23083 | AZ33: 47166.23083 | BA33: 4585.013075 | BB33: 0 | BC33: 216 | BD33: 1590.812001 | BE33: 0 | BF33: 755774.5922 | BG33: 0 | BH33: 0
A34: 8862249 | B34: A2249 | C34: Regis Manor Primary School | D34: Recoupment Academy | E34: 3.9 | F34: 0.9 | G34: 0.21 | H34: 389 | I34: 0.02319587629 | J34: 0 | K34: 0.425257732 | L34: 0.1134020619 | M34: 0 | N34: 0 | O34: 3742.19 | P34: 0 | Q34: 77440.52537 | R34: 22715.7551 | S34: 0 | T34: 0 | U34: 0 | V34: 0 | W34: 0 | X34: 0 | Y34: 0 | Z34: 0 | AA34: 0 | AB34: 0 | AC34: 0 | AD34: 0 | AE34: 0 | AF34: 0 | AG34: 0 | AH34: 103898.4705 | AI34: 0.01351351351 | AJ34: 2761.989447 | AK34: 0.224137931 | AL34: 0.2488479263 | AM34: 0 | AN34: 60 | AO34: 0.03636363636 | AP34: 0 | AQ34: 12517.83446 | AR34: 0 | AS34: 12517.83446 | AT34: 6235 | AU34: 1 | AV34: 99782.4935 | AW34: 0 | AX34: 99782.4935 | AY34: 225195.7879 | AZ34: 225195.7879 | BA34: 0 | BB34: 0 | BC34: 389 | BD34: 1590.812001 | BE34: 97663.61085 | BF34: 1541742.299 | BG34: 0 | BH34: 0
A35: 8862264 | B35: A2264 | C35: HAMPTON PRIMARY SCHOOL | D35: Recoupment Academy | E35: 3.9 | F35: 0.9 | G35: 0 | H35: 541 | I35: 0 | J35: 0.05204460967 | K35: 0.2602230483 | L35: 0.01672862454 | M35: 0.001858736059 | N35: 0 | O35: 0 | P35: 12261.15151 | Q35: 65903.65419 | R35: 4660.302682 | S35: 569.5985834 | T35: 0 | U35: 0 | V35: 0 | W35: 0 | X35: 0 | Y35: 0 | Z35: 0 | AA35: 0 | AB35: 0 | AC35: 0 | AD35: 0 | AE35: 0 | AF35: 0 | AG35: 0 | AH35: 83394.70697 | AI35: 0.008639308855 | AJ35: 2455.728773 | AK35: 0.3333333333 | AL35: 0.1544117647 | AM35: 0 | AN35: 83 | AO35: 0.03777777778 | AP35: 0 | AQ35: 18086.14336 | AR35: 0 | AS35: 18086.14336 | AT35: 6235 | AU35: 1 | AV35: 110836.9946 | AW35: 0 | AX35: 110836.9946 | AY35: 221008.5737 | AZ35: 221008.5737 | BA35: 0 | BB35: 0 | BC35: 541 | BD35: 1590.812001 | BE35: 0 | BF35: 1866735.325 | BG35: 0 | BH35: 69313.95146
A36: 8862286 | B36: A2286 | C36: Hamstreet Primary School | D36: Recoupment Academy | E36: 0 | F36: 0 | G36: 0 | H36: 304 | I36: 0.05921052632 | J36: 0.01315789474 | K36: 0.003289473684 | L36: 0 | M36: 0 | N36: 0 | O36: 7465.139948 | P36: 1741.879988 | Q36: 468.1299968 | R36: 0 | S36: 0 | T36: 0 | U36: 0 | V36: 0 | W36: 0 | X36: 0 | Y36: 0 | Z36: 0 | AA36: 0 | AB36: 0 | AC36: 0 | AD36: 0 | AE36: 0 | AF36: 0 | AG36: 0 | AH36: 9675.149933 | AI36: 0 | AJ36: 0 | AK36: 0.3191489362 | AL36: 0.08928571429 | AM36: 0 | AN36: 47 | AO36: 0.02671755725 | AP36: 0 | AQ36: 7187.578959 | AR36: 0 | AS36: 7187.578959 | AT36: 6235 | AU36: 1 | AV36: 44351.45004 | AW36: 0 | AX36: 44351.45004 | AY36: 67449.17893 | AZ36: 67449.17893 | BA36: 3976.524632 | BB36: 0 | BC36: 304 | BD36: 1590.812001 | BE36: 0 | BF36: 1021857.803 | BG36: 0 | BH36: 0
A37: 8862288 | B37: A2288 | C37: Smarden Primary School | D37: Recoupment Academy | E37: 0 | F37: 0 | G37: 0 | H37: 104 | I37: 0 | J37: 0 | K37: 0 | L37: 0 | M37: 0 | N37: 0 | O37: 0 | P37: 0 | Q37: 0 | R37: 0 | S37: 0 | T37: 0 | U37: 0 | V37: 0 | W37: 0 | X37: 0 | Y37: 0 | Z37: 0 | AA37: 0 | AB37: 0 | AC37: 0 | AD37: 0 | AE37: 0 | AF37: 0 | AG37: 0 | AH37: 0 | AI37: 0 | AJ37: 0 | AK37: 0.3 | AL37: 0.01851851852 | AM37: 0 | AN37: 10 | AO37: 0.02352941176 | AP37: 0 | AQ37: 2165.492608 | AR37: 0 | AS37: 2165.492608 | AT37: 6235 | AU37: 1 | AV37: 6625.617371 | AW37: 0 | AX37: 6625.617371 | AY37: 15026.10998 | AZ37: 15026.10998 | BA37: 5549.216701 | BB37: 0 | BC37: 104 | BD37: 1590.812001 | BE37: 6111.146988 | BF37: 423091.0059 | BG37: 0 | BH37: 0
A38: 8862307 | B38: A2307 | C38: Warden House Primary School | D38: Recoupment Academy | E38: 0 | F38: 0 | G38: 0 | H38: 389 | I38: 0.3496143959 | J38: 0.08997429306 | K38: 0.1722365039 | L38: 0 | M38: 0 | N38: 0 | O38: 56403.27961 | P38: 15241.44989 | Q38: 31364.70978 | R38: 0 | S38: 0 | T38: 0 | U38: 0 | V38: 0 | W38: 0 | X38: 0 | Y38: 0 | Z38: 0 | AA38: 0 | AB38: 0 | AC38: 0 | AD38: 0 | AE38: 0 | AF38: 0 | AG38: 0 | AH38: 103009.4393 | AI38: 0.005434782609 | AJ38: 1110.800104 | AK38: 0.2444444444 | AL38: 0.1725663717 | AM38: 0 | AN38: 46 | AO38: 0.009090909091 | AP38: 0 | AQ38: 3129.458614 | AR38: 0 | AS38: 3129.458614 | AT38: 6235 | AU38: 1 | AV38: 75574.33261 | AW38: 0 | AX38: 75574.33261 | AY38: 189059.0306 | AZ38: 189059.0306 | BA38: 328.2290815 | BB38: 0 | BC38: 389 | BD38: 1590.812001 | BE38: 5957.602607 | BF38: 1405187.52 | BG38: 0 | BH38: 11250.27906
A39: 8862310 | B39: A2310 | C39: Barton Junior School | D39: Recoupment Academy | E39: 0 | F39: 0 | G39: 0 | H39: 181 | I39: 0.005524861878 | J39: 0.3314917127 | K39: 0.1878453039 | L39: 0.364640884 | M39: 0.08839779006 | N39: 0 | O39: 414.7299971 | P39: 26128.19982 | Q39: 15916.41989 | R39: 33986.03977 | S39: 9063.039937 | T39: 0 | U39: 0 | V39: 0 | W39: 0 | X39: 0 | Y39: 0 | Z39: 0 | AA39: 0 | AB39: 0 | AC39: 0 | AD39: 0 | AE39: 0 | AF39: 0 | AG39: 0 | AH39: 85508.42941 | AI39: 0.01829268293 | AJ39: 1739.642923 | AK39: 0 | AL39: 0.2 | AM39: 0 | AN39: 0 | AO39: 0.03314917127 | AP39: 0 | AQ39: 5309.621298 | AR39: 0 | AS39: 5309.621298 | AT39: 6235 | AU39: 1 | AV39: 38100.09256 | AW39: 0 | AX39: 38100.09256 | AY39: 136892.7862 | AZ39: 136892.7862 | BA39: 1893.216414 | BB39: 0 | BC39: 181 | BD39: 1590.812001 | BE39: 26082.4929 | BF39: 793182.1438 | BG39: 0 | BH39: 6727.7306
A40: 8862315 | B40: A2315 | C40: WHITECLIFFS PRIMARY COLLEGE | D40: Recoupment Academy | E40: 0 | F40: 0 | G40: 0 | H40: 188 | I40: 0.01630434783 | J40: 0.08695652174 | K40: 0.02173913043 | L40: 0.3206521739 | M40: 0.5326086957 | N40: 0 | O40: 1271.2376 | P40: 7118.987777 | Q40: 1913.226943 | R40: 31041.92631 | S40: 56717.88309 | T40: 0 | U40: 0 | V40: 0 | W40: 0 | X40: 0 | Y40: 0 | Z40: 0 | AA40: 0 | AB40: 0 | AC40: 0 | AD40: 0 | AE40: 0 | AF40: 0 | AG40: 0 | AH40: 98063.26171 | AI40: 0.01169590643 | AJ40: 1155.302911 | AK40: 0.2333333333 | AL40: 0.2258064516 | AM40: 0 | AN40: 30 | AO40: 0.0522875817 | AP40: 0 | AQ40: 8698.9874 | AR40: 0 | AS40: 8698.9874 | AT40: 6235 | AU40: 1 | AV40: 45026.20016 | AW40: 0 | AX40: 45026.20016 | AY40: 159178.7522 | AZ40: 159178.7522 | BA40: 1224.637434 | BB40: 0 | BC40: 188 | BD40: 1590.812001 | BE40: 0 | BF40: 827606.5983 | BG40: 0 | BH40: 22086.43652
A41: 8862316 | B41: A2316 | C41: Shatterlocks Infant and Nursery School | D41: Recoupment Academy | E41: 3.9 | F41: 0.9 | G41: 0.42 | H41: 169 | I41: 0.01183431953 | J41: 0.3668639053 | K41: 0.1124260355 | L41: 0.4142011834 | M41: 0.07692307692 | N41: 0 | O41: 829.4599943 | P41: 26999.13981 | Q41: 8894.469939 | R41: 36045.79975 | S41: 7363.719949 | T41: 0 | U41: 0 | V41: 0 | W41: 0 | X41: 0 | Y41: 0 | Z41: 0 | AA41: 0 | AB41: 0 | AC41: 0 | AD41: 0 | AE41: 0 | AF41: 0 | AG41: 0 | AH41: 80132.58945 | AI41: 0.01226993865 | AJ41: 1089.515038 | AK41: 0.2641509434 | AL41: 0.2037037037 | AM41: 0 | AN41: 53 | AO41: 0.06481481481 | AP41: 0 | AQ41: 9693.336414 | AR41: 0 | AS41: 9693.336414 | AT41: 6235 | AU41: 1 | AV41: 41509.23931 | AW41: 0 | AX41: 41509.23931 | AY41: 138659.6802 | AZ41: 138659.6802 | BA41: 1840.209594 | BB41: 0 | BC41: 169 | BD41: 1590.812001 | BE41: 6838.143034 | BF41: 743763.5159 | BG41: 0 | BH41: 0
A42: 8862435 | B42: A2435 | C42: South Avenue Infant School | D42: Recoupment Academy | E42: 0 | F42: 0 | G42: 0 | H42: 176 | I42: 0.07386363636 | J42: 0.1761363636 | K42: 0.2102272727 | L42: 0.02272727273 | M42: 0.04545454545 | N42: 0 | O42: 5391.489963 | P42: 13499.56991 | Q42: 17320.80988 | R42: 2059.759986 | S42: 4531.519969 | T42: 0 | U42: 0 | V42: 0 | W42: 0 | X42: 0 | Y42: 0 | Z42: 0 | AA42: 0 | AB42: 0 | AC42: 0 | AD42: 0 | AE42: 0 | AF42: 0 | AG42: 0 | AH42: 42803.1497 | AI42: 0.005681818182 | AJ42: 525.4170156 | AK42: 0.3103448276 | AL42: 0.01818181818 | AM42: 0 | AN42: 59 | AO42: 0.0775862069 | AP42: 0 | AQ42: 12083.96571 | AR42: 0 | AS42: 12083.96571 | AT42: 6235 | AU42: 1 | AV42: 30894.36165 | AW42: 0 | AX42: 30894.36165 | AY42: 92541.89408 | AZ42: 92541.89408 | BA42: 3223.743178 | BB42: 0 | BC42: 176 | BD42: 1590.812001 | BE42: 0 | BF42: 699511.6159 | BG42: 0 | BH42: 0
A43: 8862438 | B43: A2438 | C43: Joydens Wood C Junior School | D43: Recoupment Academy | E43: 0 | F43: 0 | G43: 0 | H43: 290 | I43: 0.04152249135 | J43: 0.006920415225 | K43: 0.006920415225 | L43: 0 | M43: 0 | N43: 0 | O43: 4993.980588 | P43: 873.9536272 | Q43: 939.4996475 | R43: 0 | S43: 0 | T43: 0 | U43: 0 | V43: 0 | W43: 0 | X43: 0 | Y43: 0 | Z43: 0 | AA43: 0 | AB43: 0 | AC43: 0 | AD43: 0 | AE43: 0 | AF43: 0 | AG43: 0 | AH43: 6807.433863 | AI43: 0.01048951049 | AJ43: 1598.296516 | AK43: 0 | AL43: 0.1179245283 | AM43: 0 | AN43: 0 | AO43: 0.04137931034 | AP43: 0 | AQ43: 10619.2426 | AR43: 0 | AS43: 10619.2426 | AT43: 6235 | AU43: 1.016316166 | AV43: 35993.12924 | AW43: 0 | AX43: 35993.12924 | AY43: 62252.518 | AZ43: 62252.518 | BA43: 4132.42446 | BB43: 0 | BC43: 290 | BD43: 1590.812001 | BE43: 0 | BF43: 987437.8809 | BG43: 0 | BH43: 0
A44: 8862500 | B44: A2500 | C44: Joydens Wood Infant School | D44: Recoupment Academy | E44: 0 | F44: 0 | G44: 0 | H44: 221 | I44: 0.03181818182 | J44: 0.004545454545 | K44: 0 | L44: 0 | M44: 0 | N44: 0 | O44: 2916.305934 | P44: 437.4494061 | Q44: 0 | R44: 0 | S44: 0 | T44: 0 | U44: 0 | V44: 0 | W44: 0 | X44: 0 | Y44: 0 | Z44: 0 | AA44: 0 | AB44: 0 | AC44: 0 | AD44: 0 | AE44: 0 | AF44: 0 | AG44: 0 | AH44: 3353.75534 | AI44: 0.009090909091 | AJ44: 1055.610549 | AK44: 0.2972972973 | AL44: 0.09722222222 | AM44: 0 | AN44: 74 | AO44: 0.231292517 | AP44: 0 | AQ44: 45234.12068 | AR44: 0 | AS44: 45234.12068 | AT44: 6235 | AU44: 1.016316166 | AV44: 46040.9133 | AW44: 0 | AX44: 46040.9133 | AY44: 103582.3337 | AZ44: 103582.3337 | BA44: 2892.529989 | BB44: 0 | BC44: 221 | BD44: 1590.812001 | BE44: 0 | BF44: 835660.6683 | BG44: 0 | BH44: 0
A45: 8862511 | B45: A2511 | C45: HARTLEY PRIMARY ACADEMY | D45: Recoupment Academy | E45: 0 | F45: 0 | G45: 0 | H45: 411 | I45: 0.08168316832 | J45: 0.009900990099 | K45: 0.146039604 | L45: 0.009900990099 | M45: 0 | N45: 0 | O45: 13923.22513 | P45: 1772.061077 | Q45: 28098.22844 | R45: 2095.448896 | S45: 0 | T45: 0 | U45: 0 | V45: 0 | W45: 0 | X45: 0 | Y45: 0 | Z45: 0 | AA45: 0 | AB45: 0 | AC45: 0 | AD45: 0 | AE45: 0 | AF45: 0 | AG45: 0 | AH45: 45888.96354 | AI45: 0.007731958763 | AJ45: 1669.688609 | AK45: 0.1754385965 | AL45: 0.05 | AM45: 0 | AN45: 60 | AO45: 0.03757225434 | AP45: 0 | AQ45: 13665.36927 | AR45: 0 | AS45: 13665.36927 | AT45: 6235 | AU45: 1.016316166 | AV45: 32972.47664 | AW45: 0 | AX45: 32972.47664 | AY45: 102070.1551 | AZ45: 102070.1551 | BA45: 2937.895348 | BB45: 0 | BC45: 411 | BD45: 1590.812001 | BE45: 0 | BF45: 1368754.863 | BG45: 0 | BH45: 23474.16633
A46: 8862595 | B46: A2595 | C46: Grove Park Primary School | D46: Recoupment Academy | E46: 0 | F46: 0 | G46: 0 | H46: 420 | I46: 0.07142857143 | J46: 0.04285714286 | K46: 0.3095238095 | L46: 0.03571428571 | M46: 0.002380952381 | N46: 0 | O46: 12441.89991 | P46: 7838.459946 | Q46: 60856.89958 | R46: 7724.099947 | S46: 566.4399961 | T46: 0 | U46: 0 | V46: 0 | W46: 0 | X46: 0 | Y46: 0 | Z46: 0 | AA46: 0 | AB46: 0 | AC46: 0 | AD46: 0 | AE46: 0 | AF46: 0 | AG46: 0 | AH46: 89427.79938 | AI46: 0.007025761124 | AJ46: 1550.410866 | AK46: 0.3166666667 | AL46: 0.2832618026 | AM46: 0 | AN46: 60 | AO46: 0.02222222222 | AP46: 0 | AQ46: 8259.410909 | AR46: 0 | AS46: 8259.410909 | AT46: 6235 | AU46: 1 | AV46: 128167.8332 | AW46: 0 | AX46: 128167.8332 | AY46: 233640.4544 | AZ46: 233640.4544 | BA46: 0 | BB46: 0 | BC46: 420 | BD46: 1590.812001 | BE46: 0 | BF46: 1516460.114 | BG46: 0 | BH46: 0
A47: 8862608 | B47: A2608 | C47: St Stephen's C.P. Junior | D47: Recoupment Academy | E47: 0 | F47: 0 | G47: 0 | H47: 379 | I47: 0.1587301587 | J47: 0.02645502646 | K47: 0.2248677249 | L47: 0.1825396825 | M47: 0 | N47: 0 | O47: 24949.62999 | P47: 4366.22034 | Q47: 39896.31705 | R47: 35624.85674 | S47: 0 | T47: 0 | U47: 0 | V47: 0 | W47: 0 | X47: 0 | Y47: 0 | Z47: 0 | AA47: 0 | AB47: 0 | AC47: 0 | AD47: 0 | AE47: 0 | AF47: 0 | AG47: 0 | AH47: 104837.0241 | AI47: 0.002666666667 | AJ47: 531.0214637 | AK47: 0 | AL47: 0.15 | AM47: 0 | AN47: 0 | AO47: 0.06068601583 | AP47: 0 | AQ47: 20353.54831 | AR47: 0 | AS47: 20353.54831 | AT47: 6235 | AU47: 1 | AV47: 59833.98513 | AW47: 0 | AX47: 59833.98513 | AY47: 191790.579 | AZ47: 191790.579 | BA47: 246.2826292 | BB47: 0 | BC47: 379 | BD47: 1590.812001 | BE47: 3679.666632 | BF47: 1369086.556 | BG47: 0 | BH47: 0
A48: 8862654 | B48: A2654 | C48: Canterbury Primary School | D48: Recoupment Academy | E48: 0 | F48: 0 | G48: 0 | H48: 206 | I48: 0.04368932039 | J48: 0.1310679612 | K48: 0.4854368932 | L48: 0.09708737864 | M48: 0 | N48: 0 | O48: 3732.569974 | P48: 11757.68992 | Q48: 46812.99968 | R48: 10298.79993 | S48: 0 | T48: 0 | U48: 0 | V48: 0 | W48: 0 | X48: 0 | Y48: 0 | Z48: 0 | AA48: 0 | AB48: 0 | AC48: 0 | AD48: 0 | AE48: 0 | AF48: 0 | AG48: 0 | AH48: 72602.0595 | AI48: 0.005076142132 | AJ48: 549.4208386 | AK48: 0.2333333333 | AL48: 0.2530120482 | AM48: 0 | AN48: 30 | AO48: 0.07344632768 | AP48: 0 | AQ48: 13389.04504 | AR48: 0 | AS48: 13389.04504 | AT48: 6235 | AU48: 1 | AV48: 53954.8273 | AW48: 0 | AX48: 53954.8273 | AY48: 146730.3527 | AZ48: 146730.3527 | BA48: 1598.08942 | BB48: 0 | BC48: 206 | BD48: 1590.812001 | BE48: 6839.52369 | BF48: 857707.1064 | BG48: 0 | BH48: 12499.23715
A49: 8862656 | B49: A2656 | C49: Meopham Community Academy | D49: Recoupment Academy | E49: 0 | F49: 0 | G49: 0 | H49: 434 | I49: 0.03935185185 | J49: 0.01388888889 | K49: 0.0162037037 | L49: 0.01157407407 | M49: 0 | N49: 0 | O49: 7083.050738 | P49: 2624.916371 | Q49: 3292.080857 | R49: 2586.61989 | S49: 0 | T49: 0 | U49: 0 | V49: 0 | W49: 0 | X49: 0 | Y49: 0 | Z49: 0 | AA49: 0 | AB49: 0 | AC49: 0 | AD49: 0 | AE49: 0 | AF49: 0 | AG49: 0 | AH49: 15586.66786 | AI49: 0 | AJ49: 0 | AK49: 0.3728813559 | AL49: 0.09387755102 | AM49: 0 | AN49: 59 | AO49: 0.01340482574 | AP49: 0 | AQ49: 5148.292322 | AR49: 0 | AS49: 5148.292322 | AT49: 6235 | AU49: 1 | AV49: 67136.75347 | AW49: 0 | AX49: 67136.75347 | AY49: 94106.71364 | AZ49: 94106.71364 | BA49: 3176.798591 | BB49: 0 | BC49: 434 | BD49: 1590.812001 | BE49: 0 | BF49: 1402732.552 | BG49: 0 | BH49: 0
A50: 8862679 | B50: A2679 | C50: The Brent Primary School | D50: Recoupment Academy | E50: 0 | F50: 0 | G50: 0 | H50: 416 | I50: 0.05288461538 | J50: 0.2163461538 | K50: 0.009615384615 | L50: 0.04326923077 | M50: 0.002403846154 | N50: 0 | O50: 9124.059937 | P50: 39192.29973 | Q50: 1872.519987 | R50: 9268.919936 | S50: 566.4399961 | T50: 0 | U50: 0 | V50: 0 | W50: 0 | X50: 0 | Y50: 0 | Z50: 0 | AA50: 0 | AB50: 0 | AC50: 0 | AD50: 0 | AE50: 0 | AF50: 0 | AG50: 0 | AH50: 60024.23959 | AI50: 0.007317073171 | AJ50: 1599.318135 | AK50: 0.2881355932 | AL50: 0.1834061135 | AM50: 0 | AN50: 60 | AO50: 0.08683473389 | AP50: 0 | AQ50: 31966.79564 | AR50: 0 | AS50: 31966.79564 | AT50: 6235 | AU50: 1.016316166 | AV50: 89565.16189 | AW50: 0 | AX50: 89565.16189 | AY50: 192480.6423 | AZ50: 192480.6423 | BA50: 225.58073 | BB50: 0 | BC50: 416 | BD50: 1590.812001 | BE50: 35230.33673 | BF50: 1551054.556 | BG50: 0 | BH50: 0
A51: 8862684 | B51: A2684 | C51: Wentworth C P | D51: Recoupment Academy | E51: 0 | F51: 0 | G51: 0 | H51: 500 | I51: 0.228 | J51: 0.008 | K51: 0.004 | L51: 0.01 | M51: 0 | N51: 0 | O51: 47279.21967 | P51: 1741.879988 | Q51: 936.2599935 | R51: 2574.699982 | S51: 0 | T51: 0 | U51: 0 | V51: 0 | W51: 0 | X51: 0 | Y51: 0 | Z51: 0 | AA51: 0 | AB51: 0 | AC51: 0 | AD51: 0 | AE51: 0 | AF51: 0 | AG51: 0 | AH51: 52532.05964 | AI51: 0 | AJ51: 0 | AK51: 0.3142857143 | AL51: 0.1595744681 | AM51: 0 | AN51: 70 | AO51: 0.04418604651 | AP51: 0 | AQ51: 19550.93114 | AR51: 0 | AS51: 19550.93114 | AT51: 6235 | AU51: 1.016316166 | AV51: 99983.91463 | AW51: 0 | AX51: 99983.91463 | AY51: 181211.1089 | AZ51: 181211.1089 | BA51: 563.6667331 | BB51: 0 | BC51: 500 | BD51: 1590.812001 | BE51: 0 | BF51: 1705507.202 | BG51: 0 | BH51: 0
A52: 8862685 | B52: A2685 | C52: The Gateway Primary Academy | D52: Recoupment Academy | E52: 0 | F52: 0 | G52: 0 | H52: 208 | I52: 0.02898550725 | J52: 0.08695652174 | K52: 0 | L52: 0.06763285024 | M52: 0 | N52: 0 | O52: 2500.401142 | P52: 7876.326902 | Q52: 0 | R52: 7243.98681 | S52: 0 | T52: 0 | U52: 0 | V52: 0 | W52: 0 | X52: 0 | Y52: 0 | Z52: 0 | AA52: 0 | AB52: 0 | AC52: 0 | AD52: 0 | AE52: 0 | AF52: 0 | AG52: 0 | AH52: 17620.71485 | AI52: 0 | AJ52: 0 | AK52: 0.3 | AL52: 0.2372881356 | AM52: 0 | AN52: 30 | AO52: 0.06741573034 | AP52: 0 | AQ52: 12409.00259 | AR52: 0 | AS52: 12409.00259 | AT52: 6235 | AU52: 1.016316166 | AV52: 54692.31003 | AW52: 0 | AX52: 54692.31003 | AY52: 92441.09743 | AZ52: 92441.09743 | BA52: 3226.767077 | BB52: 0 | BC52: 208 | BD52: 1590.812001 | BE52: 0 | BF52: 805581.8784 | BG52: 0 | BH52: 0
A53: 8862686 | B53: A2686 | C53: Furley Park Primary School | D53: Recoupment Academy | E53: 0 | F53: 0 | G53: 0 | H53: 471 | I53: 0.002150537634 | J53: 0.03010752688 | K53: 0.004301075269 | L53: 0.01720430108 | M53: 0.006451612903 | N53: 0 | O53: 420.0813519 | P53: 6175.245506 | Q53: 948.3407676 | R53: 4172.675068 | S53: 1721.246698 | T53: 0 | U53: 0 | V53: 0 | W53: 0 | X53: 0 | Y53: 0 | Z53: 0 | AA53: 0 | AB53: 0 | AC53: 0 | AD53: 0 | AE53: 0 | AF53: 0 | AG53: 0 | AH53: 13437.58939 | AI53: 0.006637168142 | AJ53: 1642.509387 | AK53: 0.4050632911 | AL53: 0.02597402597 | AM53: 0 | AN53: 82 | AO53: 0.07915567282 | AP53: 0 | AQ53: 32992.50174 | AR53: 0 | AS53: 32992.50174 | AT53: 6235 | AU53: 1 | AV53: 61031.1608 | AW53: 0 | AX53: 61031.1608 | AY53: 115338.7613 | AZ53: 115338.7613 | BA53: 2539.83716 | BB53: 0 | BC53: 471 | BD53: 1590.812001 | BE53: 0 | BF53: 1534170.76 | BG53: 0 | BH53: 0
A54: 8863025 | B54: A3025 | C54: Chiddingstone Church of England School | D54: Recoupment Academy | E54: 0 | F54: 0 | G54: 0 | H54: 204 | I54: 0.004901960784 | J54: 0 | K54: 0.01960784314 | L54: 0 | M54: 0 | N54: 0 | O54: 414.7299971 | P54: 0 | Q54: 1872.519987 | R54: 0 | S54: 0 | T54: 0 | U54: 0 | V54: 0 | W54: 0 | X54: 0 | Y54: 0 | Z54: 0 | AA54: 0 | AB54: 0 | AC54: 0 | AD54: 0 | AE54: 0 | AF54: 0 | AG54: 0 | AH54: 2287.249984 | AI54: 0 | AJ54: 0 | AK54: 0.2333333333 | AL54: 0.01785714286 | AM54: 0 | AN54: 30 | AO54: 0 | AP54: 0 | AQ54: 0 | AR54: 0 | AS54: 0 | AT54: 6235 | AU54: 1.016316166 | AV54: 13211.98468 | AW54: 0 | AX54: 13211.98468 | AY54: 22088.85404 | AZ54: 22088.85404 | BA54: 5337.334379 | BB54: 0 | BC54: 204 | BD54: 1590.812001 | BE54: 0 | BF54: 706452.3275 | BG54: 0 | BH54: 2272.588572
A55: 8863086 | B55: A3086 | C55: West Malling Church Of England Academy Trust | D55: Recoupment Academy | E55: 0 | F55: 0 | G55: 0 | H55: 193 | I55: 0.04807692308 | J55: 0.2115384615 | K55: 0.04326923077 | L55: 0.0625 | M55: 0 | N55: 0 | O55: 3848.215839 | P55: 17778.90007 | Q55: 3909.335598 | R55: 6211.463707 | S55: 0 | T55: 0 | U55: 0 | V55: 0 | W55: 0 | X55: 0 | Y55: 0 | Z55: 0 | AA55: 0 | AB55: 0 | AC55: 0 | AD55: 0 | AE55: 0 | AF55: 0 | AG55: 0 | AH55: 31747.91521 | AI55: 0.005235602094 | AJ55: 530.9187644 | AK55: 0.3 | AL55: 0.2869565217 | AM55: 0 | AN55: 32 | AO55: 0.01142857143 | AP55: 0 | AQ55: 1951.917925 | AR55: 0 | AS55: 1951.917925 | AT55: 6235 | AU55: 1 | AV55: 58843.72153 | AW55: 0 | AX55: 58843.72153 | AY55: 99309.47344 | AZ55: 99309.47344 | BA55: 3020.715797 | BB55: 0 | BC55: 193 | BD55: 1590.812001 | BE55: 9882.406937 | BF55: 767942.4919 | BG55: 0 | BH55: 2907.969208
A56: 8863110 | B56: A3110 | C56: Milstead and Frinsted C E P | D56: Recoupment Academy | E56: 0 | F56: 0 | G56: 0 | H56: 81 | I56: 0.1728395062 | J56: 0.1111111111 | K56: 0.08641975309 | L56: 0.01234567901 | M56: 0 | N56: 0 | O56: 5806.21996 | P56: 3919.229973 | Q56: 3276.909977 | R56: 514.9399964 | S56: 0 | T56: 0 | U56: 0 | V56: 0 | W56: 0 | X56: 0 | Y56: 0 | Z56: 0 | AA56: 0 | AB56: 0 | AC56: 0 | AD56: 0 | AE56: 0 | AF56: 0 | AG56: 0 | AH56: 13517.29991 | AI56: 0.01315789474 | AJ56: 559.9839245 | AK56: 0.6153846154 | AL56: 0.08695652174 | AM56: 0 | AN56: 13 | AO56: 0 | AP56: 0 | AQ56: 0 | AR56: 0 | AS56: 0 | AT56: 6235 | AU56: 1 | AV56: 16709.07597 | AW56: 0 | AX56: 16709.07597 | AY56: 37021.3598 | AZ56: 37021.3598 | BA56: 4889.359206 | BB56: 0 | BC56: 81 | BD56: 1590.812001 | BE56: 0 | BF56: 377083.0753 | BG56: 0 | BH56: 5681.471431
A57: 8863112 | B57: A3112 | C57: Selling C of E Primary | D57: Recoupment Academy | E57: 0 | F57: 0 | G57: 0 | H57: 185 | I57: 0.1837837838 | J57: 0 | K57: 0.03243243243 | L57: 0 | M57: 0 | N57: 0 | O57: 14100.8199 | P57: 0 | Q57: 2808.779981 | R57: 0 | S57: 0 | T57: 0 | U57: 0 | V57: 0 | W57: 0 | X57: 0 | Y57: 0 | Z57: 0 | AA57: 0 | AB57: 0 | AC57: 0 | AD57: 0 | AE57: 0 | AF57: 0 | AG57: 0 | AH57: 16909.59988 | AI57: 0 | AJ57: 0 | AK57: 0.0625 | AL57: 0.09278350515 | AM57: 0 | AN57: 32 | AO57: 0.01234567901 | AP57: 0 | AQ57: 2021.15214 | AR57: 0 | AS57: 2021.15214 | AT57: 6235 | AU57: 1 | AV57: 16678.50001 | AW57: 0 | AX57: 16678.50001 | AY57: 41844.25203 | AZ57: 41844.25203 | BA57: 4744.672439 | BB57: 0 | BC57: 185 | BD57: 1590.812001 | BE57: 0 | BF57: 665173.2204 | BG57: 0 | BH57: 0
A58: 8863128 | B58: A3128 | C58: Sturry C.E.Primary School | D58: Recoupment Academy | E58: 0 | F58: 0 | G58: 0 | H58: 360 | I58: 0.005602240896 | J58: 0.002801120448 | K58: 0.3277310924 | L58: 0.08403361345 | M58: 0.005602240896 | N58: 0 | O58: 836.4302463 | P58: 439.1294087 | Q58: 55231.47189 | R58: 15578.0167 | S58: 1142.399992 | T58: 0 | U58: 0 | V58: 0 | W58: 0 | X58: 0 | Y58: 0 | Z58: 0 | AA58: 0 | AB58: 0 | AC58: 0 | AD58: 0 | AE58: 0 | AF58: 0 | AG58: 0 | AH58: 73227.44823 | AI58: 0.002923976608 | AJ58: 553.0705427 | AK58: 0.2131147541 | AL58: 0.2091836735 | AM58: 0 | AN58: 62 | AO58: 0.01954397394 | AP58: 0 | AQ58: 6226.266018 | AR58: 0 | AS58: 6226.266018 | AT58: 6235 | AU58: 1 | AV58: 79612.66687 | AW58: 0 | AX58: 79612.66687 | AY58: 165854.4517 | AZ58: 165854.4517 | BA58: 1024.36645 | BB58: 0 | BC58: 360 | BD58: 1590.812001 | BE58: 0 | BF58: 1292588.384 | BG58: 0 | BH58: 11362.94286
A59: 8863142 | B59: A3142 | C59: Pluckley Church of England Primary School | D59: Recoupment Academy | E59: 0 | F59: 0 | G59: 0 | H59: 125 | I59: 0.064 | J59: 0 | K59: 0.12 | L59: 0 | M59: 0 | N59: 0 | O59: 3317.839977 | P59: 0 | Q59: 7021.949951 | R59: 0 | S59: 0 | T59: 0 | U59: 0 | V59: 0 | W59: 0 | X59: 0 | Y59: 0 | Z59: 0 | AA59: 0 | AB59: 0 | AC59: 0 | AD59: 0 | AE59: 0 | AF59: 0 | AG59: 0 | AH59: 10339.78993 | AI59: 0 | AJ59: 0 | AK59: 0.2142857143 | AL59: 0.1029411765 | AM59: 0 | AN59: 15 | AO59: 0 | AP59: 0 | AQ59: 0 | AR59: 0 | AS59: 0 | AT59: 6235 | AU59: 1 | AV59: 15957.6596 | AW59: 0 | AX59: 15957.6596 | AY59: 32532.44952 | AZ59: 32532.44952 | BA59: 5024.026514 | BB59: 0 | BC59: 125 | BD59: 1590.812001 | BE59: 0 | BF59: 490556.2378 | BG59: 0 | BH59: 7954.060004
A60: 8863148 | B60: A3148 | C60: CHRIST CHURCH C.E.P. ACADEMY, FOLKESTONE | D60: Recoupment Academy | E60: 0 | F60: 0 | G60: 0 | H60: 406 | I60: 0.1330049261 | J60: 0.0197044335 | K60: 0.236453202 | L60: 0.3866995074 | M60: 0.03448275862 | N60: 0.1009852217 | O60: 22395.41985 | P60: 3483.759976 | Q60: 44940.47969 | R60: 80845.57944 | S60: 7930.159945 | T60: 29030.0498 | U60: 0 | V60: 0 | W60: 0 | X60: 0 | Y60: 0 | Z60: 0 | AA60: 0 | AB60: 0 | AC60: 0 | AD60: 0 | AE60: 0 | AF60: 0 | AG60: 0 | AH60: 188625.4487 | AI60: 0.009756097561 | AJ60: 2081.163984 | AK60: 0.4406779661 | AL60: 0.3529411765 | AM60: 0 | AN60: 60 | AO60: 0.1549707602 | AP60: 0 | AQ60: 55678.57266 | AR60: 0 | AS60: 55678.57266 | AT60: 6235 | AU60: 1 | AV60: 158440.7027 | AW60: 0 | AX60: 158440.7027 | AY60: 411060.888 | AZ60: 411060.888 | BA60: 0 | BB60: 0 | BC60: 406 | BD60: 1590.812001 | BE60: 4178.349215 | BF60: 1694840.466 | BG60: 0 | BH60: 0
A61: 8863348 | B61: A3348 | C61: ST EANSWYTHES C E P SCHOOL | D61: Recoupment Academy | E61: 0 | F61: 0 | G61: 0 | H61: 219 | I61: 0.1697247706 | J61: 0.02752293578 | K61: 0.2752293578 | L61: 0.2110091743 | M61: 0.01834862385 | N61: 0.09174311927 | O61: 15415.39985 | P61: 2624.805395 | Q61: 28216.64292 | R61: 23795.8969 | S61: 2276.153379 | T61: 14225.95862 | U61: 0 | V61: 0 | W61: 0 | X61: 0 | Y61: 0 | Z61: 0 | AA61: 0 | AB61: 0 | AC61: 0 | AD61: 0 | AE61: 0 | AF61: 0 | AG61: 0 | AH61: 86554.85706 | AI61: 0 | AJ61: 0 | AK61: 0.5483870968 | AL61: 0.06896551724 | AM61: 0 | AN61: 32 | AO61: 0.1755319149 | AP61: 0 | AQ61: 34018.29178 | AR61: 0 | AS61: 34018.29178 | AT61: 6235 | AU61: 1 | AV61: 38563.75676 | AW61: 0 | AX61: 38563.75676 | AY61: 165371.9056 | AZ61: 165371.9056 | BA61: 1038.842832 | BB61: 0 | BC61: 219 | BD61: 1590.812001 | BE61: 0 | BF61: 892054.353 | BG61: 0 | BH61: 0
A62: 8863349 | B62: A3349 | C62: St. Mary's C.E. Primary School | D62: Recoupment Academy | E62: 3.9 | F62: 0.9 | G62: 0.31 | H62: 406 | I62: 0.02709359606 | J62: 0.08866995074 | K62: 0.3768472906 | L62: 0.1379310345 | M62: 0.039408867 | N62: 0.02216748768 | O62: 4562.029968 | P62: 15676.91989 | Q62: 71623.88951 | R62: 28836.6398 | S62: 9063.039937 | T62: 6372.449956 | U62: 0 | V62: 0 | W62: 0 | X62: 0 | Y62: 0 | Z62: 0 | AA62: 0 | AB62: 0 | AC62: 0 | AD62: 0 | AE62: 0 | AF62: 0 | AG62: 0 | AH62: 136134.9691 | AI62: 0.004914004914 | AJ62: 1048.252129 | AK62: 0.4920634921 | AL62: 0.2105263158 | AM62: 0 | AN62: 63 | AO62: 0.02023121387 | AP62: 0 | AQ62: 7268.759022 | AR62: 0 | AS62: 7268.759022 | AT62: 6235 | AU62: 1 | AV62: 115827.4545 | AW62: 0 | AX62: 115827.4545 | AY62: 266514.4347 | AZ62: 266514.4347 | BA62: 0 | BB62: 0 | BC62: 406 | BD62: 1590.812001 | BE62: 15753.30687 | BF62: 1538814.731 | BG62: 0 | BH62: 0
A63: 8863372 | B63: A3372 | C63: St John's CEP School | D63: Recoupment Academy | E63: 0 | F63: 0 | G63: 0 | H63: 280 | I63: 0.01083032491 | J63: 0.007220216606 | K63: 0.03249097473 | L63: 0.003610108303 | M63: 0.007220216606 | N63: 0 | O63: 1257.664973 | P63: 880.3725571 | Q63: 4258.799971 | R63: 520.5169639 | S63: 1145.149451 | T63: 0 | U63: 0 | V63: 0 | W63: 0 | X63: 0 | Y63: 0 | Z63: 0 | AA63: 0 | AB63: 0 | AC63: 0 | AD63: 0 | AE63: 0 | AF63: 0 | AG63: 0 | AH63: 8062.503915 | AI63: 0 | AJ63: 0 | AK63: 0.3035714286 | AL63: 0.07936507937 | AM63: 0 | AN63: 60 | AO63: 0.02752293578 | AP63: 0 | AQ63: 6819.697081 | AR63: 0 | AS63: 6819.697081 | AT63: 6235 | AU63: 1 | AV63: 44475.73596 | AW63: 0 | AX63: 44475.73596 | AY63: 65592.93696 | AZ63: 65592.93696 | BA63: 4032.211891 | BB63: 0 | BC63: 280 | BD63: 1590.812001 | BE63: 0 | BF63: 950430.1997 | BG63: 0 | BH63: 60223.6
A64: 8863719 | B64: A3719 | C64: St Joseph's Catholic Primary School, Aylesham | D64: Recoupment Academy | E64: 0 | F64: 0 | G64: 0 | H64: 87 | I64: 0.02298850575 | J64: 0 | K64: 0.4712643678 | L64: 0 | M64: 0 | N64: 0 | O64: 829.4599943 | P64: 0 | Q64: 19193.32987 | R64: 0 | S64: 0 | T64: 0 | U64: 0 | V64: 0 | W64: 0 | X64: 0 | Y64: 0 | Z64: 0 | AA64: 0 | AB64: 0 | AC64: 0 | AD64: 0 | AE64: 0 | AF64: 0 | AG64: 0 | AH64: 20022.78986 | AI64: 0 | AJ64: 0 | AK64: 0.3076923077 | AL64: 0.320754717 | AM64: 0 | AN64: 13 | AO64: 0 | AP64: 0 | AQ64: 0 | AR64: 0 | AS64: 0 | AT64: 6235 | AU64: 1 | AV64: 29134.80207 | AW64: 0 | AX64: 29134.80207 | AY64: 55392.59193 | AZ64: 55392.59193 | BA64: 4338.222242 | BB64: 0 | BC64: 87 | BD64: 1590.812001 | BE64: 32436.12422 | BF64: 451915.078 | BG64: 0 | BH64: 0
A65: 8863912 | B65: A3912 | C65: The Westlands Primary School | D65: Recoupment Academy | E65: 0 | F65: 0 | G65: 0 | H65: 454 | I65: 0.1076233184 | J65: 0.2264573991 | K65: 0.1950672646 | L65: 0.033632287 | M65: 0.01569506726 | N65: 0 | O65: 20264.11681 | P65: 44771.39292 | Q65: 41457.84442 | R65: 7862.648825 | S65: 4036.202483 | T65: 0 | U65: 0 | V65: 0 | W65: 0 | X65: 0 | Y65: 0 | Z65: 0 | AA65: 0 | AB65: 0 | AC65: 0 | AD65: 0 | AE65: 0 | AF65: 0 | AG65: 0 | AH65: 118392.2055 | AI65: 0.007075471698 | AJ65: 1687.778243 | AK65: 0.4090909091 | AL65: 0.3595505618 | AM65: 0 | AN65: 88 | AO65: 0.05464480874 | AP65: 0 | AQ65: 21954.17185 | AR65: 0 | AS65: 21954.17185 | AT65: 6235 | AU65: 1 | AV65: 178334.1733 | AW65: 0 | AX65: 178334.1733 | AY65: 326603.3289 | AZ65: 326603.3289 | BA65: 0 | BB65: 0 | BC65: 454 | BD65: 1590.812001 | BE65: 0 | BF65: 1715428.445 | BG65: 0 | BH65: 31816.24
A66: 8864000 | B66: A4000 | C66: St Augustine Academy | D66: Recoupment Academy | E66: 0 | F66: 0 | G66: 0 | H66: 0 | I66: 0 | J66: 0 | K66: 0 | L66: 0 | M66: 0 | N66: 0 | O66: 0 | P66: 0 | Q66: 0 | R66: 0 | S66: 0 | T66: 0 | U66: 520 | V66: 0.1184466019 | W66: 0.08349514563 | X66: 0.03689320388 | Y66: 0.02718446602 | Z66: 0.03495145631 | AA66: 0.01941747573 | AB66: 27516.9457 | AC66: 20367.13762 | AD66: 9674.34241 | AE66: 7841.337383 | AF66: 11089.87327 | AG66: 7701.250395 | AH66: 84190.88678 | AI66: 0.007692307692 | AJ66: 2101.668062 | AK66: 0 | AL66: 0 | AM66: 0.3986784141 | AN66: 0 | AO66: 0 | AP66: 0.08269230769 | AQ66: 0 | AR66: 143791.5792 | AS66: 143791.5792 | AT66: 5580 | AU66: 1 | AV66: 0 | AW66: 229192.8289 | AX66: 229192.8289 | AY66: 464856.9629 | AZ66: 464856.9629 | BA66: 0 | BB66: 0 | BC66: 520 | BD66: 2302.501898 | BE66: 0 | BF66: 2674441.694 | BG66: 0 | BH66: 0
A67: 8864001 | B67: A4001 | C67: The Ebbsfleet Academy | D67: Recoupment Academy | E67: 0 | F67: 0 | G67: 0 | H67: 0 | I67: 0 | J67: 0 | K67: 0 | L67: 0 | M67: 0 | N67: 0 | O67: 0 | P67: 0 | Q67: 0 | R67: 0 | S67: 0 | T67: 0 | U67: 568 | V67: 0.2243816254 | W67: 0.183745583 | X67: 0.1272084806 | Y67: 0.1802120141 | Z67: 0.001766784452 | AA67: 0 | AB67: 56939.0088 | AC67: 48958.78953 | AD67: 36436.45696 | AE67: 56780.35014 | AF67: 612.3361059 | AG67: 0 | AH67: 199726.9415 | AI67: 0.004731861199 | AJ67: 1412.161821 | AK67: 0 | AL67: 0 | AM67: 0.3805825243 | AN67: 0 | AO67: 0 | AP67: 0.02116402116 | AQ67: 0 | AR67: 40198.65486 | AS67: 40198.65486 | AT67: 5580 | AU67: 1.016316166 | AV67: 0 | AW67: 238985.8223 | AX67: 238985.8223 | AY67: 493831.664 | AZ67: 493831.664 | BA67: 0 | BB67: -4.656612873e-10 | BC67: 568 | BD67: 2310.958095 | BE67: 0 | BF67: 4060000.524 | BG67: 0 | BH67: 0
A68: 8864002 | B68: A4002 | C68: Sittingbourne Community College | D68: Recoupment Academy | E68: 0 | F68: 0 | G68: 0 | H68: 0 | I68: 0 | J68: 0 | K68: 0 | L68: 0 | M68: 0 | N68: 0 | O68: 0 | P68: 0 | Q68: 0 | R68: 0 | S68: 0 | T68: 0 | U68: 1021 | V68: 0.19348659 | W68: 0.06417624521 | X68: 0.2634099617 | Y68: 0.08524904215 | Z68: 0.08620689655 | AA68: 0 | AB68: 88257.35138 | AC68: 30737.28288 | AD68: 135621.8538 | AE68: 48281.55402 | AF68: 53706.35971 | AG68: 0 | AH68: 356604.4018 | AI68: 0.01405810684 | AJ68: =((H68+U68)*AI68)*525.417015561615 -> 7541.482281 | AK68: 0 | AL68: 0 | AM68: 0.4236760125 | AN68: 0 | AO68: 0 | AP68: 0.02952380952 | AQ68: =(H68*AO68)*884.9368830738 -> 0 | AR68: =(U68*AP68)*3343.9902149541 -> 100800.6041 | AS68: =AQ68+AR68 -> 100800.6041 | AT68: =IF(H68>0,6235,5580) -> 5580 | AU68: 1 | AV68: 0 | AW68: =(U68*AM68)*1105.54126971233 -> 478227.5344 | AX68: =AW68+AV68 -> 478227.5344 | AY68: =(AH68+AJ68+AS68+AT68+AX68)*AU68 -> 948754.0225 | AZ68: 948754.0225 | BA68: 0 | BB68: =AY68-AZ68 -> -1.047737896e-09 | BC68: 1021 | BD68: 2305.069664 | BE68: 28479.16502 | BF68: 5242928.12 | BG68: 0 | BH68: 0
A69: 8864003 | B69: A4003 | C69: The High Weald Academy | D69: Recoupment Academy | E69: 0 | F69: 0 | G69: 0 | H69: 0 | I69: 0 | J69: 0 | K69: 0 | L69: 0 | M69: 0 | N69: 0 | O69: 0 | P69: 0 | Q69: 0 | R69: 0 | S69: 0 | T69: 0 | U69: 451 | V69: 0.1670378619 | W69: 0.002227171492 | X69: 0.002227171492 | Y69: 0.002227171492 | Z69: 0 | AA69: 0 | AB69: 33656.25127 | AC69: 471.1895268 | AD69: 506.5262301 | AE69: 557.180862 | AF69: 0 | AG69: 0 | AH69: 35191.14789 | AI69: 0 | AJ69: 0 | AK69: 0 | AL69: 0 | AM69: 0.3584474886 | AN69: 0 | AO69: 0 | AP69: 0.006666666667 | AQ69: 0 | AR69: 10054.26391 | AS69: 10054.26391 | AT69: 5580 | AU69: 1 | AV69: 0 | AW69: 178721.5997 | AX69: 178721.5997 | AY69: 229547.0115 | AZ69: 229547.0115 | BA69: 0 | BB69: -4.074536264e-10 | BC69: 451 | BD69: 2329.086363 | BE69: 0 | BF69: 2185535.667 | BG69: 0 | BH69: 0
A70: 8864004 | B70: A4004 | C70: Meopham School | D70: Recoupment Academy | E70: 0 | F70: 0 | G70: 0 | H70: 0 | I70: 0 | J70: 0 | K70: 0 | L70: 0 | M70: 0 | N70: 0 | O70: 0 | P70: 0 | Q70: 0 | R70: 0 | S70: 0 | T70: 0 | U70: 471 | V70: 0.1211498973 | W70: 0.06981519507 | X70: 0.04517453799 | Y70: 0.0205338809 | Z70: 0.04106776181 | AA70: 0 | AB70: 25492.84085 | AC70: 15425.39489 | AD70: 10729.67002 | AE70: 5364.854352 | AF70: 11802.66023 | AG70: 0 | AH70: 68815.42034 | AI70: 0.005405405405 | AJ70: 1337.683321 | AK70: 0 | AL70: 0 | AM70: 0.3849462366 | AN70: 0 | AO70: 0 | AP70: 0.004106776181 | AQ70: 0 | AR70: 6468.25212 | AS70: 6468.25212 | AT70: 5580 | AU70: 1 | AV70: 0 | AW70: 200445.331 | AX70: 200445.331 | AY70: 282646.6868 | AZ70: 282646.6868 | BA70: 0 | BB70: -4.656612873e-10 | BC70: 471 | BD70: 2316.2558 | BE70: 12108.30272 | BF70: 2316244.643 | BG70: 0 | BH70: 0
A71: 8864010 | B71: A4010 | C71: Oasis Academy Hextable | D71: Recoupment Academy | E71: 0 | F71: 0 | G71: 0 | H71: 0 | I71: 0 | J71: 0 | K71: 0 | L71: 0 | M71: 0 | N71: 0 | O71: 0 | P71: 0 | Q71: 0 | R71: 0 | S71: 0 | T71: 0 | U71: 390 | V71: 0.1414634146 | W71: 0.07317073171 | X71: 0.1195121951 | Y71: 0.08048780488 | Z71: 0 | AA71: 0 | AB71: 24648.07581 | AC71: 13386.51204 | AD71: 23504.36753 | AE71: 17412.48199 | AF71: 0 | AG71: 0 | AH71: 78951.43736 | AI71: 0.01158301158 | AJ71: 2373.505437 | AK71: 0 | AL71: 0 | AM71: 0.4370179949 | AN71: 0 | AO71: 0 | AP71: 0.02195121951 | AQ71: 0 | AR71: 28627.81867 | AS71: 28627.81867 | AT71: 5580 | AU71: 1.016316166 | AV71: 0 | AW71: 188425.1573 | AX71: 188425.1573 | AY71: 308917.3466 | AZ71: 308917.3466 | BA71: 0 | BB71: 0 | BC71: 390 | BD71: 2328.983607 | BE71: 0 | BF71: 2052398.424 | BG71: 0 | BH71: 0
A72: 8864031 | B72: A4031 | C72: Orchards Academy | D72: Recoupment Academy | E72: 0 | F72: 0 | G72: 0 | H72: 0 | I72: 0 | J72: 0 | K72: 0 | L72: 0 | M72: 0 | N72: 0 | O72: 0 | P72: 0 | Q72: 0 | R72: 0 | S72: 0 | T72: 0 | U72: 407 | V72: 0.1650246305 | W72: 0.01231527094 | X72: 0.1773399015 | Y72: 0.2709359606 | Z72: 0.007389162562 | AA72: 0 | AB72: 30006.64605 | AC72: 2351.277066 | AD72: 36397.58854 | AE72: 61168.39017 | AF72: 1835.048698 | AG72: 0 | AH72: 131758.9505 | AI72: 0.01428571429 | AJ72: 3054.924648 | AK72: 0 | AL72: 0 | AM72: 0.3759590793 | AN72: 0 | AO72: 0 | AP72: 0.01474201474 | AQ72: 0 | AR72: 20063.94129 | AS72: 20063.94129 | AT72: 5580 | AU72: 1.016316166 | AV72: 0 | AW72: 169164.7791 | AX72: 169164.7791 | AY72: 335000.7725 | AZ72: 335000.7725 | BA72: 0 | BB72: 0 | BC72: 407 | BD72: 2295.987202 | BE72: 115080.7509 | BF72: 2239783.659 | BG72: 0 | BH72: 0
A73: 8864046 | B73: A4046 | C73: Weald of Kent Grammar School | D73: Recoupment Academy | E73: 0 | F73: 0 | G73: 0 | H73: 0 | I73: 0 | J73: 0 | K73: 0 | L73: 0 | M73: 0 | N73: 0 | O73: 0 | P73: 0 | Q73: 0 | R73: 0 | S73: 0 | T73: 0 | U73: 829 | V73: 0.003636363636 | W73: 0.01090909091 | X73: 0.008484848485 | Y73: 0.002424242424 | Z73: 0 | AA73: 0 | AB73: 1346.778311 | AC73: 4242.369768 | AD73: 3547.074916 | AE73: 1114.798993 | AF73: 0 | AG73: 0 | AH73: 10251.02199 | AI73: 0 | AJ73: 0 | AK73: 0 | AL73: 0 | AM73: 0.00289017341 | AN73: 0 | AO73: 0 | AP73: 0.001206272618 | AQ73: 0 | AR73: 3343.990215 | AS73: 3343.990215 | AT73: 5580 | AU73: 1 | AV73: 0 | AW73: 2648.825759 | AX73: 2648.825759 | AY73: 21823.83796 | AZ73: 21823.83796 | BA73: 5345.284861 | BB73: 0 | BC73: 829 | BD73: 2293.649373 | BE73: 0 | BF73: 3418665.653 | BG73: 0 | BH73: 0
A74: 8864058 | B74: A4058 | C74: Invicta Grammar School | D74: Recoupment Academy | E74: 0 | F74: 0 | G74: 0 | H74: 0 | I74: 0 | J74: 0 | K74: 0 | L74: 0 | M74: 0 | N74: 0 | O74: 0 | P74: 0 | Q74: 0 | R74: 0 | S74: 0 | T74: 0 | U74: 913 | V74: 0.05934065934 | W74: 0.02527472527 | X74: 0.02307692308 | Y74: 0.005494505495 | Z74: 0.004395604396 | AA74: 0.004395604396 | AB74: 24204.57281 | AC74: 10824.86899 | AD74: 10624.79157 | AE74: 2782.693539 | AF74: 2448.766301 | AG74: 3060.93781 | AH74: 53946.63102 | AI74: 0.001111111111 | AJ74: 533.0063725 | AK74: 0 | AL74: 0 | AM74: 0 | AN74: 0 | AO74: 0 | AP74: 0.01096491228 | AQ74: 0 | AR74: 33476.56871 | AS74: 33476.56871 | AT74: 5580 | AU74: 1 | AV74: 0 | AW74: 0 | AX74: 0 | AY74: 93536.20611 | AZ74: 93536.20611 | BA74: 3193.913817 | BB74: 0 | BC74: 913 | BD74: 2290.649666 | BE74: 0 | BF74: 3827968.755 | BG74: 0 | BH74: 0
A75: 8864080 | B75: A4080 | C75: Highsted Grammar School | D75: Recoupment Academy | E75: 0 | F75: 0 | G75: 0 | H75: 0 | I75: 0 | J75: 0 | K75: 0 | L75: 0 | M75: 0 | N75: 0 | O75: 0 | P75: 0 | Q75: 0 | R75: 0 | S75: 0 | T75: 0 | U75: 645 | V75: 0.08695652174 | W75: 0.04813664596 | X75: 0.100931677 | Y75: 0.02639751553 | Z75: 0.01086956522 | AA75: 0 | AB75: 25057.4084 | AC75: 14564.68073 | AD75: 32829.09744 | AE75: 9444.712855 | AF75: 4277.892341 | AG75: 0 | AH75: 86173.79177 | AI75: 0.0015625 | AJ75: 529.521836 | AK75: 0 | AL75: 0 | AM75: 0 | AN75: 0 | AO75: 0 | AP75: 0 | AQ75: 0 | AR75: 0 | AS75: 0 | AT75: 5580 | AU75: 1 | AV75: 0 | AW75: 0 | AX75: 0 | AY75: 92283.3136 | AZ75: 92283.3136 | BA75: 3231.500592 | BB75: 0 | BC75: 645 | BD75: 2293.212771 | BE75: 0 | BF75: 2759595.425 | BG75: 0 | BH75: 0
A76: 8864092 | B76: A4092 | C76: Highworth Grammar School | D76: Recoupment Academy | E76: 0 | F76: 0 | G76: 0 | H76: 0 | I76: 0 | J76: 0 | K76: 0 | L76: 0 | M76: 0 | N76: 0 | O76: 0 | P76: 0 | Q76: 0 | R76: 0 | S76: 0 | T76: 0 | U76: 927 | V76: 0.05519480519 | W76: 0.04978354978 | X76: 0.01948051948 | Y76: 0.01623376623 | Z76: 0.005411255411 | AA76: 0 | AB76: 22858.73622 | AC76: 21648.66013 | AD76: 9106.510802 | AE76: 8347.664999 | AF76: 3060.805483 | AG76: 0 | AH76: 65022.37764 | AI76: 0.001084598698 | AJ76: 528.2663486 | AK76: 0 | AL76: 0 | AM76: 0.001136363636 | AN76: 0 | AO76: 0 | AP76: 0.01186623517 | AQ76: 0 | AR76: 36783.89236 | AS76: 36783.89236 | AT76: 5580 | AU76: 1 | AV76: 0 | AW76: 1164.587224 | AX76: 1164.587224 | AY76: 109079.1236 | AZ76: 109079.1236 | BA76: 2727.626293 | BB76: 0 | BC76: 927 | BD76: 2296.16 | BE76: 0 | BF76: 3910093.565 | BG76: 0 | BH76: 0
A77: 8864101 | B77: A4101 | C77: The Harvey Grammar School | D77: Recoupment Academy | E77: 0 | F77: 0 | G77: 0 | H77: 0 | I77: 0 | J77: 0 | K77: 0 | L77: 0 | M77: 0 | N77: 0 | O77: 0 | P77: 0 | Q77: 0 | R77: 0 | S77: 0 | T77: 0 | U77: 633 | V77: 0.1521394612 | W77: 0.05388272583 | X77: 0.08716323296 | Y77: 0.03169572108 | Z77: 0.01267828843 | AA77: 0.006339144216 | AB77: 43024.89915 | AC77: 15999.95259 | AD77: 27823.30902 | AE77: 11129.36374 | AF77: 4896.912018 | AG77: 3060.549948 | AH77: 105934.9865 | AI77: 0.007680491551 | AJ77: 2554.446781 | AK77: 0 | AL77: 0 | AM77: 0.009819967267 | AN77: 0 | AO77: 0 | AP77: 0.01263823065 | AQ77: 0 | AR77: 26751.92172 | AS77: 26751.92172 | AT77: 5580 | AU77: 1 | AV77: 0 | AW77: 6872.087958 | AX77: 6872.087958 | AY77: 147693.4429 | AZ77: 147693.4429 | BA77: 1569.196713 | BB77: 0 | BC77: 633 | BD77: 2300.912159 | BE77: 38191.91955 | BF77: 2829711.142 | BG77: 0 | BH77: 0
A78: 8864113 | B78: A4113 | C78: Astor College | D78: Recoupment Academy | E78: 0 | F78: 0 | G78: 0 | H78: 0 | I78: 0 | J78: 0 | K78: 0 | L78: 0 | M78: 0 | N78: 0 | O78: 0 | P78: 0 | Q78: 0 | R78: 0 | S78: 0 | T78: 0 | U78: 832 | V78: 0.06850961538 | W78: 0.2091346154 | X78: 0.1454326923 | Y78: 0.1658653846 | Z78: 0.08774038462 | AA78: 0 | AB78: 25465.3197 | AC78: 81623.39904 | AD78: 61017.87928 | AE78: 76549.9791 | AF78: 44543.13948 | AG78: 0 | AH78: 289199.7166 | AI78: 0.005973715651 | AJ78: 2611.391619 | AK78: 0 | AL78: 0 | AM78: 0.3535483871 | AN78: 0 | AO78: 0 | AP78: 0.0421179302 | AQ78: 0 | AR78: 117180.4995 | AS78: 117180.4995 | AT78: 5580 | AU78: 1 | AV78: 0 | AW78: 325197.4609 | AX78: 325197.4609 | AY78: 739769.0686 | AZ78: 739769.0686 | BA78: 0 | BB78: 0 | BC78: 832 | BD78: 2296.450414 | BE78: 37690.6198 | BF78: 4263344.992 | BG78: 0 | BH78: 0
A79: 8864120 | B79: A4120 | C79: King Ethelbert School | D79: Recoupment Academy | E79: 0 | F79: 0 | G79: 0 | H79: 0 | I79: 0 | J79: 0 | K79: 0 | L79: 0 | M79: 0 | N79: 0 | O79: 0 | P79: 0 | Q79: 0 | R79: 0 | S79: 0 | T79: 0 | U79: 738 | V79: 0.07046070461 | W79: 0.05420054201 | X79: 0.1178861789 | Y79: 0.08672086721 | Z79: 0.0243902439 | AA79: 0.0189701897 | AB79: 23231.51973 | AC79: 18763.99978 | AD79: 43872.35948 | AE79: 35501.43958 | AF79: 10983.23987 | AG79: 10678.07987 | AH79: 143030.6383 | AI79: 0.01344086022 | AJ79: 5211.797816 | AK79: 0 | AL79: 0 | AM79: 0.3231622746 | AN79: 0 | AO79: 0 | AP79: 0.00406504065 | AQ79: 0 | AR79: 10031.97064 | AS79: 10031.97064 | AT79: 5580 | AU79: 1 | AV79: 0 | AW79: 263664.6928 | AX79: 263664.6928 | AY79: 427519.0996 | AZ79: 427519.0996 | BA79: 0 | BB79: -6.4028427e-10 | BC79: 738 | BD79: 2296.697811 | BE79: 241945.2743 | BF79: 3760746.335 | BG79: 0 | BH79: 0
A80: 8864172 | B80: A4172 | C80: Hartsdown Technology College | D80: Recoupment Academy | E80: 0 | F80: 0 | G80: 0 | H80: 0 | I80: 0 | J80: 0 | K80: 0 | L80: 0 | M80: 0 | N80: 0 | O80: 0 | P80: 0 | Q80: 0 | R80: 0 | S80: 0 | T80: 0 | U80: 800 | V80: 0.07471980075 | W80: 0.04732254047 | X80: 0.1207970112 | Y80: 0.2254047323 | Z80: 0.2552926526 | AA80: 0.1307596513 | AB80: 26705.45423 | AC80: 17759.20278 | AD80: 48732.41288 | AE80: 100027.406 | AF80: 124619.5751 | AG80: 79786.40006 | AH80: 397630.4511 | AI80: 0.01466992665 | AJ80: 6166.263263 | AK80: 0 | AL80: 0 | AM80: 0.5598802395 | AN80: 0 | AO80: 0 | AP80: 0.1382316314 | AQ80: 0 | AR80: 369796.1782 | AS80: 369796.1782 | AT80: 5580 | AU80: 1 | AV80: 0 | AW80: 495176.5687 | AX80: 495176.5687 | AY80: 1274349.461 | AZ80: 1274349.461 | BA80: 0 | BB80: 0 | BC80: 800 | BD80: 2305.563846 | BE80: 52536.32367 | BF80: 4730689.655 | BG80: 0 | BH80: 0
A81: 8864196 | B81: A4196 | C81: The Towers School | D81: Recoupment Academy | E81: 0 | F81: 0 | G81: 0 | H81: 0 | I81: 0 | J81: 0 | K81: 0 | L81: 0 | M81: 0 | N81: 0 | O81: 0 | P81: 0 | Q81: 0 | R81: 0 | S81: 0 | T81: 0 | U81: 964 | V81: 0.03742203742 | W81: 0.0893970894 | X81: 0.106029106 | Y81: 0.03326403326 | Z81: 0.02182952183 | AA81: 0 | AB81: 16116.79715 | AC81: 40426.47187 | AD81: 51543.49611 | AE81: 17787.62357 | AF81: 12840.41972 | AG81: 0 | AH81: 138714.8084 | AI81: 0.008434864105 | AJ81: 4272.275564 | AK81: 0 | AL81: 0 | AM81: 0.3752783964 | AN81: 0 | AO81: 0 | AP81: 0.03011422638 | AQ81: 0 | AR81: 97076.41791 | AS81: 97076.41791 | AT81: 5580 | AU81: 1 | AV81: 0 | AW81: 399949.8677 | AX81: 399949.8677 | AY81: 645593.3696 | AZ81: 645593.3696 | BA81: 0 | BB81: 0 | BC81: 964 | BD81: 2315.165869 | BE81: 166374.047 | BF81: 4832802.382 | BG81: 0 | BH81: 0
A82: 8864207 | B82: A4207 | C82: CASTLE COMMUNITY COLLEGE | D82: Recoupment Academy | E82: 0 | F82: 0 | G82: 0 | H82: 0 | I82: 0 | J82: 0 | K82: 0 | L82: 0 | M82: 0 | N82: 0 | O82: 0 | P82: 0 | Q82: 0 | R82: 0 | S82: 0 | T82: 0 | U82: 952 | V82: 0.2148760331 | W82: 0.07644628099 | X82: 0.09504132231 | Y82: 0.007231404959 | Z82: 0.002066115702 | AA82: 0 | AB82: 91390.11066 | AC82: 34139.62439 | AD82: 45626.92045 | AE82: 3818.788633 | AF82: 1200.188746 | AG82: 0 | AH82: 176175.6329 | AI82: 0.02044293015 | AJ82: 10225.49231 | AK82: 0 | AL82: 0 | AM82: 0.3643586833 | AN82: 0 | AO82: 0 | AP82: 0.005165289256 | AQ82: 0 | AR82: 16443.58825 | AS82: 16443.58825 | AT82: 5580 | AU82: 1 | AV82: 0 | AW82: 383478.5104 | AX82: 383478.5104 | AY82: 591903.2239 | AZ82: 591903.2239 | BA82: 0 | BB82: 0 | BC82: 952 | BD82: 2316.267797 | BE82: 381042.4126 | BF82: 4958263.218 | BG82: 0 | BH82: 0
A83: 8864242 | B83: A4242 | C83: The Abbey School | D83: Recoupment Academy | E83: 0 | F83: 0 | G83: 0 | H83: 0 | I83: 0 | J83: 0 | K83: 0 | L83: 0 | M83: 0 | N83: 0 | O83: 0 | P83: 0 | Q83: 0 | R83: 0 | S83: 0 | T83: 0 | U83: 776 | V83: 0.2915632754 | W83: 0.008684863524 | X83: 0.08808933002 | Y83: 0.2220843672 | Z83: 0 | AA83: 0 | AB83: 101080.8345 | AC83: 3161.477878 | AD83: 34471.22897 | AE83: 95597.31629 | AF83: 0 | AG83: 0 | AH83: 234310.8577 | AI83: 0.00956937799 | AJ83: 3901.661283 | AK83: 0 | AL83: 0 | AM83: 0.4084507042 | AN83: 0 | AO83: 0 | AP83: 0.007416563659 | AQ83: 0 | AR83: 19245.51105 | AS83: 19245.51105 | AT83: 5580 | AU83: 1 | AV83: 0 | AW83: 350409.8695 | AX83: 350409.8695 | AY83: 613447.8995 | AZ83: 613447.8995 | BA83: 0 | BB83: 0 | BC83: 776 | BD83: 2299.375111 | BE83: 30466.94315 | BF83: 3907279.658 | BG83: 0 | BH83: 0
A84: 8864249 | B84: A4249 | C84: Valley Park School | D84: Recoupment Academy | E84: 0 | F84: 0 | G84: 0 | H84: 0 | I84: 0 | J84: 0 | K84: 0 | L84: 0 | M84: 0 | N84: 0 | O84: 0 | P84: 0 | Q84: 0 | R84: 0 | S84: 0 | T84: 0 | U84: 1075 | V84: 0.05581395349 | W84: 0.04744186047 | X84: 0.05860465116 | Y84: 0.01488372093 | Z84: 0.02511627907 | AA84: 0.008372093023 | AB84: 26805.59968 | AC84: 23924.09972 | AD84: 31769.63963 | AE84: 8875.359896 | AF84: 16474.85981 | AG84: 6864.479919 | AH84: 114714.0387 | AI84: 0.003937007874 | AJ84: 2223.713747 | AK84: 0 | AL84: 0 | AM84: 0.2839388145 | AN84: 0 | AO84: 0 | AP84: 0.01209302326 | AQ84: 0 | AR84: 43471.87279 | AS84: 43471.87279 | AT84: 5580 | AU84: 1 | AV84: 0 | AW84: 337449.0334 | AX84: 337449.0334 | AY84: 503438.6585 | AZ84: 503438.6585 | BA84: 0 | BB84: -6.98491931e-10 | BC84: 1075 | BD84: 2292.478879 | BE84: 0 | BF84: 4894447.927 | BG84: 0 | BH84: 63859.94698
A85: 8864527 | B85: A4527 | C85: Borden Grammar School | D85: Recoupment Academy | E85: 0 | F85: 0 | G85: 0 | H85: 0 | I85: 0 | J85: 0 | K85: 0 | L85: 0 | M85: 0 | N85: 0 | O85: 0 | P85: 0 | Q85: 0 | R85: 0 | S85: 0 | T85: 0 | U85: 577 | V85: 0.06585788562 | W85: 0.04852686308 | X85: 0.116117851 | Y85: 0.03639514731 | Z85: 0.02253032929 | AA85: 0 | AB85: 16976.8798 | AC85: 13134.79985 | AD85: 33786.7596 | AE85: 11648.90986 | AF85: 7932.339907 | AG85: 0 | AH85: 83479.68902 | AI85: 0 | AJ85: 0 | AK85: 0 | AL85: 0 | AM85: 0.005576208178 | AN85: 0 | AO85: 0 | AP85: 0 | AQ85: 0 | AR85: 0 | AS85: 0 | AT85: 5580 | AU85: 1 | AV85: 0 | AW85: 3557.048212 | AX85: 3557.048212 | AY85: 92616.73723 | AZ85: 92616.73723 | BA85: 3221.497883 | BB85: 0 | BC85: 577 | BD85: 2294.837348 | BE85: 0 | BF85: 2500446.672 | BG85: 0 | BH85: 0
A86: 8864528 | B86: A4528 | C86: The Norton Knatchbull School Academy Trust | D86: Recoupment Academy | E86: 0 | F86: 0 | G86: 0 | H86: 0 | I86: 0 | J86: 0 | K86: 0 | L86: 0 | M86: 0 | N86: 0 | O86: 0 | P86: 0 | Q86: 0 | R86: 0 | S86: 0 | T86: 0 | U86: 767 | V86: 0.05874673629 | W86: 0.06005221932 | X86: 0.02088772846 | Y86: 0.01174934726 | Z86: 0.001305483029 | AA86: 0 | AB86: 20130.44546 | AC86: 21606.77024 | AD86: 8079.013169 | AE86: 4998.907422 | AF86: 610.9765724 | AG86: 0 | AH86: 55426.11286 | AI86: 0.002706359946 | AJ86: 1090.649123 | AK86: 0 | AL86: 0 | AM86: 0.004054054054 | AN86: 0 | AO86: 0 | AP86: 0.009126466754 | AQ86: 0 | AR86: 23407.9315 | AS86: 23407.9315 | AT86: 5580 | AU86: 1 | AV86: 0 | AW86: 3437.635759 | AX86: 3437.635759 | AY86: 88942.32925 | AZ86: 88942.32925 | BA86: 3331.730123 | BB86: 0 | BC86: 767 | BD86: 2290.888098 | BE86: 85479.85483 | BF86: 3344058.947 | BG86: 0 | BH86: 0
A87: 8865209 | B87: A5209 | C87: Allington Primary School | D87: Recoupment Academy | E87: 0 | F87: 0 | G87: 0 | H87: 421 | I87: 0.04275534442 | J87: 0.0190023753 | K87: 0 | L87: 0 | M87: 0.004750593824 | N87: 0 | O87: 7465.139948 | P87: 3483.759976 | Q87: 0 | R87: 0 | S87: 1132.879992 | T87: 0 | U87: 0 | V87: 0 | W87: 0 | X87: 0 | Y87: 0 | Z87: 0 | AA87: 0 | AB87: 0 | AC87: 0 | AD87: 0 | AE87: 0 | AF87: 0 | AG87: 0 | AH87: 12081.77992 | AI87: 0.002380952381 | AJ87: 526.6680085 | AK87: 0.1166666667 | AL87: 0.07916666667 | AM87: 0 | AN87: 60 | AO87: 0.02216066482 | AP87: 0 | AQ87: 8256.142444 | AR87: 0 | AS87: 8256.142444 | AT87: 6235 | AU87: 1 | AV87: 38390.76536 | AW87: 0 | AX87: 38390.76536 | AY87: 65490.35572 | AZ87: 65490.35572 | BA87: 4035.289328 | BB87: 0 | BC87: 421 | BD87: 1590.812001 | BE87: 0 | BF87: 1338218.409 | BG87: 0 | BH87: 0
A88: 8865219 | B88: A5219 | C88: Wilmington Primary School | D88: Recoupment Academy | E88: 0 | F88: 0 | G88: 0 | H88: 204 | I88: 0.03921568627 | J88: 0.07352941176 | K88: 0 | L88: 0.004901960784 | M88: 0 | N88: 0 | O88: 3317.839977 | P88: 6532.049955 | Q88: 0 | R88: 514.9399964 | S88: 0 | T88: 0 | U88: 0 | V88: 0 | W88: 0 | X88: 0 | Y88: 0 | Z88: 0 | AA88: 0 | AB88: 0 | AC88: 0 | AD88: 0 | AE88: 0 | AF88: 0 | AG88: 0 | AH88: 10364.82993 | AI88: 0 | AJ88: 0 | AK88: 0.2666666667 | AL88: 0.1206896552 | AM88: 0 | AN88: 30 | AO88: 0.01142857143 | AP88: 0 | AQ88: 2063.167133 | AR88: 0 | AS88: 2063.167133 | AT88: 6235 | AU88: 1.016316166 | AV88: 32353.21566 | AW88: 0 | AX88: 32353.21566 | AY88: 51848.60172 | AZ88: 51848.60172 | BA88: 4444.541949 | BB88: 0 | BC88: 204 | BD88: 1590.812001 | BE88: 0 | BF88: 736902.7392 | BG88: 0 | BH88: 0
A89: 8865400 | B89: A5400 | C89: Wilmington Grammar School for Girls | D89: Recoupment Academy | E89: 0 | F89: 0 | G89: 0 | H89: 0 | I89: 0 | J89: 0 | K89: 0 | L89: 0 | M89: 0 | N89: 0 | O89: 0 | P89: 0 | Q89: 0 | R89: 0 | S89: 0 | T89: 0 | U89: 602 | V89: 0.08471760797 | W89: 0.05481727575 | X89: 0.06976744186 | Y89: 0.04318936877 | Z89: 0.02159468439 | AA89: 0.009966777409 | AB89: 22784.75973 | AC89: 15480.29982 | AD89: 21179.75975 | AE89: 14422.45983 | AF89: 7932.339907 | AG89: 4576.319946 | AH89: 86375.93898 | AI89: 0 | AJ89: 0 | AK89: 0 | AL89: 0 | AM89: 0 | AN89: 0 | AO89: 0 | AP89: 0.008305647841 | AQ89: 0 | AR89: 16719.95107 | AS89: 16719.95107 | AT89: 5580 | AU89: 1.016316166 | AV89: 0 | AW89: 0 | AX89: 0 | AY89: 110449.0639 | AZ89: 110449.0639 | BA89: 2686.528082 | BB89: 0 | BC89: 602 | BD89: 2295.238124 | BE89: 0 | BF89: 2653515.395 | BG89: 0 | BH89: 0
A90: 8865401 | B90: A5401 | C90: The Maplesden Noakes School | D90: Recoupment Academy | E90: 0 | F90: 0 | G90: 0 | H90: 0 | I90: 0 | J90: 0 | K90: 0 | L90: 0 | M90: 0 | N90: 0 | O90: 0 | P90: 0 | Q90: 0 | R90: 0 | S90: 0 | T90: 0 | U90: 868 | V90: 0.05287356322 | W90: 0.08620689655 | X90: 0.0275862069 | Y90: 0.008045977011 | Z90: 0.01724137931 | AA90: 0.004597701149 | AB90: 20503.71617 | AC90: 35101.62028 | AD90: 12074.89751 | AE90: 3874.043587 | AF90: 9131.659203 | AG90: 3043.866447 | AH90: 83729.8032 | AI90: 0.002309468822 | AJ90: 1053.2609 | AK90: 0 | AL90: 0 | AM90: 0.2860520095 | AN90: 0 | AO90: 0 | AP90: 0.02059496568 | AQ90: 0 | AR90: 59778.60769 | AS90: 59778.60769 | AT90: 5580 | AU90: 1 | AV90: 0 | AW90: 274498.3179 | AX90: 274498.3179 | AY90: 424639.9897 | AZ90: 424639.9897 | BA90: 0 | BB90: -4.656612873e-10 | BC90: 868 | BD90: 2296.327663 | BE90: 0 | BF90: 4013946.997 | BG90: 0 | BH90: 0
A91: 8865403 | B91: A5403 | C91: Wilmington Boys Grammar School | D91: Recoupment Academy | E91: 0 | F91: 0 | G91: 0 | H91: 0 | I91: 0 | J91: 0 | K91: 0 | L91: 0 | M91: 0 | N91: 0 | O91: 0 | P91: 0 | Q91: 0 | R91: 0 | S91: 0 | T91: 0 | U91: 648 | V91: 0.09582689335 | W91: 0.04636785162 | X91: 0.057187017 | Y91: 0.03245749614 | Z91: 0.00772797527 | AA91: 0.004636785162 | AB91: 27741.9313 | AC91: 14094.75099 | AD91: 18687.19805 | AE91: 11666.91436 | AF91: 3055.61542 | AG91: 2291.696542 | AH91: 77538.10666 | AI91: 0 | AJ91: 0 | AK91: 0 | AL91: 0 | AM91: 0.006920415225 | AN91: 0 | AO91: 0 | AP91: 0.001543209877 | AQ91: 0 | AR91: 3343.990215 | AS91: 3343.990215 | AT91: 5580 | AU91: 1.016316166 | AV91: 0 | AW91: 4957.721403 | AX91: 4957.721403 | AY91: 92911.43921 | AZ91: 92911.43921 | BA91: 3212.656824 | BB91: 0 | BC91: 648 | BD91: 2290.834417 | BE91: 0 | BF91: 2819462.178 | BG91: 0 | BH91: 0
A92: 8865404 | B92: A5404 | C92: Saint George's CE School | D92: Recoupment Academy | E92: 0 | F92: 0 | G92: 0 | H92: 0 | I92: 0 | J92: 0 | K92: 0 | L92: 0 | M92: 0 | N92: 0 | O92: 0 | P92: 0 | Q92: 0 | R92: 0 | S92: 0 | T92: 0 | U92: 799 | V92: 0.148427673 | W92: 0.1559748428 | X92: 0.08427672956 | Y92: 0.04905660377 | Z92: 0.05660377358 | AA92: 0 | AB92: 52982.92557 | AC92: 58461.07051 | AD92: 33956.75588 | AE92: 21742.5385 | AF92: 27596.25364 | AG92: 0 | AH92: 194739.5441 | AI92: 0.001291989664 | AJ92: 542.3878494 | AK92: 0 | AL92: 0 | AM92: 0.3586956522 | AN92: 0 | AO92: 0 | AP92: 0.06532663317 | AQ92: 0 | AR92: 174542.846 | AS92: 174542.846 | AT92: 5580 | AU92: 1 | AV92: 0 | AW92: 316845.7245 | AX92: 316845.7245 | AY92: 692250.5025 | AZ92: 692250.5025 | BA92: 0 | BB92: 0 | BC92: 799 | BD92: 2305.414389 | BE92: 0 | BF92: 4039157.036 | BG92: 0 | BH92: 28042.74891
A93: 8865406 | B93: A5406 | C93: Dartford Grammar School | D93: Recoupment Academy | E93: 0 | F93: 0 | G93: 0 | H93: 0 | I93: 0 | J93: 0 | K93: 0 | L93: 0 | M93: 0 | N93: 0 | O93: 0 | P93: 0 | Q93: 0 | R93: 0 | S93: 0 | T93: 0 | U93: 778 | V93: 0.07969151671 | W93: 0.08483290488 | X93: 0.05784061697 | Y93: 0.05784061697 | Z93: 0.008997429306 | AA93: 0.002570694087 | AB93: 27699.11967 | AC93: 30960.59964 | AD93: 22692.59973 | AE93: 24961.94971 | AF93: 4271.25995 | AG93: 1525.439982 | AH93: 112110.9687 | AI93: 0 | AJ93: 0 | AK93: 0 | AL93: 0 | AM93: 0.00153609831 | AN93: 0 | AO93: 0 | AP93: 0.01413881748 | AQ93: 0 | AR93: 36783.89236 | AS93: 36783.89236 | AT93: 5580 | AU93: 1.016316166 | AV93: 0 | AW93: 1321.215219 | AX93: 1321.215219 | AY93: 158338.0709 | AZ93: 158338.0709 | BA93: 1249.857873 | BB93: 0 | BC93: 778 | BD93: 2294.719918 | BE93: 63137.57896 | BF93: 3474204.475 | BG93: 0 | BH93: 0
A94: 8865408 | B94: A5408 | C94: Homewood School & Sixth Form Centre | D94: Recoupment Academy | E94: 0 | F94: 0 | G94: 0 | H94: 0 | I94: 0 | J94: 0 | K94: 0 | L94: 0 | M94: 0 | N94: 0 | O94: 0 | P94: 0 | Q94: 0 | R94: 0 | S94: 0 | T94: 0 | U94: 1720 | V94: 0.0666277031 | W94: 0.01987142022 | X94: 0.01753360608 | Y94: 0.007597895967 | Z94: 0.006428988895 | AA94: 0.0005844535359 | AB94: 51198.53873 | AC94: 16033.29496 | AD94: 15207.97644 | AE94: 7249.161575 | AF94: 6747.285485 | AG94: 766.7319606 | AH94: 97202.98915 | AI94: 0.001736111111 | AJ94: 1568.953588 | AK94: 0 | AL94: 0 | AM94: 0.2906764168 | AN94: 0 | AO94: 0 | AP94: 0.006395348837 | AQ94: 0 | AR94: 36783.89236 | AS94: 36783.89236 | AT94: 5580 | AU94: 1 | AV94: 0 | AW94: 552730.2129 | AX94: 552730.2129 | AY94: 693866.048 | AZ94: 693866.048 | BA94: 0 | BB94: -1.164153218e-09 | BC94: 1720 | BD94: 2298.258281 | BE94: 0 | BF94: 7714310.295 | BG94: 0 | BH94: 0
A95: 8865409 | B95: A5409 | C95: Wrotham School | D95: Recoupment Academy | E95: 0 | F95: 0 | G95: 0 | H95: 0 | I95: 0 | J95: 0 | K95: 0 | L95: 0 | M95: 0 | N95: 0 | O95: 0 | P95: 0 | Q95: 0 | R95: 0 | S95: 0 | T95: 0 | U95: 633 | V95: 0.07424960506 | W95: 0.02211690363 | X95: 0.01263823065 | Y95: 0.01105845182 | Z95: 0 | AA95: 0 | AB95: 20997.71975 | AC95: 6567.399923 | AD95: 4034.239953 | AE95: 3882.969954 | AF95: 0 | AG95: 0 | AH95: 35482.32958 | AI95: 0.00786163522 | AJ95: 2614.693167 | AK95: 0 | AL95: 0 | AM95: 0.2794117647 | AN95: 0 | AO95: 0 | AP95: 0.006319115324 | AQ95: 0 | AR95: 13375.96086 | AS95: 13375.96086 | AT95: 5580 | AU95: 1 | AV95: 0 | AW95: 195534.4831 | AX95: 195534.4831 | AY95: 252587.4667 | AZ95: 252587.4667 | BA95: 0 | BB95: -4.365574569e-10 | BC95: 633 | BD95: 2297.173134 | BE95: 0 | BF95: 2889060.055 | BG95: 0 | BH95: 0
A96: 8865414 | B96: A5414 | C96: Fulston Manor School | D96: Recoupment Academy | E96: 0 | F96: 0 | G96: 0 | H96: 0 | I96: 0 | J96: 0 | K96: 0 | L96: 0 | M96: 0 | N96: 0 | O96: 0 | P96: 0 | Q96: 0 | R96: 0 | S96: 0 | T96: 0 | U96: 966 | V96: 0.06957424714 | W96: 0.09241952233 | X96: 0.1225337487 | Y96: 0.02699896158 | Z96: 0.03426791277 | AA96: 0 | AB96: 30026.16862 | AC96: 41879.9615 | AD96: 59690.41325 | AE96: 14467.38961 | AF96: 20198.66855 | AG96: 0 | AH96: 166262.6015 | AI96: 0.01572327044 | AJ96: 7980.390519 | AK96: 0 | AL96: 0 | AM96: 0.2671840355 | AN96: 0 | AO96: 0 | AP96: 0.004149377593 | AQ96: 0 | AR96: 13403.71182 | AS96: 13403.71182 | AT96: 5580 | AU96: 1 | AV96: 0 | AW96: 285339.9566 | AX96: 285339.9566 | AY96: 478566.6605 | AZ96: 478566.6605 | BA96: 0 | BB96: -5.238689482e-10 | BC96: 966 | BD96: 2294.455954 | BE96: 0 | BF96: 4454250.85 | BG96: 0 | BH96: 0
A97: 8865416 | B97: A5416 | C97: Cranbrook School Academy Trust | D97: Recoupment Academy | E97: 0 | F97: 0 | G97: 0 | H97: 0 | I97: 0 | J97: 0 | K97: 0 | L97: 0 | M97: 0 | N97: 0 | O97: 0 | P97: 0 | Q97: 0 | R97: 0 | S97: 0 | T97: 0 | U97: 446 | V97: 0.05405405405 | W97: 0 | X97: 0.009009009009 | Y97: 0.006756756757 | Z97: 0.002252252252 | AA97: 0.002252252252 | AB97: 10770.53825 | AC97: 0 | AD97: 2026.206102 | AE97: 1671.626061 | AF97: 612.9285513 | AG97: 766.1556667 | AH97: 15847.45463 | AI97: 0 | AJ97: 0 | AK97: 0 | AL97: 0 | AM97: 0 | AN97: 0 | AO97: 0 | AP97: 0.02466367713 | AQ97: 0 | AR97: 36783.89236 | AS97: 36783.89236 | AT97: 5580 | AU97: 1 | AV97: 0 | AW97: 0 | AX97: 0 | AY97: 58211.347 | AZ97: 58211.347 | BA97: 4253.65959 | BB97: 0 | BC97: 446 | BD97: 2354.062557 | BE97: 204284.2755 | BF97: 2207942.594 | BG97: 0 | BH97: 0
A98: 8865418 | B98: A5418 | C98: The Skinners' School | D98: Recoupment Academy | E98: 0 | F98: 0 | G98: 0 | H98: 0 | I98: 0 | J98: 0 | K98: 0 | L98: 0 | M98: 0 | N98: 0 | O98: 0 | P98: 0 | Q98: 0 | R98: 0 | S98: 0 | T98: 0 | U98: 632 | V98: 0.01587301587 | W98: 0.01111111111 | X98: 0.007936507937 | Y98: 0.003174603175 | Z98: 0 | AA98: 0 | AB98: 4481.782804 | AC98: 3294.124406 | AD98: 2529.404415 | AE98: 1112.941955 | AF98: 0 | AG98: 0 | AH98: 11418.25358 | AI98: 0.001666666667 | AJ98: 553.4392564 | AK98: 0 | AL98: 0 | AM98: 0.006550218341 | AN98: 0 | AO98: 0 | AP98: 0.007911392405 | AQ98: 0 | AR98: 16719.95107 | AS98: 16719.95107 | AT98: 5580 | AU98: 1 | AV98: 0 | AW98: 4576.651195 | AX98: 4576.651195 | AY98: 38848.29511 | AZ98: 38848.29511 | BA98: 4834.551147 | BB98: 0 | BC98: 632 | BD98: 2291.86417 | BE98: 0 | BF98: 2656689.416 | BG98: 0 | BH98: 0
A99: 8865421 | B99: A5421 | C99: THE CANTERBURY HIGH SCHOOL | D99: Recoupment Academy | E99: 0 | F99: 0 | G99: 0 | H99: 0 | I99: 0 | J99: 0 | K99: 0 | L99: 0 | M99: 0 | N99: 0 | O99: 0 | P99: 0 | Q99: 0 | R99: 0 | S99: 0 | T99: 0 | U99: 924 | V99: 0.1299254526 | W99: 0.02236421725 | X99: 0.1746538871 | Y99: 0.2097976571 | Z99: 0.002129925453 | AA99: 0 | AB99: 53634.03694 | AC99: 9693.734071 | AD99: 81380.80211 | AE99: 107532.2159 | AF99: 1200.865417 | AG99: 0 | AH99: 253441.6544 | AI99: 0.0198019802 | AJ99: 9613.57074 | AK99: 0 | AL99: 0 | AM99: 0.3573033708 | AN99: 0 | AO99: 0 | AP99: 0.02224576271 | AQ99: 0 | AR99: 68736.00226 | AS99: 68736.00226 | AT99: 5580 | AU99: 1 | AV99: 0 | AW99: 364992.5869 | AX99: 364992.5869 | AY99: 702363.8143 | AZ99: 702363.8143 | BA99: 0 | BB99: 0 | BC99: 924 | BD99: 2295.276031 | BE99: 0 | BF99: 4575704.987 | BG99: 0 | BH99: 23156.0277
A100: 8865422 | B100: A5422 | C100: Oakwood Park Grammar School | D100: Recoupment Academy | E100: 0 | F100: 0 | G100: 0 | H100: 0 | I100: 0 | J100: 0 | K100: 0 | L100: 0 | M100: 0 | N100: 0 | O100: 0 | P100: 0 | Q100: 0 | R100: 0 | S100: 0 | T100: 0 | U100: 746 | V100: 0.04161073826 | W100: 0.01744966443 | X100: 0.01879194631 | Y100: 0.006711409396 | Z100: 0.001342281879 | AA100: 0.001342281879 | AB100: 13868.14985 | AC100: 6106.485566 | AD100: 7069.39632 | AE100: 2777.272853 | AF100: 610.9990264 | AG100: 763.7437762 | AH100: 31196.04739 | AI100: 0.004021447721 | AJ100: 1576.251047 | AK100: 0 | AL100: 0 | AM100: 0.002801120448 | AN100: 0 | AO100: 0 | AP100: 0.006702412869 | AQ100: 0 | AR100: 16719.95107 | AS100: 16719.95107 | AT100: 5580 | AU100: 1 | AV100: 0 | AW100: 2310.178676 | AX100: 2310.178676 | AY100: 57382.42819 | AZ100: 57382.42819 | BA100: 4278.527154 | BB100: 0 | BC100: 746 | BD100: 2293.170291 | BE100: 0 | BF100: 3125750.022 | BG100: 0 | BH100: 0
A101: 8865428 | B101: A5428 | C101: SIR ROGER MANWOOD'S SCHOOL | D101: Recoupment Academy | E101: 0 | F101: 0 | G101: 0 | H101: 0 | I101: 0 | J101: 0 | K101: 0 | L101: 0 | M101: 0 | N101: 0 | O101: 0 | P101: 0 | Q101: 0 | R101: 0 | S101: 0 | T101: 0 | U101: 636 | V101: 0.1813880126 | W101: 0.02050473186 | X101: 0.02839116719 | Y101: 0.001577287066 | Z101: 0.004731861199 | AA101: 0.001577287066 | AB101: 51539.47321 | AC101: 6117.537467 | AD101: 9105.674088 | AE101: 556.4598673 | AF101: 1836.314553 | AG101: 765.1260478 | AH101: 69920.58523 | AI101: 0.001587301587 | AJ101: 530.4209871 | AK101: 0 | AL101: 0 | AM101: 0.001821493625 | AN101: 0 | AO101: 0 | AP101: 0.01732283465 | AQ101: 0 | AR101: 36841.81975 | AS101: 36841.81975 | AT101: 5580 | AU101: 1 | AV101: 0 | AW101: 1280.736334 | AX101: 1280.736334 | AY101: 114153.5623 | AZ101: 114153.5623 | BA101: 2575.393131 | BB101: 0 | BC101: 636 | BD101: 2296.761072 | BE101: 0 | BF101: 2758928.538 | BG101: 0 | BH101: 0
A102: 8865432 | B102: A5432 | C102: St. Simon Stock Catholic School | D102: Recoupment Academy | E102: 0 | F102: 0 | G102: 0 | H102: 0 | I102: 0 | J102: 0 | K102: 0 | L102: 0 | M102: 0 | N102: 0 | O102: 0 | P102: 0 | Q102: 0 | R102: 0 | S102: 0 | T102: 0 | U102: 845 | V102: 0.1 | W102: 0.04761904762 | X102: 0.04285714286 | Y102: 0.02380952381 | Z102: 0.01547619048 | AA102: 0.01785714286 | AB102: 37751.21956 | AC102: 18875.69025 | AD102: 18262.13979 | AE102: 11160.23677 | AF102: 7979.556216 | AG102: 11508.89986 | AH102: 105537.7424 | AI102: 0.007067137809 | AJ102: 3137.649316 | AK102: 0 | AL102: 0 | AM102: 0.2540473225 | AN102: 0 | AO102: 0 | AP102: 0.01895734597 | AQ102: 0 | AR102: 53567.23662 | AS102: 53567.23662 | AT102: 5580 | AU102: 1 | AV102: 0 | AW102: 237326.5306 | AX102: 237326.5306 | AY102: 405149.159 | AZ102: 405149.159 | BA102: 0 | BB102: -4.656612873e-10 | BC102: 845 | BD102: 2299.191684 | BE102: 0 | BF102: 3892262.109 | BG102: 0 | BH102: 0
A103: 8865434 | B103: A5434 | C103: THE WESTLANDS SCHOOL | D103: Recoupment Academy | E103: 0 | F103: 0 | G103: 0 | H103: 0 | I103: 0 | J103: 0 | K103: 0 | L103: 0 | M103: 0 | N103: 0 | O103: 0 | P103: 0 | Q103: 0 | R103: 0 | S103: 0 | T103: 0 | U103: 1445 | V103: 0.08401084011 | W103: 0.05149051491 | X103: 0.1727642276 | Y103: 0.05487804878 | Z103: 0.01693766938 | AA103: 0 | AB103: 54234.72619 | AC103: 34902.81937 | AD103: 125890.6306 | AE103: 43987.82601 | AF103: 14934.11398 | AG103: 0 | AH103: 273950.1162 | AI103: 0.00894085282 | AJ103: 6788.142116 | AK103: 0 | AL103: 0 | AM103: 0.3428367783 | AN103: 0 | AO103: 0 | AP103: 0.005401755571 | AQ103: 0 | AR103: 26101.63868 | AS103: 26101.63868 | AT103: 5580 | AU103: 1 | AV103: 0 | AW103: 547684.1994 | AX103: 547684.1994 | AY103: 860104.0964 | AZ103: 860104.0964 | BA103: 0 | BB103: -1.164153218e-09 | BC103: 1445 | BD103: 2294.243545 | BE103: 0 | BF103: 6753438.743 | BG103: 0 | BH103: 0
A104: 8865437 | B104: A5437 | C104: The Folkestone School for Girls | D104: Recoupment Academy | E104: 0 | F104: 0 | G104: 0 | H104: 0 | I104: 0 | J104: 0 | K104: 0 | L104: 0 | M104: 0 | N104: 0 | O104: 0 | P104: 0 | Q104: 0 | R104: 0 | S104: 0 | T104: 0 | U104: 810 | V104: 0.1596534653 | W104: 0.06188118812 | X104: 0.07673267327 | Y104: 0.03217821782 | Z104: 0.008663366337 | AA104: 0.01237623762 | AB104: 57774.69288 | AC104: 23513.05665 | AD104: 31342.74914 | AE104: 14458.15899 | AF104: 4281.832375 | AG104: 7646.079118 | AH104: 139016.5692 | AI104: 0 | AJ104: 0 | AK104: 0 | AL104: 0 | AM104: 0.00645994832 | AN104: 0 | AO104: 0 | AP104: 0.01234567901 | AQ104: 0 | AR104: 33439.90215 | AS104: 33439.90215 | AT104: 5580 | AU104: 1 | AV104: 0 | AW104: 5784.808969 | AX104: 5784.808969 | AY104: 183821.2803 | AZ104: 183821.2803 | BA104: 485.3615917 | BB104: 0 | BC104: 810 | BD104: 2292.959492 | BE104: 243716.759 | BF104: 3760729.533 | BG104: 0 | BH104: 0
A105: 8865439 | B105: A5439 | C105: Mascalls School | D105: Recoupment Academy | E105: 0 | F105: 0 | G105: 0 | H105: 0 | I105: 0 | J105: 0 | K105: 0 | L105: 0 | M105: 0 | N105: 0 | O105: 0 | P105: 0 | Q105: 0 | R105: 0 | S105: 0 | T105: 0 | U105: 1203 | V105: 0.08521303258 | W105: 0.01336675021 | X105: 0.006683375104 | Y105: 0.005012531328 | Z105: 0.001670843776 | AA105: 0 | AB105: 45797.93811 | AC105: 7543.221966 | AD105: 4054.461707 | AE105: 3344.942968 | AF105: 1226.477078 | AG105: 0 | AH105: 61967.04183 | AI105: 0.001669449082 | AJ105: 1055.219816 | AK105: 0 | AL105: 0 | AM105: 0.2914188615 | AN105: 0 | AO105: 0 | AP105: 0 | AQ105: 0 | AR105: 0 | AS105: 0 | AT105: 5580 | AU105: 1 | AV105: 0 | AW105: 387577.2205 | AX105: 387577.2205 | AY105: 456179.4822 | AZ105: 456179.4822 | BA105: 0 | BB105: -8.149072528e-10 | BC105: 1203 | BD105: 2296.918836 | BE105: 0 | BF105: 5375225.331 | BG105: 0 | BH105: 0
A106: 8865443 | B106: A5443 | C106: Tonbridge Grammar School | D106: Recoupment Academy | E106: 0 | F106: 0 | G106: 0 | H106: 0 | I106: 0 | J106: 0 | K106: 0 | L106: 0 | M106: 0 | N106: 0 | O106: 0 | P106: 0 | Q106: 0 | R106: 0 | S106: 0 | T106: 0 | U106: 785 | V106: 0.01660280971 | W106: 0.005108556833 | X106: 0.008939974457 | Y106: 0.001277139208 | Z106: 0.001277139208 | AA106: 0 | AB106: 5822.714874 | AC106: 1881.192826 | AD106: 3538.976459 | AE106: 556.1268772 | AF106: 611.7385624 | AG106: 0 | AH106: 12410.7496 | AI106: 0 | AJ106: 0 | AK106: 0 | AL106: 0 | AM106: 0 | AN106: 0 | AO106: 0 | AP106: 0.002547770701 | AQ106: 0 | AR106: 6687.98043 | AS106: 6687.98043 | AT106: 5580 | AU106: 1 | AV106: 0 | AW106: 0 | AX106: 0 | AY106: 24678.73003 | AZ106: 24678.73003 | BA106: 5259.638099 | BB106: 0 | BC106: 785 | BD106: 2290.125494 | BE106: 125880.7974 | BF106: 3390358.515 | BG106: 0 | BH106: 0
A107: 8865444 | B107: A5444 | C107: Barton Court Grammar School | D107: Recoupment Academy | E107: 0 | F107: 0 | G107: 0 | H107: 0 | I107: 0 | J107: 0 | K107: 0 | L107: 0 | M107: 0 | N107: 0 | O107: 0 | P107: 0 | Q107: 0 | R107: 0 | S107: 0 | T107: 0 | U107: 650 | V107: 0.04930662558 | W107: 0.03235747304 | X107: 0.07087827427 | Y107: 0.03389830508 | Z107: 0 | AA107: 0 | AB107: 14318.34806 | AC107: 9866.278775 | AD107: 23232.62222 | AE107: 12222.42359 | AF107: 0 | AG107: 0 | AH107: 59639.67264 | AI107: 0.003231017771 | AJ107: 1103.460614 | AK107: 0 | AL107: 0 | AM107: 0.001623376623 | AN107: 0 | AO107: 0 | AP107: 0.009230769231 | AQ107: 0 | AR107: 20063.94129 | AS107: 20063.94129 | AT107: 5580 | AU107: 1 | AV107: 0 | AW107: 1166.561405 | AX107: 1166.561405 | AY107: 87553.63595 | AZ107: 87553.63595 | BA107: 3373.390921 | BB107: 0 | BC107: 650 | BD107: 2291.909215 | BE107: 0 | BF107: 2785394.517 | BG107: 0 | BH107: 29520.26371
A108: 8865448 | B108: A5448 | C108: Herne Bay High School | D108: Recoupment Academy | E108: 0 | F108: 0 | G108: 0 | H108: 0 | I108: 0 | J108: 0 | K108: 0 | L108: 0 | M108: 0 | N108: 0 | O108: 0 | P108: 0 | Q108: 0 | R108: 0 | S108: 0 | T108: 0 | U108: 1297 | V108: 0.001545595054 | W108: 0.05332302937 | X108: 0.1754250386 | Y108: 0.006182380216 | Z108: 0.003091190108 | AA108: 0 | AB108: 895.5915196 | AC108: 32442.94112 | AD108: 114736.9487 | AE108: 4447.968232 | AF108: 2446.378518 | AG108: 0 | AH108: 154969.8281 | AI108: 0.01789883268 | AJ108: 12197.44357 | AK108: 0 | AL108: 0 | AM108: 0.3547110055 | AN108: 0 | AO108: 0 | AP108: 0.003855050116 | AQ108: 0 | AR108: 16719.95107 | AS108: 16719.95107 | AT108: 5580 | AU108: 1 | AV108: 0 | AW108: 508615.5091 | AX108: 508615.5091 | AY108: 698082.7318 | AZ108: 698082.7318 | BA108: 0 | BB108: -9.313225746e-10 | BC108: 1297 | BD108: 2294.421608 | BE108: 0 | BF108: 6009497.792 | BG108: 0 | BH108: 0
A109: 8865449 | B109: A5449 | C109: Queen Elizabeth's Grammar | D109: Recoupment Academy | E109: 0 | F109: 0 | G109: 0 | H109: 0 | I109: 0 | J109: 0 | K109: 0 | L109: 0 | M109: 0 | N109: 0 | O109: 0 | P109: 0 | Q109: 0 | R109: 0 | S109: 0 | T109: 0 | U109: 686 | V109: 0.1224489796 | W109: 0.001457725948 | X109: 0.03206997085 | Y109: 0.04227405248 | Z109: 0 | AA109: 0 | AB109: 37527.83956 | AC109: 469.0999945 | AD109: 11094.15987 | AE109: 16086.58981 | AF109: 0 | AG109: 0 | AH109: 65177.68923 | AI109: 0 | AJ109: 0 | AK109: 0 | AL109: 0 | AM109: 0.003105590062 | AN109: 0 | AO109: 0 | AP109: 0 | AQ109: 0 | AR109: 0 | AS109: 0 | AT109: 5580 | AU109: 1 | AV109: 0 | AW109: 2355.283575 | AX109: 2355.283575 | AY109: 73112.97281 | AZ109: 73112.97281 | BA109: 3806.610816 | BB109: 0 | BC109: 686 | BD109: 2287.914761 | BE109: 0 | BF109: 2903444.325 | BG109: 0 | BH109: 0
A110: 8865450 | B110: A5450 | C110: HILLVIEW SCHOOL FOR GIRLS | D110: Recoupment Academy | E110: 0 | F110: 0 | G110: 0 | H110: 0 | I110: 0 | J110: 0 | K110: 0 | L110: 0 | M110: 0 | N110: 0 | O110: 0 | P110: 0 | Q110: 0 | R110: 0 | S110: 0 | T110: 0 | U110: 1034 | V110: 0.03685741998 | W110: 0.06304558681 | X110: 0.01745877789 | Y110: 0.02521823472 | Z110: 0 | AA110: 0 | AB110: 17026.27906 | AC110: 30580.22369 | AD110: 9103.45223 | AE110: 14464.42625 | AF110: 0 | AG110: 0 | AH110: 71174.38124 | AI110: 0.005730659026 | AJ110: 3113.359278 | AK110: 0 | AL110: 0 | AM110: 0.2442588727 | AN110: 0 | AO110: 0 | AP110: 0.004835589942 | AQ110: 0 | AR110: 16719.95107 | AS110: 16719.95107 | AT110: 5580 | AU110: 1 | AV110: 0 | AW110: 279219.5652 | AX110: 279219.5652 | AY110: 375807.2568 | AZ110: 375807.2568 | BA110: 0 | BB110: -5.238689482e-10 | BC110: 1034 | BD110: 2293.675729 | BE110: 0 | BF110: 4603848.466 | BG110: 0 | BH110: 0
A111: 8865455 | B111: A5455 | C111: The Hayesbrook School | D111: Recoupment Academy | E111: 0 | F111: 0 | G111: 0 | H111: 0 | I111: 0 | J111: 0 | K111: 0 | L111: 0 | M111: 0 | N111: 0 | O111: 0 | P111: 0 | Q111: 0 | R111: 0 | S111: 0 | T111: 0 | U111: 742 | V111: 0.03099730458 | W111: 0.07277628032 | X111: 0.02830188679 | Y111: 0.05121293801 | Z111: 0 | AA111: 0 | AB111: 10275.47988 | AC111: 25331.3997 | AD111: 10589.87988 | AE111: 21078.97975 | AF111: 0 | AG111: 0 | AH111: 67275.73921 | AI111: 0.00522875817 | AJ111: 2038.480656 | AK111: 0 | AL111: 0 | AM111: 0.2978723404 | AN111: 0 | AO111: 0 | AP111: 0.00269541779 | AQ111: 0 | AR111: 6687.98043 | AS111: 6687.98043 | AT111: 5580 | AU111: 1 | AV111: 0 | AW111: 244348.1428 | AX111: 244348.1428 | AY111: 325930.3431 | AZ111: 325930.3431 | BA111: 0 | BB111: -4.656612873e-10 | BC111: 742 | BD111: 2299.419206 | BE111: 0 | BF111: 3427363.715 | BG111: 0 | BH111: 0
A112: 8865460 | B112: A5460 | C112: Dane Court Grammar School | D112: Recoupment Academy | E112: 0 | F112: 0 | G112: 0 | H112: 0 | I112: 0 | J112: 0 | K112: 0 | L112: 0 | M112: 0 | N112: 0 | O112: 0 | P112: 0 | Q112: 0 | R112: 0 | S112: 0 | T112: 0 | U112: 863 | V112: 0.111239861 | W112: 0.04519119351 | X112: 0.08922363847 | Y112: 0.06720741599 | Z112: 0.033603708 | AA112: 0.01390498262 | AB112: 42888.9595 | AC112: 18294.89978 | AD112: 38829.55954 | AE112: 32173.17962 | AF112: 17695.21979 | AG112: 9152.639892 | AH112: 159034.4581 | AI112: 0.005780346821 | AJ112: 2621.010893 | AK112: 0 | AL112: 0 | AM112: 0.003708281829 | AN112: 0 | AO112: 0 | AP112: 0.004634994206 | AQ112: 0 | AR112: 13375.96086 | AS112: 13375.96086 | AT112: 5580 | AU112: 1 | AV112: 0 | AW112: 3538.005374 | AX112: 3538.005374 | AY112: 184149.4353 | AZ112: 184149.4353 | BA112: 475.5169423 | BB112: 0 | BC112: 863 | BD112: 2296.82889 | BE112: 0 | BF112: 3752213.691 | BG112: 0 | BH112: 0
A113: 8865462 | B113: A5462 | C113: Chatham and Clarendon Grammar School | D113: Recoupment Academy | E113: 0 | F113: 0 | G113: 0 | H113: 0 | I113: 0 | J113: 0 | K113: 0 | L113: 0 | M113: 0 | N113: 0 | O113: 0 | P113: 0 | Q113: 0 | R113: 0 | S113: 0 | T113: 0 | U113: 897 | V113: 0.1449275362 | W113: 0.05351170569 | X113: 0.1092530658 | Y113: 0.0602006689 | Z113: 0.02006688963 | AA113: 0.005574136009 | AB113: 58078.79932 | AC113: 22516.79974 | AD113: 49419.43942 | AE113: 29954.33965 | AF113: 10983.23987 | AG113: 3813.599955 | AH113: 174766.2179 | AI113: 0.005988023952 | AJ113: 2822.150078 | AK113: 0 | AL113: 0 | AM113: 0.002444987775 | AN113: 0 | AO113: 0 | AP113: 0.001116071429 | AQ113: 0 | AR113: 3347.722347 | AS113: 3347.722347 | AT113: 5580 | AU113: 1 | AV113: 0 | AW113: 2424.622296 | AX113: 2424.622296 | AY113: 188940.7127 | AZ113: 188940.7127 | BA113: 331.7786201 | BB113: 0 | BC113: 897 | BD113: 2298.32815 | BE113: 9885.995218 | BF113: 3983556.701 | BG113: 0 | BH113: 0
A114: 8865463 | B114: A5463 | C114: Sandwich Technology School | D114: Recoupment Academy | E114: 0 | F114: 0 | G114: 0 | H114: 0 | I114: 0 | J114: 0 | K114: 0 | L114: 0 | M114: 0 | N114: 0 | O114: 0 | P114: 0 | Q114: 0 | R114: 0 | S114: 0 | T114: 0 | U114: 1215 | V114: 0.2260726073 | W114: 0.01650165017 | X114: 0.09240924092 | Y114: 0.01567656766 | Z114: 0.004125412541 | AA114: 0.0008250825083 | AB114: 122715.2392 | AC114: 9405.222662 | AD114: 56619.15973 | AE114: 10565.57772 | AF114: 3058.451697 | AG114: 764.6079118 | AH114: 203128.2589 | AI114: 0.004128819158 | AJ114: 2635.762485 | AK114: 0 | AL114: 0 | AM114: 0.2553925798 | AN114: 0 | AO114: 0 | AP114: 0.004115226337 | AQ114: 0 | AR114: 16719.95107 | AS114: 16719.95107 | AT114: 5580 | AU114: 1 | AV114: 0 | AW114: 343051.6499 | AX114: 343051.6499 | AY114: 571115.6223 | AZ114: 571115.6223 | BA114: 0 | BB114: 0 | BC114: 1215 | BD114: 2294.996023 | BE114: 0 | BF114: 5552353.181 | BG114: 0 | BH114: 0
A115: 8865464 | B115: A5464 | C115: Bennett Memorial Diocesan | D115: Recoupment Academy | E115: 0 | F115: 0 | G115: 0 | H115: 0 | I115: 0 | J115: 0 | K115: 0 | L115: 0 | M115: 0 | N115: 0 | O115: 0 | P115: 0 | Q115: 0 | R115: 0 | S115: 0 | T115: 0 | U115: 1159 | V115: 0.04667242869 | W115: 0.014693172 | X115: 0.01123595506 | Y115: 0.01210025929 | Z115: 0 | AA115: 0 | AB115: 24166.74246 | AC115: 7988.48504 | AD115: 6566.972058 | AE115: 7779.364178 | AF115: 0 | AG115: 0 | AH115: 46501.56374 | AI115: 0.0008665511265 | AJ115: 527.6935191 | AK115: 0 | AL115: 0 | AM115: 0.1696854147 | AN115: 0 | AO115: 0 | AP115: 0.01121656601 | AQ115: 0 | AR115: 43471.87279 | AS115: 43471.87279 | AT115: 5580 | AU115: 1 | AV115: 0 | AW115: 217421.7112 | AX115: 217421.7112 | AY115: 313502.8412 | AZ115: 313502.8412 | BA115: 0 | BB115: 0 | BC115: 1159 | BD115: 2296.141375 | BE115: 0 | BF115: 5031112.711 | BG115: 0 | BH115: 0
A116: 8865465 | B116: A5465 | C116: GRAVESEND GRAMMAR SCHOOL | D116: Recoupment Academy | E116: 0 | F116: 0 | G116: 0 | H116: 0 | I116: 0 | J116: 0 | K116: 0 | L116: 0 | M116: 0 | N116: 0 | O116: 0 | P116: 0 | Q116: 0 | R116: 0 | S116: 0 | T116: 0 | U116: 819 | V116: 0.1062271062 | W116: 0.07692307692 | X116: 0.05128205128 | Y116: 0.01831501832 | Z116: 0.008547008547 | AA116: 0 | AB116: 38868.11954 | AC116: 29553.29965 | AD116: 21179.75975 | AE116: 8320.649902 | AF116: 4271.25995 | AG116: 0 | AH116: 102193.0888 | AI116: 0.00125 | AJ116: 537.8956697 | AK116: 0 | AL116: 0 | AM116: 0.002663115846 | AN116: 0 | AO116: 0 | AP116: 0.01343101343 | AQ116: 0 | AR116: 36783.89236 | AS116: 36783.89236 | AT116: 5580 | AU116: 1 | AV116: 0 | AW116: 2411.287084 | AX116: 2411.287084 | AY116: 147506.1639 | AZ116: 147506.1639 | BA116: 1574.815083 | BB116: 0 | BC116: 819 | BD116: 2295.461126 | BE116: 0 | BF116: 3514369.173 | BG116: 0 | BH116: 0
A117: 8865466 | B117: A5466 | C117: Brockhill Park Performing Arts College | D117: Recoupment Academy | E117: 0 | F117: 0 | G117: 0 | H117: 0 | I117: 0 | J117: 0 | K117: 0 | L117: 0 | M117: 0 | N117: 0 | O117: 0 | P117: 0 | Q117: 0 | R117: 0 | S117: 0 | T117: 0 | U117: 1086 | V117: 0.1225806452 | W117: 0.08940092166 | X117: 0.1161290323 | Y117: 0.03041474654 | Z117: 0.007373271889 | AA117: 0.003686635945 | AB117: 59473.84343 | AC117: 45544.63744 | AD117: 63597.8408 | AE117: 18322.30115 | AF117: 4885.938966 | AG117: 3053.691835 | AH117: 194878.2536 | AI117: 0.01131008483 | AJ117: 6453.566962 | AK117: 0 | AL117: 0 | AM117: 0.2981956315 | AN117: 0 | AO117: 0 | AP117: 0.004604051565 | AQ117: 0 | AR117: 16719.95107 | AS117: 16719.95107 | AT117: 5580 | AU117: 1 | AV117: 0 | AW117: 358018.9887 | AX117: 358018.9887 | AY117: 581650.7604 | AZ117: 581650.7604 | BA117: 0 | BB117: 0 | BC117: 1086 | BD117: 2295.802221 | BE117: 110261.5546 | BF117: 5162625.419 | BG117: 0 | BH117: 0
A118: 8865467 | B118: A5467 | C118: Mayfield Grammar School, Gravesend | D118: Recoupment Academy | E118: 0 | F118: 0 | G118: 0 | H118: 0 | I118: 0 | J118: 0 | K118: 0 | L118: 0 | M118: 0 | N118: 0 | O118: 0 | P118: 0 | Q118: 0 | R118: 0 | S118: 0 | T118: 0 | U118: 692 | V118: 0.07670043415 | W118: 0.07525325615 | X118: 0.0492040521 | Y118: 0.01881331404 | Z118: 0.01591895803 | AA118: 0 | AB118: 23712.54641 | AC118: 24428.50102 | AD118: 17170.33242 | AE118: 7221.665848 | AF118: 6721.693351 | AG118: 0 | AH118: 79254.73904 | AI118: 0 | AJ118: 0 | AK118: 0 | AL118: 0 | AM118: 0.001538461538 | AN118: 0 | AO118: 0 | AP118: 0.008683068017 | AQ118: 0 | AR118: 20092.97738 | AS118: 20092.97738 | AT118: 5580 | AU118: 1 | AV118: 0 | AW118: 1176.976244 | AX118: 1176.976244 | AY118: 106104.6927 | AZ118: 106104.6927 | BA118: 2816.85922 | BB118: 0 | BC118: 692 | BD118: 2298.431101 | BE118: 44697.16619 | BF118: 3017691.626 | BG118: 0 | BH118: 0
A119: 8866905 | B119: 6905 | C119: Knole Academy | D119: Recoupment Academy | E119: 0 | F119: 0 | G119: 0 | H119: 0 | I119: 0 | J119: 0 | K119: 0 | L119: 0 | M119: 0 | N119: 0 | O119: 0 | P119: 0 | Q119: 0 | R119: 0 | S119: 0 | T119: 0 | U119: 1016 | V119: 0.03846153846 | W119: 0.002958579882 | X119: 0.04437869822 | Y119: 0.02564102564 | Z119: 0.0009861932939 | AA119: 0 | AB119: 17458.00595 | AC119: 1410.075723 | AD119: 22737.35831 | AE119: 14450.9065 | AF119: 611.3835037 | AG119: 0 | AH119: 56667.72998 | AI119: 0.009910802775 | AJ119: 5290.621287 | AK119: 0 | AL119: 0 | AM119: 0.2854188211 | AN119: 0 | AO119: 0 | AP119: 0.005905511811 | AQ119: 0 | AR119: 20063.94129 | AS119: 20063.94129 | AT119: 5580 | AU119: 1.016316166 | AV119: 0 | AW119: 320590.9624 | AX119: 320590.9624 | AY119: 414853.4039 | AZ119: 414853.4039 | BA119: 0 | BB119: -6.4028427e-10 | BC119: 0 | BD119: 0 | BE119: 0 | BF119: 0 | BG119: 1 | BH119: 0
A120: 8866908 | B120: 6908 | C120: The Folkestone Academy | D120: Recoupment Academy | E120: 0 | F120: 0 | G120: 0 | H120: 409 | I120: 0.2113022113 | J120: 0.0171990172 | K120: 0.2678132678 | L120: 0.09828009828 | M120: 0.03931203931 | N120: 0 | O120: 35842.04648 | P120: 3063.269291 | Q120: 51276.9125 | R120: 20698.81656 | S120: 9107.57576 | T120: 0 | U120: 1160 | V120: 0.1331028522 | W120: 0.06050129646 | X120: 0.2644770959 | Y120: 0.1676750216 | Z120: 0.06309420916 | AA120: 0.02074330164 | AB120: 68979.43428 | AC120: 32922.14309 | AD120: 154709.7897 | AE120: 107892.7718 | AF120: 44658.63595 | AG120: 18352.74378 | AH120: 547504.1392 | AI120: 0.01441677588 | AJ120: 11884.89157 | AK120: 0.3333333333 | AL120: 0.09714285714 | AM120: 0.4032114184 | AN120: 57 | AO120: 0.02865329513 | AP120: 0.01379310345 | AQ120: 10370.75029 | AR120: 53503.84344 | AS120: 63874.59373 | AT120: 5580 | AU120: 1 | AV120: 61800.77033 | AW120: 517089.5616 | AX120: 578890.3319 | AY120: 1207733.956 | AZ120: 1207733.956 | BA120: 0 | BB120: 0 | BC120: 0 | BD120: 0 | BE120: 0 | BF120: 0 | BG120: 0 | BH120: 0
A121: 8866914 | B121: 6914 | C121: Longfield Academy | D121: Recoupment Academy | E121: 0 | F121: 0 | G121: 0 | H121: 0 | I121: 0 | J121: 0 | K121: 0 | L121: 0 | M121: 0 | N121: 0 | O121: 0 | P121: 0 | Q121: 0 | R121: 0 | S121: 0 | T121: 0 | U121: 837 | V121: 0.1370967742 | W121: 0.06221198157 | X121: 0.07603686636 | Y121: 0.01958525346 | Z121: 0.003456221198 | AA121: 0 | AB121: 51265.7094 | AC121: 24426.70686 | AD121: 32093.81962 | AE121: 9093.281679 | AF121: 1765.163551 | AG121: 0 | AH121: 118644.6811 | AI121: 0.0107398568 | AJ121: 4723.110237 | AK121: 0 | AL121: 0 | AM121: 0.3432657926 | AN121: 0 | AO121: 0 | AP121: 0.004592422503 | AQ121: 0 | AR121: 12853.82232 | AS121: 12853.82232 | AT121: 5580 | AU121: 1.016316166 | AV121: 0 | AW121: 317636.8967 | AX121: 317636.8967 | AY121: 466934.7853 | AZ121: 466934.7853 | BA121: 0 | BB121: -6.98491931e-10 | BC121: 837 | BD121: 2293.362228 | BE121: 160623.3606 | BF121: 4147834.943 | BG121: 0 | BH121: 0
A122: 8866915 | B122: 6915 | C122: The Isle of Sheppey Academy | D122: Recoupment Academy | E122: 0 | F122: 0 | G122: 0 | H122: 0 | I122: 0 | J122: 0 | K122: 0 | L122: 0 | M122: 0 | N122: 0 | O122: 0 | P122: 0 | Q122: 0 | R122: 0 | S122: 0 | T122: 0 | U122: 1538 | V122: 0.06510416667 | W122: 0.076171875 | X122: 0.1458333333 | Y122: 0.2740885417 | Z122: 0.1471354167 | AA122: 0 | AB122: 44734.17135 | AC122: 54956.16381 | AD122: 113105.8003 | AE122: 233836.9866 | AF122: 138080.2366 | AG122: 0 | AH122: 584713.3586 | AI122: 0.01438848921 | AJ122: 11627.21396 | AK122: 0 | AL122: 0 | AM122: 0.4673611111 | AN122: 0 | AO122: 0 | AP122: 0.02091503268 | AQ122: 0 | AR122: 107567.2042 | AS122: 107567.2042 | AT122: 5580 | AU122: 1 | AV122: 0 | AW122: 794664.6001 | AX122: 794664.6001 | AY122: 1504152.377 | AZ122: 1504152.377 | BA122: 0 | BB122: 0 | BC122: 0 | BD122: 0 | BE122: 0 | BF122: 0 | BG122: 1 | BH122: 0
A123: 8866916 | B123: 6916 | C123: Skinners' Kent Academy | D123: Recoupment Academy | E123: 0 | F123: 0 | G123: 0 | H123: 0 | I123: 0 | J123: 0 | K123: 0 | L123: 0 | M123: 0 | N123: 0 | O123: 0 | P123: 0 | Q123: 0 | R123: 0 | S123: 0 | T123: 0 | U123: 472 | V123: 0.1186440678 | W123: 0.0656779661 | X123: 0.08262711864 | Y123: 0.1059322034 | Z123: 0 | AA123: 0 | AB123: 25018.55971 | AC123: 14542.09983 | AD123: 19666.91977 | AE123: 27735.49967 | AF123: 0 | AG123: 0 | AH123: 86963.07898 | AI123: 0.005025125628 | AJ123: 1246.215233 | AK123: 0 | AL123: 0 | AM123: 0.4198113208 | AN123: 0 | AO123: 0 | AP123: 0.03609341826 | AQ123: 0 | AR123: 56968.52969 | AS123: 56968.52969 | AT123: 5580 | AU123: 1 | AV123: 0 | AW123: 219064.0456 | AX123: 219064.0456 | AY123: 369821.8695 | AZ123: 369821.8695 | BA123: 0 | BB123: 0 | BC123: 0 | BD123: 0 | BE123: 0 | BF123: 0 | BG123: 1 | BH123: 0
A124: 8866917 | B124: 6917 | C124: Dover Christ Church Academy | D124: Recoupment Academy | E124: 0 | F124: 0 | G124: 0 | H124: 0 | I124: 0 | J124: 0 | K124: 0 | L124: 0 | M124: 0 | N124: 0 | O124: 0 | P124: 0 | Q124: 0 | R124: 0 | S124: 0 | T124: 0 | U124: 498 | V124: 0.05871212121 | W124: 0.1590909091 | X124: 0.2746212121 | Y124: 0.2102272727 | Z124: 0.0321969697 | AA124: 0 | AB124: 13062.65303 | AC124: 37165.5132 | AD124: 68966.01964 | AE124: 58074.3542 | AF124: 9783.681476 | AG124: 0 | AH124: 187052.2215 | AI124: 0.005338078292 | AJ124: 1396.749148 | AK124: 0 | AL124: 0 | AM124: 0.402020202 | AN124: 0 | AO124: 0 | AP124: 0.0284629981 | AQ124: 0 | AR124: 47399.6336 | AS124: 47399.6336 | AT124: 5580 | AU124: 1 | AV124: 0 | AW124: 221336.0624 | AX124: 221336.0624 | AY124: 462764.6667 | AZ124: 462764.6667 | BA124: 0 | BB124: 0 | BC124: 0 | BD124: 0 | BE124: 0 | BF124: 0 | BG124: 1 | BH124: 0
A125: 8866919 | B125: 6919 | C125: The John Wallis Academy | D125: Recoupment Academy | E125: 3.9 | F125: 0.9 | G125: 0.35 | H125: 356 | I125: 0.01917808219 | J125: 0.1561643836 | K125: 0.04931506849 | L125: 0.2328767123 | M125: 0.298630137 | N125: 0 | O125: 2831.526446 | P125: 24209.7457 | Q125: 8218.567176 | R125: 42690.6419 | S125: 60219.55509 | T125: 0 | U125: 854 | V125: 0.044653349 | W125: 0.1715628672 | X125: 0.1139835488 | Y125: 0.1351351351 | Z125: 0.1104582844 | AA125: 0 | AB125: 17036.72779 | AC125: 68730.03961 | AD125: 49087.59829 | AE125: 64016.53168 | AF125: 57559.11763 | AG125: 0 | AH125: 394600.0513 | AI125: 0.004212299916 | AJ125: 2677.989001 | AK125: 0.6862745098 | AL125: 0.3942857143 | AM125: 0.4901960784 | AN125: 53 | AO125: 0.1551155116 | AP125: 0.0737704918 | AQ125: 48867.20768 | AR125: 210671.3835 | AS125: 259538.5912 | AT125: 5580 | AU125: 1 | AV125: 170742.9294 | AW125: 462809.9237 | AX125: 633552.8531 | AY125: 1295949.485 | AZ125: 1295949.485 | BA125: 0 | BB125: 0 | BC125: 0 | BD125: 0 | BE125: 0 | BF125: 0 | BG125: 0 | BH125: 0
A126: 8866920 | B126: 6920 | C126: Wilmington Academy | D126: Recoupment Academy | E126: 0 | F126: 0 | G126: 0 | H126: 0 | I126: 0 | J126: 0 | K126: 0 | L126: 0 | M126: 0 | N126: 0 | O126: 0 | P126: 0 | Q126: 0 | R126: 0 | S126: 0 | T126: 0 | U126: 781 | V126: 0.08729139923 | W126: 0.1168164313 | X126: 0.04236200257 | Y126: 0.05648267009 | Z126: 0 | AA126: 0 | AB126: 30457.67625 | AC126: 42797.69667 | AD126: 16683.96443 | AE126: 24469.90272 | AF126: 0 | AG126: 0 | AH126: 114409.2401 | AI126: 0.008064516129 | AJ126: 3309.279751 | AK126: 0 | AL126: 0 | AM126: 0.309623431 | AN126: 0 | AO126: 0 | AP126: 0.02816901408 | AQ126: 0 | AR126: 73567.78473 | AS126: 73567.78473 | AT126: 5580 | AU126: 1.016316166 | AV126: 0 | AW126: 267337.4567 | AX126: 267337.4567 | AY126: 471777.7868 | AZ126: 471777.7868 | BA126: 0 | BB126: -4.656612873e-10 | BC126: 781 | BD126: 2288.883823 | BE126: 1792.154367 | BF126: 3743301.884 | BG126: 0 | BH126: 31145.01111
A127: 8862008 | B127: F2008 | C127: Tiger Primary School | D127: Non Recoupment Academy | E127: 0 | F127: 0 | G127: 0 | H127: 141 | I127: 0.1985815603 | J127: 0.06382978723 | K127: 0.09219858156 | L127: 0.0780141844 | M127: 0 | N127: 0.0780141844 | O127: 11612.43992 | P127: 3919.229973 | Q127: 6085.689958 | R127: 5664.339961 | S127: 0 | T127: 7788.549946 | U127: 0 | V127: 0 | W127: 0 | X127: 0 | Y127: 0 | Z127: 0 | AA127: 0 | AB127: 0 | AC127: 0 | AD127: 0 | AE127: 0 | AF127: 0 | AG127: 0 | AH127: 35070.24976 | AI127: 0 | AJ127: 0 | AK127: 0.1833333333 | AL127: 0.07142857143 | AM127: 0 | AN127: 60 | AO127: 0.1025641026 | AP127: 0 | AQ127: 12797.54877 | AR127: 0 | AS127: 12797.54877 | AT127: 6235 | AU127: 1 | AV127: 22480 | AW127: 0 | AX127: 22480 | AY127: 76582.79853 | AZ127: 0 | BA127: 0 | BB127: 0 | BC127: 0 | BD127: 0 | BE127: 0 | BF127: 0 | BG127: 1 | BH127: 0
A128: 8862025 | B128: F2025 | C128: The Wells Free School | D128: Non Recoupment Academy | E128: 0 | F128: 0 | G128: 0 | H128: 69 | I128: 0.1014492754 | J128: 0.01449275362 | K128: 0.04347826087 | L128: 0.01449275362 | M128: 0 | N128: 0 | O128: 2903.10998 | P128: 435.469997 | Q128: 1404.38999 | R128: 514.9399964 | S128: 0 | T128: 0 | U128: 0 | V128: 0 | W128: 0 | X128: 0 | Y128: 0 | Z128: 0 | AA128: 0 | AB128: 0 | AC128: 0 | AD128: 0 | AE128: 0 | AF128: 0 | AG128: 0 | AH128: 5257.909964 | AI128: 0 | AJ128: 0 | AK128: 0.2941176471 | AL128: 0 | AM128: 0 | AN128: 22 | AO128: 0.04444444444 | AP128: 0 | AQ128: 2713.806441 | AR128: 0 | AS128: 2713.806441 | AT128: 6235 | AU128: 1 | AV128: 10296.15 | AW128: 0 | AX128: 10296.15 | AY128: 24502.86641 | AZ128: 0 | BA128: 0 | BB128: 0 | BC128: 0 | BD128: 0 | BE128: 0 | BF128: 0 | BG128: 1 | BH128: 0
A129: 8864006 | B129: F4006 | C129: Trinity Sevenoaks | D129: Non Recoupment Academy | E129: 0 | F129: 0 | G129: 0 | H129: 0 | I129: 0 | J129: 0 | K129: 0 | L129: 0 | M129: 0 | N129: 0 | O129: 0 | P129: 0 | Q129: 0 | R129: 0 | S129: 0 | T129: 0 | U129: 91 | V129: 0 | W129: 0 | X129: 0 | Y129: 0.01098901099 | Z129: 0 | AA129: 0 | AB129: 0 | AC129: 0 | AD129: 0 | AE129: 554.7099935 | AF129: 0 | AG129: 0 | AH129: 554.7099935 | AI129: 0 | AJ129: 0 | AK129: 0 | AL129: 0 | AM129: 0.2317073171 | AN129: 0 | AO129: 0 | AP129: 0.01098901099 | AQ129: 0 | AR129: 3343.990215 | AS129: 3343.990215 | AT129: 5580 | AU129: 1.016316166 | AV129: 0 | AW129: 23310.74214 | AX129: 23310.74214 | AY129: 33324.44033 | AZ129: 0 | BA129: 0 | BB129: 0 | BC129: 0 | BD129: 0 | BE129: 0 | BF129: 0 | BG129: 1 | BH129: 0
A130: 8864007 | B130: F4007 | C130: Wye School | D130: Non Recoupment Academy | E130: 0 | F130: 0 | G130: 0 | H130: 0 | I130: 0 | J130: 0 | K130: 0 | L130: 0 | M130: 0 | N130: 0 | O130: 0 | P130: 0 | Q130: 0 | R130: 0 | S130: 0 | T130: 0 | U130: 89 | V130: 0.1235955056 | W130: 0.02247191011 | X130: 0.05617977528 | Y130: 0.01123595506 | Z130: 0.01123595506 | AA130: 0 | AB130: 4914.359942 | AC130: 938.199989 | AD130: 2521.39997 | AE130: 554.7099935 | AF130: 610.1799928 | AG130: 0 | AH130: 9538.849888 | AI130: 0 | AJ130: 0 | AK130: 0 | AL130: 0 | AM130: 0.2168674699 | AN130: 0 | AO130: 0 | AP130: 0 | AQ130: 0 | AR130: 0 | AS130: 0 | AT130: 5580 | AU130: 1 | AV130: 0 | AW130: 21338.27848 | AX130: 21338.27848 | AY130: 36457.12837 | AZ130: 0 | BA130: 0 | BB130: 0 | BC130: 0 | BD130: 0 | BE130: 0 | BF130: 0 | BG130: 1 | BH130: 0
A131: 8864009 | B131: F4009 | C131: Hadlow Rural Community School | D131: Non Recoupment Academy | E131: 0 | F131: 0 | G131: 0 | H131: 0 | I131: 0 | J131: 0 | K131: 0 | L131: 0 | M131: 0 | N131: 0 | O131: 0 | P131: 0 | Q131: 0 | R131: 0 | S131: 0 | T131: 0 | U131: 79 | V131: 0.06493506494 | W131: 0.06493506494 | X131: 0.05194805195 | Y131: 0.01298701299 | Z131: 0.02597402597 | AA131: 0 | AB131: 2291.820752 | AC131: 2406.42205 | AD131: 2069.512703 | AE131: 569.1180453 | AF131: 1252.057648 | AG131: 0 | AH131: 8588.931198 | AI131: 0 | AJ131: 0 | AK131: 0 | AL131: 0 | AM131: 0.4057971014 | AN131: 0 | AO131: 0 | AP131: 0.01265822785 | AQ131: 0 | AR131: 3343.990215 | AS131: 3343.990215 | AT131: 5580 | AU131: 1 | AV131: 0 | AW131: 35441.40998 | AX131: 35441.40998 | AY131: 52954.33139 | AZ131: 0 | BA131: 0 | BB131: 0 | BC131: 0 | BD131: 0 | BE131: 0 | BF131: 0 | BG131: 1 | BH131: 0
A132: 8866906 | B132: 6906 | C132: The Marlowe Academy | D132: Non Recoupment Academy | E132: 0 | F132: 0 | G132: 0 | H132: 0 | I132: 0 | J132: 0 | K132: 0 | L132: 0 | M132: 0 | N132: 0 | O132: 0 | P132: 0 | Q132: 0 | R132: 0 | S132: 0 | T132: 0 | U132: 490 | V132: 0.100204499 | W132: 0.0981595092 | X132: 0.245398773 | Y132: 0.1881390593 | Z132: 0.1963190184 | AA132: 0.02249488753 | AB132: 21936.0071 | AC132: 22562.84636 | AD132: 60637.34898 | AE132: 51137.68202 | AF132: 58697.06925 | AG132: 8407.077202 | AH132: 223378.0309 | AI132: 0.02998236332 | AJ132: =((H132+U132)*AI132)*525.417015561615 -> 7719.089488 | AK132: 0 | AL132: 0 | AM132: 0.5470737913 | AN132: 0 | AO132: 0 | AP132: 0.06339468303 | AQ132: =(H132*AO132)*884.9368830738 -> 0 | AR132: =(U132*AP132)*3343.9902149541 -> 103875.6879 | AS132: =AQ132+AR132 -> 103875.6879 | AT132: =IF(H132>0,6235,5580) -> 5580 | AU132: 1 | AV132: 0 | AW132: =(U132*AM132)*1105.54126971233 -> 296358.2004 | AX132: =AW132+AV132 -> 296358.2004 | AY132: =(AH132+AJ132+AS132+AT132+AX132)*AU132 -> 636911.0087 | AZ132: 0 | BA132: 0 | BB132: 0 | BC132: 0 | BD132: 0 | BE132: 0 | BF132: 0 | BG132: 1 | BH132: 0
A133: 8866909 | B133: 6909 | C133: The Marsh Academy | D133: Non Recoupment Academy | E133: 0 | F133: 0 | G133: 0 | H133: 0 | I133: 0 | J133: 0 | K133: 0 | L133: 0 | M133: 0 | N133: 0 | O133: 0 | P133: 0 | Q133: 0 | R133: 0 | S133: 0 | T133: 0 | U133: 644 | V133: 0.3545878694 | W133: 0.2130637636 | X133: 0.167962675 | Y133: 0.00466562986 | Z133: 0 | AA133: 0.001555209953 | AB133: 102019.6945 | AC133: 64366.64745 | AD133: 54546.93958 | AE133: 1666.718052 | AF133: 0 | AG133: 763.9061807 | AH133: 223363.9057 | AI133: 0.03017241379 | AJ133: 10209.39615 | AK133: 0 | AL133: 0 | AM133: 0.4142857143 | AN133: 0 | AO133: 0 | AP133: 0.006211180124 | AQ133: 0 | AR133: 13375.96086 | AS133: 13375.96086 | AT133: 5580 | AU133: 1 | AV133: 0 | AW133: 294958.4108 | AX133: 294958.4108 | AY133: 547487.6735 | AZ133: 0 | BA133: 0 | BB133: 0 | BC133: 0 | BD133: 0 | BE133: 0 | BF133: 0 | BG133: 0 | BH133: 0
A134: 8866910 | B134: 6910 | C134: Leigh Technology Academy | D134: Non Recoupment Academy | E134: 0 | F134: 0 | G134: 0 | H134: 0 | I134: 0 | J134: 0 | K134: 0 | L134: 0 | M134: 0 | N134: 0 | O134: 0 | P134: 0 | Q134: 0 | R134: 0 | S134: 0 | T134: 0 | U134: 1189 | V134: 0.09479865772 | W134: 0.1333892617 | X134: 0.02516778523 | Y134: 0.06963087248 | Z134: 0.001677852349 | AA134: 0 | AB134: 50356.82266 | AC134: 74399.18042 | AD134: 15090.32499 | AE134: 45925.05464 | AF134: 1217.28861 | AG134: 0 | AH134: 186988.6713 | AI134: 0.004191114837 | AJ134: 2618.276746 | AK134: 0 | AL134: 0 | AM134: 0.2464788732 | AN134: 0 | AO134: 0 | AP134: 0.004191114837 | AQ134: 0 | AR134: 16663.89089 | AS134: 16663.89089 | AT134: 5580 | AU134: 1.016316166 | AV134: 0 | AW134: 323993.6615 | AX134: 323993.6615 | AY134: 544587.4283 | AZ134: 0 | BA134: 0 | BB134: 0 | BC134: 0 | BD134: 0 | BE134: 0 | BF134: 0 | BG134: 1 | BH134: 0
A135: 8866911 | B135: 6911 | C135: Spires Academy | D135: Non Recoupment Academy | E135: 0 | F135: 0 | G135: 0 | H135: 0 | I135: 0 | J135: 0 | K135: 0 | L135: 0 | M135: 0 | N135: 0 | O135: 0 | P135: 0 | Q135: 0 | R135: 0 | S135: 0 | T135: 0 | U135: 446 | V135: 0.04279279279 | W135: 0.03378378378 | X135: 0.1283783784 | Y135: 0.1261261261 | Z135: 0.009009009009 | AA135: 0 | AB135: 8526.676116 | AC135: 7068.195863 | AD135: 28873.43696 | AE135: 31203.68648 | AF135: 2451.714205 | AG135: 0 | AH135: 78123.70962 | AI135: 0.01548672566 | AJ135: 3629.097174 | AK135: 0 | AL135: 0 | AM135: 0.4754901961 | AN135: 0 | AO135: 0 | AP135: 0.02466367713 | AQ135: 0 | AR135: 36783.89236 | AS135: 36783.89236 | AT135: 5580 | AU135: 1 | AV135: 0 | AW135: 234450.6197 | AX135: 234450.6197 | AY135: 358567.3188 | AZ135: 0 | BA135: 0 | BB135: 0 | BC135: 0 | BD135: 0 | BE135: 0 | BF135: 0 | BG135: 1 | BH135: 0
A136: 8866912 | B136: 6912 | C136: New Line Learning Academy | D136: Non Recoupment Academy | E136: 0 | F136: 0 | G136: 0 | H136: 0 | I136: 0 | J136: 0 | K136: 0 | L136: 0 | M136: 0 | N136: 0 | O136: 0 | P136: 0 | Q136: 0 | R136: 0 | S136: 0 | T136: 0 | U136: 579 | V136: 0.1347150259 | W136: 0.1606217617 | X136: 0.1364421416 | Y136: 0.1519861831 | Z136: 0.0621761658 | AA136: 0.06735751295 | AB136: 34847.27959 | AC136: 43626.29949 | AD136: 39838.11953 | AE136: 48814.47943 | AF136: 21966.47974 | AG136: 29746.07965 | AH136: 218838.7374 | AI136: 0.008896797153 | AJ136: 2706.552064 | AK136: 0 | AL136: 0 | AM136: 0.5018726592 | AN136: 0 | AO136: 0 | AP136: 0.04459691252 | AQ136: 0 | AR136: 86347.21903 | AS136: 86347.21903 | AT136: 5580 | AU136: 1 | AV136: 0 | AW136: 321252.9024 | AX136: 321252.9024 | AY136: 634725.411 | AZ136: 0 | BA136: 0 | BB136: 0 | BC136: 0 | BD136: 0 | BE136: 0 | BF136: 0 | BG136: 0 | BH136: 0
A137: 8866913 | B137: 6913 | C137: Cornwallis Academy | D137: Non Recoupment Academy | E137: 0 | F137: 0 | G137: 0 | H137: 0 | I137: 0 | J137: 0 | K137: 0 | L137: 0 | M137: 0 | N137: 0 | O137: 0 | P137: 0 | Q137: 0 | R137: 0 | S137: 0 | T137: 0 | U137: 1235 | V137: 0.136474411 | W137: 0.06173842405 | X137: 0.03899268887 | Y137: 0.04142973193 | Z137: 0.03005686434 | AA137: 0.0268074736 | AB137: 75299.56435 | AC137: 35767.44556 | AD137: 24284.09265 | AE137: 28382.13561 | AF137: 22650.02012 | AG137: 25251.54609 | AH137: 211634.8044 | AI137: 0.006451612903 | AJ137: 4186.387189 | AK137: 0 | AL137: 0 | AM137: 0.365 | AN137: 0 | AO137: 0 | AP137: 0.008097165992 | AQ137: 0 | AR137: 33439.90215 | AS137: 33439.90215 | AT137: 5580 | AU137: 1 | AV137: 0 | AW137: 498350.3659 | AX137: 498350.3659 | AY137: 753191.4596 | AZ137: 0 | BA137: 0 | BB137: 0 | BC137: 0 | BD137: 0 | BE137: 0 | BF137: 0 | BG137: 0 | BH137: 0
A138: 8866918 | B138: 6918 | C138: Duke of York's Military School | D138: Non Recoupment Academy | E138: 0 | F138: 0 | G138: 0 | H138: 0 | I138: 0 | J138: 0 | K138: 0 | L138: 0 | M138: 0 | N138: 0 | O138: 0 | P138: 0 | Q138: 0 | R138: 0 | S138: 0 | T138: 0 | U138: 339 | V138: 0.07098765432 | W138: 0.03086419753 | X138: 0.07098765432 | Y138: 0.01543209877 | Z138: 0.009259259259 | AA138: 0.003086419753 | AB138: 10751.19654 | AC138: 4908.175868 | AD138: 12135.40467 | AE138: 2901.955058 | AF138: 1915.2872 | AG138: 798.0311017 | AH138: 33410.05044 | AI138: 0 | AJ138: 0 | AK138: 0 | AL138: 0 | AM138: 0.1811594203 | AN138: 0 | AO138: 0 | AP138: 0.08358208955 | AQ138: 0 | AR138: 94749.71678 | AS138: 94749.71678 | AT138: 5580 | AU138: 1 | AV138: 0 | AW138: 67894.65406 | AX138: 67894.65406 | AY138: 201634.4213 | AZ138: 0 | BA138: 0 | BB138: 0 | BC138: 0 | BD138: 0 | BE138: 0 | BF138: 0 | BG138: 0 | BH138: 0
B139: SPARE | C139: SPARE | D139: SPARE | E139: 0 | F139: 0 | G139: 0 | H139: 0 | I139: 0 | J139: 0 | K139: 0 | L139: 0 | M139: 0 | N139: 0 | O139: 0 | P139: 0 | Q139: 0 | R139: 0 | S139: 0 | T139: 0 | U139: 0 | V139: 0 | W139: 0 | X139: 0 | Y139: 0 | Z139: 0 | AA139: 0 | AB139: 0 | AC139: 0 | AD139: 0 | AE139: 0 | AF139: 0 | AG139: 0 | AH139: 0 | AI139: 0 | AJ139: 0 | AK139: 0 | AL139: 0 | AM139: 0 | AN139: 0 | AO139: 0 | AP139: 0 | AQ139: 0 | AR139: 0 | AS139: 0 | AT139: 5580 | AU139: 0 | AV139: 0 | AW139: 0 | AX139: 0 | AY139: 0 | AZ139: 0 | BA139: 0 | BB139: 0 | BC139: 0 | BD139: 0 | BE139: 0 | BF139: 0 | BG139: 0 | BH139: 0
B140: SPARE | C140: SPARE | D140: SPARE | E140: 0 | F140: 0 | G140: 0 | H140: 0 | I140: 0 | J140: 0 | K140: 0 | L140: 0 | M140: 0 | N140: 0 | O140: 0 | P140: 0 | Q140: 0 | R140: 0 | S140: 0 | T140: 0 | U140: 0 | V140: 0 | W140: 0 | X140: 0 | Y140: 0 | Z140: 0 | AA140: 0 | AB140: 0 | AC140: 0 | AD140: 0 | AE140: 0 | AF140: 0 | AG140: 0 | AH140: 0 | AI140: 0 | AJ140: 0 | AK140: 0 | AL140: 0 | AM140: 0 | AN140: 0 | AO140: 0 | AP140: 0 | AQ140: 0 | AR140: 0 | AS140: 0 | AT140: 5580 | AU140: 0 | AV140: 0 | AW140: 0 | AX140: 0 | AY140: 0 | AZ140: 0 | BA140: 0 | BB140: 0 | BC140: 0 | BD140: 0 | BE140: 0 | BF140: 0 | BG140: 0 | BH140: 0
B141: SPARE | C141: SPARE | D141: SPARE | E141: 0 | F141: 0 | G141: 0 | H141: 0 | I141: 0 | J141: 0 | K141: 0 | L141: 0 | M141: 0 | N141: 0 | O141: 0 | P141: 0 | Q141: 0 | R141: 0 | S141: 0 | T141: 0 | U141: 0 | V141: 0 | W141: 0 | X141: 0 | Y141: 0 | Z141: 0 | AA141: 0 | AB141: 0 | AC141: 0 | AD141: 0 | AE141: 0 | AF141: 0 | AG141: 0 | AH141: 0 | AI141: 0 | AJ141: 0 | AK141: 0 | AL141: 0 | AM141: 0 | AN141: 0 | AO141: 0 | AP141: 0 | AQ141: 0 | AR141: 0 | AS141: 0 | AT141: 5580 | AU141: 0 | AV141: 0 | AW141: 0 | AX141: 0 | AY141: 0 | AZ141: 0 | BA141: 0 | BB141: 0 | BC141: 0 | BD141: 0 | BE141: 0 | BF141: 0 | BG141: 0 | BH141: 0
B142: SPARE | C142: SPARE | D142: SPARE | E142: 0 | F142: 0 | G142: 0 | H142: 0 | I142: 0 | J142: 0 | K142: 0 | L142: 0 | M142: 0 | N142: 0 | O142: 0 | P142: 0 | Q142: 0 | R142: 0 | S142: 0 | T142: 0 | U142: 0 | V142: 0 | W142: 0 | X142: 0 | Y142: 0 | Z142: 0 | AA142: 0 | AB142: 0 | AC142: 0 | AD142: 0 | AE142: 0 | AF142: 0 | AG142: 0 | AH142: 0 | AI142: 0 | AJ142: 0 | AK142: 0 | AL142: 0 | AM142: 0 | AN142: 0 | AO142: 0 | AP142: 0 | AQ142: 0 | AR142: 0 | AS142: 0 | AT142: 5580 | AU142: 0 | AV142: 0 | AW142: 0 | AX142: 0 | AY142: 0 | AZ142: 0 | BA142: 0 | BB142: 0 | BC142: 0 | BD142: 0 | BE142: 0 | BF142: 0 | BG142: 0 | BH142: 0
B143: SPARE | C143: SPARE | D143: SPARE | E143: 0 | F143: 0 | G143: 0 | H143: 0 | I143: 0 | J143: 0 | K143: 0 | L143: 0 | M143: 0 | N143: 0 | O143: 0 | P143: 0 | Q143: 0 | R143: 0 | S143: 0 | T143: 0 | U143: 0 | V143: 0 | W143: 0 | X143: 0 | Y143: 0 | Z143: 0 | AA143: 0 | AB143: 0 | AC143: 0 | AD143: 0 | AE143: 0 | AF143: 0 | AG143: 0 | AH143: 0 | AI143: 0 | AJ143: 0 | AK143: 0 | AL143: 0 | AM143: 0 | AN143: 0 | AO143: 0 | AP143: 0 | AQ143: 0 | AR143: 0 | AS143: 0 | AT143: 5580 | AU143: 0 | AV143: 0 | AW143: 0 | AX143: 0 | AY143: 0 | AZ143: 0 | BA143: 0 | BB143: 0 | BC143: 0 | BD143: 0 | BE143: 0 | BF143: 0 | BG143: 0 | BH143: 0
B144: SPARE | C144: SPARE | D144: SPARE | E144: 0 | F144: 0 | G144: 0 | H144: 0 | I144: 0 | J144: 0 | K144: 0 | L144: 0 | M144: 0 | N144: 0 | O144: 0 | P144: 0 | Q144: 0 | R144: 0 | S144: 0 | T144: 0 | U144: 0 | V144: 0 | W144: 0 | X144: 0 | Y144: 0 | Z144: 0 | AA144: 0 | AB144: 0 | AC144: 0 | AD144: 0 | AE144: 0 | AF144: 0 | AG144: 0 | AH144: 0 | AI144: 0 | AJ144: 0 | AK144: 0 | AL144: 0 | AM144: 0 | AN144: 0 | AO144: 0 | AP144: 0 | AQ144: 0 | AR144: 0 | AS144: 0 | AT144: 5580 | AU144: 0 | AV144: 0 | AW144: 0 | AX144: 0 | AY144: 0 | AZ144: 0 | BA144: 0 | BB144: 0 | BC144: 0 | BD144: 0 | BE144: 0 | BF144: 0 | BG144: 0 | BH144: 0
B145: SPARE | C145: SPARE | D145: SPARE | E145: 0 | F145: 0 | G145: 0 | H145: 0 | I145: 0 | J145: 0 | K145: 0 | L145: 0 | M145: 0 | N145: 0 | O145: 0 | P145: 0 | Q145: 0 | R145: 0 | S145: 0 | T145: 0 | U145: 0 | V145: 0 | W145: 0 | X145: 0 | Y145: 0 | Z145: 0 | AA145: 0 | AB145: 0 | AC145: 0 | AD145: 0 | AE145: 0 | AF145: 0 | AG145: 0 | AH145: 0 | AI145: 0 | AJ145: 0 | AK145: 0 | AL145: 0 | AM145: 0 | AN145: 0 | AO145: 0 | AP145: 0 | AQ145: 0 | AR145: 0 | AS145: 0 | AT145: 5580 | AU145: 0 | AV145: 0 | AW145: 0 | AX145: 0 | AY145: 0 | AZ145: 0 | BA145: 0 | BB145: 0 | BC145: 0 | BD145: 0 | BE145: 0 | BF145: 0 | BG145: 0 | BH145: 0

Sheet SRP data (hidden)
A1: DFE | B1: School | C1: Phase | D1: Pre 16 | E1: Post 16 | F1: Pre 16 | G1: Post 16 | H1: Pre 16 | I1: Post 16 | J1: Primary | K1: KS3 | L1: KS4 | M1: Primary | N1: KS3 | O1: KS4 | P1: Pre 16 | Q1: KS3 | R1: KS4 | S1: Primary | T1: KS3 | U1: KS4 | V1: Post 16 | W1: ASD | X1: PD, HI & VI | Y1: SLCN & SPLD | Z1: SLD | AB1: ASD | AC1: PD, HI & VI | AD1: SLCN & SPLD | AE1: SLD | AH1: Primary AWPU | AI1: KS3 AWPU | AJ1: KS4 AWPU | AK1: FSM% | AL1: FSM PUPILS | AM1: FSM CASH | AN1: IDACI % 1 | AO1: IDACI Pupils 1 | AP1: IDACI Cash 1 | AQ1: IDACI % 2 | AR1: IDACI Pupils 2 | AS1: IDACI Cash 2 | AT1: IDACI % 3 | AU1: IDACI Pupils 3 | AV1: IDACI Cash 3 | AW1: IDACI % 4 | AX1: IDACI Pupils 4 | AY1: IDACI Cash 4 | AZ1: IDACI % 5 | BA1: IDACI Pupils 5 | BB1: IDACI Cash 5 | BC1: IDACI % 6 | BD1: IDACI Pupils 6 | BE1: IDACI Cash 6 | BF1: LAC% | BG1: LAC Pupils | BH1: LAC CASH | BI1: EAL% | BJ1: EAL Pupils | BK1: EAL Cash | BL1: PA Funding | BM1: Pupils in APT | BN1: PA CASH | BO1: London Fringe % | BP1: London Fringe
A2: 2005A | B2: YORK ROAD JUNIOR SCHOOL AND LU | C2: Primary | D2: 28 | E2: 0 | F2: 28 | G2: 0 | H2: 28 | I2: 0 | J2: 28 | K2: 0 | L2: 0 | M2: 22 | N2: 0 | O2: 0 | P2: 6 | Q2: 0 | R2: 0 | S2: 34 | T2: 0 | U2: 0 | V2: 0 | W2: 4 | X2: 0 | Y2: 18 | Z2: 0 | AA2: 0 | AB2: 57704.91315 | AC2: 0 | AD2: 161755.724 | AE2: 0 | AF2: 9975.483506 | AG2: 279313.5382 | AH2: 92721.61376 | AI2: 0 | AJ2: 0 | AK2: 0.1367781155 | AL2: 4.650455927 | AM2: 1669.98095 | AN2: 0.03647416413 | AO2: 1.240121581 | AP2: 514.3156195 | AQ2: 0.1550151976 | AR2: 5.270516717 | AS2: 2295.151899 | AT2: 0.01215805471 | AU2: 0.4133738602 | AV2: 193.5127038 | AW2: 0.04863221884 | AX2: 1.653495441 | AY2: 851.4509364 | AZ2: 0 | BA2: 0 | BB2: 0 | BC2: 0 | BD2: 0 | BE2: 0 | BF2: 0 | BG2: 0 | BH2: 0 | BI2: 0.08841463415 | BJ2: 3.006097561 | BK2: 2660.206606 | BL2: 111894.7204 | BM2: 329 | BN2: 11563.58813 | BO2: 1.016316166 | BP2: 1835.076263
A3: 2007A | B3: MOLEHILL COPSE PRIMARY SCHOOL | C3: Primary | D3: 12 | E3: 0 | F3: 10 | G3: 0 | H3: 10.83333333 | I3: 0 | J3: 12 | K3: 0 | L3: 0 | M3: 10 | N3: 0 | O3: 0 | P3: 2 | Q3: 0 | R3: 0 | S3: 12.83333333 | T3: 0 | U3: 0 | V3: 0 | W3: 0 | X3: 10 | Y3: 0 | Z3: 0 | AA3: 0 | AB3: 0 | AC3: 169288.8105 | AD3: 0 | AE3: 0 | AF3: 16928.88105 | AG3: 183396.2114 | AH3: 34997.86402 | AI3: 0 | AJ3: 0 | AK3: 0.393728223 | AL3: 5.052845528 | AM3: 1814.479249 | AN3: 0.150877193 | AO3: 1.93625731 | AP3: 803.0239886 | AQ3: 0.09473684211 | AR3: 1.215789474 | AS3: 529.4398384 | AT3: 0.2807017544 | AU3: 3.602339181 | AV3: 1686.363029 | AW3: 0.1403508772 | AX3: 1.801169591 | AY3: 927.4942626 | AZ3: 0.04210526316 | BA3: 0.5403508772 | BB3: 306.0763488 | BC3: 0.1543859649 | BD3: 1.98128655 | BE3: 1402.849932 | BF3: 0.007092198582 | BG3: 0.09101654846 | BH3: 47.82164326 | BI3: 0.03703703704 | BJ3: 0.475308642 | BK3: 420.6181481 | BL3: 120738.8194 | BM3: 287 | BN3: 5398.890298 | BO3: 1 | BP3: 0
A4: 2155A | B4: SLADE PRIMARY SCHOOL | C4: Primary | D4: 6 | E4: 0 | F4: 5 | G4: 0 | H4: 5.416666667 | I4: 0 | J4: 6 | K4: 0 | L4: 0 | M4: 4 | N4: 0 | O4: 0 | P4: 2 | Q4: 0 | R4: 0 | S4: 7.416666667 | T4: 0 | U4: 0 | V4: 0 | W4: 0 | X4: 4 | Y4: 0 | Z4: 0 | AA4: 0 | AB4: 0 | AC4: 73115.52421 | AD4: 0 | AE4: 0 | AF4: 18278.88105 | AG4: 99010.60569 | AH4: 20226.0383 | AI4: 0 | AJ4: 0 | AK4: 0.07073954984 | AL4: 0.5246516613 | AM4: 188.4026628 | AN4: 0 | AO4: 0 | AP4: 0 | AQ4: 0.01935483871 | AR4: 0.1435483871 | AS4: 62.5110157 | AT4: 0.003225806452 | AU4: 0.02392473118 | AV4: 11.19988433 | AW4: 0.006451612903 | AX4: 0.04784946237 | AY4: 24.63960198 | AZ4: 0 | BA4: 0 | BB4: 0 | BC4: 0.003225806452 | BD4: 0.02392473118 | BE4: 16.9399058 | BF4: 0.009677419355 | BG4: 0.07177419355 | BH4: 37.71138257 | BI4: 0.09398496241 | BJ4: 0.6970551378 | BK4: 616.849801 | BL4: 66677.94692 | BM4: 311 | BN4: 1590.122528 | BO4: 1 | BP4: 0
A5: 2463A | B5: MINTERNE COMMUNITY JUNIOR SCHOOL | C5: Primary | D5: 28 | E5: 0 | F5: 28 | G5: 0 | H5: 28 | I5: 0 | J5: 28 | K5: 0 | L5: 0 | M5: 25 | N5: 0 | O5: 0 | P5: 3 | Q5: 0 | R5: 0 | S5: 31 | T5: 0 | U5: 0 | V5: 0 | W5: 0 | X5: 0 | Y5: 25 | Z5: 0 | AA5: 0 | AB5: 0 | AC5: 0 | AD5: 212327.3944 | AE5: 0 | AF5: 8493.095777 | AG5: 237806.6818 | AH5: 84540.2949 | AI5: 0 | AJ5: 0 | AK5: 0.07928388747 | AL5: 2.457800512 | AM5: 882.5973405 | AN5: 0.04603580563 | AO5: 1.427109974 | AP5: 591.8653156 | AQ5: 0.1381074169 | AR5: 4.281329923 | AS5: 1864.390729 | AT5: 0.06649616368 | AU5: 2.061381074 | AV5: 964.9943156 | AW5: 0.01534526854 | AX5: 0.4757033248 | AY5: 244.9586684 | AZ5: 0.0179028133 | BA5: 0.5549872123 | BB5: 314.3669543 | BC5: 0 | BD5: 0 | BE5: 0 | BF5: 0.005102040816 | BG5: 0.1581632653 | BH5: 83.10167083 | BI5: 0.007672634271 | BJ5: 0.2378516624 | BK5: 210.4837088 | BL5: 60809.2552 | BM5: 391 | BN5: 4821.194147 | BO5: 1 | BP5: 0
A6: 2490A | B6: BISHOPS DOWN PRIMARY SCHOOL | C6: Primary | D6: 6 | E6: 0 | F6: 6 | G6: 0 | H6: 6 | I6: 0 | J6: 6 | K6: 0 | L6: 0 | M6: 5 | N6: 0 | O6: 0 | P6: 1 | Q6: 0 | R6: 0 | S6: 7 | T6: 0 | U6: 0 | V6: 0 | W6: 0 | X6: 5 | Y6: 0 | Z6: 0 | AA6: 0 | AB6: 0 | AC6: 89144.40526 | AD6: 0 | AE6: 0 | AF6: 17828.88105 | AG6: 106973.2863 | AH6: 19089.74401 | AI6: 0 | AJ6: 0 | AK6: 0.06050955414 | AL6: 0.423566879 | AM6: 152.103069 | AN6: 0.1687898089 | AO6: 1.181528662 | AP6: 490.0153788 | AQ6: 0.0127388535 | AR6: 0.08917197452 | AS6: 38.83171948 | AT6: 0.003184713376 | AU6: 0.02229299363 | AV6: 10.43601904 | AW6: 0 | AX6: 0 | AY6: 0 | AZ6: 0 | BA6: 0 | BB6: 0 | BC6: 0 | BD6: 0 | BE6: 0 | BF6: 0 | BG6: 0 | BH6: 0 | BI6: 0.08778625954 | BJ6: 0.6145038168 | BK6: 543.7970923 | BL6: 58123.65289 | BM6: 314 | BN6: 1295.750224 | BO6: 1 | BP6: 0
A7: 2513A | B7: THE OAKS INFANT SCHOOL | C7: Primary | D7: 12 | E7: 0 | F7: 12 | G7: 0 | H7: 12 | I7: 0 | J7: 12 | K7: 0 | L7: 0 | M7: 10 | N7: 0 | O7: 0 | P7: 2 | Q7: 0 | R7: 0 | S7: 14 | T7: 0 | U7: 0 | V7: 0 | W7: 0 | X7: 0 | Y7: 10 | Z7: 0 | AA7: 0 | AB7: 0 | AC7: 0 | AD7: 92530.95777 | AE7: 0 | AF7: 9253.095777 | AG7: 111037.1493 | AH7: 38179.48802 | AI7: 0 | AJ7: 0 | AK7: 0.08571428571 | AL7: 1.2 | AM7: 430.9205746 | AN7: 0.02857142857 | AO7: 0.4 | AP7: 165.8919989 | AQ7: 0.1892857143 | AR7: 2.65 | AS7: 1153.995492 | AT7: 0.03928571429 | AU7: 0.55 | AV7: 257.4714982 | AW7: 0.01785714286 | AX7: 0.25 | AY7: 128.7349991 | AZ7: 0 | BA7: 0 | BB7: 0 | BC7: 0 | BD7: 0 | BE7: 0 | BF7: 0.003546099291 | BG7: 0.04964539007 | BH7: 26.08453269 | BI7: 0.05263157895 | BJ7: 0.7368421053 | BK7: 652.0587559 | BL7: 58123.19002 | BM7: 280 | BN7: 2906.159501 | BO7: 1 | BP7: 0
A8: 2568A | B8: MOREHALL PRIMARY SCHOOL | C8: Primary | D8: 5 | E8: 0 | F8: 5 | G8: 0 | H8: 5 | I8: 0 | J8: 5 | K8: 0 | L8: 0 | M8: 5 | N8: 0 | O8: 0 | P8: 0 | Q8: 0 | R8: 0 | S8: 5 | T8: 0 | U8: 0 | V8: 0 | W8: 0 | X8: 5 | Y8: 0 | Z8: 0 | AA8: 0 | AB8: 0 | AC8: 89144.40526 | AD8: 0 | AE8: 0 | AF8: 17828.88105 | AG8: 89144.40526 | AH8: 13635.53143 | AI8: 0 | AJ8: 0 | AK8: 0.2445652174 | AL8: 1.222826087 | AM8: 439.1174333 | AN8: 0.1147540984 | AO8: 0.5737704918 | AP8: 237.9598344 | AQ8: 0.01639344262 | AR8: 0.08196721311 | AS8: 35.69426205 | AT8: 0.1366120219 | AU8: 0.6830601093 | AV8: 319.7609268 | AW8: 0.07650273224 | AX8: 0.3825136612 | AY8: 196.9715833 | AZ8: 0.0218579235 | BA8: 0.1092896175 | BB8: 61.9060105 | BC8: 0.0218579235 | BD8: 0.1092896175 | BE8: 77.38251313 | BF8: 0 | BG8: 0 | BH8: 0 | BI8: 0.04375 | BJ8: 0.21875 | BK8: 193.5799432 | BL8: 50423.36486 | BM8: 184 | BN8: 1370.200132 | BO8: 1 | BP8: 0
A9: 2661A | B9: CAGE GREEN PRIMARY SCHOOL | C9: Primary | D9: 28 | E9: 0 | F9: 30 | G9: 0 | H9: 29.16666667 | I9: 0 | J9: 28 | K9: 0 | L9: 0 | M9: 29 | N9: 0 | O9: 0 | P9: -1 | Q9: 0 | R9: 0 | S9: 28.16666667 | T9: 0 | U9: 0 | V9: 0 | W9: 28 | X9: 0 | Y9: 1 | Z9: 0 | AA9: 0 | AB9: 382934.3921 | AC9: 0 | AD9: 10653.09578 | AE9: 0 | AF9: 13571.98234 | AG9: 395849.4849 | AH9: 76813.49375 | AI9: 0 | AJ9: 0 | AK9: 0.1584158416 | AL9: 4.462046205 | AM9: 1602.322929 | AN9: 0.002481389578 | AO9: 0.06989247312 | AP9: 28.98650518 | AQ9: 0.04714640199 | AR9: 1.327956989 | AS9: 578.2854261 | AT9: 0.007444168734 | AU9: 0.2096774194 | AV9: 98.15628964 | AW9: 0.1364764268 | AX9: 3.844086022 | AY9: 1979.473642 | AZ9: 0 | BA9: 0 | BB9: 0 | BC9: 0 | BD9: 0 | BE9: 0 | BF9: 0.002577319588 | BG9: 0.07259450172 | BH9: 38.14238644 | BI9: 0.04322766571 | BJ9: 1.217579251 | BK9: 1077.480787 | BL9: 119794.2891 | BM9: 404 | BN9: 8351.994576 | BO9: 1 | BP9: 0
A10: 3086A | B10: WEST MALLING C.E. PRIMARY | C10: Primary | D10: 17 | E10: 0 | F10: 19 | G10: 0 | H10: 18.16666667 | I10: 0 | J10: 17 | K10: 0 | L10: 0 | M10: 17 | N10: 0 | O10: 0 | P10: 0 | Q10: 0 | R10: 0 | S10: 18.16666667 | T10: 0 | U10: 0 | V10: 0 | W10: 1 | X10: 0 | Y10: 16 | Z10: 0 | AA10: 0 | AB10: 14551.22829 | AC10: 0 | AD10: 144449.5324 | AE10: 0 | AF10: 9352.985925 | AG10: 169912.5776 | AH10: 49542.43088 | AI10: 0 | AJ10: 0 | AK10: 0.25 | AL10: 4.541666667 | AM10: 1630.914675 | AN10: 0.04807692308 | AO10: 0.8733974359 | AP10: 362.2241161 | AQ10: 0.2115384615 | AR10: 3.842948718 | AS10: 1673.488867 | AT10: 0.04326923077 | AU10: 0.7860576923 | AV10: 367.977185 | AW10: 0.0625 | AX10: 1.135416667 | AY10: 584.6714543 | AZ10: 0 | BA10: 0 | BB10: 0 | BC10: 0 | BD10: 0 | BE10: 0 | BF10: 0.005235602094 | BG10: 0.09511343805 | BH10: 49.97421876 | BI10: 0.01142857143 | BJ10: 0.2076190476 | BK10: 183.7297529 | BL10: 64026.84727 | BM10: 208 | BN10: 5592.088423 | BO10: 1 | BP10: 0
A11: 3124A | B11: RECULVER C.E. PRIMARY SCHOOL | C11: Primary | D11: 5 | E11: 0 | F11: 5 | G11: 0 | H11: 5 | I11: 0 | J11: 5 | K11: 0 | L11: 0 | M11: 4 | N11: 0 | O11: 0 | P11: 1 | Q11: 0 | R11: 0 | S11: 6 | T11: 0 | U11: 0 | V11: 0 | W11: 0 | X11: 4 | Y11: 0 | Z11: 0 | AA11: 0 | AB11: 0 | AC11: 73115.52421 | AD11: 0 | AE11: 0 | AF11: 18278.88105 | AG11: 91394.40526 | AH11: 16362.63772 | AI11: 0 | AJ11: 0 | AK11: 0.09012875536 | AL11: 0.5407725322 | AM11: 194.1916752 | AN11: 0.004291845494 | AO11: 0.02575107296 | AP11: 10.67974242 | AQ11: 0.01072961373 | AR11: 0.0643776824 | AS11: 28.03454916 | AT11: 0.0321888412 | AU11: 0.1931330472 | AV11: 90.41137277 | AW11: 0.002145922747 | AX11: 0.01287553648 | AY11: 6.63012871 | AZ11: 0 | BA11: 0 | BB11: 0 | BC11: 0 | BD11: 0 | BE11: 0 | BF11: 0.01287553648 | BG11: 0.07725321888 | BH11: 40.59015571 | BI11: 0.04020100503 | BJ11: 0.2412060302 | BK11: 213.4521125 | BL11: 142165.7548 | BM11: 466 | BN11: 1830.460363 | BO11: 1 | BP11: 0
A12: 3296A | B12: LANGAFEL C E PRIMARY SCHOOL | C12: Primary | D12: 18 | E12: 0 | F12: 17 | G12: 0 | H12: 17.41666667 | I12: 0 | J12: 18 | K12: 0 | L12: 0 | M12: 15 | N12: 0 | O12: 0 | P12: 3 | Q12: 0 | R12: 0 | S12: 20.41666667 | T12: 0 | U12: 0 | V12: 0 | W12: 15 | X12: 0 | Y12: 0 | Z12: 0 | AA12: 0 | AB12: 212268.4243 | AC12: 0 | AD12: 0 | AE12: 0 | AF12: 14151.22829 | AG12: 246467.226 | AH12: 55678.42003 | AI12: 0 | AJ12: 0 | AK12: 0.1858736059 | AL12: 3.794919455 | AM12: 1362.757393 | AN12: 0.08582089552 | AO12: 1.752176617 | AP12: 726.6802033 | AQ12: 0.02985074627 | AR12: 0.6094527363 | AS12: 265.3983813 | AT12: 0.1492537313 | AU12: 3.047263682 | AV12: 1426.515537 | AW12: 0.01492537313 | AX12: 0.3047263682 | AY12: 156.9157949 | AZ12: 0 | BA12: 0 | BB12: 0 | BC12: 0 | BD12: 0 | BE12: 0 | BF12: 0.01666666667 | BG12: 0.3402777778 | BH12: 178.7877345 | BI12: 0.01310043668 | BJ12: 0.2674672489 | BK12: 236.6916336 | BL12: 75374.10804 | BM12: 269 | BN12: 5720.77338 | BO12: 1.016316166 | BP12: 1072.835885
A13: 3902A | B13: HYTHE BAY C E PRIMARY SCHOOL | C13: Primary | D13: 19 | E13: 0 | F13: 19 | G13: 0 | H13: 19 | I13: 0 | J13: 19 | K13: 0 | L13: 0 | M13: 21 | N13: 0 | O13: 0 | P13: -2 | Q13: 0 | R13: 0 | S13: 17 | T13: 0 | U13: 0 | V13: 0 | W13: 2 | X13: 1 | Y13: 18 | Z13: 0 | AA13: 0 | AB13: 29102.45658 | AC13: 19028.88105 | AD13: 161755.724 | AE13: 0 | AF13: 9994.621982 | AG13: 189897.8177 | AH13: 46360.80688 | AI13: 0 | AJ13: 0 | AK13: 0.186440678 | AL13: 3.169491525 | AM13: 1138.165924 | AN13: 0.1549636804 | AO13: 2.634382567 | AP13: 1092.557474 | AQ13: 0.2348668281 | AR13: 3.992736077 | AS13: 1738.716768 | AT13: 0.1525423729 | AU13: 2.593220339 | AV13: 1213.964229 | AW13: 0.009685230024 | AX13: 0.1646489104 | AY13: 84.78430934 | AZ13: 0.007263922518 | BA13: 0.1234866828 | BB13: 69.94779613 | BC13: 0 | BD13: 0 | BE13: 0 | BF13: 0.00518134715 | BG13: 0.08808290155 | BH13: 46.28025526 | BI13: 0.03409090909 | BJ13: 0.5795454545 | BK13: 512.8611481 | BL13: 91755.2123 | BM13: 413 | BN13: 3776.848933 | BO13: 1 | BP13: 0
A14: 3903A | B14: RAYNEHURST PRIMARY SCHOOL PD | C14: Primary | D14: 5 | E14: 0 | F14: 5 | G14: 0 | H14: 5 | I14: 0 | J14: 5 | K14: 0 | L14: 0 | M14: 4 | N14: 0 | O14: 0 | P14: 1 | Q14: 0 | R14: 0 | S14: 6 | T14: 0 | U14: 0 | V14: 0 | W14: 0 | X14: 4 | Y14: 0 | Z14: 0 | AA14: 0 | AB14: 0 | AC14: 73115.52421 | AD14: 0 | AE14: 0 | AF14: 18278.88105 | AG14: 91394.40526 | AH14: 16362.63772 | AI14: 0 | AJ14: 0 | AK14: 0.3323699422 | AL14: 1.994219653 | AM14: 716.1252323 | AN14: 0.112716763 | AO14: 0.676300578 | AP14: 280.4821368 | AQ14: 0.3034682081 | AR14: 1.820809249 | AS14: 792.907798 | AT14: 0.2947976879 | AU14: 1.768786127 | AV14: 828.021844 | AW14: 0.09826589595 | AX14: 0.5895953757 | AY14: 303.6062407 | AZ14: 0.04624277457 | BA14: 0.2774566474 | BB14: 157.1625423 | BC14: 0 | BD14: 0 | BE14: 0 | BF14: 0.02153846154 | BG14: 0.1292307692 | BH14: 67.90004509 | BI14: 0.08223684211 | BJ14: 0.4934210526 | BK14: 436.6464884 | BL14: 141947.6569 | BM14: 346 | BN14: 2461.520062 | BO14: 1 | BP14: 0
A15: 3904A | B15: CASTLE HILL COMMUNITY PRIMARY SCHOOL | C15: Primary | D15: 8 | E15: 0 | F15: 8 | G15: 0 | H15: 8 | I15: 0 | J15: 8 | K15: 0 | L15: 0 | M15: 7 | N15: 0 | O15: 0 | P15: 1 | Q15: 0 | R15: 0 | S15: 9 | T15: 0 | U15: 0 | V15: 0 | W15: 0 | X15: 6 | Y15: 1 | Z15: 0 | AA15: 0 | AB15: 0 | AC15: 105173.2863 | AD15: 10653.09578 | AE15: 0 | AF15: 16546.62601 | AG15: 132373.0081 | AH15: 24543.95658 | AI15: 0 | AJ15: 0 | AK15: 0.4698795181 | AL15: 4.228915663 | AM15: 1518.605639 | AN15: 0.03313253012 | AO15: 0.2981927711 | AP15: 123.6694871 | AQ15: 0.07530120482 | AR15: 0.6777108434 | AS15: 295.1227389 | AT15: 0.313253012 | AU15: 2.819277108 | AV15: 1319.788184 | AW15: 0.2409638554 | AX15: 2.168674699 | AY15: 1116.737342 | AZ15: 0.1777108434 | BA15: 1.59939759 | BB15: 905.9627648 | BC15: 0.0813253012 | BD15: 0.7319277108 | BE15: 518.2414121 | BF15: 0 | BG15: 0 | BH15: 0 | BI15: 0.1618705036 | BJ15: 1.456834532 | BK15: 1289.20661 | BL15: 180999.5378 | BM15: 332 | BN15: 4906.613977 | BO15: 1 | BP15: 0
A16: 3909A | B16: ASHFORD OAKS NEW ASD UNIT | C16: Primary | D16: 6 | E16: 0 | F16: 6 | G16: 0 | H16: 6 | I16: 0 | J16: 6 | K16: 0 | L16: 0 | M16: 3 | N16: 0 | O16: 0 | P16: 3 | Q16: 0 | R16: 0 | S16: 9 | T16: 0 | U16: 0 | V16: 0 | W16: 3 | X16: 0 | Y16: 0 | Z16: 0 | AA16: 0 | AB16: 43653.68487 | AC16: 0 | AD16: 0 | AE16: 0 | AF16: 14551.22829 | AG16: 87307.36973 | AH16: 24543.95658 | AI16: 0 | AJ16: 0 | AK16: 0.4053398058 | AL16: 3.648058252 | AM16: 1310.019465 | AN16: 0.09135802469 | AO16: 0.8222222222 | AP16: 341.0002199 | AQ16: 0.1679012346 | AR16: 1.511111111 | AS16: 658.043551 | AT16: 0.237037037 | AU16: 2.133333333 | AV16: 998.6773264 | AW16: 0.2691358025 | AX16: 2.422222222 | AY16: 1247.299102 | AZ16: 0.08641975309 | BA16: 0.7777777778 | BB16: 440.5644414 | BC16: 0 | BD16: 0 | BE16: 0 | BF16: 0.004901960784 | BG16: 0.04411764706 | BH16: 23.18016245 | BI16: 0.1257142857 | BJ16: 1.131428571 | BK16: 1001.242873 | BL16: 180490.3206 | BM16: 412 | BN16: 3942.749721 | BO16: 1 | BP16: 0
A17: 3910A | B17: JOY LANE PRIMARY | C17: Primary | D17: 24 | E17: 0 | F17: 28 | G17: 0 | H17: 26.33333333 | I17: 0 | J17: 24 | K17: 0 | L17: 0 | M17: 28 | N17: 0 | O17: 0 | P17: -4 | Q17: 0 | R17: 0 | S17: 22.33333333 | T17: 0 | U17: 0 | V17: 0 | W17: 27 | X17: 0 | Y17: 1 | Z17: 0 | AA17: 0 | AB17: 370383.1638 | AC17: 0 | AD17: 10653.09578 | AE17: 0 | AF17: 13608.43784 | AG17: 358355.5298 | AH17: 60905.37374 | AI17: 0 | AJ17: 0 | AK17: 0.1678321678 | AL17: 3.748251748 | AM17: 1345.998997 | AN17: 0.002336448598 | AO17: 0.05218068536 | AP17: 21.64089549 | AQ17: 0.004672897196 | AR17: 0.1043613707 | AS17: 45.44624579 | AT17: 0.01635514019 | AU17: 0.3652647975 | AV17: 170.9914085 | AW17: 0.203271028 | AX17: 4.539719626 | AY17: 2337.683208 | AZ17: 0.002336448598 | BA17: 0.05218068536 | BB17: 29.55722721 | BC17: 0 | BD17: 0 | BE17: 0 | BF17: 0.008064516129 | BG17: 0.1801075269 | BH17: 94.63155925 | BI17: 0.0229226361 | BJ17: 0.511938873 | BK17: 453.0335906 | BL17: 111647.1558 | BM17: 429 | BN17: 5812.245094 | BO17: 1 | BP17: 0
A18: 3917A | B18: GARLINGE PRIMARY SCHOOL AND NURSERY | C18: Primary | D18: 7 | E18: 0 | F18: 7 | G18: 0 | H18: 7 | I18: 0 | J18: 7 | K18: 0 | L18: 0 | M18: 5 | N18: 0 | O18: 0 | P18: 2 | Q18: 0 | R18: 0 | S18: 9 | T18: 0 | U18: 0 | V18: 0 | W18: 0 | X18: 5 | Y18: 0 | Z18: 0 | AA18: 0 | AB18: 0 | AC18: 89144.40526 | AD18: 0 | AE18: 0 | AF18: 17828.88105 | AG18: 124802.1674 | AH18: 24543.95658 | AI18: 0 | AJ18: 0 | AK18: 0.3158953722 | AL18: 2.84305835 | AM18: 1020.943615 | AN18: 0.04233870968 | AO18: 0.3810483871 | AP18: 158.0321965 | AQ18: 0.03830645161 | AR18: 0.3447580645 | AS18: 150.1317933 | AT18: 0.09475806452 | AU18: 0.8528225806 | AV18: 399.2318319 | AW18: 0.2399193548 | AX18: 2.159274194 | AY18: 1111.896646 | AZ18: 0.1310483871 | BA18: 1.179435484 | BB18: 668.0794309 | BC18: 0.05040322581 | BD18: 0.4536290323 | BE18: 321.1920341 | BF18: 0.01750547046 | BG18: 0.1575492341 | BH18: 82.7790484 | BI18: 0.1707317073 | BJ18: 1.536585366 | BK18: 1359.781064 | BL18: 153933.7178 | BM18: 497 | BN18: 2787.532113 | BO18: 1 | BP18: 0
A19: 4207A | B19: Castle | C19: Secondary | D19: 16 | E19: 0 | F19: 16 | G19: 0 | H19: 16 | I19: 0 | J19: 0 | K19: 10 | L19: 6 | M19: 0 | N19: 6 | O19: 4 | P19: 0 | Q19: 4 | R19: 2 | S19: 0 | T19: 13.6 | U19: 8.4 | V19: 0 | W19: 0 | X19: 0 | Y19: 10 | Z19: 0 | AA19: 0 | AB19: 0 | AC19: 0 | AD19: 92530.95777 | AE19: 0 | AF19: 9253.095777 | AG19: 148049.5324 | AH19: 0 | AI19: 51520.27968 | AJ19: 34919.70913 | AK19: 0.1508264463 | AL19: 3.318181818 | AM19: 1109.598131 | AN19: 0.2148760331 | AO19: 4.727272727 | AP19: 2111.956339 | AQ19: 0.07644628099 | AR19: 1.681818182 | AS19: 788.9408998 | AT19: 0.09504132231 | AU19: 2.090909091 | AV19: 1054.403624 | AW19: 0.007231404959 | AX19: 0.1590909091 | AY19: 88.24931714 | AZ19: 0.002066115702 | BA19: 0.04545454545 | BB19: 27.73545422 | BC19: 0 | BD19: 0 | BE19: 0 | BF19: 0.02044293015 | BG19: 0.4497444634 | BH19: 236.3033937 | BI19: 0.005165289256 | BJ19: 0.1136363636 | BK19: 379.9988881 | BL19: 389923.5274 | BM19: 968 | BN19: 8861.89835 | BO19: 1 | BP19: 0
A20: 4172A | B20: HARTSDOWN TECHNOLOGY COLLEGE | C20: Secondary | D20: 3 | E20: 2 | F20: 3 | G20: 2 | H20: 3 | I20: 2 | J20: 0 | K20: 2 | L20: 1 | M20: 0 | N20: 2 | O20: 1 | P20: 0 | Q20: 0 | R20: 0 | S20: 0 | T20: 2 | U20: 1 | V20: 2 | W20: 0 | X20: 5 | Y20: 0 | Z20: 0 | AA20: 0 | AB20: 0 | AC20: 89144.40526 | AD20: 0 | AE20: 0 | AF20: 17828.88105 | AG20: 89144.40526 | AH20: 0 | AI20: 7576.511718 | AJ20: 4157.108229 | AK20: 0.396014944 | AL20: 1.188044832 | AM20: 397.2815226 | AN20: 0.07471980075 | AO20: 0.2241594022 | AP20: 100.1454534 | AQ20: 0.04732254047 | AR20: 0.1419676214 | AS20: 66.59701042 | AT20: 0.1207970112 | AU20: 0.3623910336 | AV20: 182.7465483 | AW20: 0.2254047323 | AX20: 0.6762141968 | AY20: 375.1027727 | AZ20: 0.2552926526 | BA20: 0.7658779577 | BB20: 467.3234067 | BC20: 0.1307596513 | BD20: 0.3922789539 | BE20: 299.1990002 | BF20: 0.01466992665 | BG20: 0.04400977995 | BH20: 23.12348724 | BI20: 0.1382316314 | BJ20: 0.4146948941 | BK20: 1386.735668 | BL20: 497033.4808 | BM20: 803 | BN20: 1856.912133 | BO20: 1 | BP20: 0
A21: 4010A | B21: HEXTABLE SCHOOL | C21: Secondary | D21: 20 | E21: 4 | F21: 16 | G21: 2 | H21: 17.66666667 | I21: 2.666666667 | J21: 0 | K21: 10 | L21: 10 | M21: 0 | N21: 6 | O21: 7 | P21: 0 | Q21: 4 | R21: 3 | S21: 0 | T21: 12.15384615 | U21: 12.51282051 | V21: 2.666666667 | W21: 0 | X21: 0 | Y21: 18 | Z21: 0 | AA21: 0 | AB21: 0 | AC21: 0 | AD21: 161755.724 | AE21: 0 | AF21: 8986.42911 | AG21: 182724.0586 | AH21: 0 | AI21: 46041.8789 | AJ21: 52017.14913 | AK21: 0.1804878049 | AL21: 4.45203252 | AM21: 1488.757167 | AN21: 0.1414634146 | AO21: 3.489430894 | AP21: 1558.938128 | AQ21: 0.07317073171 | AR21: 1.804878049 | AS21: 846.6682827 | AT21: 0.1195121951 | AU21: 2.94796748 | AV21: 1486.601023 | AW21: 0.08048780488 | AX21: 1.985365854 | AY21: 1101.30228 | AZ21: 0 | BA21: 0 | BB21: 0 | BC21: 0 | BD21: 0 | BE21: 0 | BF21: 0.01158301158 | BG21: 0.2857142857 | BH21: 150.1191473 | BI21: 0.02195121951 | BJ21: 0.5414634146 | BK21: 1810.64836 | BL21: 198087.9859 | BM21: 410 | BN21: 11917.48858 | BO21: 1.016316166 | BP21: 1932.153052
A22: 4242A | B22: THE ABBEY SCHOOL | C22: Secondary | D22: 33 | E22: 0 | F22: 33 | G22: 0 | H22: 33 | I22: 0 | J22: 0 | K22: 23 | L22: 10 | M22: 0 | N22: 22 | O22: 10 | P22: 0 | Q22: 1 | R22: 0 | S22: 0 | T22: 23.6875 | U22: 10.3125 | V22: 0 | W22: 31 | X22: 1 | Y22: 0 | Z22: 0 | AA22: 0 | AB22: 420588.0769 | AC22: 19028.88105 | AD22: 0 | AE22: 0 | AF22: 13738.02994 | AG22: 453354.9879 | AH22: 0 | AI22: 89734.31066 | AJ22: 42870.17862 | AK22: 0.2360939431 | AL22: 8.027194067 | AM22: 2684.289175 | AN22: 0.2915632754 | AO22: 9.913151365 | AP22: 4428.799452 | AQ22: 0.008684863524 | AR22: 0.2952853598 | AS22: 138.5183607 | AT22: 0.08808933002 | AU22: 2.995037221 | AV22: 1510.337352 | AW22: 0.2220843672 | AX22: 7.550868486 | AY22: 4188.542209 | AZ22: 0 | BA22: 0 | BB22: 0 | BC22: 0 | BD22: 0 | BE22: 0 | BF22: 0.00956937799 | BG22: 0.3253588517 | BH22: 170.9490768 | BI22: 0.007416563659 | BJ22: 0.2521631644 | BK22: 843.2311543 | BL22: 365311.3201 | BM22: 809 | BN22: 15353.00975 | BO22: 1 | BP22: 0
A23: 4246A | B23: THE NORTH SCHOOL | C23: Secondary | D23: 15 | E23: 2 | F23: 15 | G23: 2 | H23: 15 | I23: 2 | J23: 0 | K23: 9 | L23: 6 | M23: 0 | N23: 10 | O23: 8 | P23: 0 | Q23: -1 | R23: -2 | S23: 0 | T23: 7.333333333 | U23: 4.666666667 | V23: 2 | W23: 21 | X23: 0 | Y23: 3 | Z23: 0 | AA23: 0 | AB23: 295075.7941 | AC23: 0 | AD23: 31959.28733 | AE23: 0 | AF23: 13626.46172 | AG23: 231649.8493 | AH23: 0 | AI23: 27780.54297 | AJ23: 19399.8384 | AK23: 0.1545538178 | AL23: 1.854645814 | AM23: 620.1925156 | AN23: 0.09585253456 | AO23: 1.150230415 | AP23: 513.876934 | AQ23: 0.1566820276 | AR23: 1.880184332 | AS23: 881.9944597 | AT23: 0.03963133641 | AU23: 0.4755760369 | AV23: 239.823481 | AW23: 0.02580645161 | AX23: 0.3096774194 | AY23: 171.7811593 | AZ23: 0.01013824885 | BA23: 0.1216589862 | BB23: 74.23387931 | BC23: 0 | BD23: 0 | BE23: 0 | BF23: 0.01366120219 | BG23: 0.1639344262 | BH23: 86.13393698 | BI23: 0.02391904324 | BJ23: 0.2870285189 | BK23: 959.8205585 | BL23: 409023.7707 | BM23: 1087 | BN23: 4515.441811 | BO23: 1 | BP23: 0
A24: 5221A | B24: WINCHEAP FOUNDATION PRIMARY SCHOOL | C24: Primary | D24: 25 | E24: 0 | F24: 25 | G24: 0 | H24: 25 | I24: 0 | J24: 25 | K24: 0 | L24: 0 | M24: 24 | N24: 0 | O24: 0 | P24: 1 | Q24: 0 | R24: 0 | S24: 26 | T24: 0 | U24: 0 | V24: 0 | W24: 0 | X24: 1 | Y24: 23 | Z24: 0 | AA24: 0 | AB24: 0 | AC24: 19028.88105 | AD24: 199021.2029 | AE24: 0 | AF24: 9085.420164 | AG24: 227135.5041 | AH24: 70904.76346 | AI24: 0 | AJ24: 0 | AK24: 0.2697674419 | AL24: 7.013953488 | AM24: 2518.714056 | AN24: 0.01162790698 | AO24: 0.3023255814 | AP24: 125.3834875 | AQ24: 0.02325581395 | AR24: 0.6046511628 | AS24: 263.30744 | AT24: 0.04418604651 | AU24: 1.148837209 | AV24: 537.8051591 | AW24: 0.3418604651 | AX24: 8.888372093 | AY24: 4576.978294 | AZ24: 0 | BA24: 0 | BB24: 0 | BC24: 0 | BD24: 0 | BE24: 0 | BF24: 0.009950248756 | BG24: 0.2587064677 | BH24: 135.9287801 | BI24: 0.08695652174 | BJ24: 2.260869565 | BK24: 2000.726866 | BL24: 127660.3986 | BM24: 430 | BN24: 7719.000848 | BO24: 1 | BP24: 0
A25: 5229A | B25: FLEETDOWN PRIMARY SCHOOL | C25: Primary | D25: 14 | E25: 0 | F25: 12 | G25: 0 | H25: 12.83333333 | I25: 0 | J25: 14 | K25: 0 | L25: 0 | M25: 12 | N25: 0 | O25: 0 | P25: 2 | Q25: 0 | R25: 0 | S25: 14.83333333 | T25: 0 | U25: 0 | V25: 0 | W25: 0 | X25: 12 | Y25: 0 | Z25: 0 | AA25: 0 | AB25: 0 | AC25: 201346.5726 | AD25: 0 | AE25: 0 | AF25: 16778.88105 | AG25: 215328.9735 | AH25: 40452.07659 | AI25: 0 | AJ25: 0 | AK25: 0.076 | AL25: 1.127333333 | AM25: 404.8259398 | AN25: 0.05811623246 | AO25: 0.8620574482 | AP25: 357.521083 | AQ25: 0.0501002004 | AR25: 0.7431529726 | AS25: 323.6208227 | AT25: 0.006012024048 | AU25: 0.08917835671 | AV25: 41.74706384 | AW25: 0.01803607214 | AX25: 0.2675350701 | AY25: 137.7645081 | AZ25: 0 | BA25: 0 | BB25: 0 | BC25: 0 | BD25: 0 | BE25: 0 | BF25: 0.004237288136 | BG25: 0.06285310734 | BH25: 33.02409208 | BI25: 0.07524271845 | BJ25: 1.116100324 | BK25: 987.6783416 | BL25: 79314.15438 | BM25: 500 | BN25: 2352.98658 | BO25: 1.016316166 | BP25: 735.7162389
A26: 5401A | B26: THE MAPLESDEN NOAKES SCHOOL | C26: Secondary | D26: 6 | E26: 0 | F26: 0 | G26: 0 | H26: 2.5 | I26: 0 | J26: 0 | K26: 0 | L26: 6 | M26: 0 | N26: 0 | O26: 3 | P26: 0 | Q26: 0 | R26: 3 | S26: 0 | T26: 0 | U26: 5.5 | V26: 0 | W26: 0 | X26: 3 | Y26: 0 | Z26: 0 | AA26: 0 | AB26: 0 | AC26: 57086.64315 | AD26: 0 | AE26: 0 | AF26: 19028.88105 | AG26: 47572.20263 | AH26: 0 | AI26: 0 | AJ26: 22864.09526 | AK26: 0.1041189931 | AL26: 0.5726544622 | AM26: 191.4953296 | AN26: 0.05287356322 | AO26: 0.2908045977 | AP26: 129.9198605 | AQ26: 0.08620689655 | AR26: 0.474137931 | AS26: 222.4181008 | AT26: 0.0275862069 | AU26: 0.1517241379 | AV26: 76.51144738 | AW26: 0.008045977011 | AX26: 0.04425287356 | AY26: 24.54751121 | AZ26: 0.01724137931 | BA26: 0.09482758621 | BB26: 57.86189587 | BC26: 0.004597701149 | BD26: 0.02528735632 | BE26: 19.28717219 | BF26: 0.002309468822 | BG26: 0.01270207852 | BH26: 6.673888188 | BI26: 0.02059496568 | BJ26: 0.1132723112 | BK26: 378.7815003 | BL26: 276395.7717 | BM26: 874 | BN26: 1739.33266 | BO26: 1 | BP26: 0
A27: 5407A | B27: THAMESVIEW SCHOOL | C27: Secondary | D27: 10 | E27: 0 | F27: 10 | G27: 0 | H27: 10 | I27: 0 | J27: 0 | K27: 6 | L27: 4 | M27: 0 | N27: 6 | O27: 4 | P27: 0 | Q27: 0 | R27: 0 | S27: 0 | T27: 6 | U27: 4 | V27: 0 | W27: 0 | X27: 10 | Y27: 0 | Z27: 0 | AA27: 0 | AB27: 0 | AC27: 169288.8105 | AD27: 0 | AE27: 0 | AF27: 16928.88105 | AG27: 169288.8105 | AH27: 0 | AI27: 22729.53515 | AJ27: 16628.43292 | AK27: 0.2368421053 | AL27: 2.368421053 | AM27: 791.998666 | AN27: 0.120498615 | AO27: 1.20498615 | AP27: 538.3396059 | AQ27: 0.1717451524 | AR27: 1.717451524 | AS27: 805.6565002 | AT27: 0.1108033241 | AU27: 1.108033241 | AV27: 558.7589962 | AW27: 0.0595567867 | AX27: 0.595567867 | AY27: 330.3674476 | AZ27: 0.09141274238 | BA27: 0.9141274238 | BB27: 557.7822649 | BC27: 0 | BD27: 0 | BE27: 0 | BF27: 0.008174386921 | BG27: 0.08174386921 | BH27: 42.9496198 | BI27: 0.008450704225 | BJ27: 0.08450704225 | BK27: 282.5907224 | BL27: 282180.845 | BM27: 722 | BN27: 3908.321953 | BO27: 1 | BP27: 0
A28: 5412A | B28: SIMON LANGTON GRAMMAR SCHOOL FOR BOYS | C28: Secondary | D28: 12 | E28: 3 | F28: 12 | G28: 3 | H28: 12 | I28: 3 | J28: 0 | K28: 7 | L28: 5 | M28: 0 | N28: 7 | O28: 6 | P28: 0 | Q28: 0 | R28: -1 | S28: 0 | T28: 6.461538462 | U28: 4.538461538 | V28: 3 | W28: 16 | X28: 0 | Y28: 1 | Z28: 0 | AA28: 0 | AB28: 226319.6526 | AC28: 0 | AD28: 10653.09578 | AE28: 0 | AF28: 13939.57343 | AG28: 209093.6015 | AH28: 0 | AI28: 24477.96093 | AJ28: 18866.87581 | AK28: 0.03732503888 | AL28: 0.4105754277 | AM28: 137.2961918 | AN28: 0.0655226209 | AO28: 0.72074883 | AP28: 322.0017435 | AQ28: 0.01092043682 | AR28: 0.120124805 | AS28: 56.35054536 | AT28: 0.03744149766 | AU28: 0.4118564743 | AV28: 207.6909804 | AW28: 0.02496099844 | AX28: 0.2745709828 | AY28: 152.3072681 | AZ28: 0 | BA28: 0 | BB28: 0 | BC28: 0 | BD28: 0 | BE28: 0 | BF28: 0 | BG28: 0 | BH28: 0 | BI28: 0.01869158879 | BJ28: 0.2056074766 | BK28: 687.54939 | BL28: 1262.634168 | BM28: 643 | BN28: 21.60027348 | BO28: 1 | BP28: 0
A29: 5421A | B29: THE CANTERBURY HIGH SCHOOL | C29: Secondary | D29: 21 | E29: 0 | F29: 21 | G29: 0 | H29: 21 | I29: 0 | J29: 0 | K29: 16 | L29: 5 | M29: 0 | N29: 13 | O29: 5 | P29: 0 | Q29: 3 | R29: 0 | S29: 0 | T29: 18.16666667 | U29: 5.833333333 | V29: 0 | W29: 0 | X29: 0 | Y29: 17 | Z29: 1 | AA29: 0 | AB29: 0 | AC29: 0 | AD29: 153102.6282 | AE29: 12602.66203 | AF29: 9205.849458 | AG29: 193322.8386 | AH29: 0 | AI29: 68819.98144 | AJ29: 24249.798 | AK29: 0.235978836 | AL29: 5.663492063 | AM29: 1893.868556 | AN29: 0.1299254526 | AO29: 3.118210863 | AP29: 1393.091869 | AQ29: 0.02236421725 | AR29: 0.5367412141 | AS29: 251.7853006 | AT29: 0.1746538871 | AU29: 4.191693291 | AV29: 2113.787068 | AW29: 0.2097976571 | AX29: 5.03514377 | AY29: 2793.044568 | AZ29: 0.002129925453 | BA29: 0.05111821086 | BB29: 31.19130954 | BC29: 0 | BD29: 0 | BE29: 0 | BF29: 0.0198019802 | BG29: 0.4752475248 | BH29: 249.7031361 | BI29: 0.02224576271 | BJ29: 0.5338983051 | BK29: 1785.350708 | BL29: 373287.873 | BM29: 945 | BN29: 9480.326933 | BO29: 1 | BP29: 0
A30: 4004A | B30: MEOPHAM SCHOOL | C30: Secondary | D30: 16 | E30: 0 | F30: 16 | G30: 0 | H30: 16 | I30: 0 | J30: 0 | K30: 11 | L30: 5 | M30: 0 | N30: 10 | O30: 5 | P30: 0 | Q30: 1 | R30: 0 | S30: 0 | T30: 11.66666667 | U30: 5.333333333 | V30: 0 | W30: 15 | X30: 0 | Y30: 0 | Z30: 0 | AA30: 0 | AB30: 212268.4243 | AC30: 0 | AD30: 0 | AE30: 0 | AF30: 14151.22829 | AG30: 226419.6526 | AH30: 0 | AI30: 44196.31835 | AJ30: 22171.24389 | AK30: 0.1170431211 | AL30: 1.98973306 | AM30: 665.3656144 | AN30: 0.1211498973 | AO30: 2.059548255 | AP30: 920.1237674 | AQ30: 0.06981519507 | AR30: 1.186858316 | AS30: 556.7552296 | AT30: 0.04517453799 | AU30: 0.7679671458 | AV30: 387.2704677 | AW30: 0.0205338809 | AX30: 0.3490759754 | AY30: 193.635932 | AZ30: 0.04106776181 | BA30: 0.6981519507 | BB30: 425.9983523 | BC30: 0 | BD30: 0 | BE30: 0 | BF30: 0.005405405405 | BG30: 0.09189189189 | BH30: 48.28156359 | BI30: 0.004106776181 | BJ30: 0.06981519507 | BK30: 233.4613292 | BL30: 207254.5142 | BM30: 487 | BN30: 7234.757169 | BO30: 1 | BP30: 0
A31: 5425A | B31: THE MALLING SCHOOL | C31: Secondary | D31: 90 | E31: 0 | F31: 96 | G31: 0 | H31: 93.5 | I31: 0 | J31: 0 | K31: 54 | L31: 36 | M31: 0 | N31: 54 | O31: 36 | P31: 0 | Q31: 0 | R31: 0 | S31: 0 | T31: 56.1 | U31: 37.4 | V31: 0 | W31: 33 | X31: 0 | Y31: 56 | Z31: 1 | AA31: 0 | AB31: 445690.5335 | AC31: 0 | AD31: 418573.3635 | AE31: 12602.66203 | AF31: 9742.961767 | AG31: 910966.9253 | AH31: 0 | AI31: 212521.1537 | AJ31: 155475.8478 | AK31: 0.2046332046 | AL31: 19.13320463 | AM31: 6398.132853 | AN31: 0.1141199226 | AO31: 10.67021277 | AP31: 4767.024199 | AQ31: 0.06963249516 | AR31: 6.510638298 | AS31: 3054.14039 | AT31: 0.03868471954 | AU31: 3.617021277 | AV31: 1823.991468 | AW31: 0.1179883946 | AX31: 11.03191489 | AY31: 6119.513439 | AZ31: 0.009671179884 | BA31: 0.9042553191 | BB31: 551.7585041 | BC31: 0.001934235977 | BD31: 0.1808510638 | BE31: 137.9387218 | BF31: 0.01221995927 | BG31: 1.142566191 | BH31: 600.3237184 | BI31: 0.005791505792 | BJ31: 0.5415057915 | BK31: 1810.790068 | BL31: 274835.7837 | BM31: 518 | BN31: 49608.38953 | BO31: 1 | BP31: 0
A32: 5435A | B32: ST GREGORY'S CATHOLIC COMPREHENSIVE SCHOOL | C32: Secondary | D32: 10 | E32: 1 | F32: 4 | G32: 3 | H32: 6.5 | I32: 2.333333333 | J32: 0 | K32: 0 | L32: 10 | M32: 0 | N32: 0 | O32: 7 | P32: 0 | Q32: 0 | R32: 3 | S32: 0 | T32: 0 | U32: 9.5 | V32: 2.333333333 | W32: 0 | X32: 7 | Y32: 0 | Z32: 0 | AA32: 0 | AB32: 0 | AC32: 121202.1674 | AD32: 0 | AE32: 0 | AF32: 17314.59534 | AG32: 152945.5921 | AH32: 0 | AI32: 0 | AJ32: 39492.52818 | AK32: 0.08557457213 | AL32: 0.8129584352 | AM32: 271.8528428 | AN32: 0.06862745098 | AO32: 0.6519607843 | AP32: 291.2699966 | AQ32: 0.03921568627 | AR32: 0.3725490196 | AS32: 174.762743 | AT32: 0.03921568627 | AU32: 0.3725490196 | AV32: 187.8690174 | AW32: 0.02941176471 | AX32: 0.2794117647 | AY32: 154.9924982 | AZ32: 0 | BA32: 0 | BB32: 0 | BC32: 0 | BD32: 0 | BE32: 0 | BF32: 0.002375296912 | BG32: 0.02256532067 | BH32: 11.85620344 | BI32: 0.03312883436 | BJ32: 0.3147239264 | BK32: 1052.43373 | BL32: 217620.1826 | BM32: 818 | BN32: 2527.373758 | BO32: 1 | BP32: 0
A33: 5438A | B33: THE CHARLES DICKENS SCHOOL | C33: Secondary | D33: 6 | E33: 0 | F33: 4 | G33: 0 | H33: 4.833333333 | I33: 0 | J33: 0 | K33: 4 | L33: 2 | M33: 0 | N33: 2 | O33: 1 | P33: 0 | Q33: 2 | R33: 1 | S33: 0 | T33: 5.222222222 | U33: 2.611111111 | V33: 0 | W33: 0 | X33: 3 | Y33: 0 | Z33: 0 | AA33: 0 | AB33: 0 | AC33: 57086.64315 | AD33: 0 | AE33: 0 | AF33: 19028.88105 | AG33: 91972.92508 | AH33: 0 | AI33: 19783.11393 | AJ33: 10854.67149 | AK33: 0.1914708442 | AL33: 1.499854946 | AM33: 501.5506493 | AN33: 0.1411149826 | AO33: 1.105400697 | AP33: 493.8488095 | AQ33: 0.06010452962 | AR33: 0.4708188153 | AS33: 220.8611037 | AT33: 0.1088850174 | AU33: 0.8529326365 | AV33: 430.1168649 | AW33: 0.09320557491 | AX33: 0.7301103368 | AY33: 404.9995002 | AZ33: 0.09407665505 | BA33: 0.7369337979 | BB33: 449.6622595 | BC33: 0.01045296167 | BD33: 0.0818815331 | BE33: 62.45268219 | BF33: 0.0172860847 | BG33: 0.1354076635 | BH33: 71.14549044 | BI33: 0.01131418625 | BJ33: 0.08862779228 | BK33: 296.3704702 | BL33: 422639.6403 | BM33: 1149 | BN33: 2881.35525 | BO33: 1 | BP33: 0
A34: 5446A | B34: ST ANSELM'S CATHOLIC SCHOOL | C34: Secondary | D34: 14 | E34: 2 | F34: 14 | G34: 2 | H34: 14 | I34: 2 | J34: 0 | K34: 8 | L34: 6 | M34: 0 | N34: 8 | O34: 6 | P34: 0 | Q34: 0 | R34: 0 | S34: 0 | T34: 8 | U34: 6 | V34: 2 | W34: 0 | X34: 15 | Y34: 0 | Z34: 0 | AA34: 0 | AB34: 0 | AC34: 249433.2158 | AD34: 0 | AE34: 0 | AF34: 16628.88105 | AG34: 266062.0968 | AH34: 0 | AI34: 30306.04687 | AJ34: 24942.64938 | AK34: 0.08564535585 | AL34: 1.199034982 | AM34: 400.9566226 | AN34: 0.04715840387 | AO34: 0.6602176542 | AP34: 294.9588357 | AQ34: 0.03627569528 | AR34: 0.507859734 | AS34: 238.2369984 | AT34: 0.1112454655 | AU34: 1.557436518 | AV34: 785.3840778 | AW34: 0.084643289 | AX34: 1.185006046 | AY34: 657.334696 | AZ34: 0.007255139057 | BA34: 0.1015719468 | BB34: 61.97716977 | BC34: 0.001209189843 | BD34: 0.0169286578 | BE34: 12.91182572 | BF34: 0.01028571429 | BG34: 0.144 | BH34: 75.66005024 | BI34: 0.02291917973 | BJ34: 0.3208685163 | BK34: 1072.981179 | BL34: 292198.3796 | BM34: 829 | BN34: 4934.592658 | BO34: 1 | BP34: 0
A35: 5458A | B35: PENT VALLEY TECHNOLOGY COLLEGE | C35: Secondary | D35: 4 | E35: 0 | F35: 4 | G35: 0 | H35: 4 | I35: 0 | J35: 0 | K35: 4 | L35: 0 | M35: 0 | N35: 1 | O35: 0 | P35: 0 | Q35: 3 | R35: 0 | S35: 0 | T35: 7 | U35: 0 | V35: 0 | W35: 0 | X35: 2 | Y35: 0 | Z35: 0 | AA35: 0 | AB35: 0 | AC35: 38057.7621 | AD35: 0 | AE35: 0 | AF35: 19028.88105 | AG35: 76115.52421 | AH35: 0 | AI35: 26517.79101 | AJ35: 0 | AK35: 0.3258594918 | AL35: 2.281016442 | AM35: 762.7706136 | AN35: 0.1654135338 | AO35: 1.157894737 | AP35: 517.3010465 | AQ35: 0.04360902256 | AR35: 0.3052631579 | AS35: 143.1989457 | AT35: 0.1639097744 | AU35: 1.147368421 | AV35: 578.5949406 | AW35: 0.1187969925 | AX35: 0.8315789474 | AY35: 461.2851525 | AZ35: 0.01954887218 | BA35: 0.1368421053 | BB35: 83.49831481 | BC35: 0.03157894737 | BD35: 0.2210526316 | BE35: 168.6012612 | BF35: 0.01371571072 | BG35: 0.09600997506 | BH35: 50.44527456 | BI35: 0.05389221557 | BJ35: 0.377245509 | BK35: 1261.505291 | BL35: 333548.3043 | BM35: 669 | BN35: 3490.042048 | BO35: 1 | BP35: 0
A36: 5468A | B36: ELLINGTON AND HERESON SCHOOL | C36: Secondary | D36: 5 | E36: 0 | F36: 5 | G36: 0 | H36: 5 | I36: 0 | J36: 0 | K36: 1 | L36: 4 | M36: 0 | N36: 1 | O36: 4 | P36: 0 | Q36: 0 | R36: 0 | S36: 0 | T36: 1 | U36: 4 | V36: 0 | W36: 1 | X36: 0 | Y36: 5 | Z36: 0 | AA36: 0 | AB36: 14551.22829 | AC36: 0 | AD36: 49265.47889 | AE36: 0 | AF36: 10636.11786 | AG36: 53180.58931 | AH36: 0 | AI36: 3788.255859 | AJ36: 16628.43292 | AK36: 0.2951907131 | AL36: 1.475953566 | AM36: 493.558041 | AN36: 0.1791044776 | AO36: 0.8955223881 | AP36: 400.0835774 | AQ36: 0.1227197347 | AR36: 0.6135986733 | AS36: 287.8391343 | AT36: 0.2205638474 | AU36: 1.102819237 | AV36: 556.1296784 | AW36: 0.1525704809 | AX36: 0.7628524046 | AY36: 423.1618524 | AZ36: 0.0912106136 | BA36: 0.456053068 | BB36: 278.2744578 | BC36: 0.008291873964 | BD36: 0.04145936982 | BE36: 31.62189018 | BF36: 0.02723146747 | BG36: 0.1361573374 | BH36: 71.53938185 | BI36: 0.003316749585 | BJ36: 0.01658374793 | BK36: 55.4558908 | BL36: 324312.0254 | BM36: 603 | BN36: 2689.15444 | BO36: 1 | BP36: 0
A37: 6914A | B37: LONGFIELD ACADEMY | C37: Secondary | D37: 36 | E37: 4 | F37: 35 | G37: 1 | H37: 35.41666667 | I37: 2 | J37: 0 | K37: 22 | L37: 14 | M37: 0 | N37: 23 | O37: 16 | P37: 0 | Q37: -1 | R37: -2 | S37: 0 | T37: 19.88675214 | U37: 12.52991453 | V37: 2 | W37: 43 | X37: 0 | Y37: 0 | Z37: 0 | AA37: 0 | AB37: 571202.8164 | AC37: 0 | AD37: 0 | AE37: 0 | AF37: 13283.78643 | AG37: 497035.0088 | AH37: 0 | AI37: 75336.1053 | AJ37: 52088.21081 | AK37: 0.1305841924 | AL37: 4.233104238 | AM37: 1415.547673 | AN37: 0.1370967742 | AO37: 4.44422043 | AP37: 1985.499896 | AQ37: 0.06221198157 | AR37: 2.016705069 | AS37: 946.0363368 | AT37: 0.07603686636 | AU37: 2.464861751 | AV37: 1242.980469 | AW37: 0.01958525346 | AX37: 0.6348886329 | AY37: 352.1790694 | AZ37: 0.003456221198 | BA37: 0.1120391705 | BB37: 68.36406026 | BC37: 0 | BD37: 0 | BE37: 0 | BF37: 0.0107398568 | BG37: 0.348150358 | BH37: 182.9241221 | BI37: 0.004592422503 | BJ37: 0.1488710295 | BK37: 497.8232658 | BL37: 331298.6987 | BM37: 873 | BN37: 12301.94672 | BO37: 1.016316166 | BP37: 2388.974156
A38: 6917A | B38: DOVER CHRIST CHURCH ACADEMY | C38: Secondary | D38: 30 | E38: 10 | F38: 30 | G38: 10 | H38: 30 | I38: 10 | J38: 0 | K38: 21 | L38: 9 | M38: 0 | N38: 19 | O38: 9 | P38: 0 | Q38: 2 | R38: 0 | S38: 0 | T38: 22.35714286 | U38: 9.642857143 | V38: 10 | W38: 3 | X38: 12 | Y38: 10 | Z38: 17 | AA38: 0 | AB38: 43653.68487 | AC38: 201346.5726 | AD38: 92530.95777 | AE38: 186245.2546 | AF38: 12470.86833 | AG38: 498834.7332 | AH38: 0 | AI38: 84694.57742 | AJ38: 40086.40078 | AK38: 0.2443181818 | AL38: 7.818181818 | AM38: 2614.395596 | AN38: 0.05871212121 | AO38: 1.878787879 | AP38: 839.3672629 | AQ38: 0.1590909091 | AR38: 5.090909091 | AS38: 2388.145426 | AT38: 0.2746212121 | AU38: 8.787878788 | AV38: 4431.551463 | AW38: 0.2102272727 | AX38: 6.727272727 | AY38: 3731.685411 | AZ38: 0.0321969697 | BA38: 1.03030303 | BB38: 628.6702956 | BC38: 0 | BD38: 0 | BE38: 0 | BF38: 0.005338078292 | BG38: 0.1708185053 | BH38: 89.75094928 | BI38: 0.0284629981 | BJ38: 0.9108159393 | BK38: 3045.759589 | BL38: 234669.5602 | BM38: 528 | BN38: 14222.39759 | BO38: 1 | BP38: 0
A39: 6919A | B39: THE JOHN WALLIS CHURCH OF ENGLAND ACADEMY | C39: Primary | D39: 12 | E39: 0 | F39: 12 | G39: 0 | H39: 12 | I39: 0 | J39: 12 | K39: 0 | L39: 0 | M39: 8 | N39: 0 | O39: 0 | P39: 4 | Q39: 0 | R39: 0 | S39: 16 | T39: 0 | U39: 0 | V39: 0 | W39: 0 | X39: 0 | Y39: 8 | Z39: 0 | AA39: 0 | AB39: 0 | AC39: 0 | AD39: 75224.76622 | AE39: 0 | AF39: 9403.095777 | AG39: 112837.1493 | AH39: 43633.70059 | AI39: 0 | AJ39: 0 | AK39: 0.4520547945 | AL39: 7.232876712 | AM39: 2597.32949 | AN39: 0.01917808219 | AO39: 0.3068493151 | AP39: 127.2596156 | AQ39: 0.1561643836 | AR39: 2.498630137 | AS39: 1088.078458 | AT39: 0.04931506849 | AU39: 0.7890410959 | AV39: 369.3738057 | AW39: 0.2328767123 | AX39: 3.726027397 | AY39: 1918.680535 | AZ39: 0.298630137 | BA39: 4.778082192 | BB39: 2706.496858 | BC39: 0 | BD39: 0 | BE39: 0 | BF39: 0.004212299916 | BG39: 0.06739679865 | BH39: 35.41142481 | BI39: 0.1551155116 | BJ39: 2.481848185 | BK39: 2196.278997 | BL39: 5755 | BM39: 12 | BN39: 7673.333333 | BO39: 1 | BP39: 0
A40: 4002A | B40: Sittingbourne CC's new Sp and Lang Unit | C40: Secondary | D40: 6 | E40: 0 | F40: 3 | G40: 0 | H40: 4.25 | I40: 0 | J40: 0 | K40: 4 | L40: 2 | M40: 0 | N40: 0 | O40: 0 | P40: 0 | Q40: 4 | R40: 2 | S40: 0 | T40: 5.125 | U40: 5.125 | V40: 0 | W40: 0 | X40: 0 | Y40: 4.25 | Z40: 0 | AA40: 0 | AB40: 0 | AC40: 0 | AD40: 42775.65705 | AE40: 0 | AF40: 10064.86048 | AG40: 42775.65705 | AH40: 0 | AI40: 19414.81128 | AJ40: 21305.17968 | AK40: 0.2533333333 | AL40: 2.596666667 | AM40: 868.3238708 | AN40: 0.19348659 | AO40: 1.983237548 | AP40: 886.0311965 | AQ40: 0.06417624521 | AR40: 0.6578065134 | AS40: 308.5770318 | AT40: 0.2634099617 | AU40: 2.699952107 | AV40: 1361.531833 | AW40: 0.08524904215 | AX40: 0.873802682 | AY40: 484.70708 | AZ40: 0.08620689655 | BA40: 0.8836206897 | BB40: 539.1676661 | BC40: 0 | BD40: 0 | BE40: 0 | BF40: 0.01405810684 | BG40: 0.1440955951 | BH40: 75.71027755 | BI40: 0.02952380952 | BJ40: 0.3026190476 | BK40: 1011.955134 | BL40: 491810.8826 | BM40: 1050 | BN40: 4801.010997 | BO40: 1 | BP40: 0
A41: 4002B | B41: Sittingbourne Academy HI | C41: Secondary | D41: 23 | E41: 0 | F41: 23 | G41: 0 | H41: 23 | I41: 0 | J41: 0 | K41: 14 | L41: 9 | M41: 0 | N41: 20 | O41: 6 | P41: 0 | Q41: -6 | R41: 3 | S41: 0 | T41: 11.69230769 | U41: 8.307692308 | V41: 0 | W41: 0 | X41: 26 | Y41: 0 | Z41: 0 | AA41: 0 | AB41: 0 | AC41: 419750.9073 | AD41: 0 | AE41: 0 | AF41: 16144.26567 | AG41: 371318.1103 | AH41: 0 | AI41: 44293.45312 | AJ41: 34535.97606 | AK41: 0.2533333333 | AL41: 5.066666667 | AM41: 1694.29048 | AN41: 0.19348659 | AO41: 3.869731801 | AP41: 1728.841359 | AQ41: 0.06417624521 | AR41: 1.283524904 | AS41: 602.1015255 | AT41: 0.2634099617 | AU41: 5.268199234 | AV41: 2656.647478 | AW41: 0.08524904215 | AX41: 1.704980843 | AY41: 945.7699122 | AZ41: 0.08620689655 | BA41: 1.724137931 | BB41: 1052.03447 | BC41: 0 | BD41: 0 | BE41: 0 | BF41: 0.01405810684 | BG41: 0.2811621368 | BH41: 147.7273708 | BI41: 0.02952380952 | BJ41: 0.5904761905 | BK41: 1974.546603 | BL41: 491810.8826 | BM41: 1050 | BN41: 9367.826335 | BO41: 1 | BP41: 0
A42: 5426A | B42: The Archbishops School VI | C42: Secondary | D42: 7 | E42: 0 | F42: 5 | G42: 0 | H42: 5.833333333 | I42: 0 | K42: 4 | L42: 2 | M42: 0 | N42: 2 | O42: 1 | P42: 0 | Q42: 2 | R42: 1 | S42: 0 | T42: 5.888888889 | U42: 2.944444444 | V42: 0 | W42: 0 | X42: 2 | Y42: 1 | Z42: 0 | AA42: 0 | AB42: 0 | AC42: 38057.7621 | AD42: 10653.09578 | AE42: 0 | AF42: 16236.95263 | AG42: 94715.55699 | AH42: 0 | AI42: 22308.61784 | AJ42: 12240.37423 | AK42: 0.08226950355 | AL42: 0.726713948 | AM42: 243.0127349 | AN42: 0.08085106383 | AO42: 0.7141843972 | AP42: 319.0690175 | AQ42: 0.02269503546 | AR42: 0.2004728132 | AS42: 94.04179558 | AT42: 0.06382978723 | AU42: 0.5638297872 | AV42: 284.3280818 | AW42: 0.03687943262 | AX42: 0.3257683215 | AY42: 180.7069435 | AZ42: 0 | BA42: 0 | BB42: 0 | BC42: 0 | BD42: 0 | BE42: 0 | BF42: 0.01291248207 | BG42: 0.1140602582 | BH42: 59.92920048 | BI42: 0.005681818182 | BJ42: 0.05018939394 | BK42: 167.8328422 | BL42: 184139.151 | BM42: 705 | BN42: 2307.180852 | BO42: 1 | BP42: 0
A43: 5426B | B43: The Archbishops School spld | C43: Secondary | D43: 12 | E43: 2 | F43: 11 | G43: 1 | H43: 11.41666667 | I43: 1.333333333 | K43: 9 | L43: 4 | M43: 0 | N43: 5 | O43: 3 | P43: 0 | Q43: 4 | R43: 1 | S43: 0 | T43: 11.13541667 | U43: 5.28125 | V43: 1.333333333 | W43: 2 | X43: 0 | Y43: 6 | Z43: 0 | AA43: 0 | AB43: 29102.45658 | AC43: 0 | AD43: 57918.57466 | AE43: 0 | AF43: 10877.6289 | AG43: 138689.7685 | AH43: 0 | AI43: 42183.80743 | AJ43: 21954.72784 | AK43: 0.08226950355 | AL43: 1.350591017 | AM43: 451.6368752 | AN43: 0.08085106383 | AO43: 1.327304965 | AP43: 592.986759 | AQ43: 0.02269503546 | AR43: 0.3725768322 | AS43: 174.7757899 | AT43: 0.06382978723 | AU43: 1.04787234 | AV43: 528.4210576 | AW43: 0.03687943262 | AX43: 0.6054373522 | AY43: 335.8421497 | AZ43: 0 | BA43: 0 | BB43: 0 | BC43: 0 | BD43: 0 | BE43: 0 | BF43: 0.01291248207 | BG43: 0.2119799139 | BH43: 111.3778537 | BI43: 0.005681818182 | BJ43: 0.09327651515 | BK43: 311.915754 | BL43: 184139.151 | BM43: 705 | BN43: 4287.873847 | BO43: 1 | BP43: 0
A44: 5434A | B44: The Westlands Academy PD | C44: Secondary | D44: 6 | E44: 2 | F44: 6 | G44: 2 | H44: 6 | I44: 2 | K44: 4 | L44: 2 | M44: 0 | N44: 3 | O44: 3 | P44: 0 | Q44: 1 | R44: -1 | S44: 0 | T44: 4 | U44: 2 | V44: 2 | W44: 0 | X44: 6 | Y44: 0 | Z44: 0 | AA44: 0 | AB44: 0 | AC44: 105173.2863 | AD44: 0 | AE44: 0 | AF44: 17528.88105 | AG44: 140231.0484 | AH44: 0 | AI44: 15153.02344 | AJ44: 8314.216459 | AK44: 0.1336934504 | AL44: 0.8021607022 | AM44: 268.242087 | AN44: 0.08401084011 | AO44: 0.5040650407 | AP44: 225.1960949 | AQ44: 0.05149051491 | AR44: 0.3089430894 | AS44: 144.9252015 | AT44: 0.1727642276 | AU44: 1.036585366 | AV44: 522.7292621 | AW44: 0.05487804878 | AX44: 0.3292682927 | AY44: 182.6484125 | AZ44: 0.01693766938 | BA44: 0.1016260163 | BB44: 62.01016187 | BC44: 0 | BD44: 0 | BE44: 0 | BF44: 0.00894085282 | BG44: 0.05364511692 | BH44: 28.18605723 | BI44: 0.005401755571 | BJ44: 0.03241053342 | BK44: 108.3805066 | BL44: 561328.9269 | BM44: 1481 | BN44: 2274.121243 | BO44: 1 | BP44: 0
A45: 5434B | B45: The Westlands Academy SPLD | C45: Secondary | D45: 30 | E45: 2 | F45: 32 | G45: 2 | H45: 31.16666667 | I45: 2 | K45: 22 | L45: 8 | M45: 0 | N45: 27 | O45: 10 | P45: 0 | Q45: -5 | R45: -2 | S45: 0 | T45: 17.74324324 | U45: 6.423423423 | V45: 2 | W45: 4 | X45: 0 | Y45: 35 | Z45: 0 | AA45: 0 | AB45: 57704.91315 | AC45: 0 | AD45: 278858.3522 | AE45: 0 | AF45: 8629.827317 | AG45: 286222.606 | AH45: 0 | AI45: 67215.94517 | AJ45: 26702.86637 | AK45: 0.1336934504 | AL45: 3.230925051 | AM45: 1080.419517 | AN45: 0.08401084011 | AO45: 2.030261969 | AP45: 907.0398267 | AQ45: 0.05149051491 | AR45: 1.24435411 | AS45: 583.7265062 | AT45: 0.1727642276 | AU45: 4.175135501 | AV45: 2105.437306 | AW45: 0.05487804878 | AX45: 1.326219512 | AY45: 735.667217 | AZ45: 0.01693766938 | BA45: 0.4093270099 | BB45: 249.763152 | BC45: 0 | BD45: 0 | BE45: 0 | BF45: 0.00894085282 | BG45: 0.2160706098 | BH45: 113.527175 | BI45: 0.005401755571 | BJ45: 0.1305424263 | BK45: 436.5325961 | BL45: 561328.9269 | BM45: 1481 | BN45: 9159.655008 | BO45: 1 | BP45: 0
A46: 6910A | B46: LEIGH TECHNOLOGY ACADEMY | C46: Secondary | D46: 4 | E46: 3 | F46: 4 | G46: 1 | H46: 4 | I46: 1.666666667 | J46: 0 | K46: 2 | L46: 2 | M46: 0 | N46: 1 | O46: 1 | P46: 0 | Q46: 1 | R46: 1 | S46: 0 | T46: 3 | U46: 3 | V46: 1.666666667 | W46: 0 | X46: 2 | Y46: 0 | Z46: 0 | AA46: 0 | AB46: 0 | AC46: 38057.7621 | AD46: 0 | AE46: 0 | AF46: 19028.88105 | AG46: 107830.326 | AH46: 0 | AI46: 11364.76758 | AJ46: 12471.32469 | AK46: 0.1181894384 | AL46: 0.7091366303 | AM46: 237.1348898 | AN46: 0.09479865772 | AO46: 0.5687919463 | AP46: 254.1134869 | AQ46: 0.1333892617 | AR46: 0.8003355705 | AS46: 375.4374117 | AT46: 0.02516778523 | AU46: 0.1510067114 | AV46: 76.14966353 | AW46: 0.06963087248 | AX46: 0.4177852349 | AY46: 231.7496449 | AZ46: 0.001677852349 | BA46: 0.01006711409 | BB46: 6.142751606 | BC46: 0 | BD46: 0 | BE46: 0 | BF46: 0.004191114837 | BG46: 0.02514668902 | BH46: 13.2124983 | BI46: 0.004191114837 | BJ46: 0.02514668902 | BK46: 84.09028202 | BL46: 325083.6318 | BM46: 1193 | BN46: 1634.955399 | BO46: 1.016316166 | BP46: 436.4424018
A47: 6912A | B47: NEW LINE LEARNING ACADEMY PD AND VI | C47: Secondary | D47: 4 | E47: 0 | F47: 4 | G47: 0 | H47: 4 | I47: 0 | J47: 0 | K47: 2 | L47: 2 | M47: 0 | N47: 2 | O47: 3 | P47: 0 | Q47: 0 | R47: -1 | S47: 0 | T47: 1.6 | U47: 1.4 | V47: 0 | W47: 0 | X47: 5 | Y47: 0 | Z47: 0 | AA47: 0 | AB47: 0 | AC47: 89144.40526 | AD47: 0 | AE47: 0 | AF47: 17828.88105 | AG47: 71315.52421 | AH47: 0 | AI47: 6061.209374 | AJ47: 5819.951521 | AK47: 0.2881646655 | AL47: 0.8644939966 | AM47: 289.0863055 | AN47: 0.1347150259 | AO47: 0.4041450777 | AP47: 180.5558528 | AQ47: 0.1606217617 | AR47: 0.481865285 | AS47: 226.0430025 | AT47: 0.1364421416 | AU47: 0.4093264249 | AV47: 206.4151271 | AW47: 0.1519861831 | AX47: 0.4559585492 | AY47: 252.9247639 | AZ47: 0.0621761658 | BA47: 0.1865284974 | BB47: 113.8159572 | BC47: 0.06735751295 | BD47: 0.2020725389 | BE47: 154.124765 | BF47: 0.008896797153 | BG47: 0.02669039146 | BH47: 14.02358582 | BI47: 0.04459691252 | BJ47: 0.1337907376 | BK47: 447.3949173 | BL47: 323472.2662 | BM47: 583 | BN47: 1664.522811 | BO47: 1 | BP47: 0
A48: 2603A | B48: Bromstone Primary School | C48: Primary | D48: 12 | E48: 0 | F48: 12 | G48: 0 | H48: 12 | I48: 0 | J48: 0 | K48: 0 | L48: 0 | M48: 0 | N48: 0 | O48: 0 | P48: 0 | Q48: 0 | R48: 0 | S48: 12 | T48: 0 | U48: 0 | V48: 0 | W48: 0 | X48: 12 | Y48: 0 | Z48: 0 | AA48: 0 | AB48: 0 | AC48: 201346.5726 | AD48: 0 | AE48: 0 | AF48: 16778.88105 | AG48: 201346.5726 | AH48: 32725.27544 | AI48: 0 | AJ48: 0 | AK48: 0.2723214286 | AL48: 3.267857143 | AM48: 1173.489065 | AN48: 0.1185682327 | AO48: 1.422818792 | AP48: 590.0856335 | AQ48: 0.06263982103 | AR48: 0.7516778523 | AS48: 327.3331521 | AT48: 0.1789709172 | AU48: 2.147651007 | AV48: 1005.379859 | AW48: 0.09619686801 | AX48: 1.154362416 | AY48: 594.4273784 | AZ48: 0.08724832215 | BA48: 1.046979866 | BB48: 593.0512711 | BC48: 0.03355704698 | BD48: 0.4026845638 | BE48: 285.1208034 | BF48: 0.007371007371 | BG48: 0.08845208845 | BH48: 46.47423233 | BI48: 0.09550561798 | BJ48: 1.146067416 | BK48: 1014.197327 | BL48: 126653.4583 | BM48: 448 | BN48: 3392.503347 | BO48: 1 | BP48: 0
A49: 2312A | B49: River Primary SLCN (12) Dover | C49: Primary | D49: 4 | E49: 0 | F49: 4 | G49: 0 | H49: 4 | I49: 0 | J49: 0 | K49: 0 | L49: 0 | M49: 0 | N49: 0 | O49: 0 | P49: 0 | Q49: 0 | R49: 0 | S49: 4 | T49: 0 | U49: 0 | V49: 0 | W49: 0 | X49: 0 | Y49: 4 | Z49: 0 | AA49: 0 | AB49: 0 | AC49: 0 | AD49: 40612.38311 | AE49: 0 | AF49: 10153.09578 | AG49: 40612.38311 | AH49: 10908.42515 | AI49: 0 | AJ49: 0 | AK49: 0.09546539379 | AL49: 0.3818615752 | AM49: 137.1266745 | AN49: 0.007177033493 | AO49: 0.02870813397 | AP49: 11.90612432 | AQ49: 0.1196172249 | AR49: 0.4784688995 | AS49: 208.3588502 | AT49: 0.06937799043 | AU49: 0.2775119617 | AV49: 129.9116737 | AW49: 0.1650717703 | AX49: 0.6602870813 | AY49: 340.0082273 | AZ49: 0.04545454545 | BA49: 0.1818181818 | BB49: 102.9890902 | BC49: 0 | BD49: 0 | BE49: 0 | BF49: 0 | BG49: 0 | BH49: 0 | BI49: 0.008356545961 | BJ49: 0.03342618384 | BK49: 29.58006294 | BL49: 55695.85497 | BM49: 419 | BN49: 531.7026727 | BO49: 1 | BP49: 0
A50: 3171A | B50: Nonnington Primary (8) Dover | C50: Primary | D50: 3 | E50: 0 | F50: 3 | G50: 0 | H50: 3 | I50: 0 | J50: 0 | K50: 0 | L50: 0 | M50: 0 | N50: 0 | O50: 0 | P50: 0 | Q50: 0 | R50: 0 | S50: 3 | T50: 0 | U50: 0 | V50: 0 | W50: 0 | X50: 0 | Y50: 3 | Z50: 0 | AA50: 0 | AB50: 0 | AC50: 0 | AD50: 31959.28733 | AE50: 0 | AF50: 10653.09578 | AG50: 31959.28733 | AH50: 8181.318861 | AI50: 0 | AJ50: 0 | AK50: 0.08695652174 | AL50: 0.2608695652 | AM50: 93.67838577 | AN50: 0.07246376812 | AO50: 0.2173913043 | AP50: 90.15869503 | AQ50: 0.04347826087 | AR50: 0.1304347826 | AS50: 56.80043439 | AT50: 0.3043478261 | AU50: 0.9130434783 | AV50: 427.4230405 | AW50: 0.01449275362 | AX50: 0.04347826087 | AY50: 22.3886955 | AZ50: 0 | BA50: 0 | BB50: 0 | BC50: 0 | BD50: 0 | BE50: 0 | BF50: 0.02739726027 | BG50: 0.08219178082 | BH50: 43.18496018 | BI50: 0.05 | BJ50: 0.15 | BK50: 132.7405325 | BL50: 21231.76774 | BM50: 69 | BN50: 923.1203365 | BO50: 1 | BP50: 0
A51: 3892A | B51: St Mary’s Faversham (8) Swale | C51: Primary | D51: 4 | E51: 0 | F51: 4 | G51: 0 | H51: 4 | I51: 0 | J51: 0 | K51: 0 | L51: 0 | M51: 0 | N51: 0 | O51: 0 | P51: 0 | Q51: 0 | R51: 0 | S51: 4 | T51: 0 | U51: 0 | V51: 0 | W51: 0 | X51: 0 | Y51: 4 | Z51: 0 | AA51: 0 | AB51: 0 | AC51: 0 | AD51: 40612.38311 | AE51: 0 | AF51: 10153.09578 | AG51: 40612.38311 | AH51: 10908.42515 | AI51: 0 | AJ51: 0 | AK51: 0.2303664921 | AL51: 0.9214659686 | AM51: 330.8988705 | AN51: 0.664921466 | AO51: 2.659685864 | AP51: 1103.051511 | AQ51: 0 | AR51: 0 | AS51: 0 | AT51: 0.02617801047 | AU51: 0.1047120419 | AV51: 49.01884783 | AW51: 0.1256544503 | AX51: 0.502617801 | AY51: 258.8180087 | AZ51: 0 | BA51: 0 | BB51: 0 | BC51: 0 | BD51: 0 | BE51: 0 | BF51: 0.005347593583 | BG51: 0.02139037433 | BH51: 11.23886664 | BI51: 0.0248447205 | BJ51: 0.09937888199 | BK51: 87.94403807 | BL51: 71936.7582 | BM51: 191 | BN51: 1506.528968 | BO51: 1 | BP51: 0
A52: 3914A | B52: Oakfield Primary (12) Dartford | C52: Primary | D52: 4 | E52: 0 | F52: 4 | G52: 0 | H52: 4 | I52: 0 | J52: 0 | K52: 0 | L52: 0 | M52: 0 | N52: 0 | O52: 0 | P52: 0 | Q52: 0 | R52: 0 | S52: 4 | T52: 0 | U52: 0 | V52: 0 | W52: 4 | X52: 0 | Y52: 0 | Z52: 0 | AA52: 0 | AB52: 57704.91315 | AC52: 0 | AD52: 0 | AE52: 0 | AF52: 14426.22829 | AG52: 57704.91315 | AH52: 10908.42515 | AI52: 0 | AJ52: 0 | AK52: 0.1804511278 | AL52: 0.7218045113 | AM52: 259.2003456 | AN52: 0.2301886792 | AO52: 0.920754717 | AP52: 381.8646011 | AQ52: 0.2188679245 | AR52: 0.8754716981 | AS52: 381.2416577 | AT52: 0.1 | AU52: 0.4 | AV52: 187.2519987 | AW52: 0.02641509434 | AX52: 0.1056603774 | AY52: 54.40875434 | AZ52: 0.001886792453 | BA52: 0.007547169811 | BB52: 4.275018838 | BC52: 0 | BD52: 0 | BE52: 0 | BF52: 0.00404040404 | BG52: 0.01616161616 | BH52: 8.49158813 | BI52: 0.1199095023 | BJ52: 0.479638009 | BK52: 424.4493647 | BL52: 146805.448 | BM52: 532 | BN52: 1103.800361 | BO52: 1.016316166 | BP52: 223.750255
A53: 4000A | B53: St Augustines | C53: Secondary | D53: 0 | E53: 0 | F53: 12 | G53: 0 | H53: 7 | I53: 0 | J53: 0 | K53: 0 | L53: 0 | M53: 0 | N53: 0 | O53: 0 | P53: 0 | Q53: 0 | R53: 0 | S53: 0 | T53: 3 | U53: 3 | V53: 0 | W53: 12 | X53: 0 | Y53: 0 | Z53: 0 | AA53: 0 | AB53: 170114.7395 | AC53: 0 | AD53: 0 | AE53: 0 | AF53: 14176.22829 | AG53: 170114.7395 | AH53: 0 | AI53: 22729.53515 | AJ53: 24942.64938 | AK53: 0.1576923077 | AL53: 1.892307692 | AM53: 632.7866265 | AN53: 0.1184466019 | AO53: 1.421359223 | AP53: 635.0064391 | AQ53: 0.08349514563 | AR53: 1.001941748 | AS53: 470.0108683 | AT53: 0.03689320388 | AU53: 0.4427184466 | AV53: 223.2540556 | AW53: 0.02718446602 | AX53: 0.3262135922 | AY53: 180.9539396 | AZ53: 0.03495145631 | BA53: 0.4194174757 | BB53: 255.9201523 | BC53: 0.01941747573 | BD53: 0.2330097087 | BE53: 177.721163 | BF53: 0.007692307692 | BG53: 0.09230769231 | BH53: 48.50003221 | BI53: 0.08269230769 | BJ53: 0.9923076923 | BK53: 3318.267213 | BL53: 229192.8289 | BM53: 520 | BN53: 5289.065282 | BO53: 1 | BP53: 0
A54: 4065A | B54: Holmesdale Technology College | C54: Secondary | D54: 4 | E54: 0 | F54: 4 | G54: 0 | H54: 4 | I54: 0 | J54: 0 | K54: 0 | L54: 0 | M54: 0 | N54: 0 | O54: 0 | P54: 0 | Q54: 0 | R54: 0 | S54: 0 | T54: 2 | U54: 2 | V54: 0 | W54: 4 | X54: 0 | Y54: 0 | Z54: 0 | AA54: 0 | AB54: 57704.91315 | AC54: 0 | AD54: 0 | AE54: 0 | AF54: 14426.22829 | AG54: 57704.91315 | AH54: 0 | AI54: 7576.511718 | AJ54: 8314.216459 | AK54: 0.0990990991 | AL54: 0.3963963964 | AM54: 132.5547317 | AN54: 0.02838709677 | AO54: 0.1135483871 | AP54: 50.72887682 | AQ54: 0.06838709677 | AR54: 0.2735483871 | AS54: 128.3215469 | AT54: 0.1716129032 | AU54: 0.6864516129 | AV54: 346.1638153 | AW54: 0.02322580645 | AX54: 0.09290322581 | AY54: 51.53434778 | AZ54: 0.002580645161 | BA54: 0.01032258065 | BB54: 6.298632184 | BC54: 0 | BD54: 0 | BE54: 0 | BF54: 0.004790419162 | BG54: 0.01916167665 | BH54: 10.06787096 | BI54: 0.006443298969 | BJ54: 0.02577319588 | BK54: 86.18531482 | BL54: 226907.1308 | BM54: 777 | BN54: 1168.119077 | BO54: 1 | BP54: 0
A55: 6906A | B55: Marlowe Academy (15). | C55: Secondary | D55: 0 | E55: 0 | F55: 4 | G55: 0 | H55: 2.333333333 | I55: 0 | J55: 0 | K55: 0 | L55: 0 | M55: 0 | N55: 0 | O55: 0 | P55: 0 | Q55: 0 | R55: 0 | S55: 0 | T55: 1 | U55: 1 | V55: 0 | W55: 4 | X55: 0 | Y55: 0 | Z55: 0 | AA55: 0 | AB55: 57704.91315 | AC55: 0 | AD55: 0 | AE55: 0 | AF55: 14426.22829 | AG55: 57704.91315 | AH55: 0 | AI55: 7576.511718 | AJ55: 8314.216459 | AK55: 0.4 | AL55: 1.6 | AM55: 535.0390988 | AN55: 0.100204499 | AO55: 0.4008179959 | AP55: 179.0694457 | AQ55: 0.0981595092 | AR55: 0.3926380368 | AS55: 184.1865009 | AT55: 0.245398773 | AU55: 0.981595092 | AV55: 494.9987672 | AW55: 0.1881390593 | AX55: 0.7525562372 | AY55: 417.4504654 | AZ55: 0.1963190184 | BA55: 0.7852760736 | BB55: 479.159749 | BC55: 0.02249488753 | BD55: 0.0899795501 | BE55: 68.62920165 | BF55: 0.02998236332 | BG55: 0.1199294533 | BH55: 63.01297541 | BI55: 0.06339468303 | BJ55: 0.2535787321 | BK55: 847.9647989 | BL55: 296358.2004 | BM55: 490 | BN55: 2419.250616 | BO55: 1 | BP55: 0
G59: DFE | H59: E1 Total | I59: E2 Total | J59: E2 Total
A60: 2005 | B60: 280000 | C60: 280000 | D60: =C60-B60 -> 0 | G60: 2005 | H60: 112000 | I60: 168000 | J60: 0 | K60: =H60+I60+J60-C60 -> 0
A61: 2007 | B61: 108333.3333 | C61: 108333.33 | D61: =C61-B61 -> -0.003333333341 | G61: 2007 | H61: 43333.33333 | I61: 65000 | J61: 0 | K61: =H61+I61+J61-C61 -> 0.003333333341
A62: 2155 | B62: 54166.66667 | C62: 54166.67 | D62: 0.003333333327 | G62: 2155 | H62: 21666.66667 | I62: 32500 | J62: 0 | K62: -0.003333333327
A63: 2463 | B63: 280000 | C63: 280000 | D63: 0 | G63: 2463 | H63: 112000 | I63: 168000 | J63: 0 | K63: 0
A64: 2490 | B64: 60000 | C64: 60000 | D64: 0 | G64: 2490 | H64: 24000 | I64: 36000 | J64: 0 | K64: 0
A65: 2513 | B65: 120000 | C65: 120000 | D65: 0 | G65: 2513 | H65: 48000 | I65: 72000 | J65: 0 | K65: 0
A66: 2568 | B66: 50000 | C66: 50000 | D66: 0 | G66: 2568 | H66: 20000 | I66: 30000 | J66: 0 | K66: 0
A67: 2661 | B67: 291666.6667 | C67: 291666.67 | D67: 0.003333333298 | G67: 2661 | H67: 116666.6667 | I67: 175000 | J67: 0 | K67: -0.003333333298
A68: 3086 | B68: 181666.6667 | C68: 181666.67 | D68: 0.003333333327 | G68: 3086 | H68: 72666.66667 | I68: 109000 | J68: 0 | K68: -0.003333333327
A69: 3124 | B69: 50000 | C69: 50000 | D69: 0 | G69: 3124 | H69: 20000 | I69: 30000 | J69: 0 | K69: 0
A70: 3296 | B70: 174166.6667 | C70: 174166.67 | D70: 0.003333333327 | G70: 3296 | H70: 69666.66667 | I70: 104500 | J70: 0 | K70: -0.003333333327
A71: 3902 | B71: 190000 | C71: 190000 | D71: 0 | G71: 3902 | H71: 76000 | I71: 114000 | J71: 0 | K71: 0
A72: 3903 | B72: 50000 | C72: 50000 | D72: 0 | G72: 3903 | H72: 20000 | I72: 30000 | J72: 0 | K72: 0
A73: 3904 | B73: 80000 | C73: 80000 | D73: 0 | G73: 3904 | H73: 32000 | I73: 48000 | J73: 0 | K73: 0
A74: 3909 | B74: 60000 | C74: 60000 | D74: 0 | G74: 3909 | H74: 24000 | I74: 36000 | J74: 0 | K74: 0
A75: 3910 | B75: 263333.3333 | C75: 263333.33 | D75: -0.003333333356 | G75: 3910 | H75: 105333.3333 | I75: 158000 | J75: 0 | K75: 0.003333333356
A76: 3917 | B76: 70000 | C76: 70000 | D76: 0 | G76: 3917 | H76: 28000 | I76: 42000 | J76: 0 | K76: 0
A77: 4207 | B77: 160000 | C77: 160000 | D77: 0 | G77: 4207 | H77: 64000 | I77: 96000 | J77: 0 | K77: 0
A78: 4172 | B78: 30000 | C78: 42000 | D78: 12000 | G78: 4172 | H78: 12000 | I78: 18000 | J78: 12000 | K78: 0
A79: 4010 | B79: 176666.6667 | C79: 192666.67 | D79: 16000.00333 | G79: 4010 | H79: 70666.66667 | I79: 106000 | J79: 16000 | K79: -0.003333333327
A80: 4242 | B80: 330000 | C80: 330000 | D80: 0 | G80: 4242 | H80: 132000 | I80: 198000 | J80: 0 | K80: 0
A81: 4246 | B81: 150000 | C81: 162000 | D81: 12000 | G81: 4246 | H81: 60000 | I81: 90000 | J81: 12000 | K81: 0
A82: 5221 | B82: 250000 | C82: 250000 | D82: 0 | G82: 5221 | H82: 100000 | I82: 150000 | J82: 0 | K82: 0
A83: 5229 | B83: 128333.3333 | C83: 128333.33 | D83: -0.003333333341 | G83: 5229 | H83: 51333.33333 | I83: 77000 | J83: 0 | K83: 0.003333333341
A84: 5401 | B84: 25000 | C84: 25000 | D84: 0 | G84: 5401 | H84: 10000 | I84: 15000 | J84: 0 | K84: 0
A85: 5407 | B85: 100000 | C85: 100000 | D85: 0 | G85: 5407 | H85: 40000 | I85: 60000 | J85: 0 | K85: 0
A86: 5412 | B86: 120000 | C86: 138000 | D86: 18000 | G86: 5412 | H86: 48000 | I86: 72000 | J86: 18000 | K86: 0
A87: 5421 | B87: 210000 | C87: 210000 | D87: 0 | G87: 5421 | H87: 84000 | I87: 126000 | J87: 0 | K87: 0
A88: 4004 | B88: 160000 | C88: 160000 | D88: 0 | G88: 4004 | H88: 64000 | I88: 96000 | J88: 0 | K88: 0
A89: 5425 | B89: 935000 | C89: 935000 | D89: 0 | G89: 5425 | H89: 374000 | I89: 561000 | J89: 0 | K89: 0
A90: 5435 | B90: 65000 | C90: 79000 | D90: 14000 | G90: 5435 | H90: 26000 | I90: 39000 | J90: 14000 | K90: 0
A91: 5438 | B91: 48333.33333 | C91: 48333.33 | D91: -0.003333333341 | G91: 5438 | H91: 19333.33333 | I91: 29000 | J91: 0 | K91: 0.003333333341
A92: 5446 | B92: 140000 | C92: 152000 | D92: 12000 | G92: 5446 | H92: 56000 | I92: 84000 | J92: 12000 | K92: 0
A93: 5458 | B93: 40000 | C93: 40000 | D93: 0 | G93: 5458 | H93: 16000 | I93: 24000 | J93: 0 | K93: 0
A94: 5468 | B94: 50000 | C94: 50000 | D94: 0 | G94: 5468 | H94: 20000 | I94: 30000 | J94: 0 | K94: 0
A95: 6914 | B95: 354166.6667 | C95: 366166.67 | D95: 12000.00333 | G95: 6914 | H95: 141666.6667 | I95: 212500 | J95: 12000 | K95: -0.003333333239
A96: 6917 | B96: 300000 | C96: 360000 | D96: 60000 | G96: 6917 | H96: 120000 | I96: 180000 | J96: 60000 | K96: 0
A97: 6919 | B97: 120000 | C97: 120000 | D97: 0 | G97: 6919 | H97: 48000 | I97: 72000 | J97: 0 | K97: 0
A98: 4002 | B98: 42500 | C98: 272500 | D98: 230000 | G98: 4002A | H98: 17000 | I98: 25500 | J98: 0 | K98: -230000
A99: 4002 | B99: 230000 | C99: 272500 | D99: 42500 | G99: 4002B | H99: 92000 | I99: 138000 | J99: 0 | K99: -42500
A100: 5426 | B100: 58333.33333 | C100: 180500 | D100: 122166.6667 | G100: 5426A | H100: 23333.33333 | I100: 35000 | J100: 0 | K100: -122166.6667
A101: 5426 | B101: 114166.6667 | C101: 180500 | D101: 66333.33333 | G101: 5426B | H101: 45666.66667 | I101: 68500 | J101: 8000 | K101: -58333.33333
A102: 5434 | B102: 60000 | C102: 395666.67 | D102: 335666.67 | G102: 5434A | H102: 24000 | I102: 36000 | J102: 12000 | K102: -323666.67
A103: 5434 | B103: 311666.6667 | C103: 395666.67 | D103: 84000.00333 | G103: 5434B | H103: 124666.6667 | I103: 187000 | J103: 12000 | K103: -72000.00333
A104: 6910 | B104: 40000 | C104: 50000 | D104: 10000 | G104: 6910 | H104: 16000 | I104: 24000 | J104: 10000 | K104: 0
A105: 6912 | B105: 40000 | C105: 40000 | D105: 0 | G105: 6912 | H105: 16000 | I105: 24000 | J105: 0 | K105: 0
A106: 2603 | B106: 120000 | C106: 120000 | D106: 0 | G106: 2603 | H106: 48000 | I106: 72000 | J106: 0 | K106: 0
A107: 2312 | B107: 40000 | C107: 40000 | D107: 0 | G107: 2312 | H107: 16000 | I107: 24000 | J107: 0 | K107: 0
A108: 3171 | B108: 30000 | C108: 30000 | D108: 0 | G108: 3171 | H108: 12000 | I108: 18000 | J108: 0 | K108: 0
A109: 3892 | B109: 40000 | C109: 40000 | D109: 0 | G109: 3892 | H109: 16000 | I109: 24000 | J109: 0 | K109: 0
A110: 3914 | B110: 40000 | C110: 40000 | D110: 0 | G110: 3914 | H110: 16000 | I110: 24000 | J110: 0 | K110: 0
A111: 4000 | B111: 120000 | C111: 120000 | D111: 0 | G111: 4000 | H111: 48000 | I111: 72000 | J111: 0 | K111: 0
A112: 4065 | B112: 40000 | C112: 40000 | D112: 0 | G112: 4065 | H112: 16000 | I112: 24000 | J112: 0 | K112: 0
A113: 6906 | B113: 40000 | C113: 40000 | D113: 0 | G113: 6906 | H113: 16000 | I113: 24000 | J113: 0 | K113: 0

Sheet TestArea (hidden)
A1: DFE | B1: =MAX(E1,H1,K1,N1,Q1,T1,W1,Z1,AC1,AF1,AI1,AL1,AO1,AR1) -> 0.005016730167 | C1: Early Years Rate | E1: =MAX(MIN(E2:E137)*-1,MAX(E2:E137)) -> 0 | F1: Notional Budget | H1: =MAX(MIN(H2:H137)*-1,MAX(H2:H137)) -> 0.004962181789 | I1: SEN Topup | K1: =MAX(MIN(K2:K137)*-1,MAX(K2:K137)) -> 0.00491746531 | L1: SEN Max | N1: =MAX(MIN(N2:N137)*-1,MAX(N2:N137)) -> 0.004992436356 | O1: E3 SRP 1 | Q1: =MAX(MIN(Q2:Q137)*-1,MAX(Q2:Q137)) -> 0.004945216452 | R1: E3 SRP 2 | T1: =MAX(MIN(T2:T137)*-1,MAX(T2:T137)) -> 0.003062414894 | U1: E3 SRP Post-16 1 | W1: =MAX(MIN(W2:W137)*-1,MAX(W2:W137)) -> 0.003572013154 | X1: E3 SRP Post-16 2 | Z1: =MAX(MIN(Z2:Z137)*-1,MAX(Z2:Z137)) -> 0.002683288414 | AA1: Place Funding | AC1: =MAX(MIN(AC2:AC137)*-1,MAX(AC2:AC137)) -> 0.003333333341 | AD1: Budget Pupil Number | AF1: =MAX(MIN(AF2:AF137)*-1,MAX(AF2:AF137)) -> 0 | AG1: Rising Roll Unit Value | AI1: =MAX(MIN(AI2:AI137)*-1,MAX(AI2:AI137)) -> 0.00488882847 | AJ1: MFG | AL1: =MAX(MIN(AL2:AL137)*-1,MAX(AL2:AL137)) -> 0.004983489474 | AM1: Rising Roll Threshold | AO1: =MAX(MIN(AO2:AO137)*-1,MAX(AO2:AO137)) -> 0 | AP1: Initial Budget for Rising Roll | AR1: =MAX(MIN(AR2:AR137)*-1,MAX(AR2:AR137)) -> 0.005016730167 | AS1: less 50 pupils | AT1: less 5 pupils | AU1: same pupils | AV1: plus 5 pupils | AW1: plus 50 pupils | AX1: Threshold Pupils | AY1: Funded Pupils | AZ1: Provisional Cash | BA1: Less MFG | BB1: 5k 10k threshold | BC1: half percent | BD1: =MAX(MIN(BD2:BD137)*-1,MAX(BD2:BD137)) -> 0.4995204811 | BE1: Rising Roll Brought Forward | BF1: =MAX(MIN(BF2:BF137)*-1,MAX(BF2:BF137)) -> 0.01922198144
A2: A2001 | B2: Horizon Primary Academy | C2: 0 | D2: 0 | E2: =C2-D2 -> 0 | F2: 142143.3 | G2: 142143.3002 | H2: =F2-G2 -> -0.0002368850692 | I2: 1735.7 | J2: 1735.700993 | K2: =I2-J2 -> -0.0009928934485 | L2: 28428.66 | M2: =G2/5 -> 28428.66005 | N2: =L2-M2 -> -4.737701238e-05 | O2: 0 | P2: 0 | Q2: =O2-P2 -> 0 | T2: =R2-S2 -> 0 | V2: 0 | W2: =U2-V2 -> 0 | Z2: =X2-Y2 -> 0 | AA2: 0 | AB2: 0 | AC2: =AA2-AB2 -> 0 | AD2: 162 | AE2: 162 | AF2: =AD2-AE2 -> 0 | AG2: 1590.81 | AH2: 1590.812001 | AI2: =AG2-AH2 -> -0.002000736297 | AJ2: 52728.85 | AK2: 52728.84765 | AL2: =AJ2-AK2 -> 0.002354280463 | AM2: 2000 | AN2: 2000 | AO2: =AM2-AN2 -> 0 | AP2: 791759.96 | AQ2: 791759.9648 | AR2: =AP2-AQ2 -> -0.00484076771 | AS2: 2052.45 | AT2: 2052.45 | AU2: 2052.45 | AV2: 2052.45 | AW2: 20910.45 | AX2: =IF(AD2>250,AD2*0.02,5) -> 5 | AY2: =ROUND(50-AX2,0) -> 45 | AZ2: =AY2*AH2 -> 71586.54003 | BA2: =AZ2-AK2 -> 18857.69239 | BB2: =IF(BA2>AN2,BA2,0) -> 18857.69239 | BC2: =IF(BB2>(AQ2*0.005),BB2,0) -> 18857.69239 | BD2: =BC2-AW2+BE2 -> -0.3028070908 | BE2: =VLOOKUP(A2,DATA!$B$3:$BH$145,59,0) -> 2052.454805 | BF2: =SUM(AS2:AV2)-(4*BE2) -> -0.01922198144
A3: A2003 | B3: Oaks Academy | C3: 4.93 | D3: 4.93 | E3: =C3-D3 -> 0 | F3: 142482.47 | G3: 142482.4686 | H3: =F3-G3 -> 0.001381855254 | I3: 1725.53 | J3: 1725.525941 | K3: =I3-J3 -> 0.004058544342 | L3: 28496.49 | M3: =G3/5 -> 28496.49372 | N3: =L3-M3 -> -0.003723628946 | O3: 0 | P3: 0 | Q3: =O3-P3 -> 0 | T3: =R3-S3 -> 0 | V3: 0 | W3: =U3-V3 -> 0 | Z3: =X3-Y3 -> 0 | AA3: 0 | AB3: 0 | AC3: =AA3-AB3 -> 0 | AD3: 125 | AE3: 125 | AF3: =AD3-AE3 -> 0 | AG3: 1590.81 | AH3: 1590.812001 | AI3: =AG3-AH3 -> -0.002000736297 | AJ3: 30905.47 | AK3: 30905.47 | AL3: =AJ3-AK3 -> 0 | AM3: 2000 | AN3: 2000 | AO3: =AM3-AN3 -> 0 | AP3: 650382.02 | AQ3: 650382.02 | AR3: =AP3-AQ3 -> 0 | AS3: 0 | AT3: 0 | AU3: 0 | AV3: 0 | AW3: 40681 | AX3: =IF(AD3>250,AD3*0.02,5) -> 5 | AY3: =ROUND(50-AX3,0) -> 45 | AZ3: =AY3*AH3 -> 71586.54003 | BA3: =AZ3-AK3 -> 40681.07003 | BB3: =IF(BA3>AN3,BA3,0) -> 40681.07003 | BC3: =IF(BB3>(AQ3*0.005),BB3,0) -> 40681.07003 | BD3: =BC3-AW3+BE3 -> 0.07003313335 | BE3: =VLOOKUP(A3,DATA!$B$3:$BH$145,59,0) -> 0 | BF3: =SUM(AS3:AV3)-(4*BE3) -> 0
